Workbook

Sheet Portada

Sheet Indice
A2: INDICE
A4: ALUMNOS | G4: PROFESORES | M4: APOYO INSTITUCIONAL
A5: Planes estudio | B5: Licenciatura | D5: Bajas | E5: División | G5: Planta | H5: Plazas (Listado) | J5: Investigación | K5: PRODEP / SNI | M5: Actividades Deportivas
A6: Aspirantes | B6: Demanda | E6: Deserción Acum y Género | H6: Plazas por División | K6: PRODEP/SNI Comparativo | M6: Difusión de Licenciaturas
B7: Plan | E7: Comparativo | H7: Profs Defs Histórico | K7: Proyectos de Investigación | M7: Lineamientos, Criterios e Instructivos
B8: División | D8: Egreso | E8: Plan | H8: Concursos Oposición | K8: Áreas y Cuerpos Académicos
B9: Género | E9: División | H9: Profs Defs Detalles | K9: Cuerpos Académicos Comparativo
B10: Comparativo | E10: Género | H10: Profs Defs por Categoría | K10: Prod. Científica (TIPPA) | M10: ÓRGANOS COLEGIADOS
A11: Admitidos | B11: Plan | E11: Comparativo | H11: Profs Defs por Grado | K11: Prod. Total (TIPPA) | M11: Órganos Personales
B12: División | D12: Titulados | E12: Plan | H12: Profs Defs por Género | K12: Patentes | M12: Sesiones órganos colegiados
B13: Género | E13: División | H13: Visitantes | J13: Recursos Externos | K13: Contratos y Convenios | M13: Lineamientos, criterios e instructivos
B14: Admit/Aspir | E14: Comparativo | H14: Profs Defs Comparativo | K14: Patrocinios | M14: Comisiones
B15: Perfil SE Admit | D15: Trimestres para egresar | E15: Plan | G15: Docencia | H15: Als Activos / Plaza | K15: División | M15: Reconocimientos Docencia
B16: Comparativo | E16: División | H16: Comparativo | K16: Comparativo | M16: Dictaminadoras divisionales
A17: Inscritos | B17: Plan | E17: Comparativo | H17: Profs Defs Dedicación Completa
B18: División | D18: Eficiencia terminal | E18: División | H18: Grupos Ofrecidos
B19: Acumulado | E19: Comparativo | H19: Carga por Plaza
B20: Género | D20: Becas Alumnos | E20: División | H20: Carga PDDC
B21: Inscrit/Aspir | E21: Comparativo 1
B22: Inscrit/Admit | E22: Comparativo 2
B23: Aspir/Admit/Inscrit | D23: Servicio Social | E23: Proys Servicio Social
B24: Comparativo
A25: Matrícula | B25: Plan
B26: División
B27: Género
B28: Comparativo
A29: Activos | B29: Plan
B30: División
B31: Género
B32: Comparativo

Sheet Planes de Lic.
A1: INDICE
A3: Ingeniería en Recursos Hídricos
A4: ÓRGANO | B4: FECHA | C4: ACUERDO
A5: Colegio Académico | B5: 2011-02-24 | C5: 331.4 | D5: Creación de la Licenciatura en Ingeniería en Recursos Hídricos, con el plan y los programas de estudio correspondientes, de la División de Ciencias Básicas e Ingeniería de la Unidad Lerma, con excepción de los programas de estudio de las UEA 5010000, 5010001, 5010002, 5110006 y 5110008, mismos que serán presentados posteriormente al Colegio Académico.
A6: Colegio Académico | B6: 2012-04-19 | C6: 344.3 | D6: Aprobación de la creación de tres UEA interdivisionales 5010000 Complejidad e Interdisciplina, 5010001 Análisis de Problemáticas Complejas I y 5010002 Análisis de Problemáticas Complejas II que se impartirán en los trimestres V, XI y XII de las licenciaturas de la Unidad Lerma.
A7: Colegio Académico | B7: 2012-06-27 | C7: 346.9 | D7: Creación de las UEA 5110006 Movimiento de Cuerpos de Agua y 5110008 Política y Gestión Integral del Agua, que se impartirán en los trimestres VIII y X, de la Licenciatura en Ingeniería en Recursos Hídricos de la Unidad Lerma.
A8: Consejo Divisional CBI | B8: 2015-12-01 | C8: 38.3 | D8: Aprobación de la Adecuación al Plan y Programas de Estudio de la Licenciatura en Ingeniería en Recursos Hídricos, la cualentrará en vigor en el trimestre 16-Otoño
A9: Consejo Académico Lerma | B9: 2015-12-09 | C9: 48.RICBI | D9: Recepción de la información presentada por el Consejo Divisional de Ciencias Básicas e Ingeniería, sobre las adecuaciones efectuadas al plan y programas de estudio de la Licenciatura en Ingeniería en Recursos Hídricos.
A10: Colegio Académico | B10: 2015-12-17 | C10: 387.A | D10: El Colegio Académico recibió la información del Consejo Divisional de Ciencias Básicas e Ingeniería de la Unidad Lerma, sobre las adecuaciones efectuadas al plan y los programas de estudio de la Licenciatura en Ingeniería en Recursos Hídricos, cuya entrada en vigor será en el Trimestre 2016-O.
A12: Biología Ambiental
A13: ÓRGANO | B13: FECHA | C13: ACUERDO
A14: Colegio Académico | B14: 2011-02-24 | C14: 331.5 | D14: Creación de la Licenciatura en Biología Ambiental, con el plan y los programas de estudio correspondientes, de la División de Ciencias Biológicas y de la Salud de la Unidad Lerma.
A15: Colegio Académico | B15: 2012-04-19 | C15: 344.3 | D15: Aprobación de la creación de tres UEA interdivisionales 5010000 Complejidad e Interdisciplina, 5010001 Análisis de Problemáticas Complejas I y 5010002 Análisis de Problemáticas Complejas II que se impartirán en los trimestres V, XI y XII de las licenciaturas de la Unidad Lerma.
A17: Políticas Públicas
A18: ÓRGANO | B18: FECHA | C18: ACUERDO
A19: Colegio Académico | B19: 2011-02-24 | C19: 331.6 | D19: Creación de la Licenciatura en Políticas Públicas, con el plan y los programas de estudio correspondientes, de la División de Ciencias Sociales y Humanidades de la Unidad Lerma.
A20: Colegio Académico | B20: 2012-04-19 | C20: 344.3 | D20: Aprobación de la creación de tres UEA interdivisionales 5010000 Complejidad e Interdisciplina, 5010001 Análisis de Problemáticas Complejas I y 5010002 Análisis de Problemáticas Complejas II que se impartirán en los trimestres V, XI y XII de las licenciaturas de la Unidad Lerma.
A22: Arte y Comunicación Digitales
A23: ÓRGANO | B23: FECHA | C23: ACUERDO
A24: Colegio Académico | B24: 2012-12-11 | C24: 354.9 | D24: Creación de la Licenciatura en Arte y Comunicación Digitales, con el plan y programas de estudio correspondientes, de la División de Ciencias Sociales y Humanidades de la Unidad Lerma.
A26: Ciencias Agroalimentarias.
A27: ÓRGANO | B27: FECHA | C27: ACUERDO
A28: Consejo Divisional CBS | B28: 2013-10-22 | C28: 12.13.6 | D28: Aprobación del dictamen que presenta la Comisión de Docencia del Consejo Divisional de Ciencias Biológicas y de la Salud sobre la creación del Plan y Programas de la Licenciatura en Ciencias Agroalimentarias.
A30: Educación y Tecnologías Digitales
A31: ÓRGANO | B31: FECHA | C31: ACUERDO
A32: Consejo Divisional CSH | B32: 2013-10-30 | C32: 15.3 | D32: Aprobación en lo particular de la propuesta de creación de la Licenciatura en Educación y Tecnologías de Información y Comunicación.
A33: Consejo Académico Lerma | B33: 2015-07-03 | C33: 43.1 | D33: Aprobación del Dictamen de la "Comisión de Planes y Programas de Estudio", consistente en la dictaminación y armonización de la Propuesta de Creación de la Licenciatura en Educación y Tecnologías Digitales, de la División de Ciencias Sociales y Humanidades, y envío de la misma al Colegio Académico para su análisis, discusión y, en su caso, autorización.
A36: Ingeniería en Computación y Telecomunicaciones
A37: ÓRGANO | B37: FECHA | C37: ACUERDO
A38: Consejo Divisional CBI | B38: 2015-04-09 | C38: 26.5 | D38: Aprobación de la Propuesta y Justificación de creación del Plan de Estudios de la Licenciatura en Ingeniería en Sistemas y Telecomunicaciones, de conformidad con el Dictamen que presentó la Comisión Planes y Programas de Estudios, a fin de presentarla ante el Consejo Académico para su dictaminación y armonización,.
A39: Consejo Académico Lerma | B39: 2015-07-03 | C39: 43.9 | D39: Aprobación del Dictamen de la "Comisión de Planes y Programas de Estudio", consistente en la dictaminación y armonización de la Propuesta Inicial de Creación de la Licenciatura en Ingeniería en Computación y Telecomunicaciones, de la División de Ciencias Básicas e Ingeniería, y envíode la misma al Colegio Académico para su análisis, discusión y, en su caso, autorización
A40: Colegio Académico | B40: 2015-12-17 | C40: 387.7 | D40: Aprobación de la propuesta inicial de Creación de la Licenciatura en Ingeniería en Computación y Telecomunicaciones de la División de Ciencias Básicas e Ingeniería, presentada por el Consejo Académico de la Unidad Lerma, y remitirla al Consejo Divisional para que continúe con la formulación del plan y los programas de estudio, de acuerdo con lo previsto en los artículos 32 y 33 del Reglamento de Estudios Superiores.
A42: Psicología Biomédica
A43: ÓRGANO | B43: FECHA | C43: ACUERDO
A44: Consejo Divisional CBS | B44: 2015-06-30 | C44: 14.15.13 | D44: Aprobación del Dictamen que presenta la Comisión de Planes y Programas de Estudio, respecto de la Propuesta Inicial de la Creación del Plan de Estudios de la Licenciatura en Psicología Biomédica.
A45: Consejo Académico Lerma | B45: 2015-09-28 | C45: 44.3 | D45: Aprobación del Dictamen de la "Comisión de Planes y Programas de Estudio", consistente en la dictaminación y armonización de la Propuesta Inicial de Creación del Plan de Estudios de la Licenciatura en Psicología Biomédica, de la División de Ciencias Biológicas y de la Salud, y envio de la propuesta, con modificaciones, al Colegio Académico para su análisis, discusión y, en su caso, autorización.
A46: Colegio Académico | B46: 2015-12-17 | C46: 387.8 | D46: Aprobación de la propuesta inicial de Creación de la Licenciatura en Psicología Biomédica de la División de Ciencias Biológicas y de la Salud, presentada por el Consejo Académico de la Unidad Lerma, y remitirla al Consejo Divisional para que continúe con la formulación del plan y los programas de estudio, de acuerdo con lo previsto en los artículos 32 y 33 del Reglamento de Estudios Superiores.

Sheet Demanda
A1: INDICE
A2: EDUCACIÓN MEDIA SUPERIOR | H2: LICENCIATURA UNIVERSITARIA Y TECNOLÓGICA | V2: LICENCIATURA UNIVERSITARIA Y TECNOLÓGICA
B5: INSTITUCIONES PÚBLICAS (Educación Media Superior) | I5: INSTITUCIONES PÚBLICAS (Licenciatura Universitaria y Tecnológica) | W5: PÚBLICAS | AC5: SOLICITUDES 1er INGRESO (PÚBLICAS / TOTAL)
B6: 2011-2012 | C6: 2012-2013 | D6: 2013-2014 | E6: 2014-2015 | I6: 2011-2012 | L6: 2012-2013 | O6: 2013-2014 | R6: 2014-2015 | W6: 2011-2012 | X6: 2012-2013 | Y6: 2013-2014 | Z6: 2014-2015 | AC6: 2011-2012 | AD6: 2012-2013 | AE6: 2013-2014 | AF6: 2014-2015
B7: Matrícula | C7: Matrícula | D7: Matrícula | E7: Matrícula | I7: Solicitudes 1er Ingreso | J7: 1er Ingreso | L7: Solicitudes 1er Ingreso | M7: 1er Ingreso | O7: Solicitudes 1er Ingreso | P7: 1er Ingreso | R7: Solicitudes 1er Ingreso | S7: 1er Ingreso | V7: México | W7: 0.4755525195 | X7: 0.4874511162 | Y7: 0.5251837806 | Z7: =T8 -> 0.5044201841 | AB7: México | AC7: =I8/I24 -> 0.7445206523 | AD7: =L8/L24 -> 0.7418714035 | AE7: =O8/O24 -> 0.6989516658 | AF7: =R8/R24 -> 0.7139712097
A8: México | B8: 3575925 | C8: 3672040 | D8: 3729690 | E8: 3906800 | H8: México | I8: 928112 | J8: 441366 | K8: =J8/I8 -> 0.4755525195 | L8: 1143528 | M8: 557414 | N8: =M8/L8 -> 0.4874511162 | O8: 958752 | P8: 503521 | Q8: =P8/O8 -> 0.5251837806 | R8: 1072806 | S8: 541145 | T8: =S8/R8 -> 0.5044201841 | V8: Estado de México | W8: 0.4790806857 | X8: 0.4325403893 | Y8: 0.4560531683 | Z8: =T9 -> 0.4638327194 | AB8: Estado de México | AC8: =I9/I25 -> 0.6912609342 | AD8: =L9/L25 -> 0.7087430577 | AE8: =O9/O25 -> 0.6818224674 | AF8: =R9/R25 -> 0.66631712
A9: Estado de México | B9: 443804 | C9: 456480 | D9: 462981 | E9: 492356 | H9: Estado de México | I9: 91590 | J9: 43879 | K9: =J9/I9 -> 0.4790806857 | L9: 117915 | M9: 51003 | N9: =M9/L9 -> 0.4325403893 | O9: 115708 | P9: 52769 | Q9: =P9/O9 -> 0.4560531683 | R9: 117551 | S9: 54524 | T9: =S9/R9 -> 0.4638327194 | V9: Lerma y alrededores | W9: 0.2443078557 | X9: 0.2665252603 | Y9: 0.2560970686 | Z9: =T10 -> 0.2764344861 | AB9: Lerma y alrededores | AC9: =I10/I26 -> 0.8054175849 | AD9: =L10/L26 -> 0.7879423249 | AE9: =O10/O26 -> 0.773526564 | AF9: =R10/R26 -> 0.7460354376
A10: Lerma y alrededores* | B10: 67409 | C10: 68287 | D10: 31347 | E10: 71997 | H10: Lerma y alrededores* | I10: 48971 | J10: 11964 | K10: =J10/I10 -> 0.2443078557 | L10: 51860 | M10: 13822 | N10: =M10/L10 -> 0.2665252603 | O10: 49532 | P10: 12685 | Q10: =P10/O10 -> 0.2560970686 | R10: 51325 | S10: 14188 | T10: =S10/R10 -> 0.2764344861
A11: *Capulhuac, Huixquilucan, Lerma, Naucalpan, Ocoyoacac, Otzolotepec, San Mateo Atenco y Toluca | H11: *Capulhuac, Huixquilucan, Lerma, Naucalpan, Ocoyoacac, Otzolotepec, San Mateo Atenco y Toluca | W11: PRIVADAS | AC11: 1er INGRESO (PÚBLICAS / TOTAL)
A12: Fuente: www.planeación.sep.gob.mx/principalescifras/ | W12: 2011-2012 | X12: 2012-2013 | Y12: 2013-2014 | Z12: 2014-2015 | AC12: 2011-2012 | AD12: 2012-2013 | AE12: 2013-2014 | AF12: 2014-2015
B13: INSTITUCIONES PRIVADAS (Educación Media Superior) | I13: INSTITUCIONES PRIVADAS (Licenciatura Universitaria y Tecnológica) | V13: México | W13: 0.7811465784 | X13: 0.8044143741 | Y13: 0.7727268324 | Z13: =T16 -> 0.7656799695 | AB13: México | AC13: =J8/J24 -> 0.639527403 | AD13: =M8/M24 -> 0.6352470039 | AE13: =P8/P24 -> 0.6120965164 | AF13: =S8/S24 -> 0.6218470689
B14: 2011-2012 | C14: 2012-2013 | D14: 2013-2014 | E14: 2014-2015 | I14: 2011-2012 | L14: 2012-2013 | O14: 2013-2014 | R14: 2014-2015 | V14: Estado de México | W14: 0.9327743418 | X14: 0.9442185856 | Y14: 0.9345507075 | Z14: =T17 -> 0.8216518312 | AB14: Estado de México | AC14: =J9/J25 -> 0.534874933 | AD14: =M9/M25 -> 0.5271246525 | AE14: =P9/P25 -> 0.5111739691 | AF14: =S9/S25 -> 0.529909712
B15: Matrícula | C15: Matrícula | D15: Matrícula | E15: Matrícula | I15: Solicitudes 1er Ingreso | J15: 1er Ingreso | L15: Solicitudes 1er Ingreso | M15: 1er Ingreso | O15: Solicitudes 1er Ingreso | P15: 1er Ingreso | R15: Solicitudes 1er Ingreso | S15: 1er Ingreso | V15: Lerma y alrededores | W15: 0.7367931705 | X15: 0.8454538941 | Y15: 0.7712729279 | Z15: =T18 -> 0.7591002747 | AB15: Lerma y alrededores | AC15: =J10/J26 -> 0.5785020067 | AD15: =M10/M26 -> 0.539458278 | AE15: =P10/P26 -> 0.5314201927 | AF15: =S10/S26 -> 0.5168482023
A16: México | B16: 757664 | C16: 771752 | D16: 873147 | E16: 906365 | H16: México | I16: 318478 | J16: 248778 | K16: =J16/I16 -> 0.7811465784 | L16: 397882 | M16: 320062 | N16: =M16/L16 -> 0.8044143741 | O16: 412948 | P16: 319096 | Q16: =P16/O16 -> 0.7727268324 | R16: 429784 | S16: 329077 | T16: =S16/R16 -> 0.7656799695
A17: Estado de México | B17: 87560 | C17: 87689 | D17: 101400 | E17: 102819 | H17: Estado de México | I17: 40907 | J17: 38157 | K17: =J17/I17 -> 0.9327743418 | L17: 48457 | M17: 45754 | N17: =M17/L17 -> 0.9442185856 | O17: 53996 | P17: 50462 | Q17: =P17/O17 -> 0.9345507075 | R17: 58868 | S17: 48369 | T17: =S17/R17 -> 0.8216518312 | W17: PÚBLICAS+PRIVADAS
A18: Lerma y alrededores* | B18: 23773 | C18: 23484 | D18: 9976 | E18: 24591 | H18: Lerma y alrededores* | I18: 11831 | J18: 8717 | K18: =J18/I18 -> 0.7367931705 | L18: 13957 | M18: 11800 | N18: =M18/L18 -> 0.8454538941 | O18: 14502 | P18: 11185 | Q18: =P18/O18 -> 0.7712729279 | R18: 17472 | S18: 13263 | T18: =S18/R18 -> 0.7591002747 | W18: 2011-2012 | X18: 2012-2013 | Y18: 2013-2014 | Z18: 2014-2015
A19: *Capulhuac, Huixquilucan, Lerma, Naucalpan, Ocoyoacac, Otzolotepec, San Mateo Atenco y Toluca | H19: *Capulhuac, Huixquilucan, Lerma, Naucalpan, Ocoyoacac, Otzolotepec, San Mateo Atenco y Toluca | V19: México | W19: 0.5536254903 | X19: 0.5692683971 | Y19: 0.599706204 | Z19: =T24 -> 0.5791480044
A20: Fuente: www.planeación.sep.gob.mx/principalescifras/ | H20: Fuente: http://www.anuies.mx/informacion-y-servicios/informacion-estadistica-de-educacion-superior/anuario-estadistico-de-educacion-superior | V20: Estado de México | W20: 0.6191536412 | X20: 0.5815702161 | Y20: 0.6083003347 | Z20: =T25 -> 0.5832308311
B21: INSTITUCIONES PRIVADAS+PÚBLICAS (Educación Media Superior) | I21: INSTITUCIONES PRIVADAS+PÚBLICAS (Licenciatura Universitaria y Tecnológica) | V21: Lerma y alrededores | W21: 0.3401368376 | X21: 0.3892915204 | Y21: 0.3727707156 | Z21: =T26 -> 0.3990144919
B22: 2011-2012 | C22: 2012-2013 | D22: 2013-2014 | E22: 2014-2015 | I22: 2011-2012 | L22: 2012-2013 | O22: 2013-2014 | R22: 2014-2015
B23: Matrícula | C23: Matrícula | D23: Matrícula | E23: Matrícula | I23: Solicitudes 1er Ingreso | J23: 1er Ingreso | L23: Solicitudes 1er Ingreso | M23: 1er Ingreso | O23: Solicitudes 1er Ingreso | P23: 1er Ingreso | R23: Solicitudes 1er Ingreso | S23: 1er Ingreso
A24: México | B24: =B16+B8 -> 4333589 | C24: 4443792 | D24: =D8+D16 -> 4602837 | E24: 4813165 | H24: México | I24: =I16+I8 -> 1246590 | J24: 690144 | K24: =J24/I24 -> 0.5536254903 | L24: =L16+L8 -> 1541410 | M24: 877476 | N24: =M24/L24 -> 0.5692683971 | O24: =O16+O8 -> 1371700 | P24: 822617 | Q24: =P24/O24 -> 0.599706204 | R24: =R8+R16 -> 1502590 | S24: 870222 | T24: =S24/R24 -> 0.5791480044
A25: Estado de México | B25: 531364 | C25: 544169 | D25: 564381 | E25: 595175 | H25: Estado de México | I25: 132497 | J25: 82036 | K25: =J25/I25 -> 0.6191536412 | L25: 166372 | M25: 96757 | N25: =M25/L25 -> 0.5815702161 | O25: 169704 | P25: 103231 | Q25: =P25/O25 -> 0.6083003347 | R25: 176419 | S25: 102893 | T25: =S25/R25 -> 0.5832308311
A26: Lerma y alrededores* | B26: 91182 | C26: 91771 | D26: 41323 | E26: 96588 | H26: Lerma y alrededores* | I26: 60802 | J26: 20681 | K26: =J26/I26 -> 0.3401368376 | L26: 65817 | M26: 25622 | N26: =M26/L26 -> 0.3892915204 | O26: 64034 | P26: 23870 | Q26: =P26/O26 -> 0.3727707156 | R26: 68797 | S26: 27451 | T26: =S26/R26 -> 0.3990144919
A27: *Capulhuac, Huixquilucan, Lerma, Naucalpan, Ocoyoacac, Otzolotepec, San Mateo Atenco y Toluca | H27: *Capulhuac, Huixquilucan, Lerma, Naucalpan, Ocoyoacac, Otzolotepec, San Mateo Atenco y Toluca
H28: Fuente: http://www.anuies.mx/informacion-y-servicios/informacion-estadistica-de-educacion-superior/anuario-estadistico-de-educacion-superior
A29: Fuente: www.planeación.sep.gob.mx/principalescifras/
I30: INSTITUCIONES PÚBLICAS / TOTAL (Licenciatura Universitaria y Tecnológica)
I31: 2011-2012 | L31: 2012-2013 | O31: 2013-2014 | R31: 2014-2015
I32: Solicitudes 1er Ingreso | J32: 1er Ingreso | L32: Solicitudes 1er Ingreso | M32: 1er Ingreso | O32: Solicitudes 1er Ingreso | P32: 1er Ingreso | R32: Solicitudes 1er Ingreso | S32: 1er Ingreso
H33: México | I33: =I8/I24 -> 0.7445206523 | J33: 0.639527403 | L33: =L8/L24 -> 0.7418714035 | M33: 0.6352470039 | O33: =O8/O24 -> 0.6989516658 | P33: =P8/P24 -> 0.6120965164 | R33: =R8/R24 -> 0.7139712097 | S33: 0.6218470689
H34: Estado de México | I34: 0.6912609342 | J34: 0.534874933 | L34: 0.7087430577 | M34: 0.5271246525 | O34: 0.6818224674 | P34: 0.5111739691 | R34: 0.66631712 | S34: 0.529909712
H35: Lerma y alrededores* | I35: 0.8054175849 | J35: 0.5785020067 | L35: 0.7879423249 | M35: 0.539458278 | O35: 0.773526564 | P35: 0.5314201927 | R35: 0.7460354376 | S35: 0.5168482023
H36: *Capulhuac, Huixquilucan, Lerma, Naucalpan, Ocoyoacac, Otzolotepec, San Mateo Atenco y Toluca
H38: Fuente: http://www.anuies.mx/informacion-y-servicios/informacion-estadistica-de-educacion-superior/anuario-estadistico-de-educacion-superior

Sheet Aspirantes plan
A1: INDICE
A2: ASPIRANTES A LICENCIATURA POR TRIMESTRE DE INGRESO
A3: DIV | B3: PLAN DE ESTUDIOS | C3: 2011 | F3: 2012 | I3: 2013 | L3: 2014 | O3: 2015
C4: P | D4: O | E4: Total | F4: P | G4: O | H4: Total | I4: P | J4: O | K4: Total | L4: P | M4: O | N4: Total | O4: P | P4: O | Q4: Total
A5: CBI | B5: Ingeniería en Recursos Hídricos | C5: 21 | D5: 46 | E5: =SUM(C5:D5) -> 67 | G5: 33 | H5: =SUM(F5:G5) -> 33 | I5: 20 | J5: 40 | K5: =SUM(I5:J5) -> 60 | L5: 21 | M5: 45 | N5: =SUM(L5:M5) -> 66 | O5: 23 | P5: 56 | Q5: =SUM(O5:P5) -> 79
A6: CBS | B6: Biología Ambiental | C6: 34 | D6: 133 | E6: =SUM(C6:D6) -> 167 | G6: 63 | H6: =SUM(F6:G6) -> 63 | I6: 32 | J6: 115 | K6: =SUM(I6:J6) -> 147 | L6: 43 | M6: 39 | N6: =SUM(L6:M6) -> 82 | O6: 38 | P6: 133 | Q6: =SUM(O6:P6) -> 171
A7: CSH | B7: Políticas Públicas | C7: 49 | D7: 119 | E7: =SUM(C7:D7) -> 168 | G7: 67 | H7: =SUM(F7:G7) -> 67 | I7: 30 | J7: 79 | K7: =SUM(I7:J7) -> 109 | M7: 93 | N7: =SUM(L7:M7) -> 93 | P7: 141 | Q7: =SUM(O7:P7) -> 141
B8: Arte y Comunicación Digitales | J8: 85 | K8: =SUM(I8:J8) -> 85 | M8: 192 | N8: =SUM(L8:M8) -> 192 | P8: 254 | Q8: =SUM(O8:P8) -> 254
B9: Total Unidad | C9: =SUM(C5:C8) -> 104 | D9: 298 | E9: 402 | F9: 0 | G9: 163 | H9: 163 | I9: 82 | J9: 319 | K9: 401 | L9: 64 | M9: 369 | N9: 433 | O9: 61 | P9: 584 | Q9: 645
A10: La categoría aspirantes considera a los que presentan el examen de admisión.
A11: FUENTE: Coordinación General de Información Institucional. Departamento de Admisión
B13: Total UAM | C13: 25150 | D13: 53877 | E13: =SUM(C13:D13) -> 79027 | F13: 25485 | G13: 61584 | H13: =SUM(F13:G13) -> 87069 | I13: 23871 | J13: 64247 | K13: =SUM(I13:J13) -> 88118 | L13: 21515 | M13: 64638 | N13: =SUM(L13:M13) -> 86153 | O13: 23957 | P13: 68733 | Q13: =SUM(O13:P13) -> 92690
F14: Aspirantes Anual | G14: Aspirantes Anual | S14: Otoño / Total
F15: 2011 | G15: 2012 | H15: 2013 | I15: 2014 | J15: 2015 | S15: 2011 | T15: 2012 | U15: 2013 | V15: 2014 | W15: 2015
D16: CBI | E16: IRH | F16: =E5 -> 67 | G16: =H5 -> 33 | H16: =K5 -> 60 | I16: =N5 -> 66 | J16: =Q5 -> 79 | Q16: CBI | R16: IRH | S16: =D5/E5 -> 0.6865671642 | U16: =J5/K5 -> 0.6666666667 | V16: =M5/N5 -> 0.6818181818 | W16: =P5/Q5 -> 0.7088607595
D17: CSH | E17: PP | F17: =E7 -> 168 | G17: =H7 -> 67 | H17: =K7 -> 109 | I17: =N7 -> 93 | J17: =Q7 -> 141 | Q17: CSH | R17: PP | S17: =D7/E7 -> 0.7083333333 | U17: =J7/K7 -> 0.7247706422
E18: ACD | H18: =K8 -> 85 | I18: =N8 -> 192 | J18: =Q8 -> 254 | R18: ACD
D19: CBS | E19: BA | F19: =E6 -> 167 | G19: =H6 -> 63 | H19: =K6 -> 147 | I19: =N6 -> 82 | J19: =Q6 -> 171 | Q19: CBS | R19: BA | S19: =D6/E6 -> 0.7964071856 | U19: =J6/K6 -> 0.7823129252 | V19: =M6/N6 -> 0.4756097561 | W19: =P6/Q6 -> 0.7777777778
F20: 2011 | G20: 2012 | H20: 2013 | I20: 2014 | J20: 2015 | S20: 2011 | T20: 2012 | U20: 2013 | V20: 2014 | W20: 2015
D21: Total UAML | F21: =SUM(F16:F19) -> 402 | G21: =SUM(G16:G19) -> 163 | H21: =SUM(H16:H19) -> 401 | I21: =SUM(I16:I19) -> 433 | J21: =SUM(J16:J19) -> 645 | Q21: Total UAML | S21: =D9/E9 -> 0.7412935323 | U21: =(J9-J8)/(K9-K8) -> 0.7405063291 | V21: =(M5+M6)/(N5+N6) -> 0.5675675676 | W21: =(P5+P6)/(Q5+Q6) -> 0.756

Sheet Aspirantes Div
A1: INDICE
A2: ASPIRANTES A LICENCIATURA POR AÑO DE INGRESO
A3: DIVISIÓN | B3: 2011 | D3: 2012 | F3: 2013 | H3: 2014 | J3: 2015
A4: CBI | B4: 67 | C4: =B4/B$7 -> 0.1666666667 | D4: 33 | E4: =D4/D$7 -> 0.2024539877 | F4: 60 | G4: =F4/F$7 -> 0.1496259352 | H4: 66 | I4: =H4/H$7 -> 0.1524249423 | J4: 79 | K4: =J4/J$7 -> 0.1224806202
A5: CBS | B5: 167 | C5: =B5/B$7 -> 0.4154228856 | D5: 63 | E5: =D5/D$7 -> 0.3865030675 | F5: 147 | G5: =F5/F$7 -> 0.3665835411 | H5: 82 | I5: =H5/H$7 -> 0.1893764434 | J5: 171 | K5: =J5/J$7 -> 0.2651162791
A6: CSH | B6: 168 | C6: =B6/B$7 -> 0.4179104478 | D6: 67 | E6: =D6/D$7 -> 0.4110429448 | F6: 194 | G6: =F6/F$7 -> 0.4837905237 | H6: 285 | I6: =H6/H$7 -> 0.6581986143 | J6: 395 | K6: =J6/J$7 -> 0.6124031008
A7: TOTAL | B7: 402 | C7: =B7/B$7 -> 1 | D7: 163 | E7: =D7/D$7 -> 1 | F7: 401 | G7: =F7/F$7 -> 1 | H7: 433 | I7: =H7/H$7 -> 1 | J7: 645 | K7: =J7/J$7 -> 1
A8: FUENTE: Coordinación General de Información Institucional. Departamento de Admisión
A11: =A3 -> DIVISIÓN | B11: 2011 | C11: 2012 | D11: 2013 | E11: 2014 | F11: 2015
A12: CBI | B12: 67 | C12: 33 | D12: 60 | E12: 66 | F12: 79
A13: CBS | B13: 167 | C13: 63 | D13: 147 | E13: 82 | F13: 171
A14: CSH | B14: 168 | C14: 67 | D14: 194 | E14: 285 | F14: 395

Sheet Asp x gen
A1: INDICE
A2: ASPIRANTES POR GÉNERO
A3: DIVISIÓN | B3: 2011 | E3: 2012 | H3: 2013 | K3: 2014 | N3: 2015
B4: Femenino | C4: Masculino | D4: Total | E4: Femenino | F4: Masculino | G4: Total | H4: Femenino | I4: Masculino | J4: Total | K4: Femenino | L4: Masculino | M4: Total | N4: Femenino | O4: Masculino | P4: Total
A5: CBI | B5: 20 | C5: 47 | D5: 67 | E5: 15 | F5: 18 | G5: 33 | H5: 20 | I5: 40 | J5: 60 | K5: 32 | L5: 34 | M5: 66 | N5: 33 | O5: 46 | P5: 79
A6: CBS | B6: 107 | C6: 60 | D6: 167 | E6: 39 | F6: 24 | G6: 63 | H6: 100 | I6: 47 | J6: 147 | K6: 50 | L6: 32 | M6: 82 | N6: 113 | O6: 58 | P6: 171
A7: CSH | B7: 99 | C7: 69 | D7: 168 | E7: 34 | F7: 33 | G7: 67 | H7: 106 | I7: 88 | J7: 194 | K7: 150 | L7: 135 | M7: 285 | N7: 219 | O7: 176 | P7: 395
A8: TOTAL | B8: 226 | C8: 176 | D8: 402 | E8: 88 | F8: 75 | G8: 163 | H8: 226 | I8: 175 | J8: 401 | K8: 232 | L8: 201 | M8: 433 | N8: 365 | O8: 280 | P8: 645
B9: =B8/$D8 -> 0.5621890547 | C9: =C8/$D8 -> 0.4378109453 | E9: =E8/$G8 -> 0.5398773006 | F9: =F8/$G8 -> 0.4601226994 | H9: =H8/$J8 -> 0.5635910224 | I9: =I8/$J8 -> 0.4364089776 | K9: =K8/$M8 -> 0.5357967667 | L9: =L8/$M8 -> 0.4642032333 | N9: =N8/$P8 -> 0.5658914729 | O9: =O8/$P8 -> 0.4341085271
A10: TOTAL UAM | B10: 42701 | C10: 36326 | D10: 79027 | E10: 46619 | F10: 40450 | G10: 87069 | H10: 47411 | I10: 40707 | J10: 88118 | K10: 46359 | L10: 39794 | M10: 86153 | N10: 50302 | O10: 42388 | P10: 92690
B11: =B10/$D10 -> 0.5403343161 | C11: =C10/$D10 -> 0.4596656839 | E11: =E10/$G10 -> 0.5354259266 | F11: =F10/$G10 -> 0.4645740734 | H11: =H10/$J10 -> 0.538039901 | I11: =I10/$J10 -> 0.461960099 | K11: =K10/$M10 -> 0.5381008206 | L11: =L10/$M10 -> 0.4618991794 | N11: =N10/$P10 -> 0.5426906894 | O11: =O10/$P10 -> 0.4573093106
A12: FUENTE: Coordinación General de Información Institucional. Departamento de Admisión
B15: 2011 | D15: 2012 | F15: 2013 | H15: 2014 | J15: 2015
B16: Femenino | C16: Masculino | D16: Femenino | E16: Masculino | F16: Femenino | G16: Masculino | H16: Femenino | I16: Masculino | J16: Femenino | K16: Masculino
A17: CBI | B17: =B5 -> 20 | C17: 47 | D17: =E5 -> 15 | E17: 18 | F17: =H5 -> 20 | G17: 40 | H17: =K5 -> 32 | I17: 34 | J17: =N5 -> 33 | K17: 46
A18: CBS | B18: 107 | C18: 60 | D18: 39 | E18: 24 | F18: 100 | G18: 47 | H18: 50 | I18: 32 | J18: 113 | K18: 58
A19: CSH | B19: 99 | C19: 69 | D19: 34 | E19: 33 | F19: 106 | G19: 88 | H19: 150 | I19: 135 | J19: 219 | K19: 176

Sheet Aspirantes Comp
A1: INDICE
A2: ASPIRANTES A LICENCIATURA
C3: 2011 | D3: 2012 | E3: 2013 | F3: 2014 | G3: 2015
A4: LER | B4: Total | C4: 402 | D4: 163 | E4: 401 | F4: 433 | G4: 645
B5: Licenciaturas | C5: 3 | D5: 3 | E5: 4 | F5: 4 | G5: 4
B6: Prom/Lic | C6: =C4/C5 -> 134 | D6: =D4/D5 -> 54.33333333 | E6: =E4/E5 -> 100.25 | F6: =F4/F5 -> 108.25 | G6: =G4/G5 -> 161.25
C8: 2005 | D8: 2006 | E8: 2007 | F8: 2008 | G8: 2009 | H8: 2010
A9: CUA | B9: Total Unidad | C9: 826 | D9: 286 | E9: 927 | F9: 1153 | G9: 1362 | H9: 1844
B10: Licenciaturas | C10: 5 | D10: 4 | E10: 8 | F10: 9 | G10: 9 | H10: 10
B11: Prom/Lic | C11: =C9/C10 -> 165.2 | D11: 71.5 | E11: 115.875 | F11: 128.1111111 | G11: 151.3333333 | H11: 184.4
C12: 2011 | D12: 2012 | E12: 2013 | F12: 2014 | G12: 2015
B13: Total Unidad | C13: 1712 | D13: 1698 | E13: 3373 | F13: 3920 | G13: 4469
B14: Licenciaturas | C14: 10 | D14: 10 | E14: 10 | F14: 10 | G14: 11
B15: Prom/Lic | C15: =C13/C14 -> 171.2 | D15: =D13/D14 -> 169.8 | E15: =E13/E14 -> 337.3 | F15: =F13/F14 -> 392 | G15: =G13/G14 -> 406.2727273
C17: 2011 | D17: 2012 | E17: 2013 | F17: 2014 | G17: 2015
A18: UAM | B18: Total UAM | C18: 79027 | D18: 87069 | E18: 88118 | F18: 86153 | G18: 92690
B19: Licenciaturas | C19: 76 | D19: 74 | E19: 75 | F19: 75 | G19: 76
B20: Prom/Lic | C20: =C18/C19 -> 1039.828947 | D20: =D18/D19 -> 1176.608108 | E20: =E18/E19 -> 1174.906667 | F20: =F18/F19 -> 1148.706667 | G20: =G18/G19 -> 1219.605263
A21: La categoría aspirantes considera a los que presentan el examen de admisión.
A22: FUENTE: Coordinación General de Información Institucional. Departamento de Admisión

Sheet Admitidos Plan Trimestre
A1: INDICE
A2: ADMITIDOS A LICENCIATURA POR TRIMESTRE DE INGRESO
A3: DIV | B3: PLAN DE ESTUDIO | C3: 2011 | F3: 2012 | I3: 2013 | L3: 2014 | O3: 2015
C4: P | D4: O | E4: Tot | F4: P | G4: O | H4: Tot | I4: P | J4: O | K4: Tot | L4: P | M4: O | N4: Tot | O4: P | P4: O | Q4: Tot
A5: CBI | B5: Ingeniería en Recursos Hídricos | C5: 37 | D5: 40 | E5: 77 | G5: 32 | H5: 32 | I5: 35 | J5: 38 | K5: 73 | L5: 21 | M5: 35 | N5: 56 | O5: 23 | P5: 56 | Q5: 79
A6: CBS | B6: Biología Ambiental | C6: 39 | D6: 41 | E6: 80 | G6: 38 | H6: 38 | I6: 25 | J6: 48 | K6: 73 | L6: 35 | M6: 31 | N6: 66 | O6: 38 | P6: 47 | Q6: 85
A7: CSH | B7: Políticas Públicas | C7: 38 | D7: 43 | E7: 81 | G7: 37 | H7: 37 | I7: 27 | J7: 39 | K7: 66 | M7: 40 | N7: 40 | P7: 50 | Q7: 50
B8: Arte y Comunicación Digitales | J8: 22 | K8: 22 | M8: 25 | N8: 25 | P8: 26 | Q8: 26
B9: Total Unidad | C9: 114 | D9: 124 | E9: 238 | F9: 0 | G9: 107 | H9: 107 | I9: 87 | J9: 147 | K9: 234 | L9: 56 | M9: 131 | N9: 187 | O9: 61 | P9: 179 | Q9: 240
A11: Total UAM | C11: 5043 | D11: 7670 | E11: 12713 | F11: 4467 | G11: 7760 | H11: 12227 | I11: 4498 | J11: 7912 | K11: 12410 | L11: 4288 | M11: 7623 | N11: 11911 | O11: 4392 | P11: 7693 | Q11: 12085
B12: UAML/UAM | C12: =C9/C11 -> 0.02260559191 | D12: =D9/D11 -> 0.01616688396 | E12: 0.01872099426 | F12: 0 | G12: 0.01378865979 | H12: 0.00875112456 | I12: 0.01934192975 | J12: 0.0185793731 | K12: 0.01885576148 | L12: 0.01305970149 | M12: 0.01718483537 | N12: 0.01569977332 | O12: 0.01388888889 | P12: 0.02326790589 | Q12: =Q9/Q11 -> 0.01985932975
A13: La categoría admitidos comprende a los elegidos en los procesos de selección. A partir del 2004 se incluyen los datos de admitidos por lista complementaria
A14: FUENTE: Coordinación General de Información Institucional. Departamento de Admisión
C16: 2011 | D16: 2012 | E16: 2013 | F16: 2014 | G16: 2015 | N16: 2011 | O16: 2012 | P16: 2013 | Q16: 2014 | R16: 2015
A17: CBI | B17: IRH | C17: =E5 -> 77 | D17: =H5 -> 32 | E17: =K5 -> 73 | F17: =N5 -> 56 | G17: =Q5 -> 79 | M17: UAM-L | N17: =E9 -> 238 | O17: =H9 -> 107 | P17: =K9 -> 234 | Q17: =N9 -> 187 | R17: =Q9 -> 240
A18: CBS | B18: BS | C18: =E6 -> 80 | D18: =H6 -> 38 | E18: =K6 -> 73 | F18: =N6 -> 66 | G18: =Q6 -> 85
A19: CSH | B19: PP | C19: =E7 -> 81 | D19: =H7 -> 37 | E19: =K7 -> 66 | F19: =N7 -> 40 | G19: =Q7 -> 50
B20: ACD | E20: =K8 -> 22 | F20: =N8 -> 25 | G20: =Q8 -> 26
C41: 2011 | D41: 2012 | E41: 2013 | F41: 2014 | G41: 2015
A42: CBI | B42: IRH | C42: =E5/$E$9 -> 0.3235294118 | D42: =H5/H$9 -> 0.2990654206 | E42: =K5/K$9 -> 0.311965812 | F42: =N5/N$9 -> 0.2994652406 | G42: =Q5/Q$9 -> 0.3291666667
A43: CBS | B43: BS | C43: =E6/$E$9 -> 0.3361344538 | D43: =H6/H$9 -> 0.3551401869 | E43: =K6/K$9 -> 0.311965812 | F43: =N6/N$9 -> 0.3529411765 | G43: =Q6/Q$9 -> 0.3541666667
A44: CSH | B44: PP | C44: =E7/$E$9 -> 0.3403361345 | D44: =H7/H$9 -> 0.3457943925 | E44: =K7/K$9 -> 0.2820512821 | F44: =N7/N$9 -> 0.2139037433 | G44: =Q7/Q$9 -> 0.2083333333
B45: ACD | E45: =K8/K$9 -> 0.09401709402 | F45: =N8/N$9 -> 0.1336898396 | G45: =Q8/Q$9 -> 0.1083333333

Sheet Admitidos Div
A1: INDICE
A2: ADMITIDOS A LICENCIATURA POR DIVISIÓN
A3: DIVISIÓN | B3: 2011 | D3: 2012 | F3: 2013 | H3: 2014 | J3: 2015
A4: CBI | B4: 77 | C4: =B4/B$7 -> 0.3235294118 | D4: 32 | E4: =D4/D$7 -> 0.2990654206 | F4: 73 | G4: =F4/F$7 -> 0.311965812 | H4: 56 | I4: =H4/H$7 -> 0.2994652406 | J4: 79 | K4: =J4/J$7 -> 0.3291666667
A5: CBS | B5: 80 | C5: =B5/B$7 -> 0.3361344538 | D5: 38 | E5: =D5/D$7 -> 0.3551401869 | F5: 73 | G5: =F5/F$7 -> 0.311965812 | H5: 66 | I5: =H5/H$7 -> 0.3529411765 | J5: 85 | K5: =J5/J$7 -> 0.3541666667
A6: CSH | B6: 81 | C6: =B6/B$7 -> 0.3403361345 | D6: 37 | E6: =D6/D$7 -> 0.3457943925 | F6: 88 | G6: =F6/F$7 -> 0.3760683761 | H6: 65 | I6: =H6/H$7 -> 0.3475935829 | J6: 76 | K6: =J6/J$7 -> 0.3166666667
A7: TOTAL | B7: 238 | C7: =B7/B$7 -> 1 | D7: 107 | E7: =D7/D$7 -> 1 | F7: 234 | G7: =F7/F$7 -> 1 | H7: 187 | I7: =H7/H$7 -> 1 | J7: 240 | K7: =J7/J$7 -> 1
A8: La categoría admitidos comprende a los elegidos en los procesos de selección. A partir del 2004 se incluyen los datos de admitidos por lista complementaria
A9: FUENTE: Coordinación General de Información Institucional. Departamento de Admisión
B11: 2011 | C11: 2012 | D11: 2013 | E11: 2014 | F11: 2015
A12: CBI | B12: =B4 -> 77 | C12: =D4 -> 32 | D12: =F4 -> 73 | E12: =H4 -> 56 | F12: =J4 -> 79
A13: CBS | B13: =B5 -> 80 | C13: =D5 -> 38 | D13: =F5 -> 73 | E13: =H5 -> 66 | F13: =J5 -> 85
A14: CSH | B14: =B6 -> 81 | C14: =D6 -> 37 | D14: =F6 -> 88 | E14: =H6 -> 65 | F14: =J6 -> 76
B35: 2011 | C35: 2012 | D35: 2013 | E35: 2014 | F35: 2015
A36: CBI | B36: =C4 -> 0.3235294118 | C36: =E4 -> 0.2990654206 | D36: =G4 -> 0.311965812 | E36: =I4 -> 0.2994652406 | F36: =K4 -> 0.3291666667
A37: CBS | B37: =C5 -> 0.3361344538 | C37: =E5 -> 0.3551401869 | D37: =G5 -> 0.311965812 | E37: =I5 -> 0.3529411765 | F37: =K5 -> 0.3541666667
A38: CSH | B38: =C6 -> 0.3403361345 | C38: =E6 -> 0.3457943925 | D38: =G6 -> 0.3760683761 | E38: =I6 -> 0.3475935829 | F38: =K6 -> 0.3166666667

Sheet Admitidos x gen
A1: INDICE
A2: ADMITIDOS POR GÉNERO
A3: DIVISIÓN | B3: 2011 | E3: 2012 | H3: 2013 | K3: 2014 | N3: 2015
B4: Femenino | C4: Masculino | D4: Total | E4: Femenino | F4: Masculino | G4: Total | H4: Femenino | I4: Masculino | J4: Total | K4: Femenino | L4: Masculino | M4: Total | N4: Femenino | O4: Masculino | P4: Total
A5: CBI | B5: 24 | C5: 53 | D5: 77 | E5: 15 | F5: 17 | G5: 32 | H5: 31 | I5: 42 | J5: 73 | K5: 27 | L5: 29 | M5: 56 | N5: 33 | O5: 46 | P5: 79
A6: CBS | B6: 54 | C6: 26 | D6: 80 | E6: 23 | F6: 15 | G6: 38 | H6: 52 | I6: 21 | J6: 73 | K6: 42 | L6: 24 | M6: 66 | N6: 59 | O6: 26 | P6: 85
A7: CSH | B7: 47 | C7: 34 | D7: 81 | E7: 18 | F7: 19 | G7: 37 | H7: 45 | I7: 43 | J7: 88 | K7: 32 | L7: 33 | M7: 65 | N7: 46 | O7: 30 | P7: 76
A8: TOTAL | B8: 125 | C8: 113 | D8: 238 | E8: 56 | F8: 51 | G8: 107 | H8: 128 | I8: 106 | J8: 234 | K8: 101 | L8: 86 | M8: 187 | N8: 138 | O8: 102 | P8: 240
B9: =B8/$D8 -> 0.525210084 | C9: =C8/$D8 -> 0.474789916 | E9: =E8/$G8 -> 0.523364486 | F9: =F8/$G8 -> 0.476635514 | H9: =H8/$J8 -> 0.547008547 | I9: =I8/$J8 -> 0.452991453 | K9: =K8/$M8 -> 0.5401069519 | L9: =L8/$M8 -> 0.4598930481 | N9: =N8/$P8 -> 0.575 | O9: =O8/$P8 -> 0.425
A10: TOTAL UAM | B10: 5878 | C10: 6835 | D10: 12713 | E10: 5723 | F10: 6504 | G10: 12227 | H10: 5871 | I10: 6539 | J10: 12410 | K10: 5699 | L10: 6212 | M10: 11911 | N10: 5845 | O10: 6240 | P10: 12085
B11: =B10/$D10 -> 0.4623613624 | C11: =C10/$D10 -> 0.5376386376 | E11: =E10/$G10 -> 0.4680624847 | F11: =F10/$G10 -> 0.5319375153 | H11: =H10/$J10 -> 0.4730862208 | I11: =I10/$J10 -> 0.5269137792 | K11: =K10/$M10 -> 0.4784652842 | L11: =L10/$M10 -> 0.5215347158 | N11: =N10/$P10 -> 0.4836574266 | O11: =O10/$P10 -> 0.5163425734
A12: La categoría admitidos comprende a los elegidos en los procesos de selección. A partir del 2004 se incluyen los datos de admitidos por lista complementaria
A13: FUENTE: Coordinación General de Información Institucional. Departamento de Admisión
B15: 2011 | D15: 2012 | F15: 2013 | H15: 2014 | J15: 2015
B16: Femenino | C16: Masculino | D16: Femenino | E16: Masculino | F16: Femenino | G16: Masculino | H16: Femenino | I16: Masculino | J16: Femenino | K16: Masculino
A17: CBI | B17: =B5 -> 24 | C17: 53 | D17: =E5 -> 15 | E17: 17 | F17: =H5 -> 31 | G17: 42 | H17: =K5 -> 27 | I17: 29 | J17: =N5 -> 33 | K17: 46
A18: CBS | B18: 54 | C18: 26 | D18: 23 | E18: 15 | F18: 52 | G18: 21 | H18: 42 | I18: 24 | J18: 59 | K18: 26
A19: CSH | B19: 47 | C19: 34 | D19: 18 | E19: 19 | F19: 45 | G19: 43 | H19: 32 | I19: 33 | J19: 46 | K19: 30
B26: 2011 | D26: 2012 | F26: 2013 | H26: 2014 | J26: 2015
B27: Femenino | C27: Masculino | D27: Femenino | E27: Masculino | F27: Femenino | G27: Masculino | H27: Femenino | I27: Masculino | J27: Femenino | K27: Masculino
B28: =B8 -> 125 | C28: =C8 -> 113 | D28: =E8 -> 56 | E28: =F8 -> 51 | F28: =H8 -> 128 | G28: =I8 -> 106 | H28: =K8 -> 101 | I28: =L8 -> 86 | J28: =N8 -> 138 | K28: =O8 -> 102

Sheet Adms x Aspir
A1: INDICE
A2: Admitidos / Aspirantes
A3: DIV | B3: PLAN DE ESTUDIO | C3: 2011 | F3: 2012 | I3: 2013 | L3: 2014 | O3: 2015
C4: P | D4: O | E4: Total | F4: P | G4: O | H4: Total | I4: P | J4: O | K4: Total | L4: P | M4: O | N4: Total | O4: P | P4: O | Q4: Total
A5: CBI | B5: Ingeniería en Recursos Hídricos | C5: ='Admitidos Plan Trimestre'!C5/'Aspirantes plan'!C5 -> 1.761904762 | D5: ='Admitidos Plan Trimestre'!D5/'Aspirantes plan'!D5 -> 0.8695652174 | E5: ='Admitidos Plan Trimestre'!E5/'Aspirantes plan'!E5 -> 1.149253731 | G5: ='Admitidos Plan Trimestre'!G5/'Aspirantes plan'!G5 -> 0.9696969697 | H5: ='Admitidos Plan Trimestre'!H5/'Aspirantes plan'!H5 -> 0.9696969697 | I5: ='Admitidos Plan Trimestre'!I5/'Aspirantes plan'!I5 -> 1.75 | J5: ='Admitidos Plan Trimestre'!J5/'Aspirantes plan'!J5 -> 0.95 | K5: ='Admitidos Plan Trimestre'!K5/'Aspirantes plan'!K5 -> 1.216666667 | L5: ='Admitidos Plan Trimestre'!L5/'Aspirantes plan'!L5 -> 1 | M5: ='Admitidos Plan Trimestre'!M5/'Aspirantes plan'!M5 -> 0.7777777778 | N5: ='Admitidos Plan Trimestre'!N5/'Aspirantes plan'!N5 -> 0.8484848485 | O5: ='Admitidos Plan Trimestre'!O5/'Aspirantes plan'!O5 -> 1 | P5: ='Admitidos Plan Trimestre'!P5/'Aspirantes plan'!P5 -> 1 | Q5: ='Admitidos Plan Trimestre'!Q5/'Aspirantes plan'!Q5 -> 1
A6: CBS | B6: Biología Ambiental | C6: ='Admitidos Plan Trimestre'!C6/'Aspirantes plan'!C6 -> 1.147058824 | D6: ='Admitidos Plan Trimestre'!D6/'Aspirantes plan'!D6 -> 0.3082706767 | E6: ='Admitidos Plan Trimestre'!E6/'Aspirantes plan'!E6 -> 0.4790419162 | G6: ='Admitidos Plan Trimestre'!G6/'Aspirantes plan'!G6 -> 0.6031746032 | H6: ='Admitidos Plan Trimestre'!H6/'Aspirantes plan'!H6 -> 0.6031746032 | I6: ='Admitidos Plan Trimestre'!I6/'Aspirantes plan'!I6 -> 0.78125 | J6: ='Admitidos Plan Trimestre'!J6/'Aspirantes plan'!J6 -> 0.4173913043 | K6: ='Admitidos Plan Trimestre'!K6/'Aspirantes plan'!K6 -> 0.4965986395 | L6: ='Admitidos Plan Trimestre'!L6/'Aspirantes plan'!L6 -> 0.8139534884 | M6: ='Admitidos Plan Trimestre'!M6/'Aspirantes plan'!M6 -> 0.7948717949 | N6: ='Admitidos Plan Trimestre'!N6/'Aspirantes plan'!N6 -> 0.8048780488 | O6: ='Admitidos Plan Trimestre'!O6/'Aspirantes plan'!O6 -> 1 | P6: ='Admitidos Plan Trimestre'!P6/'Aspirantes plan'!P6 -> 0.3533834586 | Q6: ='Admitidos Plan Trimestre'!Q6/'Aspirantes plan'!Q6 -> 0.4970760234
A7: CSH | B7: Políticas Públicas | C7: ='Admitidos Plan Trimestre'!C7/'Aspirantes plan'!C7 -> 0.7755102041 | D7: ='Admitidos Plan Trimestre'!D7/'Aspirantes plan'!D7 -> 0.3613445378 | E7: ='Admitidos Plan Trimestre'!E7/'Aspirantes plan'!E7 -> 0.4821428571 | G7: ='Admitidos Plan Trimestre'!G7/'Aspirantes plan'!G7 -> 0.552238806 | H7: ='Admitidos Plan Trimestre'!H7/'Aspirantes plan'!H7 -> 0.552238806 | I7: ='Admitidos Plan Trimestre'!I7/'Aspirantes plan'!I7 -> 0.9 | J7: ='Admitidos Plan Trimestre'!J7/'Aspirantes plan'!J7 -> 0.4936708861 | K7: ='Admitidos Plan Trimestre'!K7/'Aspirantes plan'!K7 -> 0.6055045872 | M7: ='Admitidos Plan Trimestre'!M7/'Aspirantes plan'!M7 -> 0.4301075269 | N7: ='Admitidos Plan Trimestre'!N7/'Aspirantes plan'!N7 -> 0.4301075269 | P7: ='Admitidos Plan Trimestre'!P7/'Aspirantes plan'!P7 -> 0.3546099291 | Q7: ='Admitidos Plan Trimestre'!Q7/'Aspirantes plan'!Q7 -> 0.3546099291
B8: Arte y Comunicación Digitales | J8: ='Admitidos Plan Trimestre'!J8/'Aspirantes plan'!J8 -> 0.2588235294 | K8: ='Admitidos Plan Trimestre'!K8/'Aspirantes plan'!K8 -> 0.2588235294 | M8: ='Admitidos Plan Trimestre'!M8/'Aspirantes plan'!M8 -> 0.1302083333 | N8: ='Admitidos Plan Trimestre'!N8/'Aspirantes plan'!N8 -> 0.1302083333 | P8: ='Admitidos Plan Trimestre'!P8/'Aspirantes plan'!P8 -> 0.1023622047 | Q8: ='Admitidos Plan Trimestre'!Q8/'Aspirantes plan'!Q8 -> 0.1023622047
B9: Total Unidad | C9: ='Admitidos Plan Trimestre'!C9/'Aspirantes plan'!C9 -> 1.096153846 | D9: ='Admitidos Plan Trimestre'!D9/'Aspirantes plan'!D9 -> 0.4161073826 | E9: ='Admitidos Plan Trimestre'!E9/'Aspirantes plan'!E9 -> 0.592039801 | G9: ='Admitidos Plan Trimestre'!G9/'Aspirantes plan'!G9 -> 0.6564417178 | H9: ='Admitidos Plan Trimestre'!H9/'Aspirantes plan'!H9 -> 0.6564417178 | I9: ='Admitidos Plan Trimestre'!I9/'Aspirantes plan'!I9 -> 1.06097561 | J9: ='Admitidos Plan Trimestre'!J9/'Aspirantes plan'!J9 -> 0.460815047 | K9: ='Admitidos Plan Trimestre'!K9/'Aspirantes plan'!K9 -> 0.5835411471 | L9: ='Admitidos Plan Trimestre'!L9/'Aspirantes plan'!L9 -> 0.875 | M9: ='Admitidos Plan Trimestre'!M9/'Aspirantes plan'!M9 -> 0.3550135501 | N9: ='Admitidos Plan Trimestre'!N9/'Aspirantes plan'!N9 -> 0.4318706697 | O9: ='Admitidos Plan Trimestre'!O9/'Aspirantes plan'!O9 -> 1 | P9: ='Admitidos Plan Trimestre'!P9/'Aspirantes plan'!P9 -> 0.3065068493 | Q9: ='Admitidos Plan Trimestre'!Q9/'Aspirantes plan'!Q9 -> 0.3720930233
A11: Total UAM | C11: ='Aspirantes plan'!C13 -> 25150 | D11: ='Aspirantes plan'!D13 -> 53877 | E11: ='Aspirantes plan'!E13 -> 79027 | F11: ='Aspirantes plan'!F13 -> 25485 | G11: ='Aspirantes plan'!G13 -> 61584 | H11: ='Aspirantes plan'!H13 -> 87069 | I11: ='Aspirantes plan'!I13 -> 23871 | J11: ='Aspirantes plan'!J13 -> 64247 | K11: ='Aspirantes plan'!K13 -> 88118 | L11: ='Aspirantes plan'!L13 -> 21515 | M11: ='Aspirantes plan'!M13 -> 64638 | N11: ='Aspirantes plan'!N13 -> 86153 | O11: ='Aspirantes plan'!O13 -> 23957 | P11: ='Aspirantes plan'!P13 -> 68733 | Q11: ='Aspirantes plan'!Q13 -> 92690
B12: UAML/UAM | C12: =C9/C11 -> 4.358464597e-05 | D12: =D9/D11 -> 7.723284195e-06 | E12: 7.491614271e-06 | F12: 0 | G12: 1.065929004e-05 | H12: 7.539327634e-06 | I12: 4.444621548e-05 | J12: 7.172553536e-06 | K12: 6.622269538e-06 | L12: 4.066930049e-05 | M12: 5.492335006e-06 | N12: 5.012833793e-06 | O12: 4.174145344e-05 | P12: =P9/P11 -> 4.459384129e-06 | Q12: =Q9/Q11 -> 4.014381522e-06
C15: 2011 | D15: 2012 | E15: 2013 | F15: 2014 | G15: 2015
A16: CBI | B16: IRH | C16: =E5 -> 1.149253731 | D16: =H5 -> 0.9696969697 | E16: =K5 -> 1.216666667 | F16: =N5 -> 0.8484848485 | G16: =Q5 -> 1
A17: CBS | B17: BA | C17: =E6 -> 0.4790419162 | D17: =H6 -> 0.6031746032 | E17: =K6 -> 0.4965986395 | F17: =N6 -> 0.8048780488 | G17: =Q6 -> 0.4970760234
A18: CSH | B18: PP | C18: =E7 -> 0.4821428571 | D18: =H7 -> 0.552238806 | E18: =K7 -> 0.6055045872 | F18: =N7 -> 0.4301075269 | G18: =Q7 -> 0.3546099291
B19: ACD | E19: =K8 -> 0.2588235294 | F19: =N8 -> 0.1302083333 | G19: =Q8 -> 0.1023622047
C33: 2011 | D33: 2012 | E33: 2013 | F33: 2014 | G33: 2015
B34: UAM-L | C34: =E9 -> 0.592039801 | D34: =H9 -> 0.6564417178 | E34: =K9 -> 0.5835411471 | F34: =N9 -> 0.4318706697 | G34: =Q9 -> 0.3720930233

Sheet Perfil SE Admit
C1: INDICE
D3: PERFIL SOCIOECONÓMICO DE LOS ALUMNOS ADMITIDOS
D4: IRH | J4: PP | P4: ACD | V4: BA
D5: 2011 | E5: 2012 | F5: 2013 | G5: 2014 | H5: 2015 | I5: 2016 | J5: 2011 | K5: 2012 | L5: 2013 | M5: 2014 | N5: 2015 | O5: 2016 | P5: 2011 | Q5: 2012 | R5: 2013 | S5: 2014 | T5: 2015 | U5: 2016 | V5: 2011 | W5: 2012 | X5: 2013 | Y5: 2014 | Z5: 2015 | AA5: 2016
A6: Estado laboral | C6: Trabajan | D6: 32 | E6: 15 | F6: 31 | G6: 26 | H6: 22 | I6: 29 | J6: 26 | K6: 18 | L6: 29 | M6: 17 | N6: 19 | O6: 29 | P6: 0 | Q6: 0 | R6: 7 | S6: 9 | T6: 7 | U6: 8 | V6: 24 | W6: 15 | X6: 17 | Y6: 22 | Z6: 39 | AA6: 33
C7: No trabajan | D7: 44 | E7: 17 | F7: 42 | G7: 30 | H7: 57 | I7: 33 | J7: 55 | K7: 18 | L7: 37 | M7: 23 | N7: 31 | O7: 45 | P7: 0 | Q7: 0 | R7: 15 | S7: 16 | T7: 19 | U7: 23 | V7: 56 | W7: 23 | X7: 56 | Y7: 44 | Z7: 46 | AA7: 66
C8: Total | D8: =SUM(D6:D7) -> 76 | E8: =SUM(E6:E7) -> 32 | F8: =SUM(F6:F7) -> 73 | G8: =SUM(G6:G7) -> 56 | H8: =SUM(H6:H7) -> 79 | I8: =SUM(I6:I7) -> 62 | J8: =SUM(J6:J7) -> 81 | K8: =SUM(K6:K7) -> 36 | L8: =SUM(L6:L7) -> 66 | M8: =SUM(M6:M7) -> 40 | N8: =SUM(N6:N7) -> 50 | O8: =SUM(O6:O7) -> 74 | P8: 0 | Q8: 0 | R8: =SUM(R6:R7) -> 22 | S8: 25 | T8: 26 | U8: 31 | V8: 80 | W8: 38 | X8: 73 | Y8: 66 | Z8: 85 | AA8: 99
C9: de 1 a 20 hrs | D9: =D11+D12+D17+D18 -> 10 | E9: 7 | F9: 12 | G9: 11 | H9: 13 | I9: 13 | J9: 12 | K9: =K11+K12+K17+K18 -> 10 | L9: 10 | M9: 11 | N9: =N11+N12+N17+N18 -> 11 | O9: =O11+O12+O17+O18 -> 12 | P9: 0 | Q9: 0 | R9: 2 | S9: 4 | T9: =T11+T17 -> 3 | U9: =U11+U17 -> 1 | V9: 10 | W9: 8 | X9: 8 | Y9: 10 | Z9: =Z11+Z12+Z17+Z18 -> 18 | AA9: =AA11+AA12+AA17+AA18 -> 15
C10: más de 20 horas | D10: =D16+D22-D9 -> 22 | E10: 8 | F10: 19 | G10: 15 | H10: 9 | I10: 16 | J10: =J16+J22-J9 -> 14 | K10: =K16+K22-K9 -> 8 | L10: 19 | M10: 6 | N10: =N16+N22-N9 -> 8 | O10: =O16+O22-O9 -> 17 | P10: 0 | Q10: 0 | R10: 5 | S10: 5 | T10: =T16+T22-T9 -> 4 | U10: =U16+U22-U9 -> 7 | V10: 14 | W10: 7 | X10: 9 | Y10: 12 | Z10: =Z16+Z22-Z9 -> 21 | AA10: =AA16+AA22-AA9 -> 18
A11: Horas semanales de dedicación | B11: Permanente | C11: De 1 a 10 hrs | D11: 1 | E11: 2 | F11: 1 | G11: 1 | H11: 3 | I11: 2 | J11: 2 | K11: 1 | L11: 0 | M11: 1 | N11: 0 | O11: 1 | P11: 0 | Q11: 0 | R11: 0 | S11: 0 | T11: 1 | U11: 0 | V11: 1 | W11: 0 | X11: 1 | Y11: 2 | Z11: 3 | AA11: 1
C12: De 11 a 20 hrs | D12: 1 | E12: 0 | F12: 1 | G12: 0 | H12: 1 | I12: 0 | J12: 3 | K12: 1 | L12: 0 | M12: 0 | N12: 0 | O12: 2 | P12: 0 | Q12: 0 | R12: 0 | S12: 0 | T12: 0 | U12: 0 | V12: 1 | W12: 0 | X12: 0 | Y12: 1 | Z12: 1 | AA12: 2
C13: De 21 a 30 hrs | D13: 4 | E13: 0 | F13: 2 | G13: 2 | H13: 1 | I13: 3 | J13: 2 | K13: 0 | L13: 1 | M13: 3 | N13: 0 | O13: 3 | P13: 0 | Q13: 0 | R13: 0 | S13: 1 | T13: 0 | U13: 0 | V13: 0 | W13: 0 | X13: 3 | Y13: 0 | Z13: 0 | AA13: 1
C14: De 31 a 40 hrs | D14: 1 | E14: 0 | F14: 4 | G14: 1 | H14: 1 | I14: 4 | J14: 3 | K14: 0 | L14: 4 | M14: 0 | N14: 3 | O14: 2 | P14: 0 | Q14: 0 | R14: 0 | S14: 0 | T14: 1 | U14: 1 | V14: 3 | W14: 0 | X14: 0 | Y14: 3 | Z14: 2 | AA14: 1
C15: Más de 40 hrs. | D15: 6 | E15: 1 | F15: 5 | G15: 1 | H15: 0 | I15: 0 | J15: 3 | K15: 2 | L15: 2 | M15: 1 | N15: 0 | O15: 4 | P15: 0 | Q15: 0 | R15: 2 | S15: 1 | T15: 2 | U15: 2 | V15: 3 | W15: 3 | X15: 2 | Y15: 0 | Z15: 8 | AA15: 4
C16: Total | D16: =SUM(D11:D15) -> 13 | E16: =SUM(E11:E15) -> 3 | F16: 13 | G16: 5 | H16: =SUM(H11:H15) -> 6 | I16: =SUM(I11:I15) -> 9 | J16: 13 | K16: 4 | L16: 7 | M16: 5 | N16: =SUM(N11:N15) -> 3 | O16: =SUM(O11:O15) -> 12 | P16: 0 | Q16: 0 | R16: 2 | S16: 2 | T16: 4 | U16: =SUM(U11:U15) -> 3 | V16: 8 | W16: 3 | X16: 6 | Y16: 6 | Z16: 14 | AA16: 9
B17: Eventual | C17: De 1 a 10 hrs | D17: 5 | E17: 5 | F17: 6 | G17: 7 | H17: 6 | I17: 6 | J17: 6 | K17: 4 | L17: 6 | M17: 5 | N17: 6 | O17: 7 | P17: 0 | Q17: 0 | R17: 1 | S17: 2 | T17: 2 | U17: 1 | V17: 4 | W17: 4 | X17: 5 | Y17: 6 | Z17: 11 | AA17: 8
C18: De 11 a 20 hrs | D18: 3 | E18: 0 | F18: 4 | G18: 3 | H18: 3 | I18: 5 | J18: 1 | K18: 4 | L18: 4 | M18: 5 | N18: 5 | O18: 2 | P18: 0 | Q18: 0 | R18: 1 | S18: 2 | T18: 0 | U18: 0 | V18: 4 | W18: 4 | X18: 2 | Y18: 1 | Z18: 3 | AA18: 4
C19: De 21 a 30 hrs | D19: 5 | E19: 3 | F19: 4 | G19: 5 | H19: 3 | I19: 1 | J19: 2 | K19: 3 | L19: 5 | M19: 0 | N19: 1 | O19: 4 | P19: 0 | Q19: 0 | R19: 2 | S19: 1 | T19: 0 | U19: 0 | V19: 1 | W19: 1 | X19: 1 | Y19: 3 | Z19: 3 | AA19: 3
C20: De 31 a 40 hrs | D20: 3 | E20: 4 | F20: 3 | G20: 4 | H20: 3 | I20: 4 | J20: 1 | K20: 1 | L20: 2 | M20: 0 | N20: 1 | O20: 3 | P20: 0 | Q20: 0 | R20: 1 | S20: 1 | T20: 1 | U20: 2 | V20: 6 | W20: 0 | X20: 3 | Y20: 4 | Z20: 5 | AA20: 4
C21: Más de 40 hrs. | D21: 3 | E21: 0 | F21: 1 | G21: 2 | H21: 1 | I21: 4 | J21: 3 | K21: 2 | L21: 5 | M21: 2 | N21: 3 | O21: 1 | P21: 0 | Q21: 0 | R21: 0 | S21: 1 | T21: 0 | U21: 2 | V21: 1 | W21: 3 | X21: 0 | Y21: 2 | Z21: 3 | AA21: 5
C22: Total | D22: =SUM(D17:D21) -> 19 | E22: 12 | F22: 18 | G22: 21 | H22: =SUM(H17:H21) -> 16 | I22: =SUM(I17:I21) -> 20 | J22: 13 | K22: 14 | L22: 22 | M22: 12 | N22: =SUM(N17:N21) -> 16 | O22: =SUM(O17:O21) -> 17 | P22: 0 | Q22: 0 | R22: 5 | S22: 7 | T22: 3 | U22: =SUM(U17:U21) -> 5 | V22: 16 | W22: 12 | X22: 11 | Y22: 16 | Z22: 25 | AA22: 24
A23: Ingreso personal mensual | C23: Menos de 1,000 | D23: 12 | E23: 8 | F23: 8 | G23: 10 | H23: 9 | I23: 12 | J23: 9 | K23: 8 | L23: 11 | M23: 6 | N23: 9 | O23: 11 | P23: 0 | Q23: 0 | R23: 1 | S23: 1 | T23: 3 | U23: 1 | V23: 6 | W23: 7 | X23: 4 | Y23: 13 | Z23: 20 | AA23: 12
C24: De 1,000 a 1,999 | D24: 5 | E24: 4 | F24: 8 | G24: 6 | H24: 8 | I24: 6 | J24: 3 | K24: 2 | L24: 5 | M24: 4 | N24: 6 | O24: 6 | P24: 0 | Q24: 0 | R24: 2 | S24: 2 | T24: 0 | U24: 2 | V24: 8 | W24: 4 | X24: 4 | Y24: 3 | Z24: 6 | AA24: 13
C25: De 2,000 a 2, 999 | D25: 5 | E25: 0 | F25: 1 | G25: 4 | H25: 1 | I25: 1 | J25: 4 | K25: 3 | L25: 7 | M25: 2 | N25: 2 | O25: 1 | P25: 0 | Q25: 0 | R25: 3 | S25: 0 | T25: 1 | U25: 3 | V25: 3 | W25: 2 | X25: 3 | Y25: 3 | Z25: 8 | AA25: 2
C26: De 3,000 a 3,999 | D26: 3 | E26: 2 | F26: 7 | G26: 4 | H26: 3 | I26: 8 | J26: 3 | K26: 2 | L26: 3 | M26: 3 | N26: 1 | O26: 5 | P26: 0 | Q26: 0 | R26: 0 | S26: 4 | T26: 1 | U26: 2 | V26: 6 | W26: 0 | X26: 5 | Y26: 2 | Z26: 2 | AA26: 1
C27: De 4,000 a 4,999 | D27: 3 | E27: 1 | F27: 5 | G27: 0 | H27: 1 | I27: 1 | J27: 2 | K27: 2 | L27: 2 | M27: 1 | N27: 1 | O27: 4 | P27: 0 | Q27: 0 | R27: 0 | S27: 2 | T27: 1 | U27: 0 | V27: 1 | W27: 1 | X27: 0 | Y27: 0 | Z27: 2 | AA27: 2
C28: De 5,000 a 6,999 | D28: 4 | E28: 0 | F28: 0 | G28: 0 | H28: 0 | I28: 1 | J28: 2 | K28: 1 | L28: 0 | M28: 1 | N28: 0 | O28: 1 | P28: 0 | Q28: 0 | R28: 0 | S28: 0 | T28: 1 | U28: 0 | V28: 0 | W28: 0 | X28: 1 | Y28: 0 | Z28: 0 | AA28: 2
C29: De 7,000 a 9,999 | D29: 0 | E29: 0 | F29: 1 | G29: 1 | H29: 0 | I29: 0 | J29: 2 | K29: 0 | L29: 1 | M29: 0 | N29: 0 | O29: 1 | P29: 0 | Q29: 0 | R29: 0 | S29: 0 | T29: 0 | U29: 0 | V29: 0 | W29: 1 | X29: 0 | Y29: 1 | Z29: 1 | AA29: 0
C30: De 10,000 a 14,999 | D30: 0 | E30: 0 | F30: 1 | G30: 1 | H30: 0 | I30: 0 | J30: 0 | K30: 0 | L30: 0 | M30: 0 | N30: 0 | O30: 0 | P30: 0 | Q30: 0 | R30: 1 | S30: 0 | T30: 0 | U30: 0 | V30: 0 | W30: 0 | X30: 0 | Y30: 0 | Z30: 0 | AA30: 0
C31: De 15,000 ó más | D31: 0 | E31: 0 | F31: 0 | G31: 0 | H31: 0 | I31: 0 | J31: 1 | K31: 0 | L31: 0 | M31: 0 | N31: 0 | O31: 0 | P31: 0 | Q31: 0 | R31: 0 | S31: 0 | T31: 0 | U31: 0 | V31: 0 | W31: 0 | X31: 0 | Y31: 0 | Z31: 0 | AA31: 1
C32: Total | D32: =SUM(D23:D31) -> 32 | E32: =SUM(E23:E31) -> 15 | F32: =SUM(F23:F31) -> 31 | G32: =SUM(G23:G31) -> 26 | H32: =SUM(H23:H31) -> 22 | I32: =SUM(I23:I31) -> 29 | J32: =SUM(J23:J31) -> 26 | K32: =SUM(K23:K31) -> 18 | L32: =SUM(L23:L31) -> 29 | M32: 17 | N32: =SUM(N23:N31) -> 19 | O32: =SUM(O23:O31) -> 29 | P32: 0 | Q32: 0 | R32: =SUM(R23:R31) -> 7 | S32: 9 | T32: 7 | U32: 8 | V32: 24 | W32: 15 | X32: 17 | Y32: 22 | Z32: =SUM(Z23:Z31) -> 39 | AA32: =SUM(AA23:AA31) -> 33
A33: Ingreso familiar mensual* | C33: Menos de 1,000 | D33: 0 | E33: 0 | F33: 0 | G33: 1 | H33: 2 | I33: 1 | J33: 2 | K33: 1 | L33: 0 | M33: 1 | N33: 2 | O33: 2 | P33: 0 | Q33: 0 | R33: 0 | S33: 0 | T33: 0 | U33: 0 | V33: 2 | W33: 0 | X33: 2 | Y33: 3 | Z33: 5 | AA33: 0
C34: De 1,000 a 1,999 | D34: 6 | E34: 5 | F34: 5 | G34: 5 | H34: 6 | I34: 7 | J34: 6 | K34: 0 | L34: 10 | M34: 1 | N34: 3 | O34: 4 | P34: 0 | Q34: 0 | R34: 0 | S34: 0 | T34: 1 | U34: 0 | V34: 3 | W34: 3 | X34: 2 | Y34: 4 | Z34: 8 | AA34: 4
C35: De 2,000 a 2, 999 | D35: 6 | E35: 6 | F35: 5 | G35: 6 | H35: 9 | I35: 6 | J35: 9 | K35: 4 | L35: 6 | M35: 3 | N35: 2 | O35: 6 | P35: 0 | Q35: 0 | R35: 2 | S35: 1 | T35: 0 | U35: 4 | V35: 4 | W35: 6 | X35: 9 | Y35: 8 | Z35: 9 | AA35: 5
C36: De 3,000 a 3,999 | D36: 14 | E36: 8 | F36: 7 | G36: 13 | H36: 15 | I36: 15 | J36: 10 | K36: 6 | L36: 17 | M36: 8 | N36: 19 | O36: 9 | P36: 0 | Q36: 0 | R36: 5 | S36: 2 | T36: 4 | U36: 5 | V36: 15 | W36: 4 | X36: 14 | Y36: 20 | Z36: 23 | AA36: 21
C37: De 4,000 a 4,999 | D37: 14 | E37: 6 | F37: 11 | G37: 10 | H37: 15 | I37: 11 | J37: 23 | K37: 6 | L37: 9 | M37: 10 | N37: 10 | O37: 12 | P37: 0 | Q37: 0 | R37: 5 | S37: 4 | T37: 3 | U37: 5 | V37: 9 | W37: 8 | X37: 12 | Y37: 8 | Z37: 12 | AA37: 16
C38: De 5,000 a 6,999 | D38: 11 | E38: 1 | F38: 15 | G38: 7 | H38: 10 | I38: 7 | J38: 8 | K38: 9 | L38: 6 | M38: 7 | N38: 5 | O38: 13 | P38: 0 | Q38: 0 | R38: 5 | S38: 3 | T38: 2 | U38: 4 | V38: 12 | W38: 5 | X38: 11 | Y38: 5 | Z38: 9 | AA38: 13
C39: De 7,000 a 9,999 | D39: 10 | E39: 2 | F39: 18 | G39: 8 | H39: 13 | I39: 6 | J39: 11 | K39: 7 | L39: 10 | M39: 4 | N39: 5 | O39: 17 | P39: 0 | Q39: 0 | R39: 3 | S39: 6 | T39: 5 | U39: 5 | V39: 17 | W39: 4 | X39: 10 | Y39: 10 | Z39: 12 | AA39: 13
C40: De 10,000 a 14,999 | D40: 10 | E40: 2 | F40: 7 | G40: 5 | H40: 8 | I40: 8 | J40: 6 | K40: 2 | L40: 3 | M40: 3 | N40: 4 | O40: 9 | P40: 0 | Q40: 0 | R40: 1 | S40: 5 | T40: 5 | U40: 6 | V40: 12 | W40: 5 | X40: 10 | Y40: 6 | Z40: 4 | AA40: 16
C41: De 15,000 ó más | D41: 5 | E41: 2 | F41: 5 | G41: 1 | H41: 1 | I41: 1 | J41: 6 | K41: 1 | L41: 5 | M41: 3 | N41: 0 | O41: 2 | P41: 0 | Q41: 0 | R41: 1 | S41: 4 | T41: 6 | U41: 2 | V41: 6 | W41: 3 | X41: 3 | Y41: 2 | Z41: 3 | AA41: 11
C42: Total | D42: =SUM(D33:D41) -> 76 | E42: =SUM(E33:E41) -> 32 | F42: =SUM(F33:F41) -> 73 | G42: =SUM(G33:G41) -> 56 | H42: =SUM(H33:H41) -> 79 | I42: =SUM(I33:I41) -> 62 | J42: =SUM(J33:J41) -> 81 | K42: =SUM(K33:K41) -> 36 | L42: =SUM(L33:L41) -> 66 | M42: =SUM(M33:M41) -> 40 | N42: =SUM(N33:N41) -> 50 | O42: =SUM(O33:O41) -> 74 | P42: =SUM(P23:P31) -> 0 | Q42: =SUM(Q23:Q31) -> 0 | R42: =SUM(R33:R41) -> 22 | S42: =SUM(S33:S41) -> 25 | T42: =SUM(T33:T41) -> 26 | U42: =SUM(U33:U41) -> 31 | V42: =SUM(V33:V41) -> 80 | W42: =SUM(W33:W41) -> 38 | X42: =SUM(X33:X41) -> 73 | Y42: =SUM(Y33:Y41) -> 66 | Z42: =SUM(Z33:Z41) -> 85 | AA42: =SUM(AA33:AA41) -> 99
A43: Nivel de estudios del Padre | C43: Ninguno | D43: 6 | E43: 2 | F43: 4 | G43: 2 | H43: 1 | I43: 2 | J43: 3 | K43: 0 | L43: 1 | M43: 0 | N43: 1 | O43: 1 | P43: 0 | Q43: 0 | R43: 0 | S43: 0 | T43: 0 | U43: 2 | V43: 2 | W43: 1 | X43: 4 | Y43: 3 | Z43: 3 | AA43: 5
C44: Primaria incompleta | D44: 9 | E44: 1 | F44: 4 | G44: 2 | H44: 4 | I44: 2 | J44: 3 | K44: 3 | L44: 3 | M44: 1 | N44: 1 | O44: 3 | P44: 0 | Q44: 0 | R44: 0 | S44: 1 | T44: 0 | U44: 1 | V44: 3 | W44: 1 | X44: 2 | Y44: 3 | Z44: 2 | AA44: 4
C45: Primaria completa | D45: 3 | E45: 2 | F45: 4 | G45: 11 | H45: 9 | I45: 10 | J45: 7 | K45: 2 | L45: 6 | M45: 4 | N45: 2 | O45: 2 | P45: 0 | Q45: 0 | R45: 0 | S45: 2 | T45: 3 | U45: 1 | V45: 5 | W45: 2 | X45: 3 | Y45: 5 | Z45: 4 | AA45: 5
C46: Secundaria incompleta | D46: 2 | E46: 1 | F46: 7 | G46: 1 | H46: 2 | I46: 5 | J46: 1 | K46: 0 | L46: 3 | M46: 3 | N46: 5 | O46: 1 | P46: 0 | Q46: 0 | R46: 0 | S46: 0 | T46: 2 | U46: 0 | V46: 1 | W46: 2 | X46: 2 | Y46: 2 | Z46: 9 | AA46: 1
C47: Secundaria completa | D47: 18 | E47: 10 | F47: 16 | G47: 10 | H47: 17 | I47: 8 | J47: 21 | K47: 13 | L47: 22 | M47: 8 | N47: 9 | O47: 26 | P47: 0 | Q47: 0 | R47: 4 | S47: 3 | T47: 0 | U47: 7 | V47: 18 | W47: 6 | X47: 13 | Y47: 15 | Z47: 23 | AA47: 17
C48: Técnica incompleta | D48: 0 | E48: 2 | F48: 1 | G48: 2 | H48: 2 | I48: 0 | J48: 2 | K48: 0 | L48: 3 | M48: 2 | N48: 1 | O48: 3 | P48: 0 | Q48: 0 | R48: 1 | S48: 3 | T48: 0 | U48: 1 | V48: 0 | W48: 0 | X48: 3 | Y48: 2 | Z48: 1 | AA48: 1
C49: Técnica completa | D49: 9 | E49: 4 | F49: 5 | G49: 3 | H49: 10 | I49: 8 | J49: 8 | K49: 6 | L49: 6 | M49: 5 | N49: 7 | O49: 9 | P49: 0 | Q49: 0 | R49: 3 | S49: 3 | T49: 2 | U49: 2 | V49: 6 | W49: 3 | X49: 5 | Y49: 6 | Z49: 12 | AA49: 10
C50: Media superior incompleta | D50: 4 | E50: 2 | F50: 7 | G50: 7 | H50: 6 | I50: 7 | J50: 8 | K50: 1 | L50: 3 | M50: 4 | N50: 8 | O50: 5 | P50: 0 | Q50: 0 | R50: 0 | S50: 3 | T50: 1 | U50: 3 | V50: 4 | W50: 4 | X50: 5 | Y50: 4 | Z50: 7 | AA50: 7
C51: Media superior completa | D51: 7 | E51: 2 | F51: 8 | G51: 3 | H51: 11 | I51: 4 | J51: 6 | K51: 5 | L51: 4 | M51: 5 | N51: 4 | O51: 13 | P51: 0 | Q51: 0 | R51: 2 | S51: 2 | T51: 3 | U51: 3 | V51: 14 | W51: 3 | X51: 11 | Y51: 2 | Z51: 8 | AA51: 10
C52: Superior incompleta | D52: 3 | E52: 4 | F52: 7 | G52: 5 | H52: 6 | I52: 6 | J52: 6 | K52: 2 | L52: 4 | M52: 2 | N52: 2 | O52: 6 | P52: 0 | Q52: 0 | R52: 6 | S52: 1 | T52: 3 | U52: 1 | V52: 6 | W52: 7 | X52: 8 | Y52: 7 | Z52: 6 | AA52: 10
C53: Superior completa | D53: 14 | E53: 2 | F53: 10 | G53: 9 | H53: 11 | I53: 9 | J53: 13 | K53: 2 | L53: 9 | M53: 5 | N53: 9 | O53: 3 | P53: 0 | Q53: 0 | R53: 5 | S53: 6 | T53: 8 | U53: 7 | V53: 16 | W53: 8 | X53: 11 | Y53: 14 | Z53: 8 | AA53: 19
C54: Posgrado | D54: 1 | E54: 0 | F54: 0 | G54: 1 | H54: 0 | I54: 1 | J54: 3 | K54: 2 | L54: 2 | M54: 1 | N54: 1 | O54: 2 | P54: 0 | Q54: 0 | R54: 1 | S54: 1 | T54: 4 | U54: 3 | V54: 5 | W54: 1 | X54: 6 | Y54: 3 | Z54: 2 | AA54: 10
C55: Total | D55: =SUM(D43:D54) -> 76 | E55: =SUM(E43:E54) -> 32 | F55: =SUM(F43:F54) -> 73 | G55: =SUM(G43:G54) -> 56 | H55: =SUM(H43:H54) -> 79 | I55: =SUM(I43:I54) -> 62 | J55: =SUM(J43:J54) -> 81 | K55: =SUM(K43:K54) -> 36 | L55: 66 | M55: =SUM(M43:M54) -> 40 | N55: =SUM(N43:N54) -> 50 | O55: =SUM(O43:O54) -> 74 | P55: 0 | Q55: 0 | R55: =SUM(R43:R54) -> 22 | S55: 25 | T55: 26 | U55: 31 | V55: 80 | W55: 38 | X55: 73 | Y55: =SUM(Y43:Y54) -> 66 | Z55: =SUM(Z43:Z54) -> 85 | AA55: =SUM(AA43:AA54) -> 99
A56: Nivel de estudios de la Madre | C56: ninguno | D56: 1 | E56: 3 | F56: 0 | G56: 0 | H56: 4 | I56: 2 | J56: 0 | K56: 1 | L56: 1 | M56: 0 | N56: 0 | O56: 1 | P56: 0 | Q56: 0 | R56: 0 | S56: 0 | T56: 0 | U56: 0 | V56: 1 | W56: 1 | X56: 0 | Y56: 0 | Z56: 2 | AA56: 2
C57: primaria incompleta | D57: 11 | E57: 1 | F57: 7 | G57: 4 | H57: 4 | I57: 8 | J57: 5 | K57: 5 | L57: 7 | M57: 0 | N57: 3 | O57: 3 | P57: 0 | Q57: 0 | R57: 0 | S57: 1 | T57: 1 | U57: 0 | V57: 8 | W57: 3 | X57: 2 | Y57: 5 | Z57: 7 | AA57: 3
C58: primaria completa | D58: 13 | E58: 7 | F58: 12 | G58: 13 | H58: 11 | I58: 5 | J58: 11 | K58: 4 | L58: 7 | M58: 4 | N58: 5 | O58: 5 | P58: 0 | Q58: 0 | R58: 1 | S58: 0 | T58: 0 | U58: 2 | V58: 8 | W58: 2 | X58: 10 | Y58: 7 | Z58: 11 | AA58: 7
C59: Secundaria incompleta | D59: 1 | E59: 1 | F59: 0 | G59: 5 | H59: 4 | I59: 5 | J59: 1 | K59: 4 | L59: 5 | M59: 0 | N59: 1 | O59: 2 | P59: 0 | Q59: 0 | R59: 1 | S59: 0 | T59: 1 | U59: 1 | V59: 1 | W59: 2 | X59: 3 | Y59: 3 | Z59: 5 | AA59: 4
C60: Secundaria completa | D60: 12 | E60: 5 | F60: 13 | G60: 12 | H60: 21 | I60: 16 | J60: 20 | K60: 9 | L60: 18 | M60: 11 | N60: 11 | O60: 24 | P60: 0 | Q60: 0 | R60: 2 | S60: 7 | T60: 2 | U60: 4 | V60: 15 | W60: 9 | X60: 14 | Y60: 15 | Z60: 22 | AA60: 20
C61: Técnica incompleta | D61: 2 | E61: 0 | F61: 4 | G61: 1 | H61: 4 | I61: 0 | J61: 3 | K61: 2 | L61: 4 | M61: 2 | N61: 3 | O61: 1 | P61: 0 | Q61: 0 | R61: 0 | S61: 1 | T61: 0 | U61: 1 | V61: 2 | W61: 2 | X61: 4 | Y61: 1 | Z61: 3 | AA61: 1
C62: Técnica completa | D62: 13 | E62: 8 | F62: 15 | G62: 7 | H62: 11 | I62: 12 | J62: 17 | K62: 2 | L62: 10 | M62: 7 | N62: 16 | O62: 12 | P62: 0 | Q62: 0 | R62: 3 | S62: 6 | T62: 3 | U62: 5 | V62: 11 | W62: 5 | X62: 13 | Y62: 14 | Z62: 14 | AA62: 8
C63: Media superior incompleta | D63: 3 | E63: 1 | F63: 3 | G63: 4 | H63: 6 | I63: 1 | J63: 3 | K63: 0 | L63: 2 | M63: 2 | N63: 0 | O63: 5 | P63: 0 | Q63: 0 | R63: 2 | S63: 0 | T63: 2 | U63: 1 | V63: 1 | W63: 2 | X63: 5 | Y63: 5 | Z63: 6 | AA63: 7
C64: Media superior completa | D64: 4 | E64: 3 | F64: 8 | G64: 3 | H64: 6 | I64: 6 | J64: 9 | K64: 4 | L64: 3 | M64: 4 | N64: 4 | O64: 10 | P64: 0 | Q64: 0 | R64: 4 | S64: 4 | T64: 5 | U64: 5 | V64: 6 | W64: 5 | X64: 6 | Y64: 6 | Z64: 5 | AA64: 13
C65: Superior incompleta | D65: 4 | E65: 1 | F65: 2 | G65: 1 | H65: 0 | I65: 2 | J65: 2 | K65: 2 | L65: 2 | M65: 5 | N65: 0 | O65: 3 | P65: 0 | Q65: 0 | R65: 2 | S65: 4 | T65: 2 | U65: 3 | V65: 6 | W65: 2 | X65: 1 | Y65: 3 | Z65: 3 | AA65: 5
C66: Superior completa | D66: 11 | E66: 2 | F66: 8 | G66: 4 | H66: 8 | I66: 3 | J66: 8 | K66: 3 | L66: 5 | M66: 5 | N66: 6 | O66: 8 | P66: 0 | Q66: 0 | R66: 5 | S66: 2 | T66: 7 | U66: 6 | V66: 17 | W66: 4 | X66: 11 | Y66: 5 | Z66: 6 | AA66: 22
C67: Posgrado | D67: 1 | E67: 0 | F67: 1 | G67: 2 | H67: 0 | I67: 2 | J67: 2 | K67: 0 | L67: 2 | M67: 0 | N67: 1 | O67: 0 | P67: 0 | Q67: 0 | R67: 2 | S67: 0 | T67: 3 | U67: 3 | V67: 4 | W67: 1 | X67: 4 | Y67: 2 | Z67: 1 | AA67: 7
C68: Total | D68: =SUM(D56:D67) -> 76 | E68: =SUM(E56:E67) -> 32 | F68: =SUM(F56:F67) -> 73 | G68: 56 | H68: =SUM(H56:H67) -> 79 | I68: =SUM(I56:I67) -> 62 | J68: =SUM(J56:J67) -> 81 | K68: =SUM(K56:K67) -> 36 | L68: =SUM(L56:L67) -> 66 | M68: =SUM(M56:M67) -> 40 | N68: =SUM(N56:N67) -> 50 | O68: =SUM(O56:O67) -> 74 | P68: 0 | Q68: 0 | R68: =SUM(R56:R67) -> 22 | S68: 25 | T68: 26 | U68: 31 | V68: 80 | W68: 38 | X68: 73 | Y68: =SUM(Y56:Y67) -> 66 | Z68: =SUM(Z56:Z67) -> 85 | AA68: =SUM(AA56:AA67) -> 99
C69: Fuente: Departamento de Admisión UAM

Sheet Admitidos Comp
A1: INDICE
A2: ADMITIDOS A LICENCIATURA
C3: 2011 | D3: 2012 | E3: 2013 | F3: 2014 | G3: 2015
A4: LER | B4: Total | C4: 238 | D4: 107 | E4: 234 | F4: 187 | G4: 240
B5: Licenciaturas | C5: 3 | D5: 3 | E5: 4 | F5: 4 | G5: 4
B6: Prom/Lic | C6: =C4/C5 -> 79.33333333 | D6: =D4/D5 -> 35.66666667 | E6: =E4/E5 -> 58.5 | F6: =F4/F5 -> 46.75 | G6: =G4/G5 -> 60
C8: 2005 | D8: 2006 | E8: 2007 | F8: 2008 | G8: 2009 | H8: 2010
A9: CUA | B9: Total Unidad | C9: 252 | D9: 123 | E9: 382 | F9: 403 | G9: 315 | H9: 399
B10: Licenciaturas | C10: 5 | D10: 4 | E10: 8 | F10: 9 | G10: 9 | H10: 10
B11: Prom/Lic | C11: =C9/C10 -> 50.4 | D11: 30.75 | E11: 47.75 | F11: 44.77777778 | G11: 35 | H11: 39.9
C12: 2011 | D12: 2012 | E12: 2013 | F12: 2014 | G12: 2015
B13: Total Unidad | C13: 429 | D13: 434 | E13: 503 | F13: 709 | G13: 792
B14: Licenciaturas | C14: 10 | D14: 10 | E14: 10 | F14: 10 | G14: 11
B15: Prom/Lic | C15: =C13/C14 -> 42.9 | D15: =D13/D14 -> 43.4 | E15: =E13/E14 -> 50.3 | F15: =F13/F14 -> 70.9 | G15: =G13/G14 -> 72
C17: 2011 | D17: 2012 | E17: 2013 | F17: 2014 | G17: 2015
A18: UAM | B18: Total UAM | C18: 12713 | D18: 12227 | E18: 12410 | F18: 11911 | G18: 12085
B19: Licenciaturas | C19: 76 | D19: 74 | E19: 75 | F19: 75 | G19: 76
B20: Prom/Lic | C20: =C18/C19 -> 167.2763158 | D20: =D18/D19 -> 165.2297297 | E20: =E18/E19 -> 165.4666667 | F20: =F18/F19 -> 158.8133333 | G20: =G18/G19 -> 159.0131579
A21: La categoría admitidos comprende a los elegidos en los procesos de selección. A partir del 2004 se incluyen los datos de admitidos por lista complementaria
A22: FUENTE: Coordinación General de Información Institucional. Departamento de Admisión

Sheet Inscritos Plan Trimestre
A1: INDICE
A2: INSCRITOS DE PRIMER INGRESO A LICENCIATURA POR TRIMESTRE
A3: DIV | B3: PLAN DE ESTUDIO | C3: 2011 | F3: 2012 | I3: 2013 | L3: 2014 | O3: 2015
C4: P | D4: O | E4: Total | F4: P | G4: O | H4: Total | I4: P | J4: O | K4: Total | L4: P | M4: O | N4: Total | O4: P | P4: O | Q4: Total
A5: CBI | B5: Ingeniería en Recursos Hídricos | C5: 26 | D5: 33 | E5: 59 | G5: 30 | H5: 30 | I5: 26 | J5: 26 | K5: 52 | L5: 21 | M5: 28 | N5: 49 | O5: 22 | P5: 46 | Q5: 68
A6: CBS | B6: Biología Ambiental | C6: 30 | D6: 26 | E6: 56 | G6: 26 | H6: 26 | I6: 19 | J6: 36 | K6: 55 | L6: 30 | M6: 17 | N6: 47 | O6: 37 | P6: 41 | Q6: 78
A7: CSH | B7: Políticas Públicas | C7: 29 | D7: 29 | E7: 58 | G7: 33 | H7: 33 | I7: 22 | J7: 29 | K7: 51 | M7: 30 | N7: 30 | P7: 37 | Q7: 37
B8: Arte y Comunicación Digitales | J8: 18 | K8: 18 | M8: 18 | N8: 18 | P8: 18 | Q8: 18
B9: Total Unidad | C9: 85 | D9: 88 | E9: 173 | F9: 0 | G9: 89 | H9: 89 | I9: 67 | J9: 109 | K9: 176 | L9: 51 | M9: 93 | N9: 144 | O9: 59 | P9: 142 | Q9: 201
A11: Total UAM | C11: 4336 | D11: 5356 | E11: 9692 | F11: 3839 | G11: 5564 | H11: 9403 | I11: 4079 | J11: 5779 | K11: 9858 | L11: 4075 | M11: 5798 | N11: 9873 | O11: 3865 | P11: 5984 | Q11: 9849
B12: UAML/UAM | C12: =C9/C11 -> 0.01960332103 | D12: =D9/D11 -> 0.01643017177 | E12: 0.01784977301 | F12: 0 | G12: 0.01599568656 | H12: 0.009465064341 | I12: 0.01642559451 | J12: 0.0188613947 | K12: 0.01785351998 | L12: 0.01251533742 | M12: 0.0160400138 | N12: 0.01458523245 | O12: 0.01526520052 | P12: 0.02372994652 | Q12: 0.02040816327
A13: La categoría de inscritos de primer ingreso incluye a todos los alumnos admitidos que realizaron la inscripción a su primer al trimestre.
A14: FUENTE: Dirección de Sistemas Escolares.
C15: 2011 | D15: 2012 | E15: 2013 | F15: 2014 | G15: 2015 | J15: 2011 | K15: 2012 | L15: 2013 | M15: 2014 | N15: 2015
A16: CBI | B16: IRH | C16: =E5 -> 59 | D16: =H5 -> 30 | E16: =K5 -> 52 | F16: =N5 -> 49 | G16: =Q5 -> 68 | I16: UAM-L | J16: =E9 -> 173 | K16: =H9 -> 89 | L16: =K9 -> 176 | M16: =N9 -> 144 | N16: =Q9 -> 201
A17: CBS | B17: BA | C17: =E6 -> 56 | D17: =H6 -> 26 | E17: =K6 -> 55 | F17: =N6 -> 47 | G17: =Q6 -> 78
A18: CSH | B18: PP | C18: =E7 -> 58 | D18: =H7 -> 33 | E18: =K7 -> 51 | F18: =N7 -> 30 | G18: =Q7 -> 37
B19: ACD | C19: =E8 -> 0 | D19: =H8 -> 0 | E19: =K8 -> 18 | F19: =N8 -> 18 | G19: =Q8 -> 18

Sheet Inscritos Div
A1: INDICE
A2: INSCRITOS A LICENCIATURA POR AÑO
A3: DIVISIÓN | B3: 2011 | D3: 2012 | F3: 2013 | H3: 2014 | J3: 2015
A4: CBI | B4: 59 | C4: =B4/B$7 -> 0.3410404624 | D4: 30 | E4: =D4/D$7 -> 0.3370786517 | F4: 52 | G4: =F4/F$7 -> 0.2954545455 | H4: 49 | I4: =H4/H$7 -> 0.3402777778 | J4: 68 | K4: =J4/J$7 -> 0.3383084577
A5: CBS | B5: 56 | C5: =B5/B$7 -> 0.323699422 | D5: 26 | E5: =D5/D$7 -> 0.2921348315 | F5: 55 | G5: =F5/F$7 -> 0.3125 | H5: 47 | I5: =H5/H$7 -> 0.3263888889 | J5: 78 | K5: =J5/J$7 -> 0.3880597015
A6: CSH | B6: 58 | C6: =B6/B$7 -> 0.3352601156 | D6: 33 | E6: =D6/D$7 -> 0.3707865169 | F6: 69 | G6: =F6/F$7 -> 0.3920454545 | H6: 48 | I6: =H6/H$7 -> 0.3333333333 | J6: 55 | K6: =J6/J$7 -> 0.2736318408
A7: TOTAL | B7: 173 | C7: =B7/B$7 -> 1 | D7: 89 | E7: =D7/D$7 -> 1 | F7: 176 | G7: =F7/F$7 -> 1 | H7: 144 | I7: =H7/H$7 -> 1 | J7: 201 | K7: =J7/J$7 -> 1
A8: FUENTE: Dirección de Sistemas Escolares.
B10: 2011 | C10: 2012 | D10: 2013 | E10: 2014 | F10: 2015 | N10: 2011 | O10: 2012 | P10: 2013 | Q10: 2014 | R10: 2015
A11: CBI | B11: =B4 -> 59 | C11: =D4 -> 30 | D11: =F4 -> 52 | E11: =H4 -> 49 | F11: =J4 -> 68 | M11: CBI | N11: =C4 -> 0.3410404624 | O11: =E4 -> 0.3370786517 | P11: =G4 -> 0.2954545455 | Q11: =I4 -> 0.3402777778 | R11: =K4 -> 0.3383084577
A12: CBS | B12: =B5 -> 56 | C12: =D5 -> 26 | D12: =F5 -> 55 | E12: =H5 -> 47 | F12: =J5 -> 78 | M12: CBS | N12: =C5 -> 0.323699422 | O12: =E5 -> 0.2921348315 | P12: =G5 -> 0.3125 | Q12: =I5 -> 0.3263888889 | R12: =K5 -> 0.3880597015
A13: CSH | B13: =B6 -> 58 | C13: =D6 -> 33 | D13: =F6 -> 69 | E13: =H6 -> 48 | F13: =J6 -> 55 | M13: CSH | N13: =C6 -> 0.3352601156 | O13: =E6 -> 0.3707865169 | P13: =G6 -> 0.3920454545 | Q13: =I6 -> 0.3333333333 | R13: =K6 -> 0.2736318408

Sheet Incritos Acumulado
A1: INDICE
A3: INSCRITOS ACUMULADO
A4: DIV | B4: PLAN DE ESTUDIO | C4: 2011 | E4: 2012 | G4: 2013 | I4: 2014 | K4: 2015
C5: P | D5: O | E5: P | F5: O | G5: P | H5: O | I5: P | J5: O | K5: P | L5: O
A6: CBI | B6: Ingeniería en Recursos Hídricos | C6: ='Inscritos Plan Trimestre'!C5 -> 26 | D6: ='Inscritos Plan Trimestre'!D5+'Inscritos Plan Trimestre'!C5 -> 59 | E6: =D6+'Inscritos Plan Trimestre'!F5 -> 59 | F6: =E6+'Inscritos Plan Trimestre'!G5 -> 89 | G6: =F6+'Inscritos Plan Trimestre'!I5 -> 115 | H6: =G6+'Inscritos Plan Trimestre'!J5 -> 141 | I6: =H6+'Inscritos Plan Trimestre'!L5 -> 162 | J6: =I6+'Inscritos Plan Trimestre'!M5 -> 190 | K6: =J6+'Inscritos Plan Trimestre'!O5 -> 212 | L6: =K6+'Inscritos Plan Trimestre'!P5 -> 258
A7: CBS | B7: Biología Ambiental | C7: ='Inscritos Plan Trimestre'!C6 -> 30 | D7: ='Inscritos Plan Trimestre'!D6+'Inscritos Plan Trimestre'!C6 -> 56 | E7: =D7+'Inscritos Plan Trimestre'!F6 -> 56 | F7: =E7+'Inscritos Plan Trimestre'!G6 -> 82 | G7: =F7+'Inscritos Plan Trimestre'!I6 -> 101 | H7: =G7+'Inscritos Plan Trimestre'!J6 -> 137 | I7: =H7+'Inscritos Plan Trimestre'!L6 -> 167 | J7: =I7+'Inscritos Plan Trimestre'!M6 -> 184 | K7: =J7+'Inscritos Plan Trimestre'!O6 -> 221 | L7: =K7+'Inscritos Plan Trimestre'!P6 -> 262
A8: CSH | B8: Políticas Públicas | C8: ='Inscritos Plan Trimestre'!C7 -> 29 | D8: ='Inscritos Plan Trimestre'!D7+'Inscritos Plan Trimestre'!C7 -> 58 | E8: =D8+'Inscritos Plan Trimestre'!F7 -> 58 | F8: =E8+'Inscritos Plan Trimestre'!G7 -> 91 | G8: =F8+'Inscritos Plan Trimestre'!I7 -> 113 | H8: =G8+'Inscritos Plan Trimestre'!J7 -> 142 | I8: =H8+'Inscritos Plan Trimestre'!L7 -> 142 | J8: =I8+'Inscritos Plan Trimestre'!M7 -> 172 | K8: =J8+'Inscritos Plan Trimestre'!O7 -> 172 | L8: =K8+'Inscritos Plan Trimestre'!P7 -> 209
B9: Arte y Comunicación Digitales | C9: ='Inscritos Plan Trimestre'!C8 -> 0 | D9: ='Inscritos Plan Trimestre'!D8+'Inscritos Plan Trimestre'!C8 -> 0 | E9: =D9+'Inscritos Plan Trimestre'!F8 -> 0 | F9: =E9+'Inscritos Plan Trimestre'!G8 -> 0 | G9: =F9+'Inscritos Plan Trimestre'!I8 -> 0 | H9: =G9+'Inscritos Plan Trimestre'!J8 -> 18 | I9: =H9+'Inscritos Plan Trimestre'!L8 -> 18 | J9: =I9+'Inscritos Plan Trimestre'!M8 -> 36 | K9: =J9+'Inscritos Plan Trimestre'!O8 -> 36 | L9: =K9+'Inscritos Plan Trimestre'!P8 -> 54
B10: Total Unidad | C10: =SUM(C6:C9) -> 85 | D10: 173 | E10: 173 | F10: 262 | G10: 329 | H10: 438 | I10: 489 | J10: =SUM(J6:J9) -> 582 | K10: =SUM(K6:K9) -> 641 | L10: =SUM(L6:L9) -> 783
A13: INSCRITAS ACUMULADO
A14: DIV | B14: PLAN DE ESTUDIO | C14: 2011 | E14: 2012 | G14: 2013 | I14: 2014 | K14: 2015
C15: P | D15: O | E15: P | F15: O | G15: P | H15: O | I15: P | J15: O | K15: P | L15: O
A16: CBI | B16: Ingeniería en Recursos Hídricos | C16: ='Inscritos Plan x gen'!C14 -> 9 | D16: =C16+'Inscritos Plan x gen'!D14 -> 20 | E16: =D16+'Inscritos Plan x gen'!E14 -> 20 | F16: =E16+'Inscritos Plan x gen'!F14 -> 35 | G16: =F16+'Inscritos Plan x gen'!G14 -> 45 | H16: =G16+'Inscritos Plan x gen'!H14 -> 56 | I16: =H16+'Inscritos Plan x gen'!I14 -> 64 | J16: =I16+'Inscritos Plan x gen'!J14 -> 79 | K16: =J16+'Inscritos Plan x gen'!K14 -> 89 | L16: =K16+'Inscritos Plan x gen'!L14 -> 110
A17: CBS | B17: Biología Ambiental | C17: ='Inscritos Plan x gen'!C15 -> 20 | D17: =C17+'Inscritos Plan x gen'!D15 -> 39 | E17: =D17+'Inscritos Plan x gen'!E15 -> 39 | F17: =E17+'Inscritos Plan x gen'!F15 -> 54 | G17: =F17+'Inscritos Plan x gen'!G15 -> 68 | H17: =G17+'Inscritos Plan x gen'!H15 -> 94 | I17: =H17+'Inscritos Plan x gen'!I15 -> 113 | J17: =I17+'Inscritos Plan x gen'!J15 -> 124 | K17: =J17+'Inscritos Plan x gen'!K15 -> 149 | L17: =K17+'Inscritos Plan x gen'!L15 -> 178
A18: CSH | B18: Políticas Públicas | C18: ='Inscritos Plan x gen'!C16 -> 16 | D18: =C18+'Inscritos Plan x gen'!D16 -> 35 | E18: =D18+'Inscritos Plan x gen'!E16 -> 35 | F18: =E18+'Inscritos Plan x gen'!F16 -> 50 | G18: =F18+'Inscritos Plan x gen'!G16 -> 58 | H18: =G18+'Inscritos Plan x gen'!H16 -> 77 | I18: =H18+'Inscritos Plan x gen'!I16 -> 77 | J18: =I18+'Inscritos Plan x gen'!J16 -> 92 | K18: =J18+'Inscritos Plan x gen'!K16 -> 92 | L18: =K18+'Inscritos Plan x gen'!L16 -> 116
B19: Arte y Comunicación Digitales | C19: ='Inscritos Plan x gen'!C17 -> 0 | D19: =C19+'Inscritos Plan x gen'!D17 -> 0 | E19: =D19+'Inscritos Plan x gen'!E17 -> 0 | F19: =E19+'Inscritos Plan x gen'!F17 -> 0 | G19: =F19+'Inscritos Plan x gen'!G17 -> 0 | H19: =G19+'Inscritos Plan x gen'!H17 -> 9 | I19: =H19+'Inscritos Plan x gen'!I17 -> 9 | J19: =I19+'Inscritos Plan x gen'!J17 -> 18 | K19: =J19+'Inscritos Plan x gen'!K17 -> 18 | L19: =K19+'Inscritos Plan x gen'!L17 -> 27
B20: Total Unidad | C20: =SUM(C16:C19) -> 45 | D20: 94 | E20: 94 | F20: 139 | G20: 171 | H20: 236 | I20: 263 | J20: =SUM(J16:J19) -> 313 | K20: =SUM(K16:K19) -> 348 | L20: =SUM(L16:L19) -> 431
A22: INSCRITOS ACUMULADO
A23: DIV | B23: PLAN DE ESTUDIO | C23: 2011 | E23: 2012 | G23: 2013 | I23: 2014 | K23: 2015
C24: P | D24: O | E24: P | F24: O | G24: P | H24: O | I24: P | J24: O | K24: P | L24: O
A25: CBI | B25: Ingeniería en Recursos Hídricos | C25: =C6-C16 -> 17 | D25: =D6-D16 -> 39 | E25: 39 | F25: 54 | G25: 70 | H25: 85 | I25: 98 | J25: =J6-J16 -> 111 | K25: =K6-K16 -> 123 | L25: =L6-L16 -> 148
A26: CBS | B26: Biología Ambiental | C26: =C7-C17 -> 10 | D26: 17 | E26: 17 | F26: 28 | G26: 33 | H26: 43 | I26: 54 | J26: 60 | K26: 72 | L26: 84
A27: CSH | B27: Políticas Públicas | C27: 13 | D27: 23 | E27: 23 | F27: 41 | G27: 55 | H27: 65 | I27: 65 | J27: 80 | K27: 80 | L27: 93
B28: Arte y Comunicación Digitales | C28: 0 | D28: 0 | E28: 0 | F28: 0 | G28: 0 | H28: 9 | I28: 9 | J28: 18 | K28: 18 | L28: 27
B29: Total Unidad | C29: =SUM(C25:C28) -> 40 | D29: 79 | E29: 79 | F29: 123 | G29: 158 | H29: 202 | I29: 226 | J29: 269 | K29: =K10-K20 -> 293 | L29: =L10-L20 -> 352
A32: INSCRITAS ACUMULADO
A33: DIV | B33: PLAN DE ESTUDIO | C33: 2011 | E33: 2012 | G33: 2013 | I33: 2014 | K33: 2015
C34: P | D34: O | E34: P | F34: O | G34: P | H34: O | I34: P | J34: O | K34: P | L34: O
A35: CBI | B35: Ingeniería en Recursos Hídricos | C35: =C16/C6 -> 0.3461538462 | D35: =D16/D6 -> 0.3389830508 | E35: 0.3389830508 | F35: 0.393258427 | G35: 0.3913043478 | H35: 0.3971631206 | I35: 0.3950617284 | J35: 0.4157894737 | K35: 0.4198113208 | L35: 0.4263565891
A36: CBS | B36: Biología Ambiental | C36: =C17/C7 -> 0.6666666667 | D36: 0.6964285714 | E36: 0.6964285714 | F36: 0.6585365854 | G36: 0.6732673267 | H36: 0.6861313869 | I36: 0.6766467066 | J36: 0.6739130435 | K36: 0.6742081448 | L36: 0.679389313
A37: CSH | B37: Políticas Públicas | C37: 0.5517241379 | D37: 0.6034482759 | E37: 0.6034482759 | F37: 0.5494505495 | G37: 0.5132743363 | H37: 0.5422535211 | I37: 0.5422535211 | J37: 0.5348837209 | K37: 0.5348837209 | L37: 0.5550239234
B38: Arte y Comunicación Digitales | H38: 0.5 | I38: 0.5 | J38: 0.5 | K38: 0.5 | L38: =L19/L9 -> 0.5
B39: Total Unidad | C39: 0.5294117647 | D39: 0.5433526012 | E39: 0.5433526012 | F39: 0.5305343511 | G39: 0.5197568389 | H39: 0.5388127854 | I39: 0.5378323108 | J39: 0.5378006873 | K39: 0.5429017161 | L39: =L20/L10 -> 0.5504469987

Sheet Inscritos Plan x gen
A1: INDICE
A2: INSCRITAS E INSCRITOS DE PRIMER INGRESO
A3: DIVISIÓN | B3: PLAN DE ESTUDIO | C3: 2011 | E3: 2012 | G3: 2013 | I3: 2014 | K3: 2015
C4: P | D4: O | E4: P | F4: O | G4: P | H4: O | I4: P | J4: O | K4: P | L4: O
A5: CBI | B5: Ingeniería en Recursos Hídricos | C5: ='Inscritos Plan Trimestre'!C5 -> 26 | D5: ='Inscritos Plan Trimestre'!D5 -> 33 | E5: ='Inscritos Plan Trimestre'!F5 -> 0 | F5: ='Inscritos Plan Trimestre'!G5 -> 30 | G5: ='Inscritos Plan Trimestre'!I5 -> 26 | H5: ='Inscritos Plan Trimestre'!J5 -> 26 | I5: ='Inscritos Plan Trimestre'!L5 -> 21 | J5: ='Inscritos Plan Trimestre'!M5 -> 28 | K5: ='Inscritos Plan Trimestre'!O5 -> 22 | L5: ='Inscritos Plan Trimestre'!P5 -> 46
A6: CBS | B6: Biología Ambiental | C6: ='Inscritos Plan Trimestre'!C6 -> 30 | D6: ='Inscritos Plan Trimestre'!D6 -> 26 | E6: ='Inscritos Plan Trimestre'!F6 -> 0 | F6: ='Inscritos Plan Trimestre'!G6 -> 26 | G6: ='Inscritos Plan Trimestre'!I6 -> 19 | H6: ='Inscritos Plan Trimestre'!J6 -> 36 | I6: ='Inscritos Plan Trimestre'!L6 -> 30 | J6: ='Inscritos Plan Trimestre'!M6 -> 17 | K6: ='Inscritos Plan Trimestre'!O6 -> 37 | L6: ='Inscritos Plan Trimestre'!P6 -> 41
A7: CSH | B7: Políticas Públicas | C7: ='Inscritos Plan Trimestre'!C7 -> 29 | D7: ='Inscritos Plan Trimestre'!D7 -> 29 | E7: ='Inscritos Plan Trimestre'!F7 -> 0 | F7: ='Inscritos Plan Trimestre'!G7 -> 33 | G7: ='Inscritos Plan Trimestre'!I7 -> 22 | H7: ='Inscritos Plan Trimestre'!J7 -> 29 | I7: ='Inscritos Plan Trimestre'!L7 -> 0 | J7: ='Inscritos Plan Trimestre'!M7 -> 30 | K7: ='Inscritos Plan Trimestre'!O7 -> 0 | L7: ='Inscritos Plan Trimestre'!P7 -> 37
B8: Arte y Comunicación Digitales | C8: ='Inscritos Plan Trimestre'!C8 -> 0 | D8: ='Inscritos Plan Trimestre'!D8 -> 0 | E8: ='Inscritos Plan Trimestre'!F8 -> 0 | F8: ='Inscritos Plan Trimestre'!G8 -> 0 | G8: ='Inscritos Plan Trimestre'!I8 -> 0 | H8: ='Inscritos Plan Trimestre'!J8 -> 18 | I8: ='Inscritos Plan Trimestre'!L8 -> 0 | J8: ='Inscritos Plan Trimestre'!M8 -> 18 | K8: ='Inscritos Plan Trimestre'!O8 -> 0 | L8: ='Inscritos Plan Trimestre'!P8 -> 18
A9: Total Unidad | C9: =SUM(C5:C8) -> 85 | D9: 88 | E9: 0 | F9: 89 | G9: 67 | H9: 109 | I9: 51 | J9: 93 | K9: 59 | L9: 142
A10: FUENTE: Dirección de Sistemas Escolares.
A11: INSCRITAS DE PRIMER INGRESO
A12: DIVISIÓN | B12: PLAN DE ESTUDIO | C12: 2011 | E12: 2012 | G12: 2013 | I12: 2014 | K12: 2015
C13: P | D13: O | E13: P | F13: O | G13: P | H13: O | I13: P | J13: O | K13: P | L13: O
A14: CBI | B14: Ingeniería en Recursos Hídricos | C14: 9 | D14: 11 | E14: 0 | F14: 15 | G14: 10 | H14: 11 | I14: 8 | J14: 15 | K14: 10 | L14: 21
A15: CBS | B15: Biología Ambiental | C15: 20 | D15: 19 | E15: 0 | F15: 15 | G15: 14 | H15: 26 | I15: 19 | J15: 11 | K15: 25 | L15: 29
A16: CSH | B16: Políticas Públicas | C16: 16 | D16: 19 | E16: 0 | F16: 15 | G16: 8 | H16: 19 | I16: 0 | J16: 15 | K16: 0 | L16: 24
B17: Arte y Comunicación Digitales | C17: 0 | D17: 0 | E17: 0 | F17: 0 | G17: 0 | H17: 9 | I17: 0 | J17: 9 | K17: 0 | L17: 9
A18: Total Unidad | C18: =SUM(C14:C17) -> 45 | D18: 49 | E18: 0 | F18: 45 | G18: 32 | H18: 65 | I18: 27 | J18: 50 | K18: =SUM(K14:K17) -> 35 | L18: =SUM(L14:L17) -> 83
A19: FUENTE: Dirección de Sistemas Escolares.
A20: INSCRITOS DE PRIMER INGRESO
A21: DIVISIÓN | B21: PLAN DE ESTUDIO | C21: 2011 | E21: 2012 | G21: 2013 | I21: 2014 | K21: 2015
C22: P | D22: O | E22: P | F22: O | G22: P | H22: O | I22: P | J22: O | K22: P | L22: O
A23: CBI | B23: Ingeniería en Recursos Hídricos | C23: =C5-C14 -> 17 | D23: =D5-D14 -> 22 | E23: 0 | F23: 15 | G23: 16 | H23: 15 | I23: 13 | J23: 13 | K23: =K5-K14 -> 12 | L23: 25
A24: CBS | B24: Biología Ambiental | C24: 10 | D24: 7 | E24: 0 | F24: 11 | G24: 5 | H24: 10 | I24: 11 | J24: 6 | K24: 12 | L24: 12
A25: CSH | B25: Políticas Públicas | C25: 13 | D25: 10 | E25: 0 | F25: 18 | G25: 14 | H25: 10 | I25: 0 | J25: 15 | K25: 0 | L25: 13
B26: Arte y Comunicación Digitales | C26: 0 | D26: 0 | E26: 0 | F26: 0 | G26: 0 | H26: 9 | I26: 0 | J26: 9 | K26: 0 | L26: 9
A27: Total Unidad | C27: =SUM(C23:C26) -> 40 | D27: 39 | E27: 0 | F27: 44 | G27: 35 | H27: 44 | I27: 24 | J27: 43 | K27: =SUM(K23:K26) -> 24 | L27: =SUM(L23:L26) -> 59
A28: FUENTE: Dirección de Sistemas Escolares.
A30: INSCRITAS DE PRIMER INGRESO
A31: DIVISIÓN | B31: PLAN DE ESTUDIO | C31: 2011 | E31: 2012 | G31: 2013 | I31: 2014 | K31: 2015
C32: P | D32: O | E32: P | F32: O | G32: P | H32: O | I32: P | J32: O | K32: P | L32: O
A33: CBI | B33: Ingeniería en Recursos Hídricos | C33: =C14/C5 -> 0.3461538462 | D33: =D14/D5 -> 0.3333333333 | E33: 0 | F33: 0.5 | G33: 0.3846153846 | H33: 0.4230769231 | I33: 0.380952381 | J33: 0.5357142857 | K33: =K14/K5 -> 0.4545454545 | L33: =L14/L5 -> 0.4565217391
A34: CBS | B34: Biología Ambiental | C34: =C15/C6 -> 0.6666666667 | D34: 0.7307692308 | E34: 0 | F34: 0.5769230769 | G34: 0.7368421053 | H34: 0.7222222222 | I34: 0.6333333333 | J34: 0.6470588235 | K34: 0.6756756757 | L34: 0.7073170732
A35: CSH | B35: Políticas Públicas | C35: 0 | D35: =D16/D7 -> 0.6551724138 | E35: 0 | F35: 0.4545454545 | G35: 0.3636363636 | H35: 0.6551724138 | I35: 0 | J35: 0.5 | K35: 0 | L35: 0.6486486486
B36: Arte y Comunicación Digitales | C36: 0 | D36: 0 | E36: 0 | F36: 0 | G36: 0 | H36: =H17/H8 -> 0.5 | I36: 0 | J36: =J17/J8 -> 0.5 | K36: 0 | L36: =L17/L8 -> 0.5
A37: Total Unidad | C37: =C18/C9 -> 0.5294117647 | D37: =D18/D9 -> 0.5568181818 | E37: =SUM(E33:E36) -> 0 | F37: 0.5056179775 | G37: 0.4776119403 | H37: 0.5963302752 | I37: 0.5294117647 | J37: =J18/J9 -> 0.5376344086 | K37: =K18/K9 -> 0.593220339 | L37: =L18/L9 -> 0.5845070423
A38: FUENTE: Dirección de Sistemas Escolares.

Sheet Incritos x Aspir
A1: INDICE
A2: INSCRITOS DE PRIMER INGRESO / ASPIRANTES
A3: DIV | B3: PLAN DE ESTUDIO | C3: 2011 | F3: 2012 | I3: 2013 | L3: 2014 | O3: 2015
C4: P | D4: O | E4: Total | F4: P | G4: O | H4: Total | I4: P | J4: O | K4: Total | L4: P | M4: O | N4: Total | O4: P | P4: O | Q4: Total
A5: CBI | B5: Ingeniería en Recursos Hídricos | C5: ='Inscritos Plan Trimestre'!C5/'Aspirantes plan'!C5 -> 1.238095238 | D5: ='Inscritos Plan Trimestre'!D5/'Aspirantes plan'!D5 -> 0.7173913043 | E5: ='Inscritos Plan Trimestre'!E5/'Aspirantes plan'!E5 -> 0.8805970149 | G5: ='Inscritos Plan Trimestre'!G5/'Aspirantes plan'!G5 -> 0.9090909091 | H5: ='Inscritos Plan Trimestre'!H5/'Aspirantes plan'!H5 -> 0.9090909091 | I5: ='Inscritos Plan Trimestre'!I5/'Aspirantes plan'!I5 -> 1.3 | J5: ='Inscritos Plan Trimestre'!J5/'Aspirantes plan'!J5 -> 0.65 | K5: ='Inscritos Plan Trimestre'!K5/'Aspirantes plan'!K5 -> 0.8666666667 | L5: ='Inscritos Plan Trimestre'!L5/'Aspirantes plan'!L5 -> 1 | M5: ='Inscritos Plan Trimestre'!M5/'Aspirantes plan'!M5 -> 0.6222222222 | N5: ='Inscritos Plan Trimestre'!N5/'Aspirantes plan'!N5 -> 0.7424242424 | O5: ='Inscritos Plan Trimestre'!O5/'Aspirantes plan'!O5 -> 0.9565217391 | P5: ='Inscritos Plan Trimestre'!P5/'Aspirantes plan'!P5 -> 0.8214285714 | Q5: ='Inscritos Plan Trimestre'!Q5/'Aspirantes plan'!Q5 -> 0.8607594937
A6: CBS | B6: Biología Ambiental | C6: ='Inscritos Plan Trimestre'!C6/'Aspirantes plan'!C6 -> 0.8823529412 | D6: ='Inscritos Plan Trimestre'!D6/'Aspirantes plan'!D6 -> 0.1954887218 | E6: ='Inscritos Plan Trimestre'!E6/'Aspirantes plan'!E6 -> 0.3353293413 | G6: ='Inscritos Plan Trimestre'!G6/'Aspirantes plan'!G6 -> 0.4126984127 | H6: ='Inscritos Plan Trimestre'!H6/'Aspirantes plan'!H6 -> 0.4126984127 | I6: ='Inscritos Plan Trimestre'!I6/'Aspirantes plan'!I6 -> 0.59375 | J6: ='Inscritos Plan Trimestre'!J6/'Aspirantes plan'!J6 -> 0.3130434783 | K6: ='Inscritos Plan Trimestre'!K6/'Aspirantes plan'!K6 -> 0.3741496599 | L6: ='Inscritos Plan Trimestre'!L6/'Aspirantes plan'!L6 -> 0.6976744186 | M6: ='Inscritos Plan Trimestre'!M6/'Aspirantes plan'!M6 -> 0.4358974359 | N6: ='Inscritos Plan Trimestre'!N6/'Aspirantes plan'!N6 -> 0.5731707317 | O6: ='Inscritos Plan Trimestre'!O6/'Aspirantes plan'!O6 -> 0.9736842105 | P6: ='Inscritos Plan Trimestre'!P6/'Aspirantes plan'!P6 -> 0.3082706767 | Q6: ='Inscritos Plan Trimestre'!Q6/'Aspirantes plan'!Q6 -> 0.4561403509
A7: CSH | B7: Políticas Públicas | C7: ='Inscritos Plan Trimestre'!C7/'Aspirantes plan'!C7 -> 0.5918367347 | D7: ='Inscritos Plan Trimestre'!D7/'Aspirantes plan'!D7 -> 0.243697479 | E7: ='Inscritos Plan Trimestre'!E7/'Aspirantes plan'!E7 -> 0.3452380952 | G7: ='Inscritos Plan Trimestre'!G7/'Aspirantes plan'!G7 -> 0.4925373134 | H7: ='Inscritos Plan Trimestre'!H7/'Aspirantes plan'!H7 -> 0.4925373134 | I7: ='Inscritos Plan Trimestre'!I7/'Aspirantes plan'!I7 -> 0.7333333333 | J7: ='Inscritos Plan Trimestre'!J7/'Aspirantes plan'!J7 -> 0.3670886076 | K7: ='Inscritos Plan Trimestre'!K7/'Aspirantes plan'!K7 -> 0.4678899083 | M7: ='Inscritos Plan Trimestre'!M7/'Aspirantes plan'!M7 -> 0.3225806452 | N7: ='Inscritos Plan Trimestre'!N7/'Aspirantes plan'!N7 -> 0.3225806452 | P7: ='Inscritos Plan Trimestre'!P7/'Aspirantes plan'!P7 -> 0.2624113475 | Q7: ='Inscritos Plan Trimestre'!Q7/'Aspirantes plan'!Q7 -> 0.2624113475
B8: Arte y Comunicación Digitales | J8: ='Inscritos Plan Trimestre'!J8/'Aspirantes plan'!J8 -> 0.2117647059 | K8: ='Inscritos Plan Trimestre'!K8/'Aspirantes plan'!K8 -> 0.2117647059 | M8: ='Inscritos Plan Trimestre'!M8/'Aspirantes plan'!M8 -> 0.09375 | N8: ='Inscritos Plan Trimestre'!N8/'Aspirantes plan'!N8 -> 0.09375 | P8: ='Inscritos Plan Trimestre'!P8/'Aspirantes plan'!P8 -> 0.07086614173 | Q8: ='Inscritos Plan Trimestre'!Q8/'Aspirantes plan'!Q8 -> 0.07086614173
B9: Total Unidad | C9: ='Inscritos Plan Trimestre'!C9/'Aspirantes plan'!C9 -> 0.8173076923 | D9: ='Inscritos Plan Trimestre'!D9/'Aspirantes plan'!D9 -> 0.2953020134 | E9: ='Inscritos Plan Trimestre'!E9/'Aspirantes plan'!E9 -> 0.4303482587 | G9: ='Inscritos Plan Trimestre'!G9/'Aspirantes plan'!G9 -> 0.5460122699 | H9: ='Inscritos Plan Trimestre'!H9/'Aspirantes plan'!H9 -> 0.5460122699 | I9: ='Inscritos Plan Trimestre'!I9/'Aspirantes plan'!I9 -> 0.8170731707 | J9: ='Inscritos Plan Trimestre'!J9/'Aspirantes plan'!J9 -> 0.34169279 | K9: ='Inscritos Plan Trimestre'!K9/'Aspirantes plan'!K9 -> 0.4389027431 | L9: ='Inscritos Plan Trimestre'!L9/'Aspirantes plan'!L9 -> 0.796875 | M9: ='Inscritos Plan Trimestre'!M9/'Aspirantes plan'!M9 -> 0.2520325203 | N9: ='Inscritos Plan Trimestre'!N9/'Aspirantes plan'!N9 -> 0.3325635104 | O9: ='Inscritos Plan Trimestre'!O9/'Aspirantes plan'!O9 -> 0.9672131148 | P9: ='Inscritos Plan Trimestre'!P9/'Aspirantes plan'!P9 -> 0.2431506849 | Q9: ='Inscritos Plan Trimestre'!Q9/'Aspirantes plan'!Q9 -> 0.311627907
A11: Total UAM | C11: 4336 | D11: 5356 | E11: 9692 | F11: 3839 | G11: 5564 | H11: 9403 | I11: 4079 | J11: 5779 | K11: 9858 | L11: 4075 | M11: 5798 | N11: 9873 | O11: 3865 | P11: 5984 | Q11: 9849
B12: UAML/UAM | C12: =C9/C11 -> 0.0001884934715 | D12: =D9/D11 -> 5.51348046e-05 | E12: 4.440242042e-05 | F12: 0 | G12: 9.813304636e-05 | H12: 5.806787939e-05 | I12: 0.0002003121282 | J12: 5.912662917e-05 | K12: 4.452249373e-05 | L12: 0.0001955521472 | M12: 4.346887208e-05 | N12: 3.368413961e-05 | O12: 0.0002502491888 | P12: 4.063347008e-05 | Q12: 3.16405632e-05
A13: La categoría de inscritos de primer ingreso incluye a todos los alumnos admitidos que realizaron la inscripción a su primer al trimestre.
A14: FUENTE: Dirección de Sistemas Escolares.
C16: 2011 | D16: 2012 | E16: 2013 | F16: 2014 | G16: 2015
A17: CBI | B17: IRH | C17: =E5 -> 0.8805970149 | D17: =H5 -> 0.9090909091 | E17: =K5 -> 0.8666666667 | F17: =N5 -> 0.7424242424 | G17: =Q5 -> 0.8607594937
A18: CBS | B18: BA | C18: =E6 -> 0.3353293413 | D18: =H6 -> 0.4126984127 | E18: =K6 -> 0.3741496599 | F18: =N6 -> 0.5731707317 | G18: =Q6 -> 0.4561403509
A19: CSH | B19: PP | C19: =E7 -> 0.3452380952 | D19: =H7 -> 0.4925373134 | E19: =K7 -> 0.4678899083 | F19: =N7 -> 0.3225806452 | G19: =Q7 -> 0.2624113475
B20: ACD | E20: =K8 -> 0.2117647059 | F20: =N8 -> 0.09375 | G20: =Q8 -> 0.07086614173
C35: 2011 | D35: 2012 | E35: 2013 | F35: 2014 | G35: 2015
B36: UAM-L | C36: =E9 -> 0.4303482587 | D36: =H9 -> 0.5460122699 | E36: =K9 -> 0.4389027431 | F36: =N9 -> 0.3325635104 | G36: =Q9 -> 0.311627907

Sheet Inscritos x Adms Plan
A1: INDICE
A2: INSCRITOS DE PRIMER INGRESO / ADMITIDOS
A3: DIV | B3: PLAN DE ESTUDIO | C3: 2011 | F3: 2012 | I3: 2013 | L3: 2014 | O3: 2015
C4: P | D4: O | E4: Total | F4: P | G4: O | H4: Total | I4: P | J4: O | K4: Total | L4: P | M4: O | N4: Total | O4: P | P4: O | Q4: Total
A5: CBI | B5: Ingeniería en Recursos Hídricos | C5: ='Inscritos Plan Trimestre'!C5/'Admitidos Plan Trimestre'!C5 -> 0.7027027027 | D5: ='Inscritos Plan Trimestre'!D5/'Admitidos Plan Trimestre'!D5 -> 0.825 | E5: ='Inscritos Plan Trimestre'!E5/'Admitidos Plan Trimestre'!E5 -> 0.7662337662 | G5: ='Inscritos Plan Trimestre'!G5/'Admitidos Plan Trimestre'!G5 -> 0.9375 | H5: ='Inscritos Plan Trimestre'!H5/'Admitidos Plan Trimestre'!H5 -> 0.9375 | I5: ='Inscritos Plan Trimestre'!I5/'Admitidos Plan Trimestre'!I5 -> 0.7428571429 | J5: ='Inscritos Plan Trimestre'!J5/'Admitidos Plan Trimestre'!J5 -> 0.6842105263 | K5: ='Inscritos Plan Trimestre'!K5/'Admitidos Plan Trimestre'!K5 -> 0.7123287671 | L5: ='Inscritos Plan Trimestre'!L5/'Admitidos Plan Trimestre'!L5 -> 1 | M5: ='Inscritos Plan Trimestre'!M5/'Admitidos Plan Trimestre'!M5 -> 0.8 | N5: ='Inscritos Plan Trimestre'!N5/'Admitidos Plan Trimestre'!N5 -> 0.875 | O5: ='Inscritos Plan Trimestre'!O5/'Admitidos Plan Trimestre'!O5 -> 0.9565217391 | P5: ='Inscritos Plan Trimestre'!P5/'Admitidos Plan Trimestre'!P5 -> 0.8214285714 | Q5: ='Inscritos Plan Trimestre'!Q5/'Admitidos Plan Trimestre'!Q5 -> 0.8607594937
A6: CBS | B6: Biología Ambiental | C6: ='Inscritos Plan Trimestre'!C6/'Admitidos Plan Trimestre'!C6 -> 0.7692307692 | D6: ='Inscritos Plan Trimestre'!D6/'Admitidos Plan Trimestre'!D6 -> 0.6341463415 | E6: ='Inscritos Plan Trimestre'!E6/'Admitidos Plan Trimestre'!E6 -> 0.7 | G6: ='Inscritos Plan Trimestre'!G6/'Admitidos Plan Trimestre'!G6 -> 0.6842105263 | H6: ='Inscritos Plan Trimestre'!H6/'Admitidos Plan Trimestre'!H6 -> 0.6842105263 | I6: ='Inscritos Plan Trimestre'!I6/'Admitidos Plan Trimestre'!I6 -> 0.76 | J6: ='Inscritos Plan Trimestre'!J6/'Admitidos Plan Trimestre'!J6 -> 0.75 | K6: ='Inscritos Plan Trimestre'!K6/'Admitidos Plan Trimestre'!K6 -> 0.7534246575 | L6: ='Inscritos Plan Trimestre'!L6/'Admitidos Plan Trimestre'!L6 -> 0.8571428571 | M6: ='Inscritos Plan Trimestre'!M6/'Admitidos Plan Trimestre'!M6 -> 0.5483870968 | N6: ='Inscritos Plan Trimestre'!N6/'Admitidos Plan Trimestre'!N6 -> 0.7121212121 | O6: ='Inscritos Plan Trimestre'!O6/'Admitidos Plan Trimestre'!O6 -> 0.9736842105 | P6: ='Inscritos Plan Trimestre'!P6/'Admitidos Plan Trimestre'!P6 -> 0.8723404255 | Q6: ='Inscritos Plan Trimestre'!Q6/'Admitidos Plan Trimestre'!Q6 -> 0.9176470588
A7: CSH | B7: Políticas Públicas | C7: ='Inscritos Plan Trimestre'!C7/'Admitidos Plan Trimestre'!C7 -> 0.7631578947 | D7: ='Inscritos Plan Trimestre'!D7/'Admitidos Plan Trimestre'!D7 -> 0.6744186047 | E7: ='Inscritos Plan Trimestre'!E7/'Admitidos Plan Trimestre'!E7 -> 0.7160493827 | G7: ='Inscritos Plan Trimestre'!G7/'Admitidos Plan Trimestre'!G7 -> 0.8918918919 | H7: ='Inscritos Plan Trimestre'!H7/'Admitidos Plan Trimestre'!H7 -> 0.8918918919 | I7: ='Inscritos Plan Trimestre'!I7/'Admitidos Plan Trimestre'!I7 -> 0.8148148148 | J7: ='Inscritos Plan Trimestre'!J7/'Admitidos Plan Trimestre'!J7 -> 0.7435897436 | K7: ='Inscritos Plan Trimestre'!K7/'Admitidos Plan Trimestre'!K7 -> 0.7727272727 | M7: ='Inscritos Plan Trimestre'!M7/'Admitidos Plan Trimestre'!M7 -> 0.75 | N7: ='Inscritos Plan Trimestre'!N7/'Admitidos Plan Trimestre'!N7 -> 0.75 | P7: ='Inscritos Plan Trimestre'!P7/'Admitidos Plan Trimestre'!P7 -> 0.74 | Q7: ='Inscritos Plan Trimestre'!Q7/'Admitidos Plan Trimestre'!Q7 -> 0.74
B8: Arte y Comunicación Digitales | J8: ='Inscritos Plan Trimestre'!J8/'Admitidos Plan Trimestre'!J8 -> 0.8181818182 | K8: ='Inscritos Plan Trimestre'!K8/'Admitidos Plan Trimestre'!K8 -> 0.8181818182 | M8: ='Inscritos Plan Trimestre'!M8/'Admitidos Plan Trimestre'!M8 -> 0.72 | N8: ='Inscritos Plan Trimestre'!N8/'Admitidos Plan Trimestre'!N8 -> 0.72 | P8: ='Inscritos Plan Trimestre'!P8/'Admitidos Plan Trimestre'!P8 -> 0.6923076923 | Q8: ='Inscritos Plan Trimestre'!Q8/'Admitidos Plan Trimestre'!Q8 -> 0.6923076923
B9: Total Unidad | C9: ='Inscritos Plan Trimestre'!C9/'Admitidos Plan Trimestre'!C9 -> 0.7456140351 | D9: ='Inscritos Plan Trimestre'!D9/'Admitidos Plan Trimestre'!D9 -> 0.7096774194 | E9: ='Inscritos Plan Trimestre'!E9/'Admitidos Plan Trimestre'!E9 -> 0.7268907563 | G9: ='Inscritos Plan Trimestre'!G9/'Admitidos Plan Trimestre'!G9 -> 0.8317757009 | H9: ='Inscritos Plan Trimestre'!H9/'Admitidos Plan Trimestre'!H9 -> 0.8317757009 | I9: ='Inscritos Plan Trimestre'!I9/'Admitidos Plan Trimestre'!I9 -> 0.7701149425 | J9: ='Inscritos Plan Trimestre'!J9/'Admitidos Plan Trimestre'!J9 -> 0.7414965986 | K9: ='Inscritos Plan Trimestre'!K9/'Admitidos Plan Trimestre'!K9 -> 0.7521367521 | L9: ='Inscritos Plan Trimestre'!L9/'Admitidos Plan Trimestre'!L9 -> 0.9107142857 | M9: ='Inscritos Plan Trimestre'!M9/'Admitidos Plan Trimestre'!M9 -> 0.7099236641 | N9: ='Inscritos Plan Trimestre'!N9/'Admitidos Plan Trimestre'!N9 -> 0.7700534759 | O9: ='Inscritos Plan Trimestre'!O9/'Admitidos Plan Trimestre'!O9 -> 0.9672131148 | P9: ='Inscritos Plan Trimestre'!P9/'Admitidos Plan Trimestre'!P9 -> 0.7932960894 | Q9: ='Inscritos Plan Trimestre'!Q9/'Admitidos Plan Trimestre'!Q9 -> 0.8375
A11: Total UAM | C11: 4336 | D11: 5356 | E11: 9692 | F11: 3839 | G11: 5564 | H11: 9403 | I11: 4079 | J11: 5779 | K11: 9858 | L11: 4075 | M11: 5798 | N11: 9873 | O11: 3865 | P11: 5984 | Q11: 9849
B12: UAML/UAM | C12: =C9/C11 -> 0.0001719589564 | D12: =D9/D11 -> 0.0001325013852 | E12: 7.499904625e-05 | F12: 0 | G12: 0.0001494923977 | H12: 8.845854524e-05 | I12: 0.0001887999369 | J12: 0.0001283088075 | K12: 7.629709395e-05 | L12: 0.0002234881683 | M12: 0.0001224428534 | N12: 7.799589547e-05 | O12: 0.0002502491888 | P12: 0.0001325695337 | Q12: 8.503401361e-05
A13: La categoría de inscritos de primer ingreso incluye a todos los alumnos admitidos que realizaron la inscripción a su primer al trimestre.
A14: FUENTE: Dirección de Sistemas Escolares.
C16: 2011 | D16: 2012 | E16: 2013 | F16: 2014 | G16: 2015
A17: CBI | B17: IRH | C17: =E5 -> 0.7662337662 | D17: =H5 -> 0.9375 | E17: =K5 -> 0.7123287671 | F17: =N5 -> 0.875 | G17: =Q5 -> 0.8607594937
A18: CBS | B18: BA | C18: =E6 -> 0.7 | D18: =H6 -> 0.6842105263 | E18: =K6 -> 0.7534246575 | F18: =N6 -> 0.7121212121 | G18: =Q6 -> 0.9176470588
A19: CSH | B19: PP | C19: =E7 -> 0.7160493827 | D19: =H7 -> 0.8918918919 | E19: =K7 -> 0.7727272727 | F19: =N7 -> 0.75 | G19: =Q7 -> 0.74
B20: ACD | E20: =K8 -> 0.8181818182 | F20: =N8 -> 0.72 | G20: =Q8 -> 0.6923076923
C35: 2011 | D35: 2012 | E35: 2013 | F35: 2014 | G35: 2015
B36: UAM-L | C36: =E9 -> 0.7268907563 | D36: =H9 -> 0.8317757009 | E36: =K9 -> 0.7521367521 | F36: =N9 -> 0.7700534759 | G36: =Q9 -> 0.8375

Sheet Aspir Admi Incritos
A1: INDICE
A2: RELACIÓN: ASPIRANTES, ADMITIDOS E INCRITOS A 1er INGRESO
C3: 2011 | D3: 2012 | E3: 2013 | F3: 2014 | G3: 2015
B4: Aspirantes | C4: ='Aspirantes plan'!F21 -> 402 | D4: ='Aspirantes plan'!G21 -> 163 | E4: ='Aspirantes plan'!H21 -> 401 | F4: ='Aspirantes plan'!I21 -> 433 | G4: ='Aspirantes plan'!J21 -> 645
B5: Admitidos | C5: ='Admitidos Plan Trimestre'!N17 -> 238 | D5: ='Admitidos Plan Trimestre'!O17 -> 107 | E5: ='Admitidos Plan Trimestre'!P17 -> 234 | F5: ='Admitidos Plan Trimestre'!Q17 -> 187 | G5: ='Admitidos Plan Trimestre'!R17 -> 240
B6: Inscritos 1er Ingreso | C6: ='Inscritos Plan Trimestre'!J16 -> 173 | D6: ='Inscritos Plan Trimestre'!K16 -> 89 | E6: ='Inscritos Plan Trimestre'!L16 -> 176 | F6: ='Inscritos Plan Trimestre'!M16 -> 144 | G6: ='Inscritos Plan Trimestre'!N16 -> 201
D27: Aspirantes | E27: Admitidos | F27: Inscritos 1er Ingreso
A28: CBI | B28: IRH | C28: 2011 | D28: ='Aspirantes plan'!E5 -> 67 | E28: ='Admitidos Plan Trimestre'!E5 -> 77 | F28: ='Inscritos Plan Trimestre'!E5 -> 59
C29: 2012 | D29: ='Aspirantes plan'!H5 -> 33 | E29: ='Admitidos Plan Trimestre'!H5 -> 32 | F29: ='Inscritos Plan Trimestre'!H5 -> 30
C30: 2013 | D30: ='Aspirantes plan'!K5 -> 60 | E30: ='Admitidos Plan Trimestre'!K5 -> 73 | F30: ='Inscritos Plan Trimestre'!K5 -> 52
C31: 2014 | D31: ='Aspirantes plan'!N5 -> 66 | E31: ='Admitidos Plan Trimestre'!N5 -> 56 | F31: ='Inscritos Plan Trimestre'!N5 -> 49
C32: 2015 | D32: ='Aspirantes plan'!Q5 -> 79 | E32: ='Admitidos Plan Trimestre'!Q5 -> 79 | F32: ='Inscritos Plan Trimestre'!Q5 -> 68
A33: CBS | B33: BA | C33: 2011 | D33: ='Aspirantes plan'!E6 -> 167 | E33: ='Admitidos Plan Trimestre'!E6 -> 80 | F33: ='Inscritos Plan Trimestre'!E6 -> 56
C34: 2012 | D34: ='Aspirantes plan'!H6 -> 63 | E34: ='Admitidos Plan Trimestre'!H6 -> 38 | F34: ='Inscritos Plan Trimestre'!H6 -> 26
C35: 2013 | D35: ='Aspirantes plan'!K6 -> 147 | E35: ='Admitidos Plan Trimestre'!K6 -> 73 | F35: ='Inscritos Plan Trimestre'!K6 -> 55
C36: 2014 | D36: ='Aspirantes plan'!N6 -> 82 | E36: ='Admitidos Plan Trimestre'!N6 -> 66 | F36: ='Inscritos Plan Trimestre'!N6 -> 47
C37: 2015 | D37: ='Aspirantes plan'!Q6 -> 171 | E37: ='Admitidos Plan Trimestre'!Q6 -> 85 | F37: ='Inscritos Plan Trimestre'!Q6 -> 78
A38: CSH | B38: PP | C38: 2011 | D38: ='Aspirantes plan'!E7 -> 168 | E38: ='Admitidos Plan Trimestre'!E7 -> 81 | F38: ='Inscritos Plan Trimestre'!E7 -> 58
C39: 2012 | D39: ='Aspirantes plan'!H7 -> 67 | E39: ='Admitidos Plan Trimestre'!H7 -> 37 | F39: ='Inscritos Plan Trimestre'!H7 -> 33
C40: 2013 | D40: ='Aspirantes plan'!K7 -> 109 | E40: ='Admitidos Plan Trimestre'!K7 -> 66 | F40: ='Inscritos Plan Trimestre'!K7 -> 51
C41: 2014 | D41: ='Aspirantes plan'!N7 -> 93 | E41: ='Admitidos Plan Trimestre'!N7 -> 40 | F41: ='Inscritos Plan Trimestre'!N7 -> 30
C42: 2015 | D42: ='Aspirantes plan'!Q7 -> 141 | E42: ='Admitidos Plan Trimestre'!Q7 -> 50 | F42: ='Inscritos Plan Trimestre'!Q7 -> 37
B43: ACD | C43: 2011
C44: 2012
C45: 2013 | D45: ='Aspirantes plan'!K8 -> 85 | E45: ='Admitidos Plan Trimestre'!K8 -> 22 | F45: ='Inscritos Plan Trimestre'!K8 -> 18
C46: 2014 | D46: ='Aspirantes plan'!N8 -> 192 | E46: ='Admitidos Plan Trimestre'!N8 -> 25 | F46: ='Inscritos Plan Trimestre'!N8 -> 18
C47: 2015 | D47: ='Aspirantes plan'!Q8 -> 254 | E47: ='Admitidos Plan Trimestre'!Q8 -> 26 | F47: ='Inscritos Plan Trimestre'!Q8 -> 18

Sheet Inscritos Comp
A1: INDICE
A2: INSCRITOS A LICENCIATURA
C3: 2011 | D3: 2012 | E3: 2013 | F3: 2014 | G3: 2015
A4: LER | B4: Total | C4: 173 | D4: 89 | E4: 176 | F4: 144 | G4: 201
B5: Licenciaturas | C5: 3 | D5: 3 | E5: 4 | F5: 4 | G5: 4
B6: Prom/Lic | C6: =C4/C5 -> 57.66666667 | D6: =D4/D5 -> 29.66666667 | E6: =E4/E5 -> 44 | F6: =F4/F5 -> 36 | G6: =G4/G5 -> 50.25
C8: 2005 | D8: 2006 | E8: 2007 | F8: 2008 | G8: 2009 | H8: 2010
A9: CUA | B9: Total Unidad | C9: 203 | D9: 101 | E9: 316 | F9: 355 | G9: 260 | H9: 319
B10: Licenciaturas | C10: 5 | D10: 4 | E10: 8 | F10: 9 | G10: 9 | H10: 10
B11: Prom/Lic | C11: =C9/C10 -> 40.6 | D11: 25.25 | E11: 39.5 | F11: 39.44444444 | G11: 28.88888889 | H11: 31.9
C12: 2011 | D12: 2012 | E12: 2013 | F12: 2014 | G12: 2015
B13: Total Unidad | C13: 322 | D13: 356 | E13: 361 | F13: 580 | G13: 608
B14: Licenciaturas | C14: 10 | D14: 10 | E14: 10 | F14: 10 | G14: 11
B15: Prom/Lic | C15: =C13/C14 -> 32.2 | D15: =D13/D14 -> 35.6 | E15: =E13/E14 -> 36.1 | F15: =F13/F14 -> 58 | G15: =G13/G14 -> 55.27272727
C17: 2011 | D17: 2012 | E17: 2013 | F17: 2014 | G17: 2015
A18: UAM | B18: Total UAM | C18: 9692 | D18: 9403 | E18: 9858 | F18: 9873 | G18: 9849
B19: Licenciaturas | C19: 76 | D19: 74 | E19: 75 | F19: 75 | G19: 76
B20: Prom/Lic | C20: =C18/C19 -> 127.5263158 | D20: =D18/D19 -> 127.0675676 | E20: =E18/E19 -> 131.44 | F20: =F18/F19 -> 131.64 | G20: =G18/G19 -> 129.5921053
A21: FUENTE: Dirección de Sistemas Escolares.

Sheet Matricula Plan
A1: INDICE
A2: INSCRITOS DE PRIMER INGRESO Y REINSCRITOS POR LICENCIATURA Y TRIMESTRE
A3: DIVISIÓN | B3: PLAN DE ESTUDIO | C3: 2011 | F3: 2012 | I3: 2013 | L3: 2014 | O3: 2015
C4: I | D4: P | E4: O | F4: I | G4: P | H4: O | I4: I | J4: P | K4: O | L4: I | M4: P | N4: O | O4: I | P4: P | Q4: O
A5: CBI | B5: Ingeniería en Recursos Hídricos | D5: 26 | E5: 57 | F5: 50 | G5: 46 | H5: 78 | I5: 72 | J5: 90 | K5: 106 | L5: 89 | M5: 100 | N5: 118 | O5: 99 | P5: 113 | Q5: 146
A6: CBS | B6: Biología Ambiental | D6: 30 | E6: 53 | F6: 46 | G6: 39 | H6: 66 | I6: 59 | J6: 76 | K6: 110 | L6: 98 | M6: 125 | N6: 135 | O6: 127 | P6: 154 | Q6: 175
A7: CSH | B7: Políticas Públicas | D7: 29 | E7: 51 | F7: 45 | G7: 41 | H7: 76 | I7: 69 | J7: 90 | K7: 114 | L7: 113 | M7: 104 | N7: 132 | O7: 125 | P7: 114 | Q7: 128
B8: Arte y Comunicación Digitales | K8: 18 | L8: 15 | M8: 15 | N8: 31 | O8: 29 | P8: 28 | Q8: 46
B9: Total Unidad | D9: 85 | E9: 161 | F9: 141 | G9: 126 | H9: 220 | I9: 200 | J9: 256 | K9: 348 | L9: 315 | M9: 344 | N9: 416 | O9: 380 | P9: 409 | Q9: 495
A11: Total UAM | C11: 37381 | D11: 39436 | E11: 41235 | F11: 38652 | G11: 40425 | H11: 42242 | I11: 39886 | J11: 41530 | K11: 43762 | L11: 39805 | M11: 41649 | N11: 44301 | O11: 40889 | P11: 41926 | Q11: 44712
B12: UAML/UAM | C12: =C9/C11 -> 0 | D12: =D9/D11 -> 0.002155391013 | E12: 0.003904450103 | F12: 0.003647935424 | G12: 0.003116883117 | H12: 0.005208086738 | I12: 0.005014290729 | J12: 0.006164218637 | K12: 0.007952104566 | L12: 0.007913578696 | M12: 0.008259502029 | N12: 0.009390307217 | O12: 0.009293453007 | P12: 0.009755283118 | Q12: 0.01107085346
A13: FUENTE: Dirección de Sistemas Escolares.

Sheet Matricula Div
A1: INDICE
A2: INSCRITOS DE PRIMER INGRESO Y REINSCRITOS POR DIVISIÓN Y TRIMESTRE
A3: DIVISIÓN | B3: 2011 | H3: 2012 | N3: 2013 | T3: 2014 | Z3: 2015
B4: I | D4: P | F4: O | H4: I | J4: P | L4: O | N4: I | P4: P | R4: O | T4: I | V4: P | X4: O | Z4: I | AB4: P | AD4: O
A5: CBI | D5: 26 | E5: =D5/D$8 -> 0.3058823529 | F5: 57 | G5: =F5/F$8 -> 0.3540372671 | H5: 50 | I5: =H5/H$8 -> 0.3546099291 | J5: 46 | K5: =J5/J$8 -> 0.3650793651 | L5: 78 | M5: =L5/L$8 -> 0.3545454545 | N5: 72 | O5: =N5/N$8 -> 0.36 | P5: 90 | Q5: =P5/P$8 -> 0.3515625 | R5: 106 | S5: =R5/R$8 -> 0.3045977011 | T5: 89 | U5: =T5/T$8 -> 0.2825396825 | V5: 100 | W5: =V5/V$8 -> 0.2906976744 | X5: 118 | Y5: =X5/X$8 -> 0.2836538462 | Z5: 99 | AA5: =Z5/Z$8 -> 0.2605263158 | AB5: 113 | AC5: =AB5/AB$8 -> 0.2762836186 | AD5: 146 | AE5: =AD5/AD$8 -> 0.2949494949
A6: CBS | D6: 30 | E6: =D6/D$8 -> 0.3529411765 | F6: 53 | G6: =F6/F$8 -> 0.3291925466 | H6: 46 | I6: =H6/H$8 -> 0.3262411348 | J6: 39 | K6: =J6/J$8 -> 0.3095238095 | L6: 66 | M6: =L6/L$8 -> 0.3 | N6: 59 | O6: =N6/N$8 -> 0.295 | P6: 76 | Q6: =P6/P$8 -> 0.296875 | R6: 110 | S6: =R6/R$8 -> 0.316091954 | T6: 98 | U6: =T6/T$8 -> 0.3111111111 | V6: 125 | W6: =V6/V$8 -> 0.363372093 | X6: 135 | Y6: =X6/X$8 -> 0.3245192308 | Z6: 127 | AA6: =Z6/Z$8 -> 0.3342105263 | AB6: 154 | AC6: =AB6/AB$8 -> 0.3765281174 | AD6: 175 | AE6: =AD6/AD$8 -> 0.3535353535
A7: CSH | D7: 29 | E7: =D7/D$8 -> 0.3411764706 | F7: 51 | G7: =F7/F$8 -> 0.3167701863 | H7: 45 | I7: =H7/H$8 -> 0.3191489362 | J7: 41 | K7: =J7/J$8 -> 0.3253968254 | L7: 76 | M7: =L7/L$8 -> 0.3454545455 | N7: 69 | O7: =N7/N$8 -> 0.345 | P7: 90 | Q7: =P7/P$8 -> 0.3515625 | R7: 132 | S7: =R7/R$8 -> 0.3793103448 | T7: 128 | U7: =T7/T$8 -> 0.4063492063 | V7: 119 | W7: =V7/V$8 -> 0.3459302326 | X7: 163 | Y7: =X7/X$8 -> 0.3918269231 | Z7: 154 | AA7: =Z7/Z$8 -> 0.4052631579 | AB7: 142 | AC7: =AB7/AB$8 -> 0.3471882641 | AD7: 174 | AE7: =AD7/AD$8 -> 0.3515151515
A8: TOTAL | D8: 85 | E8: =D8/D$8 -> 1 | F8: 161 | G8: =F8/F$8 -> 1 | H8: 141 | I8: =H8/H$8 -> 1 | J8: 126 | K8: =J8/J$8 -> 1 | L8: 220 | M8: =L8/L$8 -> 1 | N8: 200 | O8: =N8/N$8 -> 1 | P8: 256 | Q8: =P8/P$8 -> 1 | R8: 348 | S8: =R8/R$8 -> 1 | T8: 315 | U8: =T8/T$8 -> 1 | V8: 344 | W8: =V8/V$8 -> 1 | X8: 416 | Y8: =X8/X$8 -> 1 | Z8: 380 | AA8: =Z8/Z$8 -> 1 | AB8: 409 | AC8: =AB8/AB$8 -> 1 | AD8: 495 | AE8: =AD8/AD$8 -> 1
A9: FUENTE: Dirección de Sistemas Escolares.
A12: DIVISIÓN | B12: 2011 | H12: 2012 | N12: 2013 | T12: 2014 | Z12: 2015
B13: I | D13: P | F13: O | H13: I | J13: P | L13: O | N13: I | P13: P | R13: O | T13: I | V13: P | X13: O | Z13: I | AB13: P | AD13: O
A14: CBI | D14: =D5 -> 26 | F14: =F5 -> 57 | H14: =H5 -> 50 | J14: =J5 -> 46 | L14: =L5 -> 78 | N14: =N5 -> 72 | P14: =P5 -> 90 | R14: =R5 -> 106 | T14: =T5 -> 89 | V14: =V5 -> 100 | X14: =X5 -> 118 | Z14: =Z5 -> 99 | AB14: =AB5 -> 113 | AD14: =AD5 -> 146
A15: CBS | D15: =D6 -> 30 | F15: =F6 -> 53 | H15: =H6 -> 46 | J15: =J6 -> 39 | L15: =L6 -> 66 | N15: =N6 -> 59 | P15: =P6 -> 76 | R15: =R6 -> 110 | T15: =T6 -> 98 | V15: =V6 -> 125 | X15: =X6 -> 135 | Z15: =Z6 -> 127 | AB15: =AB6 -> 154 | AD15: =AD6 -> 175
A16: CSH | D16: =D7 -> 29 | F16: =F7 -> 51 | H16: =H7 -> 45 | J16: =J7 -> 41 | L16: =L7 -> 76 | N16: =N7 -> 69 | P16: =P7 -> 90 | R16: =R7 -> 132 | T16: =T7 -> 128 | V16: =V7 -> 119 | X16: =X7 -> 163 | Z16: =Z7 -> 154 | AB16: =AB7 -> 142 | AD16: =AD7 -> 174
A17: TOTAL | D17: =D8 -> 85 | F17: =F8 -> 161 | H17: =H8 -> 141 | J17: =J8 -> 126 | L17: =L8 -> 220 | N17: =N8 -> 200 | P17: =P8 -> 256 | R17: =R8 -> 348 | T17: =T8 -> 315 | V17: =V8 -> 344 | X17: =X8 -> 416 | Z17: =Z8 -> 380 | AB17: =AB8 -> 409 | AD17: =AD8 -> 495

Sheet Matricula Gen
A1: INDICE
A2: INSCRITAS E INSCRITOS DE PRIMER INGRESO Y REINSCRITOS POR LICENCIATURA Y TRIMESTRE
A3: DIVISIÓN | B3: PLAN DE ESTUDIO | C3: 2011 | F3: 2012 | I3: 2013 | L3: 2014 | O3: 2015
C4: I | D4: P | E4: O | F4: I | G4: P | H4: O | I4: I | J4: P | K4: O | L4: I | M4: P | N4: O | O4: I | P4: P | Q4: O
A5: CBI | B5: Ingeniería en Recursos Hídricos | D5: 26 | E5: 57 | F5: 50 | G5: 46 | H5: 78 | I5: 72 | J5: 90 | K5: 106 | L5: 89 | M5: 100 | N5: 118 | O5: 99 | P5: 113 | Q5: 146
A6: CBS | B6: Biología Ambiental | D6: 30 | E6: 53 | F6: 46 | G6: 39 | H6: 66 | I6: 59 | J6: 76 | K6: 110 | L6: 98 | M6: 125 | N6: 135 | O6: 127 | P6: 154 | Q6: 175
A7: CSH | B7: Políticas Públicas | D7: 29 | E7: 51 | F7: 45 | G7: 41 | H7: 76 | I7: 69 | J7: 90 | K7: 114 | L7: 113 | M7: 104 | N7: 132 | O7: 125 | P7: 114 | Q7: 128
B8: Arte y Comunicación Digitales | K8: 18 | L8: 15 | M8: 15 | N8: 31 | O8: 29 | P8: 28 | Q8: 46
A9: Total Unidad | D9: 85 | E9: 161 | F9: 141 | G9: 126 | H9: 220 | I9: 200 | J9: 256 | K9: 348 | L9: 315 | M9: 344 | N9: 416 | O9: 380 | P9: 409 | Q9: 495
A12: INSCRITAS DE PRIMER INGRESO Y REINSCRITOS POR LICENCIATURA Y TRIMESTRE
A13: DIVISIÓN | B13: PLAN DE ESTUDIO | C13: 2011 | F13: 2012 | I13: 2013 | L13: 2014 | O13: 2015
C14: I | D14: P | E14: O | F14: I | G14: P | H14: O | I14: I | J14: P | K14: O | L14: I | M14: P | N14: O | O14: I | P14: P | Q14: O
A15: CBI | B15: Ingeniería en Recursos Hídricos | C15: 0 | D15: 9 | E15: 19 | F15: 17 | G15: 15 | H15: 30 | I15: 29 | J15: 35 | K15: 45 | L15: 36 | M15: 41 | N15: 52 | O15: 41 | P15: 46 | Q15: 63
A16: CBS | B16: Biología Ambiental | C16: 0 | D16: 20 | E16: 37 | F16: 31 | G16: 27 | H16: 43 | I16: 39 | J16: 50 | K16: 75 | L16: 68 | M16: 85 | N16: 93 | O16: 86 | P16: 102 | Q16: 113
A17: CSH | B17: Políticas Públicas | C17: 0 | D17: 16 | E17: 29 | F17: 26 | G17: 26 | H17: 42 | I17: 38 | J17: 46 | K17: 63 | L17: 64 | M17: 60 | N17: 73 | O17: 71 | P17: 66 | Q17: 73
B18: Arte y Comunicación Digitales | C18: 0 | D18: 0 | E18: 0 | F18: 0 | G18: 0 | H18: 0 | I18: 0 | J18: 0 | K18: 9 | L18: 7 | M18: 7 | N18: 14 | O18: 11 | P18: 13 | Q18: 22
A19: Total Unidad | C19: =SUM(C15:C18) -> 0 | D19: 45 | E19: 85 | F19: 74 | G19: 68 | H19: 115 | I19: 106 | J19: 131 | K19: 192 | L19: 175 | M19: 193 | N19: 232 | O19: =SUM(O15:O18) -> 209 | P19: =SUM(P15:P18) -> 227 | Q19: =SUM(Q15:Q18) -> 271
A20: FUENTE: Dirección de Sistemas Escolares.
A21: INSCRITOS DE PRIMER INGRESO Y REINSCRITOS POR LICENCIATURA Y TRIMESTRE
A22: DIVISIÓN | B22: PLAN DE ESTUDIO | C22: 2011 | F22: 2012 | I22: 2013 | L22: 2014 | O22: 2015
C23: I | D23: P | E23: O | F23: I | G23: P | H23: O | I23: I | J23: P | K23: O | L23: I | M23: P | N23: O | O23: I | P23: P | Q23: O
A24: CBI | B24: Ingeniería en Recursos Hídricos | C24: =C5-C15 -> 0 | D24: =D5-D15 -> 17 | E24: 38 | F24: 33 | G24: 31 | H24: 48 | I24: 43 | J24: 55 | K24: 61 | L24: 53 | M24: 59 | N24: 66 | O24: 58 | P24: 67 | Q24: 83
A25: CBS | B25: Biología Ambiental | C25: =C6-C16 -> 0 | D25: 10 | E25: =E6-E16 -> 16 | F25: 15 | G25: 12 | H25: 23 | I25: 20 | J25: 26 | K25: 35 | L25: 30 | M25: 40 | N25: 42 | O25: 41 | P25: 52 | Q25: 62
A26: CSH | B26: Políticas Públicas | C26: =C7-C17 -> 0 | D26: 13 | E26: 22 | F26: 19 | G26: 15 | H26: 34 | I26: 31 | J26: 44 | K26: 51 | L26: 49 | M26: 44 | N26: 59 | O26: 54 | P26: 48 | Q26: 55
B27: Arte y Comunicación Digitales | C27: =C8-C18 -> 0 | D27: 0 | E27: 0 | F27: 0 | G27: 0 | H27: 0 | I27: 0 | J27: 0 | K27: 9 | L27: 8 | M27: 8 | N27: 17 | O27: 18 | P27: 15 | Q27: 24
B28: Total Unidad | C28: =SUM(C24:C27) -> 0 | D28: 40 | E28: 76 | F28: 67 | G28: 58 | H28: 105 | I28: 94 | J28: 125 | K28: 156 | L28: 140 | M28: 151 | N28: 184 | O28: =SUM(O24:O27) -> 171 | P28: =SUM(P24:P27) -> 182 | Q28: =SUM(Q24:Q27) -> 224
A29: FUENTE: Dirección de Sistemas Escolares.
A30: % INSCRITAS DE PRIMER INGRESO Y REINSCRITAS POR LICENCIATURA Y TRIMESTRE
A31: DIVISIÓN | B31: PLAN DE ESTUDIO | C31: 2011 | F31: 2012 | I31: 2013 | L31: 2014 | O31: 2015
C32: I | D32: P | E32: O | F32: I | G32: P | H32: O | I32: I | J32: P | K32: O | L32: I | M32: P | N32: O | O32: I | P32: P | Q32: O
A33: CBI | B33: Ingeniería en Recursos Hídricos | D33: =D15/D5 -> 0.3461538462 | E33: 0.3333333333 | F33: 0.34 | G33: 0.3260869565 | H33: 0.3846153846 | I33: 0.4027777778 | J33: 0.3888888889 | K33: 0.4245283019 | L33: 0.404494382 | M33: 0.41 | N33: 0.4406779661 | O33: 0.4141414141 | P33: 0.407079646 | Q33: 0.4315068493
A34: CBS | B34: Biología Ambiental | D34: =D16/D6 -> 0.6666666667 | E34: 0.6981132075 | F34: 0.6739130435 | G34: 0.6923076923 | H34: 0.6515151515 | I34: 0.6610169492 | J34: 0.6578947368 | K34: 0.6818181818 | L34: 0.693877551 | M34: 0.68 | N34: 0.6888888889 | O34: 0.6771653543 | P34: 0.6623376623 | Q34: 0.6457142857
A35: CSH | B35: Políticas Públicas | D35: 0.5517241379 | E35: 0.568627451 | F35: 0.5777777778 | G35: 0.6341463415 | H35: 0.5526315789 | I35: 0.5507246377 | J35: 0.5111111111 | K35: 0.5526315789 | L35: 0.5663716814 | M35: 0.5769230769 | N35: 0.553030303 | O35: 0.568 | P35: 0.5789473684 | Q35: 0.5703125
B36: Arte y Comunicación Digitales | K36: 0.5 | L36: 0.4666666667 | M36: 0.4666666667 | N36: 0.4516129032 | O36: 0.3793103448 | P36: 0.4642857143 | Q36: 0.4782608696
B37: Total Unidad | D37: 0.5294117647 | E37: 0.5279503106 | F37: 0.524822695 | G37: 0.5396825397 | H37: 0.5227272727 | I37: 0.53 | J37: 0.51171875 | K37: 0.5517241379 | L37: 0.5555555556 | M37: 0.5610465116 | N37: 0.5576923077 | O37: 0.55 | P37: 0.5550122249 | Q37: 0.5474747475
A38: FUENTE: Dirección de Sistemas Escolares.

Sheet Matricula Comp
A1: INDICE
A2: INSCRITOS DE PRIMER INGRESO Y REINSCRITOS (promedio I-P-O)
C3: 2011 | D3: 2012 | E3: 2013 | F3: 2014 | G3: 2015
A4: LER | B4: Total | C4: 82 | D4: 162.3333333 | E4: 268 | F4: 358.3333333 | G4: 428
B5: Licenciaturas | C5: 3 | D5: 3 | E5: 4 | F5: 4 | G5: 4
B6: Prom/Lic | C6: =C4/C5 -> 27.33333333 | D6: =D4/D5 -> 54.11111111 | E6: =E4/E5 -> 67 | F6: =F4/F5 -> 89.58333333 | G6: =G4/G5 -> 107
C8: 2005 | D8: 2006 | E8: 2007 | F8: 2008 | G8: 2009 | H8: 2010
A9: CUA | B9: Total Unidad | C9: 203 | D9: 205 | E9: 339 | F9: 604 | G9: 826.3333333 | H9: 934
B10: Licenciaturas | C10: 5 | D10: 4 | E10: 8 | F10: 9 | G10: 9 | H10: 10
B11: Prom/Lic | C11: =C9/C10 -> 40.6 | D11: 51.25 | E11: 42.375 | F11: 67.11111111 | G11: 91.81481481 | H11: 93.4
C12: 2011 | D12: 2012 | E12: 2013 | F12: 2014 | G12: 2015
B13: Total Unidad | C13: 1078.333333 | D13: 1190.333333 | E13: 1308 | F13: 1516.333333 | G13: 1792.666667
B14: Licenciaturas | C14: 10 | D14: 10 | E14: 10 | F14: 10 | G14: 11
B15: Prom/Lic | C15: =C13/C14 -> 107.8333333 | D15: =D13/D14 -> 119.0333333 | E15: =E13/E14 -> 130.8 | F15: =F13/F14 -> 151.6333333 | G15: =G13/G14 -> 162.969697
C17: 2011 | D17: 2012 | E17: 2013 | F17: 2014 | G17: 2015
A18: UAM | B18: Total UAM | C18: 39350.66667 | D18: 40439.66667 | E18: 41726 | F18: 41918.33333 | G18: 42509
B19: Licenciaturas | C19: 76 | D19: 74 | E19: 75 | F19: 75 | G19: 76
B20: Prom/Lic | C20: =C18/C19 -> 517.7719298 | D20: =D18/D19 -> 546.481982 | E20: =E18/E19 -> 556.3466667 | F20: =F18/F19 -> 558.9111111 | G20: =G18/G19 -> 559.3289474
A21: FUENTE: Dirección de Sistemas Escolares.

Sheet Activos Plan
A1: INDICE
A2: ALUMNAS Y ALUMNOS QUE REGISTRARON ACTIVIDAD ACADÉMICA A NIVEL LICENCIATURA
A3: DIVISIÓN | B3: PLAN DE ESTUDIO | C3: 2011 | D3: 2012 | E3: 2013 | F3: 2014 | G3: 2015
A4: CBI | B4: Ingeniería en Recursos Hídricos | C4: 60 | D4: 79 | E4: 123 | F4: 139 | G4: 173
A5: CBS | B5: Biología Ambiental | C5: 55 | D5: 69 | E5: 116 | F5: 147 | G5: 208
A6: CSH | B6: Políticas Públicas | C6: 58 | D6: 80 | E6: 120 | F6: 140 | G6: 163
B7: Arte y Comunicación Digitales | E7: 18 | F7: 32 | G7: 50
B8: Total Unidad | C8: =SUM(C4:C7) -> 173 | D8: =SUM(D4:D7) -> 228 | E8: =SUM(E4:E7) -> 377 | F8: =SUM(F4:F7) -> 458 | G8: =SUM(G4:G7) -> 594
A10: Total UAM | C10: 49508 | D10: 50598 | E10: 52459 | F10: 52898 | G10: 53374
B11: UAML/UAM | C11: =C8/C10 -> 0.003494384746 | D11: =D8/D10 -> 0.004506106961 | E11: =E8/E10 -> 0.007186564746 | F11: =F8/F10 -> 0.008658172332 | G11: =G8/G10 -> 0.01112901413
A13: Los alumnos que registraron actividad académica son aquellos que se inscribieron al menos una vez en el año de referencia.
A14: FUENTE: Dirección de Sistemas Escolares.
A16: ALUMNAS REGISTRARON ACTIVIDAD ACADÉMICA A NIVEL LICENCIATURA
A17: DIVISIÓN | B17: PLAN DE ESTUDIO | C17: 2011 | D17: 2012 | E17: 2013 | F17: 2014 | G17: 2015
A18: CBI | B18: Ingeniería en Recursos Hídricos | C18: 20 | D18: 30 | E18: 49 | F18: 60 | G18: 75
A19: CBS | B19: Biología Ambiental | C19: 39 | D19: 44 | E19: 79 | F19: 100 | G19: 143
A20: CSH | B20: Políticas Públicas | C20: 35 | D20: 42 | E20: 65 | F20: 77 | G20: 96
B21: Arte y Comunicación Digitales | C21: 0 | D21: 0 | E21: 9 | F21: 15 | G21: 23
B22: Total Unidad | C22: =SUM(C18:C21) -> 94 | D22: =SUM(D18:D21) -> 116 | E22: =SUM(E18:E21) -> 202 | F22: =SUM(F18:F21) -> 252 | G22: =SUM(G18:G21) -> 337
A24: ALUMNOS REGISTRARON ACTIVIDAD ACADÉMICA A NIVEL LICENCIATURA
A25: DIVISIÓN | B25: PLAN DE ESTUDIO | C25: 2011 | D25: 2012 | E25: 2013 | F25: 2014 | G25: 2015
A26: CBI | B26: Ingeniería en Recursos Hídricos | C26: =C4-C18 -> 40 | D26: 49 | E26: 74 | F26: 79 | G26: =G4-G18 -> 98
A27: CBS | B27: Biología Ambiental | C27: 16 | D27: 25 | E27: 37 | F27: 47 | G27: 65
A28: CSH | B28: Políticas Públicas | C28: 23 | D28: 38 | E28: 55 | F28: 63 | G28: 67
B29: Arte y Comunicación Digitales | C29: 0 | D29: 0 | E29: 9 | F29: 17 | G29: 27
B30: Total Unidad | C30: =SUM(C26:C29) -> 79 | D30: =SUM(D26:D29) -> 112 | E30: =SUM(E26:E29) -> 175 | F30: =SUM(F26:F29) -> 206 | G30: =SUM(G26:G29) -> 257
A32: ALUMNAS REGISTRARON ACTIVIDAD ACADÉMICA A NIVEL LICENCIATURA
A33: DIVISIÓN | B33: PLAN DE ESTUDIO | C33: 2011 | D33: 2012 | E33: 2013 | F33: 2014 | G33: 2015
A34: CBI | B34: Ingeniería en Recursos Hídricos | C34: =C18/C4 -> 0.3333333333 | D34: 0.3797468354 | E34: 0.3983739837 | F34: 0.4316546763 | G34: =G18/G4 -> 0.4335260116
A35: CBS | B35: Biología Ambiental | C35: 0.7090909091 | D35: 0.6376811594 | E35: 0.6810344828 | F35: 0.6802721088 | G35: 0.6875
A36: CSH | B36: Políticas Públicas | C36: 0.6034482759 | D36: 0.525 | E36: 0.5416666667 | F36: 0.55 | G36: 0.5889570552
B37: Arte y Comunicación Digitales | E37: =E21/E7 -> 0.5 | F37: =F21/F7 -> 0.46875 | G37: =G21/G7 -> 0.46
B38: Total Unidad | C38: =C22/C8 -> 0.5433526012 | D38: =D22/D8 -> 0.5087719298 | E38: =E22/E8 -> 0.5358090186 | F38: =F22/F8 -> 0.5502183406 | G38: =G22/G8 -> 0.5673400673

Sheet Activos Div
A1: INDICE
A2: ALUMNOS QUE REGISTRARON ACTIVIDAD ACADÉMICA A NIVEL LICENCIATURA
A3: DIVISIÓN | B3: 2011 | D3: 2012 | F3: 2013 | H3: 2014 | J3: 2015
A4: CBI | B4: 60 | C4: =B4/B$7 -> 0.3468208092 | D4: 79 | E4: =D4/D$7 -> 0.3464912281 | F4: 123 | G4: =F4/F$7 -> 0.3262599469 | H4: 139 | I4: =H4/H$7 -> 0.3034934498 | J4: 173 | K4: =J4/J$7 -> 0.2912457912
A5: CBS | B5: 55 | C5: =B5/B$7 -> 0.3179190751 | D5: 69 | E5: =D5/D$7 -> 0.3026315789 | F5: 116 | G5: =F5/F$7 -> 0.3076923077 | H5: 147 | I5: =H5/H$7 -> 0.3209606987 | J5: 208 | K5: =J5/J$7 -> 0.3501683502
A6: CSH | B6: 58 | C6: =B6/B$7 -> 0.3352601156 | D6: 80 | E6: =D6/D$7 -> 0.350877193 | F6: 138 | G6: =F6/F$7 -> 0.3660477454 | H6: 172 | I6: =H6/H$7 -> 0.3755458515 | J6: 213 | K6: =J6/J$7 -> 0.3585858586
A7: TOTAL | B7: 173 | C7: =B7/B$7 -> 1 | D7: 228 | E7: =D7/D$7 -> 1 | F7: 377 | G7: =F7/F$7 -> 1 | H7: 458 | I7: =H7/H$7 -> 1 | J7: 594 | K7: =J7/J$7 -> 1
A8: La categoria alumnos que registraron actividad académica durante el año esta compuesta por lo alumnos que se inscribieron al menos una vez en el año de referencia
A9: FUENTE: Dirección de Sistemas Escolares.
A13: DIVISIÓN | B13: 2011 | C13: 2012 | D13: 2013 | E13: 2014 | F13: 2015
A14: CBI | B14: 60 | C14: 79 | D14: 123 | E14: 139 | F14: 173
A15: CBS | B15: 55 | C15: 69 | D15: 116 | E15: 147 | F15: 208
A16: CSH | B16: 58 | C16: 80 | D16: 138 | E16: 172 | F16: 213
A17: TOTAL | B17: 173 | C17: 228 | D17: 377 | E17: 458 | F17: 594

Sheet Activos Gen
A1: INDICE
A2: ALUMNAS Y ALUMNOS QUE REGISTRARON ACTIVIDAD ACADÉMICA A NIVEL LICENCIATURA
A3: DIVISIÓN | B3: PLAN DE ESTUDIO | C3: 2011 | D3: 2012 | E3: 2013 | F3: 2014 | G3: 2015
A4: CBI | B4: Ingeniería en Recursos Hídricos | C4: ='Activos Plan'!C4 -> 60 | D4: ='Activos Plan'!D4 -> 79 | E4: ='Activos Plan'!E4 -> 123 | F4: ='Activos Plan'!F4 -> 139 | G4: ='Activos Plan'!G4 -> 173
A5: CBS | B5: Biología Ambiental | C5: ='Activos Plan'!C5 -> 55 | D5: ='Activos Plan'!D5 -> 69 | E5: ='Activos Plan'!E5 -> 116 | F5: ='Activos Plan'!F5 -> 147 | G5: ='Activos Plan'!G5 -> 208
A6: CSH | B6: Políticas Públicas | C6: ='Activos Plan'!C6 -> 58 | D6: ='Activos Plan'!D6 -> 80 | E6: ='Activos Plan'!E6 -> 120 | F6: ='Activos Plan'!F6 -> 140 | G6: ='Activos Plan'!G6 -> 163
B7: Arte y Comunicación Digitales | C7: ='Activos Plan'!C7 -> 0 | D7: ='Activos Plan'!D7 -> 0 | E7: ='Activos Plan'!E7 -> 18 | F7: ='Activos Plan'!F7 -> 32 | G7: ='Activos Plan'!G7 -> 50
B8: Total Unidad | C8: =SUM(C4:C7) -> 173 | D8: =SUM(D4:D7) -> 228 | E8: =SUM(E4:E7) -> 377 | F8: =SUM(F4:F7) -> 458 | G8: =SUM(G4:G7) -> 594
A9: Fuente: Coordinación de Sistemas Escolares UAM Lerma
A10: ALUMNAS QUE REGISTRARON ACTIVIDAD ACADÉMICA A NIVEL LICENCIATURA
A11: DIVISIÓN | B11: PLAN DE ESTUDIO | C11: 2011 | D11: 2012 | E11: 2013 | F11: 2014 | G11: 2015
A12: CBI | B12: Ingeniería en Recursos Hídricos | C12: 20 | D12: 30 | E12: 49 | F12: 60 | G12: 75
A13: CBS | B13: Biología Ambiental | C13: 39 | D13: 44 | E13: 79 | F13: 100 | G13: 143
A14: CSH | B14: Políticas Públicas | C14: 35 | D14: 42 | E14: 65 | F14: 77 | G14: 96
B15: Arte y Comunicación Digitales | C15: ='Activos Plan'!C15 -> 0 | D15: ='Activos Plan'!D15 -> 0 | E15: 9 | F15: 15 | G15: 23
B16: Total Unidad | C16: =SUM(C12:C15) -> 94 | D16: =SUM(D12:D15) -> 116 | E16: =SUM(E12:E15) -> 202 | F16: =SUM(F12:F15) -> 252 | G16: =SUM(G12:G15) -> 337
A17: Fuente: Coordinación de Sistemas Escolares UAM Lerma
A18: ALUMNOS QUE REGISTRARON ACTIVIDAD ACADÉMICA A NIVEL LICENCIATURA
A19: DIVISIÓN | B19: PLAN DE ESTUDIO | C19: 2011 | D19: 2012 | E19: 2013 | F19: 2014 | G19: 2015
A20: CBI | B20: Ingeniería en Recursos Hídricos | C20: =C4-C12 -> 40 | D20: 49 | E20: 74 | F20: =F4-F12 -> 79 | G20: =G4-G12 -> 98
A21: CBS | B21: Biología Ambiental | C21: 16 | D21: 25 | E21: 37 | F21: 47 | G21: 65
A22: CSH | B22: Políticas Públicas | C22: 23 | D22: 38 | E22: 55 | F22: 63 | G22: 67
B23: Arte y Comunicación Digitales | C23: 0 | D23: 0 | E23: 9 | F23: 17 | G23: 27
B24: Total Unidad | C24: =SUM(C20:C23) -> 79 | D24: =SUM(D20:D23) -> 112 | E24: =SUM(E20:E23) -> 175 | F24: =SUM(F20:F23) -> 206 | G24: =SUM(G20:G23) -> 257
A25: Fuente: Coordinación de Sistemas Escolares UAM Lerma
A26: ALUMNAS QUE REGISTRARON ACTIVIDAD ACADÉMICA A NIVEL LICENCIATURA
A27: DIVISIÓN | B27: PLAN DE ESTUDIO | C27: 2011 | D27: 2012 | E27: 2013 | F27: 2014 | G27: 2015
A28: CBI | B28: Ingeniería en Recursos Hídricos | C28: =C12/C4 -> 0.3333333333 | D28: 0.3797468354 | E28: 0.3983739837 | F28: =F12/F4 -> 0.4316546763 | G28: =G12/G4 -> 0.4335260116
A29: CBS | B29: Biología Ambiental | C29: 0.7090909091 | D29: 0.6376811594 | E29: 0.6810344828 | F29: 0.6802721088 | G29: 0.6875
A30: CSH | B30: Políticas Públicas | C30: 0.6034482759 | D30: 0.525 | E30: 0.5416666667 | F30: 0.55 | G30: 0.5889570552
B31: Arte y Comunicación Digitales | E31: =E15/E7 -> 0.5 | F31: =F15/F7 -> 0.46875 | G31: =G15/G7 -> 0.46
B32: Total Unidad | C32: =C16/C8 -> 0.5433526012 | D32: =D16/D8 -> 0.5087719298 | E32: =E16/E8 -> 0.5358090186 | F32: =F16/F8 -> 0.5502183406 | G32: =G16/G8 -> 0.5673400673
A33: Fuente: Coordinación de Sistemas Escolares UAM Lerma

Sheet Activos Comp
A1: INDICE
A2: ALUMNOS QUE REGISTRARON ACTIVIDAD ACADÉMICA A NIVEL LICENCIATURA
C3: 2011 | D3: 2012 | E3: 2013 | F3: 2014 | G3: 2015
A4: LER | B4: Total | C4: 173 | D4: 228 | E4: 377 | F4: 458 | G4: 594
B5: Licenciaturas | C5: 3 | D5: 3 | E5: 4 | F5: 4 | G5: 4
B6: Prom/Lic | C6: =C4/C5 -> 57.66666667 | D6: =D4/D5 -> 76 | E6: =E4/E5 -> 94.25 | F6: =F4/F5 -> 114.5 | G6: =G4/G5 -> 148.5
C8: 2005 | D8: 2006 | E8: 2007 | F8: 2008 | G8: 2009 | H8: 2010
A9: CUA | B9: Total Unidad | C9: 203 | D9: 287 | E9: 562 | F9: 871 | G9: 1054 | H9: 1205
B10: Licenciaturas | C10: 5 | D10: 4 | E10: 8 | F10: 9 | G10: 9 | H10: 10
B11: Prom/Lic | C11: =C9/C10 -> 40.6 | D11: 71.75 | E11: 70.25 | F11: 96.77777778 | G11: 117.1111111 | H11: 120.5
C12: 2011 | D12: 2012 | E12: 2013 | F12: 2014 | G12: 2015
B13: Total Unidad | C13: 1388 | D13: 1528 | E13: 1654 | F13: 2009 | G13: 2326 | K13: =G4/G13 -> 0.2553740327
B14: Licenciaturas | C14: 10 | D14: 10 | E14: 10 | F14: 10 | G14: 11
B15: Prom/Lic | C15: =C13/C14 -> 138.8 | D15: =D13/D14 -> 152.8 | E15: =E13/E14 -> 165.4 | F15: =F13/F14 -> 200.9 | G15: =G13/G14 -> 211.4545455
C17: 2011 | D17: 2012 | E17: 2013 | F17: 2014 | G17: 2015
A18: UAM | B18: Total UAM | C18: 49508 | D18: 50928 | E18: 52459 | F18: 52898 | G18: 53374
B19: Licenciaturas | C19: 76 | D19: 74 | E19: 75 | F19: 75 | G19: 76
B20: Prom/Lic | C20: =C18/C19 -> 651.4210526 | D20: =D18/D19 -> 688.2162162 | E20: =E18/E19 -> 699.4533333 | F20: =F18/F19 -> 705.3066667 | G20: =G18/G19 -> 702.2894737
A21: La categoria alumnos que registraron actividad académica durante el año esta compuesta por lo alumnos que se inscribieron al menos una vez en el año de referencia
A22: FUENTE: Dirección de Sistemas Escolares.

Sheet Bajas
A1: INDICE
A2: BAJAS DEFINITIVAS DE ALUMNOS DE LICENCIATURA (y % de als activos)
A3: DIVISIÓN | B3: 2011 | D3: 2012 | F3: 2013 | H3: 2014 | J3: 2015
A4: CBI | B4: 0 | C4: =B4/'Activos Div'!B4 -> 0 | D4: 0 | E4: =D4/'Activos Div'!D4 -> 0 | F4: 4 | G4: =F4/'Activos Div'!F4 -> 0.0325203252 | H4: 11 | I4: =H4/'Activos Div'!H4 -> 0.07913669065 | J4: 11 | K4: =J4/'Activos Div'!J4 -> 0.06358381503
A5: CBS | B5: 1 | C5: =B5/'Activos Div'!B5 -> 0.01818181818 | D5: 2 | E5: =D5/'Activos Div'!D5 -> 0.02898550725 | F5: 4 | G5: =F5/'Activos Div'!F5 -> 0.03448275862 | H5: 1 | I5: =H5/'Activos Div'!H5 -> 0.006802721088 | J5: 0 | K5: =J5/'Activos Div'!J5 -> 0
A6: CSH | B6: 0 | C6: =B6/'Activos Div'!B6 -> 0 | D6: 0 | E6: =D6/'Activos Div'!D6 -> 0 | F6: 1 | G6: =F6/'Activos Div'!F6 -> 0.007246376812 | H6: 2 | I6: =H6/'Activos Div'!H6 -> 0.01162790698 | J6: 5 | K6: =J6/'Activos Div'!J6 -> 0.0234741784
A7: TOTAL | B7: =SUM(B4:B6) -> 1 | C7: =B7/'Activos Div'!B7 -> 0.005780346821 | D7: =SUM(D4:D6) -> 2 | E7: =D7/'Activos Div'!D7 -> 0.008771929825 | F7: =SUM(F4:F6) -> 9 | G7: =F7/'Activos Div'!F7 -> 0.02387267905 | H7: =SUM(H4:H6) -> 14 | I7: =H7/'Activos Div'!H7 -> 0.03056768559 | J7: =SUM(J4:J6) -> 16 | K7: =J7/'Activos Div'!J7 -> 0.02693602694
A8: Baja definitiva: Es la pérdida de la calidad de alumno por renuncia expresa del interesado —es decir, del propio alumno—, e imputable al mismo (artículo 18, fracción II, del RESUAM).
A9: FUENTE: Dirección de Sistemas Escolares
A11: BAJAS REGLAMENTARIAS DE ALUMNOS DE LICENCIATURA (y % de als activos)
A12: DIVISIÓN | B12: 2011 | D12: 2012 | F12: 2013 | H12: 2014 | J12: 2015
A13: CBI | B13: 1 | C13: =B13/'Activos Div'!B4 -> 0.01666666667 | D13: 0 | E13: =D13/'Activos Div'!D4 -> 0 | F13: 4 | G13: =F13/'Activos Div'!F4 -> 0.0325203252 | H13: 3 | I13: =H13/'Activos Div'!H4 -> 0.02158273381 | J13: 0 | K13: =J13/'Activos Div'!J4 -> 0
A14: CBS | B14: 0 | C14: =B14/'Activos Div'!B5 -> 0 | D14: 0 | E14: =D14/'Activos Div'!D5 -> 0 | F14: 2 | G14: =F14/'Activos Div'!F5 -> 0.01724137931 | H14: 2 | I14: =H14/'Activos Div'!H5 -> 0.01360544218 | J14: 0 | K14: =J14/'Activos Div'!J5 -> 0
A15: CSH | B15: 2 | C15: =B15/'Activos Div'!B6 -> 0.03448275862 | D15: 0 | E15: =D15/'Activos Div'!D6 -> 0 | F15: 1 | G15: =F15/'Activos Div'!F6 -> 0.007246376812 | H15: 1 | I15: =H15/'Activos Div'!H6 -> 0.005813953488 | J15: 0 | K15: =J15/'Activos Div'!J6 -> 0
A16: TOTAL | B16: =SUM(B13:B15) -> 3 | C16: =B16/'Activos Div'!B7 -> 0.01734104046 | D16: =SUM(D13:D15) -> 0 | E16: =D16/'Activos Div'!D7 -> 0 | F16: =SUM(F13:F15) -> 7 | G16: =F16/'Activos Div'!F7 -> 0.01856763926 | H16: =SUM(H13:H15) -> 6 | I16: =H16/'Activos Div'!H7 -> 0.01310043668 | J16: =SUM(J13:J15) -> 0 | K16: =J16/'Activos Div'!J7 -> 0
A17: Baja reglamentaria: Es la perdida de la calidad de alumno como consecuencia de una sanción aplicada al estudiante, por haber incurrido en cualquiera de las causas establecidas en el artículo 18, fracciones III, IV y VII, incisos a) y b), del RESUAM.
A18: FUENTE: Dirección de Sistemas Escolares
A20: BAJAS TOTALES DE ALUMNOS DE LICENCIATURA (y % de als activos)
A21: DIVISIÓN | B21: 2011 | D21: 2012 | F21: 2013 | H21: 2014 | J21: 2015
A22: CBI | B22: =B13+B4 -> 1 | C22: =B22/'Activos Div'!B4 -> 0.01666666667 | D22: =D13+D4 -> 0 | E22: =D22/'Activos Div'!D4 -> 0 | F22: =F13+F4 -> 8 | G22: =F22/'Activos Div'!F4 -> 0.06504065041 | H22: =H13+H4 -> 14 | I22: =H22/'Activos Div'!H4 -> 0.1007194245 | J22: =J13+J4 -> 11 | K22: =J22/'Activos Div'!J4 -> 0.06358381503
A23: CBS | B23: =B14+B5 -> 1 | C23: =B23/'Activos Div'!B5 -> 0.01818181818 | D23: =D14+D5 -> 2 | E23: =D23/'Activos Div'!D5 -> 0.02898550725 | F23: =F14+F5 -> 6 | G23: =F23/'Activos Div'!F5 -> 0.05172413793 | H23: =H14+H5 -> 3 | I23: =H23/'Activos Div'!H5 -> 0.02040816327 | J23: =J14+J5 -> 0 | K23: =J23/'Activos Div'!J5 -> 0
A24: CSH | B24: =B15+B6 -> 2 | C24: =B24/'Activos Div'!B6 -> 0.03448275862 | D24: =D15+D6 -> 0 | E24: =D24/'Activos Div'!D6 -> 0 | F24: =F15+F6 -> 2 | G24: =F24/'Activos Div'!F6 -> 0.01449275362 | H24: =H15+H6 -> 3 | I24: =H24/'Activos Div'!H6 -> 0.01744186047 | J24: =J15+J6 -> 5 | K24: =J24/'Activos Div'!J6 -> 0.0234741784
A25: TOTAL | B25: =SUM(B22:B24) -> 4 | C25: =B25/'Activos Div'!B7 -> 0.02312138728 | D25: =SUM(D22:D24) -> 2 | E25: =D25/'Activos Div'!D7 -> 0.008771929825 | F25: =SUM(F22:F24) -> 16 | G25: =F25/'Activos Div'!F7 -> 0.0424403183 | H25: =SUM(H22:H24) -> 20 | I25: =H25/'Activos Div'!H7 -> 0.04366812227 | J25: =SUM(J22:J24) -> 16 | K25: =J25/'Activos Div'!J7 -> 0.02693602694
A26: FUENTE: Dirección de Sistemas Escolares

Sheet Deserción Acumulada
A1: INDICE
A2: DECERSIÓN ACUMULADA TOTAL
A3: DIV | B3: PLAN DE ESTUDIO | C3: 2011 | D3: 2012 | E3: 2013 | F3: 2014 | G3: 2015
A5: CBI | B5: Ingeniería en Recursos Hídricos | C5: ='Incritos Acumulado'!D6-'Activos Plan'!C4 -> -1 | D5: ='Incritos Acumulado'!F6-'Activos Plan'!D4 -> 10 | E5: ='Incritos Acumulado'!H6-'Activos Plan'!E4 -> 18 | F5: ='Incritos Acumulado'!J6-'Activos Plan'!F4 -> 51 | G5: ='Incritos Acumulado'!L6-'Activos Plan'!G4 -> 85
A6: CBS | B6: Biología Ambiental | C6: ='Incritos Acumulado'!D7-'Activos Plan'!C5 -> 1 | D6: ='Incritos Acumulado'!F7-'Activos Plan'!D5 -> 13 | E6: ='Incritos Acumulado'!H7-'Activos Plan'!E5 -> 21 | F6: ='Incritos Acumulado'!J7-'Activos Plan'!F5 -> 37 | G6: ='Incritos Acumulado'!L7-'Activos Plan'!G5 -> 54
A7: CSH | B7: Políticas Públicas | C7: ='Incritos Acumulado'!D8-'Activos Plan'!C6 -> 0 | D7: ='Incritos Acumulado'!F8-'Activos Plan'!D6 -> 11 | E7: ='Incritos Acumulado'!H8-'Activos Plan'!E6 -> 22 | F7: ='Incritos Acumulado'!J8-'Activos Plan'!F6 -> 32 | G7: ='Incritos Acumulado'!L8-'Activos Plan'!G6 -> 46
B8: Arte y Comunicación Digitales | C8: ='Incritos Acumulado'!D9-'Activos Plan'!C7 -> 0 | D8: ='Incritos Acumulado'!F9-'Activos Plan'!D7 -> 0 | E8: ='Incritos Acumulado'!H9-'Activos Plan'!E7 -> 0 | F8: ='Incritos Acumulado'!J9-'Activos Plan'!F7 -> 4 | G8: ='Incritos Acumulado'!L9-'Activos Plan'!G7 -> 4
B9: Total Unidad | C9: =SUM(C5:C8) -> 0 | D9: =SUM(D5:D8) -> 34 | E9: =SUM(E5:E8) -> 61 | F9: =SUM(F5:F8) -> 124 | G9: =SUM(G5:G8) -> 189
A11: DECERSIÓN ACUMULADA MUJERES
A12: DIV | B12: PLAN DE ESTUDIO | C12: 2011 | D12: 2012 | E12: 2013 | F12: 2014 | G12: 2015
A14: CBI | B14: Ingeniería en Recursos Hídricos | C14: ='Incritos Acumulado'!D16-'Activos Plan'!C18 -> 0 | D14: ='Incritos Acumulado'!F16-'Activos Plan'!D18 -> 5 | E14: ='Incritos Acumulado'!H16-'Activos Plan'!E18 -> 7 | F14: ='Incritos Acumulado'!J16-'Activos Plan'!F18 -> 19 | G14: ='Incritos Acumulado'!L16-'Activos Plan'!G18 -> 35
A15: CBS | B15: Biología Ambiental | C15: 0 | D15: ='Incritos Acumulado'!F17-'Activos Plan'!D19 -> 10 | E15: ='Incritos Acumulado'!H17-'Activos Plan'!E19 -> 15 | F15: ='Incritos Acumulado'!J17-'Activos Plan'!F19 -> 24 | G15: ='Incritos Acumulado'!L17-'Activos Plan'!G19 -> 35
A16: CSH | B16: Políticas Públicas | C16: 0 | D16: ='Incritos Acumulado'!F18-'Activos Plan'!D20 -> 8 | E16: ='Incritos Acumulado'!H18-'Activos Plan'!E20 -> 12 | F16: ='Incritos Acumulado'!J18-'Activos Plan'!F20 -> 15 | G16: ='Incritos Acumulado'!L18-'Activos Plan'!G20 -> 20
B17: Arte y Comunicación Digitales | C17: ='Incritos Acumulado'!D19-'Activos Plan'!C21 -> 0 | D17: ='Incritos Acumulado'!F19-'Activos Plan'!D21 -> 0 | E17: ='Incritos Acumulado'!H19-'Activos Plan'!E21 -> 0 | F17: ='Incritos Acumulado'!J19-'Activos Plan'!F21 -> 3 | G17: ='Incritos Acumulado'!L19-'Activos Plan'!G21 -> 4
B18: Total Unidad | C18: =SUM(C14:C17) -> 0 | D18: =SUM(D14:D17) -> 23 | E18: =SUM(E14:E17) -> 34 | F18: =SUM(F14:F17) -> 61 | G18: =SUM(G14:G17) -> 94
A20: DECERSIÓN ACUMULADA MUJERES
A21: DIV | B21: PLAN DE ESTUDIO | C21: 2011 | D21: 2012 | E21: 2013 | F21: 2014 | G21: 2015
A23: CBI | B23: Ingeniería en Recursos Hídricos | C23: =C14/C5 -> 0 | D23: 0.5 | E23: 0.3888888889 | F23: 0.3725490196 | G23: =G14/G5 -> 0.4117647059
A24: CBS | B24: Biología Ambiental | C24: 0 | D24: 0.7692307692 | E24: 0.7142857143 | F24: 0.6486486486 | G24: 0.6481481481
A25: CSH | B25: Políticas Públicas | D25: =D16/D7 -> 0.7272727273 | E25: =E16/E7 -> 0.5454545455 | F25: =F16/F7 -> 0.46875 | G25: =G16/G7 -> 0.4347826087
B26: Arte y Comunicación Digitales | F26: =F17/F8 -> 0.75 | G26: 1
B27: Total Unidad | D27: =D18/D9 -> 0.6764705882 | E27: =E18/E9 -> 0.5573770492 | F27: =F18/F9 -> 0.4919354839 | G27: 0.4973544974

Sheet Bajas Comp
A1: INDICE
A2: BAJAS TOTALES DE ALUMNOS DE LICENCIATURA
C3: 2011 | D3: 2012 | E3: 2013 | F3: 2014 | G3: 2015
A4: LER | B4: Total | C4: 4 | D4: 2 | E4: 16 | F4: 20 | G4: 16
B5: Licenciaturas | C5: 3 | D5: 3 | E5: 4 | F5: 4 | G5: 4
B6: Prom/Lic | C6: =C4/C5 -> 1.333333333 | D6: =D4/D5 -> 0.6666666667 | E6: =E4/E5 -> 4 | F6: =F4/F5 -> 5 | G6: =G4/G5 -> 4
C8: 2005 | D8: 2006 | E8: 2007 | F8: 2008 | G8: 2009 | H8: 2010
A9: CUA | B9: Total Unidad | C9: 0 | D9: 4 | E9: 8 | F9: 22 | G9: 29 | H9: 20
B10: Licenciaturas | C10: 5 | D10: 4 | E10: 8 | F10: 9 | G10: 9 | H10: 10
B11: Prom/Lic | C11: =C9/C10 -> 0 | D11: 1 | E11: 1 | F11: 2.444444444 | G11: 3.222222222 | H11: 2
C12: 2011 | D12: 2012 | E12: 2013 | F12: 2014 | G12: 2015
B13: Total Unidad | C13: 18 | D13: 23 | E13: 30 | F13: 21 | G13: 105
B14: Licenciaturas | C14: 10 | D14: 10 | E14: 10 | F14: 10 | G14: 11
B15: Prom/Lic | C15: =C13/C14 -> 1.8 | D15: =D13/D14 -> 2.3 | E15: =E13/E14 -> 3 | F15: =F13/F14 -> 2.1 | G15: =G13/G14 -> 9.545454545
C17: 2011 | D17: 2012 | E17: 2013 | F17: 2014 | G17: 2015
A18: UAM | B18: Total UAM | C18: 4301 | D18: 4264 | E18: 3952 | F18: 4364 | G18: 4558
B19: Licenciaturas | C19: 76 | D19: 74 | E19: 75 | F19: 75 | G19: 76
B20: Prom/Lic | C20: =C18/C19 -> 56.59210526 | D20: =D18/D19 -> 57.62162162 | E20: =E18/E19 -> 52.69333333 | F20: =F18/F19 -> 58.18666667 | G20: =G18/G19 -> 59.97368421
A21: FUENTE: Dirección de Sistemas Escolares.

Sheet EGRESO Plan
A1: INDICE
A2: ESTUDIANTES QUE TERMINARON ESTUDIOS DE LICENCIATURA POR TRIMESTRE
A3: DIVISIÓN | B3: PLAN DE ESTUDIO | C3: 2015
C4: I | D4: P | E4: O | F4: Total
A5: CBI | B5: Ingeniería en Recursos Hídricos | C5: 8 | D5: 9 | E5: 3 | F5: 20
A6: CBS | B6: Biología Ambiental | C6: 9 | D6: 14 | E6: 0 | F6: 23
A7: CSH | B7: Políticas Públicas | C7: 10 | D7: 21 | E7: 1 | F7: 32
B8: Arte y Comunicación Digitales
B9: Total Unidad | C9: 27 | D9: 44 | E9: 4 | F9: 75
A11: Total UAM | C11: 1798 | D11: 2134 | E11: 1215 | F11: 5147
B12: UAML/UAM | C12: =C9/C11 -> 0.01501668521 | D12: =D9/D11 -> 0.0206185567 | E12: =E9/E11 -> 0.00329218107 | F12: =F9/F11 -> 0.0145715951
A13: La categoría estudiantes que terminaron estudios de licenciatura, incluye a las personas que concluyeron en el año de referencia el plan de estudios correspondiente.
A14: FUENTE: AGA de Licenciatura - Dirección de Sistemas Escolares

Sheet EGRESO Div
A1: INDICE
A2: ESTUDIANTES QUE TERMINARON ESTUDIOS DE LICENCIATURA
A3: DIVISIÓN | B3: 2015
A4: CBI | B4: 20 | C4: =B4/B$7 -> 0.2666666667
A5: CBS | B5: 23 | C5: =B5/B$7 -> 0.3066666667
A6: CSH | B6: 32 | C6: =B6/B$7 -> 0.4266666667
A7: Total | B7: 75 | C7: =B7/B$7 -> 1
A8: La categoría estudiantes que terminaron estudios de licenciatura, incluye a las personas que concluyeron en el año de referencia el plan de estudios correspondiente.
A9: FUENTE: AGA de Licenciatura - Dirección de Sistemas Escolares

Sheet EGRESO x gen
A1: INDICE
A2: EGRESADOS POR GÉNERO
A3: DIVISIÓN | B3: 2015
B4: Femenino | C4: Masculino | D4: Total
A5: CBI | B5: 9 | C5: 11 | D5: 20
A6: CBS | B6: 21 | C6: 2 | D6: 23
A7: CSH | B7: 22 | C7: 10 | D7: 32
A8: TOTAL | B8: 52 | C8: 23 | D8: 75
B9: =B8/$D8 -> 0.6933333333 | C9: =C8/$D8 -> 0.3066666667
A10: TOTAL UAM | B10: 2832 | C10: 2315 | D10: 5147
B11: =B10/$D10 -> 0.5502234311 | C11: =C10/$D10 -> 0.4497765689

Sheet EGRESO Comp
A1: INDICE
A2: ESTUDIANTES QUE TERMINARON ESTUDIOS DE LICENCIATURA
C3: 2011 | D3: 2012 | E3: 2013 | F3: 2014 | G3: 2015
A4: LER | B4: Total | G4: 75
B5: Licenciaturas | C5: 3 | D5: 3 | E5: 4 | F5: 4 | G5: 4
B6: Prom/Lic | C6: =C4/C5 -> 0 | D6: =D4/D5 -> 0 | E6: =E4/E5 -> 0 | F6: =F4/F5 -> 0 | G6: =G4/G5 -> 18.75
C8: 2005 | D8: 2006 | E8: 2007 | F8: 2008 | G8: 2009 | H8: 2010
A9: CUA | B9: Total Unidad | G9: 67 | H9: 53
B10: Licenciaturas | C10: 5 | D10: 4 | E10: 8 | F10: 9 | G10: 9 | H10: 10
B11: Prom/Lic | C11: =C9/C10 -> 0 | D11: 0 | E11: 0 | F11: 0 | G11: 7.444444444 | H11: 5.3
C12: 2011 | D12: 2012 | E12: 2013 | F12: 2014 | G12: 2015
B13: Total Unidad | C13: 94 | D13: 120 | E13: 79 | F13: 86 | G13: 81
B14: Licenciaturas | C14: 10 | D14: 10 | E14: 10 | F14: 10 | G14: 11
B15: Prom/Lic | C15: =C13/C14 -> 9.4 | D15: =D13/D14 -> 12 | E15: =E13/E14 -> 7.9 | F15: =F13/F14 -> 8.6 | G15: =G13/G14 -> 7.363636364
C17: 2011 | D17: 2012 | E17: 2013 | F17: 2014 | G17: 2015
A18: UAM | B18: Total UAM | C18: 4448 | D18: 4674 | E18: 5334 | F18: 5063 | G18: 5147
B19: Licenciaturas | C19: 76 | D19: 74 | E19: 75 | F19: 75 | G19: 76
B20: Prom/Lic | C20: =C18/C19 -> 58.52631579 | D20: =D18/D19 -> 63.16216216 | E20: =E18/E19 -> 71.12 | F20: =F18/F19 -> 67.50666667 | G20: =G18/G19 -> 67.72368421
A21: La categoría estudiantes que terminaron estudios de licenciatura, incluye a las personas que concluyeron en el año de referencia el plan de estudios correspondiente.
A22: FUENTE: AGA de Licenciatura - Dirección de Sistemas Escolares

Sheet TITULADOS Plan
A1: INDICE
A2: TITULADOS DE LICENCIATURA (Por Plan)
A3: DIVISIÓN | B3: PLAN DE ESTUDIO | C3: 2015
A4: CBI | B4: Ingeniería en Recursos Hídricos | C4: 1
A5: CBS | B5: Biología Ambiental | C5: 6
A6: CSH | B6: Políticas Públicas | C6: 5
B7: Arte y Comunicación Digitales
B8: Total Unidad | C8: =SUM(C4:C7) -> 12
A10: Total UAM | C10: 3923
B11: UAML/UAM | C11: =C8/C10 -> 0.003058883508
A12: FUENTE: AGA de Licenciatura - Dirección de Sistemas Escolares.

Sheet TITULADOS Div
A1: INDICE
A2: TITULADOS DE LICENCIATURA (Por División)
A3: DIVISIÓN | B3: PLAN DE ESTUDIO | C3: 2015
A4: CBI | B4: Ingeniería en Recursos Hídricos | C4: 1 | D4: =C4/C$7 -> 0.08333333333
A5: CBS | B5: Biología Ambiental | C5: 6 | D5: =C5/C$7 -> 0.5
A6: CSH | B6: Políticas Públicas | C6: 5 | D6: =C6/C$7 -> 0.4166666667
B7: Total Unidad | C7: =SUM(C4:C6) -> 12 | D7: =C7/C$7 -> 1
A8: FUENTE: AGA de Licenciatura - Dirección de Sistemas Escolares.

Sheet TITULADOS Comp
A1: INDICE
A2: TITULADOS DE LICENCIATURA
C3: 2011 | D3: 2012 | E3: 2013 | F3: 2014 | G3: 2015
A4: LER | B4: Total | G4: 12
B5: Licenciaturas | C5: 3 | D5: 3 | E5: 4 | F5: 4 | G5: 4
B6: Prom/Lic | C6: =C4/C5 -> 0 | D6: =D4/D5 -> 0 | E6: =E4/E5 -> 0 | F6: =F4/F5 -> 0 | G6: =G4/G5 -> 3
C8: 2005 | D8: 2006 | E8: 2007 | F8: 2008 | G8: 2009 | H8: 2010
A9: CUA | B9: Total Unidad | H9: 18
B10: Licenciaturas | C10: 5 | D10: 4 | E10: 8 | F10: 9 | G10: 9 | H10: 10
B11: Prom/Lic | C11: =C9/C10 -> 0 | D11: 0 | E11: 0 | F11: 0 | G11: 0 | H11: 1.8
C12: 2011 | D12: 2012 | E12: 2013 | F12: 2014 | G12: 2015
B13: Total Unidad | C13: 67 | D13: 76 | E13: 92 | F13: 81 | G13: 88
B14: Licenciaturas | C14: 10 | D14: 10 | E14: 10 | F14: 10 | G14: 11
B15: Prom/Lic | C15: =C13/C14 -> 6.7 | D15: =D13/D14 -> 7.6 | E15: =E13/E14 -> 9.2 | F15: =F13/F14 -> 8.1 | G15: =G13/G14 -> 8
C17: 2011 | D17: 2012 | E17: 2013 | F17: 2014 | G17: 2015
A18: UAM | B18: Total UAM | C18: 4539 | D18: 4205 | E18: 4268 | F18: 4690 | G18: 3923
B19: Licenciaturas | C19: 76 | D19: 74 | E19: 75 | F19: 75 | G19: 76
B20: Prom/Lic | C20: =C18/C19 -> 59.72368421 | D20: =D18/D19 -> 56.82432432 | E20: =E18/E19 -> 56.90666667 | F20: =F18/F19 -> 62.53333333 | G20: =G18/G19 -> 51.61842105
A21: FUENTE: AGA de Licenciatura - Dirección de Sistemas Escolares

Sheet TRIM EGRESO plan
A1: INDICE
A2: TRIMESTRES CURSADOS PROMEDIO PARA TERMINAR ESTUDIOS DE LICENCIATURA
A3: DIV | B3: PLAN DE ESTUDIO | C3: 2015
A4: CBI | B4: Ingeniería en Recursos Hídricos | C4: 12.35
A5: CBS | B5: Biología Ambiental | C5: 12.13043478
A6: CSH | B6: Políticas Públicas | C6: 12.21875
B7: Arte y Comunicación Digitales
A8: TOTAL UAM | C8: 15.94870799
A9: La categoría trimestres cursados correspondiente a los trimestres donde el alumno tuvo alguna actividad académica
A10: Fuente: Dirección de Planeación.

Sheet TRIM EGRESO div
A1: INDICE
A2: TRIMESTRES CURSADOS PROMEDIO PARA TERMINAR ESTUDIOS DE LICENCIATURA
A3: UNIDAD | B3: DIVISIÓN | C3: 2015
A4: Lerma | B4: CBI | C4: 12.35
B5: CBS | C5: 12.13043478
B6: CSH | C6: 12.21875
A8: UAM | B8: CBI | C8: 20.15138889
B9: CBS | C9: 15.10960671
B10: CSH | C10: 15.37065637
A11: La categoría trimestres cursados corresponde a los trimestres donde el alumno tuvo alguna actividad académica
A12: FUENTE: Dirección de Planeación.

Sheet TRIM EGRESO Comp
A1: INDICE
A2: TRIMESTRES CURSADOS PROMEDIO PARA TERMINAR ESTUDIOS DE LICENCIATURA
C3: 2011 | D3: 2012 | E3: 2013 | F3: 2014 | G3: 2015
A4: LER | B4: Total | C4: - | D4: - | E4: - | F4: - | G4: 12.22666667
C6: 2005 | D6: 2006 | E6: 2007 | F6: 2008 | G6: 2009 | H6: 2010
A7: CUA | B7: Total Unidad | G7: 12.61 | H7: 13.58490566
C8: 2011 | D8: 2012 | E8: 2013 | F8: 2014 | G8: 2015
B9: Total Unidad | C9: 13.13829787 | D9: 13.74861761 | E9: 14.62 | F9: 15.44186047 | G9: 15.97530864
C11: 1978 | D11: 1979 | E11: 1980 | F11: 1981 | G11: 1982 | H11: 1983
A12: UAM | B12: Total UAM | C12: 12.14333333 | D12: 12.46333333 | E12: 13.26 | F12: 13.20333333 | G12: 13.63333333 | H12: 13.79666667
C13: 2011 | D13: 2012 | E13: 2013 | F13: 2014 | G13: 2015
B14: Total UAM | C14: 15.64838129 | D14: 15.57 | E14: 15.75178103 | F14: 15.85838436 | G14: 15.94870799
A15: La categoría trimestres cursados corresponde a los trimestres donde el alumno tuvo alguna actividad académica
A16: FUENTE: Dirección de Planeación.

Sheet Eficiencia terminal Div
A1: INDICE
A2: EFICIENCIA TERMINAL
A3: DIVISIÓN | B3: Ingreso-Egreso
B4: 2011-2015
A5: CBI | B5: 0.4545454545
A6: CBS | B6: 0.5111111111
A7: CSH | B7: 0.6808510638
A8: Total | B8: 0.5514705882

Sheet Eficiencia terminal Comp
A1: INDICE
A2: EFICIENCIA TERMINAL
A3: Unidad | B3: Ingreso-Egreso
B4: 2011-2015
A5: LER | B5: 0.5514705882
A7: CUA | B7: 2005-2009
B8: No hay datos
B9: 2011-2015
B10: 0.07
B12: 2011-2015
A13: UAM | B13: 0.234

Sheet Becas alumnos
A1: INDICE
A2: PRONABES SEP-UAM (a partir de 2014 cambia a Becas de Manutención) | I2: Cambia de nombre a Becas de Manutención
A3: DIVISION | B3: LICENCIATURA | C3: 2011 | E3: 2012 | G3: 2013 | I3: 2014 | K3: 2015
C4: Asignadas | D4: Pagadas | E4: Asignadas | F4: Pagadas | G4: Asignadas | H4: Pagadas | I4: Asignadas | J4: Pagadas | K4: Asignadas | L4: Pagadas
A5: CBI | B5: Ingeniería en Recursos Hídricos | C5: 22 | D5: 22 | E5: 17 | F5: 40 | G5: 18 | H5: 50 | I5: 8 | J5: 45 | K5: 31 | L5: 61
A6: CBS | B6: Biología Ambiental | C6: 29 | D6: 26 | E6: 9 | F6: 28 | G6: 20 | H6: 34 | I6: 22 | J6: 50 | K6: 46 | L6: 89
A7: CSH | B7: Políticas Públicas | C7: 25 | D7: 25 | E7: 20 | F7: 45 | G7: 19 | H7: 4 | I7: 12 | J7: 65 | K7: 27 | L7: 83
B8: Arte y Comunicaciones Digitales | G8: 4 | H8: 57 | I8: 9 | J8: 12 | K8: 18 | L8: 27
B9: Total Unidad: | C9: =SUM(C5:C8) -> 76 | D9: 73 | E9: 46 | F9: 113 | G9: 61 | H9: 145 | I9: 51 | J9: 172 | K9: 122 | L9: 260
A11: Becas de Excelencia
A12: DIVISION | B12: LICENCIATURA | C12: 2014 | E12: 2015
C13: Asignadas | D13: Pagadas | E13: Asignadas | F13: Pagadas
A14: CBI | B14: Ingeniería en Recursos Hídricos | C14: 17 | D14: 17 | E14: 5 | F14: 22
A15: CBS | B15: Biología Ambiental | C15: 6 | D15: 5 | E15: 2 | F15: 8
A16: CSH | B16: Políticas Públicas | C16: 30 | D16: 30 | E16: 6 | F16: 36
B17: Arte y Comunicaciones Digitales
B18: Total Unidad: | C18: =SUM(C14:C17) -> 53 | D18: =SUM(D14:D17) -> 52 | E18: =SUM(E14:E17) -> 13 | F18: =SUM(F14:F17) -> 66
A20: Becas para grupos vulnerables pagadas
A21: División | B21: Plan | C21: 2014 | F21: 2015
C22: Mujeres | D22: Hombres | E22: Total | F22: Mujeres | G22: Hombres | H22: Total
A23: CBI | B23: Ing. Recursos Hídricos | E23: =SUM(C23:D23) -> 0 | G23: 1 | H23: =SUM(F23:G23) -> 1
A24: CSH | B24: Políticas Públicas | E24: =SUM(C24:D24) -> 0 | H24: =SUM(F24:G24) -> 0
B25: Arte y Comunicación Digitales | E25: =SUM(C25:D25) -> 0 | H25: =SUM(F25:G25) -> 0
A26: CBS | B26: Biología Ambiental | E26: =SUM(C26:D26) -> 0 | H26: =SUM(F26:G26) -> 0
A27: Total Unidad: | C27: =SUM(C23:C26) -> 0 | D27: =SUM(D23:D26) -> 0 | E27: =SUM(C27:D27) -> 0 | F27: =SUM(F23:F26) -> 0 | G27: =SUM(G23:G26) -> 1 | H27: =SUM(F27:G27) -> 1
A29: Beca de Servicio Social
A30: División | B30: Plan | C30: 2014 | F30: 2015
C31: Mujeres | D31: Hombres | E31: Total | F31: Mujeres | G31: Hombres | H31: Total
A32: CBI | B32: Ing. Recursos Hídricos | C32: 2 | D32: 1 | E32: =SUM(C32:D32) -> 3 | F32: 2 | G32: 1 | H32: =SUM(F32:G32) -> 3
A33: CSH | B33: Políticas Públicas | E33: =SUM(C33:D33) -> 0 | H33: =SUM(F33:G33) -> 0
B34: Arte y Comunicación Digitales | E34: =SUM(C34:D34) -> 0 | H34: =SUM(F34:G34) -> 0
A35: CBS | B35: Biología Ambiental | C35: 3 | D35: 1 | E35: =SUM(C35:D35) -> 4 | F35: 3 | G35: 1 | H35: =SUM(F35:G35) -> 4
A36: Total Unidad: | C36: =SUM(C32:C35) -> 5 | D36: =SUM(D32:D35) -> 2 | E36: =SUM(C36:D36) -> 7 | F36: =SUM(F32:F35) -> 5 | G36: =SUM(G32:G35) -> 2 | H36: =SUM(F36:G36) -> 7
A38: Beca para estudios de lenguas extranjeras
A40: División | B40: Plan | C40: 2014 | F40: 2015
C41: Mujeres | D41: Hombres | E41: Total | F41: Mujeres | G41: Hombres | H41: Total
A42: CBI | B42: Ing. Recursos Hídricos | C42: 1 | D42: 1 | E42: =SUM(C42:D42) -> 2 | F42: 2 | H42: =SUM(F42:G42) -> 2
A43: CSH | B43: Políticas Públicas | D43: 1 | E43: =SUM(C43:D43) -> 1 | F43: 5 | G43: 2 | H43: =SUM(F43:G43) -> 7
B44: Arte y Comunicación Digitales | E44: =SUM(C44:D44) -> 0 | F44: 1 | G44: 1 | H44: =SUM(F44:G44) -> 2
A45: CBS | B45: Biología Ambiental | C45: 4 | E45: =SUM(C45:D45) -> 4 | F45: 5 | H45: =SUM(F45:G45) -> 5
A46: Total Unidad: | C46: =SUM(C42:C45) -> 5 | D46: 2 | E46: 7 | F46: 13 | G46: 3 | H46: 16
A48: Beca de movilidad internacional
A49: División | B49: Plan | C49: 2014 | F49: 2015
C50: Mujeres | D50: Hombres | E50: Total | F50: Mujeres | G50: Hombres | H50: Total
A51: CBI | B51: Ing. Recursos Hídricos | C51: 1 | D51: 2 | E51: =SUM(C51:D51) -> 3 | G51: 1 | H51: =SUM(F51:G51) -> 1
A52: CSH | B52: Políticas Públicas | E52: =SUM(C52:D52) -> 0 | F52: 3 | H52: =SUM(F52:G52) -> 3
B53: Arte y Comunicación Digitales | E53: =SUM(C53:D53) -> 0 | H53: =SUM(F53:G53) -> 0
A54: CBS | B54: Biología Ambiental | C54: 1 | E54: =SUM(C54:D54) -> 1 | F54: 1 | G54: 4 | H54: =SUM(F54:G54) -> 5
A55: Total Unidad: | C55: =SUM(C51:C54) -> 2 | D55: 2 | E55: 4 | F55: 4 | G55: 5 | H55: 9
A57: Beca de movilidad nacional
A58: División | B58: Plan | C58: 2014 | F58: 2015
C59: Mujeres | D59: Hombres | E59: Total | F59: Mujeres | G59: Hombres | H59: Total
A60: CBI | B60: Ing. Recursos Hídricos | E60: =SUM(C60:D60) -> 0 | F60: 1 | G60: 3 | H60: =SUM(F60:G60) -> 4
A61: CSH | B61: Políticas Públicas | D61: 2 | E61: =SUM(C61:D61) -> 2 | F61: 1 | H61: =SUM(F61:G61) -> 1
B62: Arte y Comunicación Digitales | E62: =SUM(C62:D62) -> 0 | H62: =SUM(F62:G62) -> 0
A63: CBS | B63: Biología Ambiental | C63: 5 | E63: =SUM(C63:D63) -> 5 | F63: 3 | H63: =SUM(F63:G63) -> 3
A64: Total Unidad: | C64: =SUM(C60:C63) -> 5 | D64: 2 | E64: 7 | F64: 5 | G64: 3 | H64: 8

Sheet Becas Alumnos Comp1
A1: INDICE
A2: PRONABES SEP-UAM PAGADAS (a partir de 2014 cambia a Becas de Manutención)
C3: 2011 | D3: 2012 | E3: 2013 | F3: 2014 | G3: 2015
A4: LER | B4: Total | C4: 73 | D4: 113 | E4: 145 | F4: 172 | G4: 260
B5: Activos | C5: 173 | D5: 228 | E5: 377 | F5: 458 | G5: 594
B6: Alumnos Becados | C6: =C4/C5 -> 0.4219653179 | D6: =D4/D5 -> 0.4956140351 | E6: =E4/E5 -> 0.3846153846 | F6: =F4/F5 -> 0.3755458515 | G6: =G4/G5 -> 0.4377104377
C8: 2005 | D8: 2006 | E8: 2007 | F8: 2008 | G8: 2009 | H8: 2010
A9: CUA | B9: Total | C9: 28 | D9: 99 | E9: 162 | F9: 225 | G9: 263 | H9: 283
B10: Activos | C10: 203 | D10: 287 | E10: 562 | F10: 871 | G10: 1054 | H10: 1205
B11: Alumnos Becados | C11: =C9/C10 -> 0.1379310345 | D11: 0.3449477352 | E11: 0.2882562278 | F11: 0.2583237658 | G11: 0.2495256167 | H11: 0.2348547718
C12: 2011 | D12: 2012 | E12: 2013 | F12: 2014 | G12: 2015
B13: Total | C13: 339 | D13: 311 | E13: 326 | F13: 497 | G13: 614
B14: Activos | C14: 1388 | D14: 1528 | E14: 1654 | F14: 2009 | G14: 2326
B15: Alumnos Becados | C15: =C13/C14 -> 0.2442363112 | D15: =D13/D14 -> 0.2035340314 | E15: =E13/E14 -> 0.1970979444 | F15: =F13/F14 -> 0.2473867596 | G15: =G13/G14 -> 0.263972485
C17: 2011 | D17: 2012 | E17: 2013 | F17: 2014 | G17: 2015
A18: UAM | B18: Total | C18: 11531 | D18: 11963 | E18: 12043 | F18: 12970 | G18: 13338
B19: Activos | C19: 49508 | D19: 50928 | E19: 52459 | F19: 52898 | G19: 53374
B20: Alumnos Becados | C20: =C18/C19 -> 0.2329118526 | D20: =D18/D19 -> 0.2349002513 | E20: =E18/E19 -> 0.2295697592 | F20: =F18/F19 -> 0.245188854 | G20: =G18/G19 -> 0.2498969536

Sheet Becas Alumnos Comp2
A1: INDICE
A2: BECAS ALUMNOS (% de la matrícula activa)
B3: UAML-2015 | D3: UAMC-2015 | F3: UAM-2015
A4: PRONABES SEP-UAM (Manutención) | B4: 260 | C4: =B4/594 -> 0.4377104377 | D4: 614 | E4: =D4/2326 -> 0.263972485 | F4: 13338 | G4: =F4/53374 -> 0.2498969536
A5: Becas de Excelencia | B5: 66 | C5: =B5/594 -> 0.1111111111 | D5: 111 | E5: =D5/2326 -> 0.04772141015 | F5: 3783 | G5: =F5/53374 -> 0.07087720613
A6: Becas para grupos vulnerables pagadas | B6: 1 | C6: 0.001683501684 | D6: 6 | E6: 0.002579535684 | F6: 64 | G6: 0.001199085697
A7: Beca de Servicio Social | B7: 7 | C7: 0.01178451178 | D7: 34 | E7: 0.01461736887 | F7: 234 | G7: 0.00438415708
A8: Beca para estudios de lenguas extranjeras | B8: 16 | C8: 0.02693602694 | D8: 65 | E8: 0.02794496991 | F8: 667 | G8: 0.01249672125
A9: Beca de movilidad internacional | B9: 9 | C9: 0.01515151515 | D9: 47 | E9: 0.02020636285 | F9: 399 | G9: 0.007475549893
A10: Beca de movilidad nacional | B10: 8 | C10: 0.01346801347 | D10: 49 | E10: 0.02106620808 | F10: 122 | G10: 0.00228575711

Sheet Serv Social
A1: INDICE
A2: PROYECTOS DE SERVICIO SOCIAL
E3: Vigencia al 31 dic
A4: Div | B4: Depto | C4: Nombre del Proyecto | D4: Responsable | E4: 2012 | F4: 2013 | G4: 2014 | H4: 2015 | I4: Acuerdo | J4: Fecha | K4: Decisión | L4: Inic | M4: Fin
A5: CIENCIAS BÁSICAS E INGENIERÍA | C5: Preparación de material didáctico virtual | F5: X | G5: X | H5: X | I5: 06.04 | J5: 2013-03-06 | K5: aprobación
C6: Autoequipamiento | F6: X | G6: X | H6: X | I6: 06.05 | J6: 2013-03-06 | K6: aprobación
C7: Tratamiento por Fotocatálisis de desechos de aguas residuales industriales | D7: ININ | G7: X | H7: X | I7: 18.03 | J7: 2014-07-31 | K7: aprobación
C8: Educación Hídrica, o divulgación de conceptos fundamentales de la cultura del agua | G8: X | I8: 18.07 | J8: 2014-07-31 | K8: aprobación
I9: 24.06 | J9: 2015-02-27 | K9: cancelación
C10: Caracterización cinética y transferencia de oxígeno en un reactor aerobio de lecho flotante alimentado con agua residual proveniente del río Lerma | D10: Dr. Adolfo García Fontes | I10: 24.07 | J10: 2015-02-27 | K10: aprobación | M10: 2015-04-10
C11: Comisión Nacional del Agua-Dirección Local Estado de México (CONAGUA EDO, MEX.) | H11: X | I11: 25.04 | J11: 2015-03-30 | K11: aprobación
C12: Preservación, administración y seguridad hídrica (CONAGUA) | H12: X | I12: 35.06 | J12: 2015-07-13 | K12: cambio de nombre
C13: Instituto Nacional de Investigaciones Nucleares (ININ) | H13: X | I13: 23.10 | J13: 2015-01-22 | K13: aprobación
C14: Investigación y Desarrollo en Ciencia y Tecnología Nucleares (ININ) | I14: 35.06 | J14: 2015-07-13 | K14: cambio de nombre
C15: Normatividad Ambiental (PROFEPA) | H15: X | I15: 35.05 | J15: 2015-07-13 | K15: aprobación
C16: Desarrollo transformador sostenible (WORLD VISION MÉXICO) | H16: X | I16: 35.05 | J16: 2015-07-13 | K16: aprobación
C17: Infraestructura hidráulica y saneamiento (CAEM) | H17: X | I17: 35.05 | J17: 2015-07-13 | K17: aprobación
C18: Centro interamericano de recursos del agua (UAEM-CIRA) | H18: X | I18: 35.05 | J18: 2015-07-13 | K18: aprobación
A20: CIENCIAS BIOLÓGICAS Y DE LA SALUD | B20: CAM | C20: Análisis metagenómico del resistoma y otras proteínas de interés biotecnológico en ecosistemas de especial relevancia en el Estado de México | D20: Dr. Marcos López Pérez | G20: X | H20: X | I20: 02.14.12 | J20: 2014-10-07 | K20: aprobación
B21: CAM | C21: Caracterización de las enzimas involucradas en la biosíntesis dTDP-L-ramnosa, ramnolípidos y polihidroxialcanoatos (phas) en Pseudomonas aeruginosa | D21: Dr. Humberto García Arellano | G21: X | H21: X | I21: 02.14.12 | J21: 2014-10-07 | K21: aprobación
B22: CAM | C22: Caracterización microbiana y monitoreo de contaminantes en las ciénagas de Lerma | D22: Dr. Arturo Aburto Medina | G22: X | H22: X | I22: 02.14.12 | J22: 2014-10-07 | K22: aprobación
B23: CAM | C23: Conectividad del paisaje, efecto de las barreras artificiales y conservación de la vida silvestre. | D23: Dr. Rurik Hermann List Sánchez List. | G23: X | H23: X | I23: 02.14.12 | J23: 2014-10-07 | K23: aprobación
B24: CAM | C24: Diversidad de macroalgas marinas mexicanas: filogenia y biogeografía | D24: Dr. José Francisco Flores Pedroche. | G24: X | H24: X | I24: 02.14.12 | J24: 2014-10-07 | K24: aprobación
B25: CAM | C25: Ecología y conservación de carnívoros en ambientes modificados por el hombre | D25: M. en C. Heliot Zarza Villanueva | G25: X | H25: X | I25: 02.14.12 | J25: 2014-10-07 | K25: aprobación
B26: CAM | C26: Efecto de la estructura de comunidades de competidores en la cosecha máxima | D26: Dr. Derik Castillo Guajardo | G26: X | H26: X | I26: 02.14.12 | J26: 2014-10-07 | K26: aprobación
B27: CAM | C27: Evaluación experimental del efecto de los agroquímicos en la productividad, la variación morfológica de semillas y la variabilidad genética de plántulas de maiz (lea mays) en una parcela | D27: Dr. Cesar Antonio Abarca García | G27: X | H27: X | I27: 02.14.12 | J27: 2014-10-07 | K27: aprobación
B28: CAM | C28: Genética de la conservación y ecologla de especies focales | D28: Dra Karla Pelz Serrano | G28: X | H28: X | I28: 02.14.12 | J28: 2014-10-07 | K28: aprobación
B29: CAM | C29: Interacción y coexistencia entre depredadores similares con gran variación del tamaño corporal y dimorfismo sexual: Patrones poblacionales a gran escala y la importancia de los atributos | D29: Dr. José Cuauhtémoc Chávez Tovar | G29: X | H29: X | I29: 02.14.12 | J29: 2014-10-07 | K29: aprobación
B30: CAM | C30: Microbiota: una alternativa terapéutica para la mejora de la salud y el bienestar de primates en cautiverio | D30: Dr. Augusto J . Montiel Castro | G30: X | H30: X | I30: 02.14.12 | J30: 2014-10-07 | K30: aprobación
B31: CAM | C31: Obtención de enzimas de interés industrial mediante una aproximación metagenómica de la cuenca del rio Lerma. | D31: Dr. Humberto García Arellano | G31: X | H31: X | I31: 02.14.12 | J31: 2014-10-07 | K31: aprobación
B32: CAM | C32: Participación de la dinámica mitocondrial en la homeostasis celular durante la diferenciación de tejidos | D32: Dra. Paulina Cortés Hernán | G32: X | H32: X | I32: 02.14.12 | J32: 2014-10-07 | K32: aprobación
B33: CAM | C33: Variación de la conducta sexual de libélulas como indicador del deterioro del hábitat entre las Ciénegas de Lerma. Estado de México | D33: Dra. Celia Oliver Morales | G33: X | H33: X | I33: 02.14.12 | J33: 2014-10-07 | K33: aprobación
B34: CSA | C34: Análisis estructural y funcional de la proteína glucocinasa para entender mecanismos de la alteración en el metabolismo de la glucosa por mutaciones humanas | D34: Dr Julio Lenin Domínguez Ramirez | G34: X | H34: X | I34: 02.14.12 | J34: 2014-10-07 | K34: aprobación
B35: CSA | C35: El nematodo CaenorhabiditIs elegans como modelo para la identificación y estudio de compuestos con actividad biológica sobre las vías metabólicas y mecanismos moleculares que controlan los procesos de envejecimiento y enfermedad | D35: Dr. Silvestre De Jesús Alavez Espidio | G35: X | H35: X | I35: 02.14.12 | J35: 2014-10-07 | K35: aprobación
B36: CAM | C36: Diagnóstico y Soluciones para hacer de la UAM Lerma una Universidad Sostenible | D36: Mtra. Patricia Manzano Fischer | H36: X | I36: 03.15.03 | J36: 2015-03-31 | K36: aprobación | L36: 2015-04-01 | M36: 2017-04-01
C37: Ecología de la lechuza de campanario (Tyto alba) en ambientes antropogénicos del Valle de México. (Ecología de la lechuza) | H37: X | I37: 09.15.03 | J37: 2015-05-08 | K37: aprobación
B38: CAM | C38: Conservación y restauración de áreas naturales protegidas del Estado de México (CEPANAF) | D38: Dr. José Cuauhtémoc Chávez Tovar. | H38: X | I38: 14.15.12.01 | J38: 2015-06-30 | K38: aprobación | L38: 2014-09-15 | M38: 2017-09-15
B39: CAM | C39: Conservación y restauración en materia forestal (CONAFOR) | D39: Dr. Derik Castillo Guajardo M. en C. Heliot Zarza Villanueva | H39: X | I39: 14.15.12.02 | J39: 2015-06-30 | K39: aprobación | L39: 2014-07-01 | M39: 2017-06-30
B40: CAM | C40: Proyecto genérico: normatividad ambiental (PROFEPA) | D40: Dr. José Cuauhtémoc Chávez Tovar. Dr. Rurik Hermann List Sánchez | H40: X | I40: 14.15.12.03 | J40: 2015-06-30 | K40: aprobación | L40: 2015-04-01 | M40: 2018-03-31
B41: CAM | C41: Desarrollo forestal sustentable del Estado de México (PROBOSQUE) | D41: Dr. Adolfo Armando Rayas Amor | H41: X | I41: 14.15.12.04 | J41: 2015-06-30 | K41: aprobación | L41: 2015-02-01 | M41: 2018-01-31
B42: CSA | C42: Investigación y desarrollo en ciencia y tecnología nucleares (ININ) | D42: Dr. Silvestre de Jesús Alavez Espidio | H42: X | I42: 14.15.12.05 | J42: 2015-06-30 | K42: aprobación | L42: 2015-06-01 | M42: 2018-06-30
C43: Agricultura. Ambiente y Sociedad (Colpos-Monteclllo) | H43: X | I43: 18.15.03.01 | J43: 2015-07-28 | K43: aprobación
C44: Diseño y Difusión de Programas, Acciones y Normatividad en materia ambiental (H. Ayuntamiento Toluca | H44: X | I44: 18.15.03.02 | J44: 2015-07-28 | K44: aprobación
A46: CIENCIAS SOCIALES Y HUMANIDADES | B46: AH | C46: Ventanilla única. La producción web de interfaces gráficas de usuario frente a los servicios del Estado Nacional | D46: Dra. Paz Sastre Martinez | H46: X | I46: 36.06 | J46: 2015-06-09 | K46: aprobación
B47: CSH | C47: Proyecto de Servicio social con el Municipio de Lerma | D47: Lic. Leopoldo Ruíz Calderón, Secretario Técnico del Ayuntamiento de Lerma | F47: X | G47: X | H47: X | I47: 15.04 | J47: 2013-10-30 | K47: aprobación
B48: CSH | C48: Laboratorio de Investigación de Políticas Públicas | D48: Coordinador Divisional de Docencia | F48: X | G48: X | H48: X | I48: 16.09 | J48: 2013-11-08 | K48: aprobación
B49: CSH | C49: Apoyo en el análisis y procesamiento de la información contenida en los productos de trabajo del personal académico resguardados en el CIPA | D49: DIPPPA de Rectoría General | F49: X | G49: X | H49: X | I49: 16.10 | J49: 2013-11-08 | K49: aprobación
B50: CSH-INT | C50: Gestión Sustentable de Ecosistemas de Innovación Social (interdivisional) | D50: Dra. Lidia lvonne Blásquez Martinez | H50: X | I50: 36.04 | J50: 2015-06-09 | K50: aprobación
B51: CSH-INT | C51: Efectos de la Violencia en México sobre la Conservación de Especies (interdivisional) | D51: Dra. Karla Pelz Serrano. | H51: X | I51: 36.05 | J51: 2015-06-09 | K51: aprobación
B52: PS | C52: Análisis de Políticas Públicas de seguridad pública en municipios mexiquenses: el caso de SUBSEMUN | D52: Dra. Ma. Gabriela Martínez Tíburcio | H52: X | I52: 24.11 | J52: 2015-02-04 | K52: aprobación
B53: PS | C53: Gobernanza y Consejos consultivos nacionales (Gobernanza) | D53: Mtro. Carlos Chávez Becker | H53: X | I53: 24.12 | J53: 2015-02-04 | K53: aprobación
B54: PS | C54: Intercambio político entre organizaciones de la sociedad civil con el gobierno. Los casos del PDHDF y las OCS del Estado de México | D54: Dr. Carlos Ricardo Aguilar Astorga | H54: X | I54: 24.13 | J54: 2015-02-04 | K54: aprobación
B55: PS | C55: La Contraloría Social como instrumento de la rendición cuentas en la Administración Pública EstataL | D55: Dra. Ma. Gabriela Martínez Tíburcio | H55: X | I55: 24.14 | J55: 2015-02-04 | K55: aprobación
B56: PS | C56: "Partidos políticos y Redes sociales: Estudio comparado de las plataformas legislativas y los mensajes partidistas en redes sociales en el Estado de México, 2015 (PPYRED) | D56: Dr. Oniel Francisco Díaz Jiménez | H56: X | I56: 24.15 | J56: 2015-02-04 | K56: aprobación
B57: PS | C57: El ciclo económico presupuesta! a nivel municipal | D57: Dr. Manuel Lara Caballero | H57: X | I57: 36.07 | J57: 2015-06-09 | K57: aprobación
B58: PS | C58: Condiciones territoriales, cambio estructural y crecimiento económico regional y urbano de México 1988-2014 | D58: Mtra. Mónica Adriana Sosa Juarico | H58: X | I58: 41.08 | J58: 2015-10-26 | K58: aprobación
B59: PS | C59: Observatorio Metropolitano de Politicas Públicas e Incidencia (OMPPI). | D59: Mtro. Raúl Hernández Mar. | H59: X | I59: 41.09 | J59: 2015-10-26 | K59: aprobación
B60: PS | C60: Los comités comunitarios en la Cruzada Nacional contra el Hambre. Un enfoque de política pública | D60: Dr. Manuel Lara Caballero | H60: X | I60: 41.10 | J60: 2015-10-26 | K60: aprobación
B61: PS | C61: Economía regional de conocimiento; modelos y métodos de análisis y medición existentes y propuestos para México | D61: Dr. Ryszard E. Rozga Luter. | H61: X | I61: 41.11 | J61: 2015-10-26 | K61: aprobación

Sheet Plazas Listado
A1: INDICE
A2: PLAZAS UAM-LERMA (Información al 31 de Dic de 2015)
A3: PLAZA ORIGINAL | D3: PLAZA 2015
A4: Plaza | B4: Año | C4: Div | D4: Plaza | E4: Categoría | F4: Profesor Definitivo | H4: Observaciones
A5: 11106 | B5: 2010 | C5: CBS | D5: 1510 | E5: TITULAR | F5: 11798 | G5: FLORES PEDROCHE, JOSE FRANCISCO | H5: Intercambiada con UAM-I
A6: 11107 | B6: 2010 | C6: CBI | D6: 11107 | E6: TITULAR | F6: 36019 | G6: HERNANDEZ ZAPATA, ERNESTO
A7: 11108 | B7: 2010 | C7: CBI | D7: 11108 | K7: División | L7: Núm plazas
A8: 11109 | B8: 2010 | C8: CBI | D8: 11109 | K8: CBI | L8: =COUNTIF(C5:C69,C6) -> 19
A9: 11110 | B9: 2010 | C9: CBI | D9: 2822 | E9: TITULAR | F9: 25486 | G9: BUSSY , ANNE LAURE SABINE | H9: Intercambiada con UAM-A | K9: CSH | L9: =COUNTIF(C5:C69,C14) -> 25
A10: 11111 | B10: 2010 | C10: CBI | D10: 10335 | E10: ASOCIADO | F10: 31092 | G10: LOPEZ GALVAN, EDGAR | H10: Intercambiada con UAM-A | K10: CBS | L10: =COUNTIF(C5:C69,C5) -> 21
A11: 11112 | B11: 2010 | C11: CSH | D11: 11112 | E11: TITULAR | F11: 36171 | G11: BENITEZ DAVILA, MONICA FRANCISCA | K11: Sub Total UAM-L | L11: =SUM(L8:L10) -> 65
A12: 11113 | B12: 2010 | C12: CSH | D12: 11113 | E12: ASOCIADO | F12: 38204 | G12: CHAVEZ BECKER, CARLOS GABRIEL | K12: Transferida UAM-I | L12: 1
A13: 11114 | B13: 2010 | C13: CSH | D13: 11114 | E13: ASOCIADO | F13: 37911 | G13: AGUILAR ASTORGA, CARLOS RICARDO | K13: Total UAM-L | L13: =L11-L12 -> 64
A14: 11115 | B14: 2010 | C14: CSH | D14: 11115 | E14: ASOCIADO | F14: 35988 | G14: BLASQUEZ MARTINEZ, LIDIA IVONNE
A15: 11116 | B15: 2010 | C15: CSH | D15: 11116 | E15: TITULAR | F15: 36007 | G15: MARTINEZ GONZALEZ, NATAL ALEJANDRO
A16: 11117 | B16: 2010 | C16: CBS | D16: 11117 | E16: TITULAR | F16: 35805 | G16: LIST SANCHEZ, RURIK HERMANN
A17: 11118 | B17: 2010 | C17: CBS | D17: 11118 | E17: TITULAR | F17: 36161 | G17: PACHECO LOPEZ, GUSTAVO
A18: 11119 | B18: 2010 | C18: CBS | D18: 11119
A19: 11120 | B19: 2010 | C19: CBS | H19: Transferida a UAM-I
A20: 11121 | B20: 2010 | C20: CBS | D20: 11121 | E20: TITULAR | F20: 36002 | G20: LOPEZ PEREZ, MARCOS
A21: 11122 | B21: 2010 | C21: CBS | D21: 11122 | E21: TITULAR | F21: 35966 | G21: CASTILLO GUAJARDO, DERIK
A22: 11230 | B22: 2011 | C22: CBI | D22: 11230 | E22: ASOCIADO | F22: 36946 | G22: VON BULOW, PHILIPP
A23: 11231 | B23: 2011 | C23: CBI | D23: 11231 | E23: TITULAR | F23: 36702 | G23: PEREZ MARTINEZ, FRANCISCO
A24: 11232 | B24: 2011 | C24: CBI | D24: 11232 | E24: ASOCIADO | F24: 37016 | G24: REYES GUTIERREZ, LAZARO RAYMUNDO
A25: 11233 | B25: 2011 | C25: CSH | D25: 11233 | E25: TITULAR | F25: 36929 | G25: SASTRE DOMÍNGUEZ, MARÍA PAZ
A26: 11234 | B26: 2011 | C26: CSH | D26: 11234 | E26: ASOCIADO | F26: 36935 | G26: LARA CABALLERO, MANUEL
A27: 11235 | B27: 2011 | C27: CSH | D27: 11235 | E27: TITULAR | F27: 36933 | G27: ORTIZ HENDRESON, GLADYS
A28: 11236 | B28: 2011 | C28: CBS | D28: 11236
A29: 11237 | B29: 2011 | C29: CBS | D29: 11237 | E29: TITULAR | F29: 36941 | G29: PELZ SERRANO, KARLA
A30: 11238 | B30: 2011 | C30: CBS | D30: 10090 | E30: TITULAR | F30: 22628 | G30: JIMENEZ GUZMAN, JUDITH | H30: Intercambiada con UAM-I
A31: 11283 | B31: 2012 | C31: CBS | D31: 11283 | E31: TITULAR | F31: 36948 | G31: MIRANDA DE LA LAMA, GENARO CVABODNI
A32: 11284 | B32: 2012 | C32: CBI | D32: 11284 | E32: ASOCIADO | F32: 37866 | G32: REYES MERCADO, YURI
A33: 11285 | B33: 2012 | C33: CBI | D33: 11285
A34: 11286 | B34: 2012 | C34: CBI | D34: 11286 | E34: ASOCIADO | F34: 34371 | G34: LAGUNA SANCHEZ, GERARDO ABEL
A35: 11287 | B35: 2012 | C35: CBI | D35: 3056 | E35: TITULAR | F35: 18193 | G35: PUERTA HUERTA, JOSE PEDRO ANTONIO | H35: Intercambiada con UAM-A
A36: 11288 | B36: 2012 | C36: CBI | D36: 11288 | E36: ASOCIADO | F36: 35716 | G36: DOMINGUEZ MARIANI, ELOISA
A37: 11289 | B37: 2012 | C37: CBI | D37: 11289 | E37: ASOCIADO | F37: 35470 | G37: SANDOVAL GUTIERREZ, JACOBO
A38: 11290 | B38: 2012 | C38: CBI | D38: 11290 | E38: TITULAR | F38: 32841 | G38: BERISTAIN CARDOSO, RICARDO
A39: 11291 | B39: 2012 | C39: CBI | D39: 11291 | E39: TITULAR | F39: 35091 | G39: JARDON VALADEZ, HECTOR EDUARDO
A40: 11292 | B40: 2012 | C40: CSH | D40: 11292 | E40: ASOCIADO | F40: 32206 | G40: FIGUEROA ROMERO, RAUL
A41: 11293 | B41: 2012 | C41: CSH | D41: 11293 | E41: TITULAR | F41: 37044 | G41: MARTINEZ TIBURCIO, MARIA GABRIELA
A42: 11294 | B42: 2012 | C42: CSH | D42: 6720 | E42: TITULAR | F42: 27455 | G42: ROZGA LUTER, RYSZARD EDWARD | H42: Intercambiada con UAM-X
A43: 11295 | B43: 2012 | C43: CSH | D43: 11295
A44: 11296 | B44: 2012 | C44: CSH | D44: 11296 | E44: ASOCIADO | F44: 29839 | G44: HERNANDEZ MAR, RAUL
A45: 11297 | B45: 2012 | C45: CSH | D45: 11297
A46: 11298 | B46: 2012 | C46: CSH | D46: 11298
A47: 11299 | B47: 2012 | C47: CSH | D47: 11299 | E47: ASOCIADO | F47: 40130 | G47: GÜERECA TORRES, EVA RAQUEL
A48: 11300 | B48: 2012 | C48: CBS | D48: 11300 | E48: ASOCIADO | F48: 39547 | G48: GUZMAN RAMOS, KIOKO RUBI
A49: 11301 | B49: 2012 | C49: CBS | D49: 11301
A50: 11302 | B50: 2012 | C50: CBS | D50: 11302
A51: 11303 | B51: 2012 | C51: CBS | D51: 11303
A52: 11304 | B52: 2012 | C52: CBS | D52: 11304 | E52: TITULAR | F52: 35473 | G52: GARCIA ARELLANO, HUMBERTO
A53: 11305 | B53: 2012 | C53: CBS | D53: 11305 | E53: TITULAR | F53: 36059 | G53: CHAVEZ TOVAR, JOSE CUAUHTEMOC
A54: 11306 | B54: 2012 | C54: CBS | D54: 11306 | E54: TITULAR | F54: 37884 | G54: ALAVEZ ESPIDIO, SILVESTRE DE JESUS
A55: 11413 | B55: 2013 | C55: CBI | D55: 9898 | E55: TITULAR | F55: 21359 | G55: SOTO CORTÉS, GABRIEL | H55: Intercambiada con UAM-A
A56: 11414 | B56: 2013 | C56: CBI | D56: 11414
A57: 11415 | B57: 2013 | C57: CBI | D57: 11415
A58: 11421 | B58: 2013 | C58: CBS | D58: 11421
A59: 11422 | B59: 2013 | C59: CBS | D59: 11422
A60: 11423 | B60: 2013 | C60: CBS | D60: 11423
A61: 11424 | B61: 2013 | C61: CSH | D61: 11424 | E61: TITULAR | F61: 40253 | G61: LOPEZ MORENO IGNACIO
A62: 11425 | B62: 2013 | C62: CSH | D62: 11425 | E62: ASOCIADO | F62: 39289 | G62: SOSA JUARICO, MONICA ADRIANA
A63: 11426 | B63: 2013 | C63: CSH | D63: 11426 | E63: ASOCIADO | F63: 40118 | G63: ARAGÓN ANDRADE, FELIPE ORLANDO
A64: 11427 | B64: 2013 | C64: CSH | D64: 11427 | E64: TITULAR | F64: 26107 | G64: MOSQUEDA GÓMEZ, CLAUDIA
A65: 11428 | B65: 2013 | C65: CSH | D65: 11428 | E65: TITULAR | F65: 38161 | G65: SANCHEZ CARDONA, LUZ MARIA
A66: 11429 | B66: 2013 | C66: CSH | D66: 11429
A67: 11430 | B67: 2013 | C67: CSH | D67: 11430 | E67: TITULAR | F67: 38518 | G67: ROCHA ITURBIDE, MANUEL
A68: 11431 | B68: 2013 | C68: CSH | D68: 11431
A69: 11432 | B69: 2013 | C69: CSH | D69: 11432

Sheet Plazas Div x Depto
A1: INDICE
A2: Plazas UAM-Lerma por División | AJ2: Plazas UAM-Lerma por División y Departamento
T3: 2011 | W3: 2012 | Z3: 2013 | AC3: 2014 | AF3: 2015 | AL3: =T3 -> 2011 | AM3: =W3 -> 2012 | AN3: =Z3 -> 2013 | AO3: =AC3 -> 2014 | AP3: =AF3 -> 2015
A4: Año | B4: 2010 | C4: 2011 | D4: 2012 | E4: 2013 | F4: 2014 | G4: 2015 | R4: División | S4: Departamento | T4: Aso | U4: Tit | V4: Total | W4: Aso | X4: Tit | Y4: Total | Z4: Aso | AA4: Tit | AB4: Total | AC4: Aso | AD4: Tit | AE4: Total | AF4: Aso | AG4: Tit | AH4: Total | AJ4: División | AK4: Departamento | AL4: Total | AM4: Total | AN4: Total | AO4: Total | AP4: Total
A5: CBI | B5: 5 | C5: 8 | D5: 16 | E5: 19 | F5: 19 | G5: 19 | R5: CBI | S5: Procesos Productivos | T5: 1 | V5: =SUM(T5:U5) -> 1 | W5: 3 | Y5: =SUM(W5:X5) -> 3 | Z5: 3 | AB5: =SUM(Z5:AA5) -> 3 | AC5: 3 | AE5: =SUM(AC5:AD5) -> 3 | AF5: 3 | AH5: =SUM(AF5:AG5) -> 3 | AJ5: CBI | AK5: Procesos Productivos | AL5: =V5 -> 1 | AM5: =Y5 -> 3 | AN5: =AB5 -> 3 | AO5: =AE5 -> 3 | AP5: =AH5 -> 3
A6: CBS | B6: 7 | C6: 10 | D6: 18 | E6: 21 | F6: 21 | G6: 20 | S6: Recursos de la Tierra | T6: 2 | U6: 2 | V6: 4 | W6: 4 | X6: 4 | Y6: 8 | Z6: 5 | AA6: 4 | AB6: 9 | AC6: 5 | AD6: 4 | AE6: 9 | AF6: 5 | AG6: 4 | AH6: 9 | AK6: Recursos de la Tierra | AL6: =V6 -> 4 | AM6: =Y6 -> 8 | AN6: =AB6 -> 9 | AO6: =AE6 -> 9 | AP6: =AH6 -> 9
A7: CSH | B7: 5 | C7: 8 | D7: 16 | E7: 25 | F7: 25 | G7: 25 | S7: Sist de Inf y Comunicaciones | U7: 1 | V7: 1 | W7: 1 | X7: 2 | Y7: 3 | Z7: 1 | AA7: 2 | AB7: 3 | AC7: 1 | AD7: 2 | AE7: 3 | AF7: 1 | AG7: 2 | AH7: 3 | AK7: Sist de Inf y Comunicaciones | AL7: 1 | AM7: 3 | AN7: 3 | AO7: 3 | AP7: 3
A8: Total | B8: =SUM(B5:B7) -> 17 | C8: 26 | D8: 50 | E8: 65 | F8: 65 | G8: 64 | S8: Sin Adscripción | U8: 2 | V8: 2 | X8: 2 | Y8: 2 | AA8: 4 | AB8: 4 | AD8: 4 | AE8: 4 | AG8: 4 | AH8: 4 | AK8: Sin Adscripción | AL8: 2 | AM8: 2 | AN8: 4 | AO8: 4 | AP8: 4
S9: Total | T9: =SUM(T5:T8) -> 3 | U9: =SUM(U5:U8) -> 5 | V9: 8 | W9: =SUM(W5:W8) -> 8 | X9: =SUM(X5:X8) -> 8 | Y9: 16 | Z9: =SUM(Z5:Z8) -> 9 | AA9: =SUM(AA5:AA8) -> 10 | AB9: 19 | AC9: =SUM(AC5:AC8) -> 9 | AD9: =SUM(AD5:AD8) -> 10 | AE9: 19 | AF9: =SUM(AF5:AF8) -> 9 | AG9: =SUM(AG5:AG8) -> 10 | AH9: 19
R10: CSH | S10: Artes y Humanidades | U10: 1 | V10: 1 | X10: 1 | Y10: 1 | AA10: 1 | AB10: 1 | AD10: 1 | AE10: 1 | AG10: 1 | AH10: 1 | AJ10: CSH | AK10: Artes y Humanidades | AL10: 1 | AM10: 1 | AN10: 1 | AO10: 1 | AP10: 1
S11: Estudios Culturales | U11: 1 | V11: 1 | X11: 1 | Y11: 1 | AA11: 1 | AB11: 1 | AD11: 1 | AE11: 1 | AG11: 1 | AH11: 1 | AK11: Estudios Culturales | AL11: 1 | AM11: 1 | AN11: 1 | AO11: 1 | AP11: 1
S12: Procesos Sociales | T12: 4 | U12: 1 | V12: 5 | W12: 8 | X12: 3 | Y12: 11 | Z12: 11 | AA12: 3 | AB12: 14 | AC12: 11 | AD12: 3 | AE12: 14 | AF12: 11 | AG12: 3 | AH12: 14 | AK12: Procesos Sociales | AL12: 5 | AM12: 11 | AN12: 14 | AO12: 14 | AP12: 14
S13: Sin Adscripción | U13: 1 | V13: 1 | X13: 3 | Y13: 3 | AA13: 9 | AB13: 9 | AD13: 9 | AE13: 9 | AG13: 9 | AH13: 9 | AK13: Sin Adscripción | AL13: 1 | AM13: 3 | AN13: 9 | AO13: 9 | AP13: 9
S14: Total | T14: =SUM(T10:T13) -> 4 | U14: =SUM(U10:U13) -> 4 | V14: 8 | W14: =SUM(W10:W13) -> 8 | X14: =SUM(X10:X13) -> 8 | Y14: 16 | Z14: =SUM(Z10:Z13) -> 11 | AA14: =SUM(AA10:AA13) -> 14 | AB14: 25 | AC14: =SUM(AC10:AC13) -> 11 | AD14: =SUM(AD10:AD13) -> 14 | AE14: 25 | AF14: =SUM(AF10:AF13) -> 11 | AG14: =SUM(AG10:AG13) -> 14 | AH14: 25
R15: CBS | S15: Ciencias Ambientales | U15: 6 | V15: =SUM(U15) -> 6 | X15: 8 | Y15: =SUM(X15) -> 8 | AA15: 8 | AB15: =SUM(AA15) -> 8 | AD15: 8 | AE15: =SUM(AD15) -> 8 | AG15: 7 | AH15: 7 | AJ15: CBS | AK15: Ciencias Ambientales | AL15: 6 | AM15: 8 | AN15: 8 | AO15: 8 | AP15: 7
S16: Ciencias de la Alimentación | U16: 1 | V16: =SUM(U16) -> 1 | X16: 2 | Y16: =SUM(X16) -> 2 | AA16: 2 | AB16: =SUM(AA16) -> 2 | AD16: 2 | AE16: =SUM(AD16) -> 2 | AG16: 2 | AH16: 2 | AK16: Ciencias de la Alimentación | AL16: 1 | AM16: 2 | AN16: 2 | AO16: 2 | AP16: 2
S17: Ciencias de la Salud | U17: 2 | V17: =SUM(U17) -> 2 | X17: 4 | Y17: =SUM(X17) -> 4 | AA17: 4 | AB17: =SUM(AA17) -> 4 | AD17: 4 | AE17: =SUM(AD17) -> 4 | AG17: 4 | AH17: 4 | AK17: Ciencias de la Salud | AL17: 2 | AM17: 4 | AN17: 4 | AO17: 4 | AP17: 4
S18: Sin Adscripción | U18: 1 | V18: =SUM(U18) -> 1 | X18: 4 | Y18: =SUM(X18) -> 4 | AA18: 7 | AB18: =SUM(AA18) -> 7 | AD18: 7 | AE18: =SUM(AD18) -> 7 | AG18: 7 | AH18: 7 | AK18: Sin Adscripción | AL18: 1 | AM18: 4 | AN18: 7 | AO18: 7 | AP18: 7
S19: Total | U19: =SUM(U15:U18) -> 10 | V19: =SUM(U19) -> 10 | X19: =SUM(X15:X18) -> 18 | Y19: =SUM(X19) -> 18 | AA19: =SUM(AA15:AA18) -> 21 | AB19: =SUM(AA19) -> 21 | AD19: =SUM(AD15:AD18) -> 21 | AE19: =SUM(AD19) -> 21 | AF19: =SUM(AF15:AF18) -> 0 | AG19: =SUM(AG15:AG18) -> 20 | AH19: 20
S20: Total Unidad | T20: =T9+T14+T19 -> 7 | U20: =U9+U14+U19 -> 19 | V20: 26 | W20: 16 | X20: 34 | Y20: 50 | Z20: 20 | AA20: 45 | AB20: 65 | AC20: 20 | AD20: 45 | AE20: 65 | AF20: 20 | AG20: 44 | AH20: =AH9+AH14+AH19 -> 64 | AK20: Total Unidad | AL20: =SUM(AL5:AL19) -> 26 | AM20: =SUM(AM5:AM19) -> 50 | AN20: =SUM(AN5:AN19) -> 65 | AO20: =SUM(AO5:AO19) -> 65 | AP20: =SUM(AP5:AP19) -> 64
S22: Aso= Asociado
S23: Tit= Titular

Sheet Definitivos x plaza histórico
A1: INDICE
A2: HISTÓRICO DE PLAZAS CON CONTRATACIÓN DEFINITIVA | BM2: Total
A3: DIVISIÓN | B3: 2011 | C3: 2012 | D3: 2013 | E3: 2014 | F3: 2015
A4: CBI | B4: 0.125 | C4: 0.25 | D4: 0.2631578947 | E4: 0.3684210526 | F4: 0.7368421053
A5: CBS | B5: 0.3 | C5: 0.2777777778 | D5: 0.4285714286 | E5: 0.5238095238 | F5: 0.6
A6: CSH | B6: 0.25 | C6: 0.1875 | D6: 0.28 | E6: 0.4 | F6: 0.76
A7: UAM-L | B7: 0.2307692308 | C7: 0.24 | D7: 0.3230769231 | E7: 0.4307692308 | F7: 0.703125

Sheet Concursos de Oposición
A1: INDICE
B2: CONVOCATORIAS | I2: DICTÁMENES
A3: observaciones | B3: FECHA CONVOCATORIA | C3: CONVOCATORIA | D3: PLAZA | E3: DEPTO | F3: CATEGORÍA | G3: INICIO ACTIVIDADES SEGÚN CONVOCATORIA | H3: HORARIO | I3: DICTAMEN | J3: FECHA DICTAMEN | K3: GANADOR | L3: NIVEL
B4: 2013-06-27 | C4: CO.L.CSH.c.006.13 | D4: 11296 | E4: Procesos Sociales | F4: Asociado | G4: 2013-12-16 | H4: 09:00-14:00 y 16:00-19:00 | I4: CS.006.14 | J4: 2014-04-07 | K4: Raúl Hernández Mar | L4: D
A5: Convocatoria sin Fecha de inicio de actividades | B5: 2013-06-28 | C5: CO.L.CSH.c.007.13 | D5: 11234 | E5: Procesos Sociales | F5: Asociado | H5: 09:00-14:00 y 16:00-19:00 | I5: CEA.009.14 | J5: 2014-07-14 | K5: Manuel Lara Caballero | L5: D
B6: 2013-09-05 | C6: CO.L.CSH.c.011.13 | D6: 11425 | E6: Procesos Sociales | F6: Asociado | G6: 2014-01-02 | H6: 09:00-14:00 y 16:00-19:00 | I6: CEA.011.14 | J6: 2014-12-08 | K6: Mónica Adriana Sosa Juarico | L6: D
B7: 2013-10-08 | C7: CO.L.CSH.c.012.13 | D7: 11426 | E7: Procesos Sociales | F7: Asociado | G7: 2014-01-02 | H7: 09:00-14:00 y 16:00-19:00 | I7: CS.016.14 | J7: 2014-07-14 | K7: Desierta
B8: 2013-10-13 | C8: CO.L.CBI.b.004.13 | D8: 11284 | E8: Recursos de la Tierra | F8: Asociado | G8: 2014-04-07 | H8: 09:00-17:00 | I8: CB.004.14 | J8: 2014-03-31 | K8: Desierta
B9: 2013-11-08 | C9: CO.L.CBS.a.003.13 | D9: 11121 | E9: Ciencias Ambientales | F9: Titular | G9: 2014-07-07 | H9: 09:00-17:00 | I9: BIOL.011.14 | J9: 2014-04-14 | K9: Marcos López Pérez | L9: B
B10: 2013-11-08 | C10: CO.L.CBS.c.002.13 | D10: 11236 | E10: Ciencias de la Salud | F10: Titular | G10: 2014-04-16 | H10: 09:00-17:00 | I10: SAL.002.14 | J10: 2014-02-17 | K10: Desierta
B11: 2013-11-12 | C11: CO.L.CBS.c.003.13 | D11: 11300 | E11: Ciencias de la Salud | F11: Titular | G11: 2014-09-01 | H11: 09:00-17:00 | I11: SAL.003.14 | J11: 2014-02-17 | K11: Desierta
A12: Ganada pero no ocupada por el profesor | B12: 2013-11-15 | C12: CO.L.CBI.b.005.13 | D12: 11414 | E12: Recursos de la Tierra | F12: Asociado | G12: 2014-01-06 | H12: 09:00-17:00 | I12: CB.005.14 | J12: 2014-04-14 | K12: Juan Manuel Germán Acacio | L12: D
B13: 2013-11-18 | C13: CO.L.CBI.a.003.13 | D13: 11289 | E13: Procesos Productivos | F13: Asociado | G13: 2014-03-10 | H13: 09:00-17:00 | I13: ING.008.14 | J13: 2014-04-28 | K13: Desierta
B14: 2014-09-22 | C14: CO.L.CBI.b.004.14 | D14: 11232 | E14: Recursos de la Tierra | F14: Asociado | G14: 2015-01-12 | H14: 10:00-18:00 | I14: ING.002.15 | J14: 2015-02-02 | K14: Lázaro Raymundo Reyes Gutiérrez | L14: D
B15: 2014-09-22 | C15: CO.L.CBI.b.001.14 | D15: 11284 | E15: Recursos de la Tierra | F15: Asociado | G15: 2015-01-12 | H15: 10:00-18:00 | I15: CB.002.15 | J15: 2015-02-02 | K15: Yuri Reyes Mercado | L15: D
B16: 2014-09-22 | C16: CO.L.CBI.b.003.14 | D16: 11288 | E16: Recursos de la Tierra | F16: Asociado | G16: 2015-01-12 | H16: 10:00-18:00 | I16: ING.004.15 | J16: 2015-02-23 | K16: Eloísa Domínguez Mariani | L16: D
B17: 2014-09-22 | C17: CO.L.CBI.b.002.14 | D17: 11291 | E17: Recursos de la Tierra | F17: Titular | G17: 2015-01-12 | H17: 10:00-18:00 | I17: BIOL.008.15 | J17: 2015-03-23 | K17: Héctor Eduardo Jardón Valadez | L17: C
B18: 2014-09-29 | C18: CO.L.CBI.a.001.14 | D18: 11289 | E18: Procesos Productivos | F18: Asociado | G18: 2015-01-19 | H18: 10:00-18:00 | I18: ING.003.15 | J18: 2015-02-16 | K18: Jacobo Sandoval Gutiérrez | L18: D
B19: 2014-12-01 | C19: CO.L.CBS.b.001.14 | D19: 11303 | E19: Ciencias de la Alimentación | F19: Titular | G19: 2015-03-23 | H19: 09:00-17:00 | I19: BIOL.011.15 | J19: 2015-04-13 | K19: Desierta
B20: 2015-01-26 | C20: CO.L.CSH.b.001.15 | D20: 11297 | E20: Estudios Culturales | F20: Asociado | G20: 2015-09-01 | H20: 09:00-14:00 y 15:00-18:00 | I20: HUM.005.15 | J20: 2015-07-20 | K20: Desierta
B21: 2015-02-16 | C21: CO.L.CSH.a.002.15 | D21: 11233 | E21: Artes y Humanidades | F21: Titular | G21: 2015-09-03 | H21: 09:00-17:00 | I21: HUM.012.15 | J21: 2015-10-06 | K21: María Paz Sastre Domínguez | L21: C
B22: 2015-02-16 | C22: CO.L.CSH.a.001.15 | D22: 11427 | E22: Artes y Humanidades | F22: Titular | G22: 2015-09-02 | H22: 09:00-17:00 | I22: HUM.014.15 | J22: 2015-10-06 | K22: Claudia Mosqueda Gómez | L22: B
B23: 2015-02-16 | C23: CO.L.CSH.a.003.15 | D23: 11430 | E23: Artes y Humanidades | F23: Titular | G23: 2015-09-02 | H23: 09:00-17:00 | I23: HUM.015.15 | J23: 2015-11-10 | K23: Manuel Rocha Iturbide | L23: C
B24: 2015-02-16 | C24: CO.L.CSH.b.002.15 | D24: 11432 | E24: Estudios Culturales | F24: Titular | G24: 2015-08-31 | H24: 09:00-14:00 y 15:00-18:00 | I24: CS.008.15 | J24: 2015-06-08 | K24: Desierta
B25: 2015-03-09 | C25: CO.L.CBS.c.001.15 | D25: 11300 | E25: Ciencias de la Salud | F25: Asociado | G25: 2015-06-22 | H25: 09:00-17:00 | I25: SAL.001.15 | J25: 2015-05-25 | K25: Guzmán Ramos Kioko Rubí | L25: D
B26: 2015-03-23 | C26: CO.L.CSH.c.002.15 | D26: 11295 | E26: Procesos Sociales | F26: Titular | G26: 2015-09-07 | H26: 09:00-14:00 y 16:00-19:00 | I26: CS.011.15 | J26: 2015-10-13 | K26: Desierta
B27: 2015-03-23 | C27: CO.L.CSH.c.003.15 | D27: 11298 | E27: Procesos Sociales | F27: Asociado | G27: 2015-09-07 | H27: 09:00-14:00 y 16:00-19:00 | I27: CS.012.15 | J27: 2015-10-13 | K27: Desierta
B28: 2015-03-23 | C28: CO.L.CSH.c.001.15 | D28: 11299 | E28: Procesos Sociales | F28: Asociado | G28: 2015-09-07 | H28: 09:00-14:00 y 16:00-19:00 | I28: CS.015.15 | J28: 2015-11-16 | K28: Güereca Torres Eva Raquel | L28: D
B29: 2015-03-23 | C29: CO.L.CSH.c.004.15 | D29: 11426 | E29: Procesos Sociales | F29: Asociado | G29: 2015-09-07 | H29: 09:00-14:00 y 16:00-19:00 | I29: CS.014.15 | J29: 2015-11-16 | K29: Aragón Andrade Felipe Orlando | L29: D
B30: 2015-06-22 | C30: CO.L.CSH.c.005.15 | D30: 11424 | E30: Procesos Sociales | F30: Titular | G30: 2015-10-26 | H30: 09:00-14:00 y 16:00-19:00 | I30: CS.016.15 | J30: 2015-11-30 | K30: López Moreno Ignacio | L30: B
B31: 2015-07-06 | C31: CO.L.CBS.b.001.15 | D31: 11303 | E31: Ciencias de la Alimentación | F31: Asociado | G31: 2015-11-16 | H31: 09:00-17:00 | I31: BIOL.023.15 | J31: 2015-11-30 | K31: Desierta
B32: 2015-07-20 | C32: CO.L.CBS.c.003.15 | D32: 11236 | E32: Ciencias de la Salud | F32: Asociado | G32: 2016-05-01 | H32: 09:00-17:00 | I32: SAL.003.15 | J32: 2015-11-03 | K32: Desierta
B33: 2015-07-20 | C33: CO.L.CBI.c.001.15 | D33: 11285 | E33: Sistemas de Información y Comunicaciones | F33: Titular | G33: 2015-12-01 | H33: 09:00-17:00 | I33: na | J33: na | K33: Se reconvocó el 20/07/2015
B34: 2015-07-20 | C34: CO.L.CBS.c.002.15 | D34: 11423 | E34: Ciencias de la Salud | F34: Asociado | G34: 2016-05-01 | H34: 09:00-17:00 | I34: BIOL.024.15 | J34: 2015-11-30 | K34: Montiel Castro Augusto Jacobo | L34: D
B35: 2015-09-07 | C35: CO.L.CBI.c.002.15 | D35: 11285 | E35: Sistemas de Información y Comunicaciones | F35: Asociado | G35: 2016-01-04 | H35: 09:00-17:00 | I35: ING.006.16 | J35: 2016-02-11 | K35: Desierta
B36: 2015-09-11 | C36: CO.L.CSH.b.003.15 | D36: 11297 | E36: Estudios Culturales | F36: Asociado | G36: 2016-01-18 | H36: 9:00-14:00 y 15:00-18:00 | I36: HUM/001/16 | J36: 2016-01-19 | K36: Hernández Razo Oscar Enrique | L36: D
B37: 2015-11-16 | C37: CO.L.CSH.c.006.15 | D37: 11295 | E37: Procesos Sociales | F37: Titular | G37: 2016-03-07 | H37: 09:00-14:00 y 16:00-19:00 | I37: CS.001.16 | J37: 2016-02-11 | K37: Desierta
B38: 2015-11-16 | C38: CO.L.CSH.c.007.15 | D38: 11298 | E38: Procesos Sociales | F38: Asociado | G38: 2016-03-07 | H38: 09:00-14:00 y 16:00-19:00 | I38: na | J38: na | K38: En proceso

Sheet Académicos Definitivos
A1: INDICE
A2: PROFESORES DEFINITIVOS (Información al 31 de Dic de 2015)
A3: Div | B3: Depto | C3: Plaza | D3: Num Ec | E3: Dictamen | G3: Nombre | H3: Grado | I3: Categoría | J3: Nivel | K3: Hrs | M3: DEFS DEDICACIÓN COMPLETA* | Q3: Gestión | U3: Perfil PRODEP | X3: SNI / SNCA | AD3: ÚLTIMO PUNTAJE | AG3: EDI | AI3: Beca Permanencia | AK3: Beca Docencia
F4: Fecha | M4: 15I | N4: 15P | O4: 15O | Q4: Cargo | R4: Inicio | S4: Fin | U4: Vigencia | V4: Apoyo | X4: AREA | Y4: Nivel | Z4: Vigencia | AA4: Dictamen 2015 | AD4: AÑO | AE4: PUNTAJE | AG4: Nivel | AK4: Nivel
A5: CBI (14) | B5: PP | C5: 3056 | D5: 18193 | F5: 2015-07-01 | G5: PUERTA HUERTA, JOSE PEDRO ANTONIO | H5: M | I5: TITULAR | J5: C | K5: 40 | M5: X | N5: X | O5: X | Q5: Coord | R5: 2014-07-09
C6: 11289 | D6: 35470 | F6: 2015-02-16 | G6: SANDOVAL GUTIERREZ, JACOBO | H6: D | I6: ASOCIADO | J6: D | K6: 40 | N6: X | O6: X | Q6: Coord | R6: 2015-07-09 | S6: 2016-01-15
C7: 11230 | D7: 36946 | F7: 2012-01-16 | G7: VON BULOW, PHILIPP | H7: D | I7: ASOCIADO | J7: D | K7: 40 | Q7: Jefe Depto | R7: 2012-01-16 | S7: 2016-01-15 | AG7: JD | AI7: JD
B8: RT | C8: 11290 | D8: 32841 | F8: 2014-01-06 | G8: BERISTAIN CARDOSO, RICARDO | H8: D | I8: TITULAR | J8: C | K8: 40 | M8: X | N8: X | Q8: Jefe Depto | R8: 2015-06-16 | S8: 2019-06-15 | U8: 2014-2017 | X8: SNI-VII | Y8: 1 | Z8: 2015-2016 | AD8: 2015 | AE8: 65657 | AG8: B | AI8: 2015-2017 | AK8: D
C9: 2822 | D9: 25486 | F9: 2012-09-03 | G9: BUSSY , ANNE LAURE SABINE | H9: D | I9: TITULAR | J9: C | K9: 40 | M9: X | N9: X | O9: X | Q9: Coord | R9: 2014-09-26 | S9: 2015-06-30 | U9: 2013-2016 | AD9: 2013 | AE9: 125377 | AK9: D
C10: 11288 | D10: 35716 | F10: 2015-03-16 | G10: DOMINGUEZ MARIANI, ELOISA | H10: D | I10: ASOCIADO | J10: D | K10: 40 | N10: X | O10: X | AK10: B
C11: 11107 | D11: 36019 | F11: 2011-06-16 | G11: HERNANDEZ ZAPATA, ERNESTO | H11: D | I11: TITULAR | J11: C | K11: 40 | O11: X | Q11: Jefe Depto | R11: 2011-06-16 | S11: 2015-06-15 | U11: 2013-2016 | AG11: JD | AI11: JD
C12: 11291 | D12: 35091 | F12: 2015-03-23 | G12: JARDON VALADEZ, HECTOR EDUARDO | H12: D | I12: TITULAR | J12: C | K12: 40 | N12: X | O12: X | X12: SNI-II | Y12: 1 | Z12: 2013-2015 | AA12: 1 | AB12: 2016-2019
C13: 10335 | D13: 31092 | F13: 2013-01-02 | G13: LOPEZ GALVAN, EDGAR | H13: D | I13: ASOCIADO | J13: D | K13: 40 | Q13: Secr Acad | R13: 2014-07-11 | U13: 2013-2016 | AG13: SA | AI13: 2012-2015
C14: 11232 | D14: 37016 | F14: 2015-03-16 | G14: REYES GUTIERREZ, LAZARO RAYMUNDO | H14: D | I14: ASOCIADO | J14: D | K14: 40 | N14: X | O14: X | U14: 2015-2018 | V14: 40000 | X14: SNI-I | Y14: 1 | Z14: 2013-2015 | AA14: 1 | AB14: 2016-2019 | AK14: C
C15: 11284 | D15: 37866 | F15: 2015-02-16 | G15: REYES MERCADO, YURI | H15: D | I15: ASOCIADO | J15: D | K15: 40 | N15: X | O15: X | X15: SNI-II | Y15: 1 | Z15: 2012-2015 | AA15: 2 | AB15: 2016-2019 | AI15: 2015-2016 | AK15: D
C16: 9898 | D16: 21359 | F16: 2015-12-16 | G16: SOTO CORTÉS, GABRIEL | H16: D | I16: TITULAR | J16: C | K16: 40 | Q16: Director | R16: 2014-07-11 | S16: 2018-07-10 | U16: 2015-2018 | X16: SNI-VII | Y16: 1 | Z16: 2013-2016 | AD16: 2013 | AE16: 199124 | AG16: JD | AI16: DD
B17: SIC | C17: 11286 | D17: 34371 | F17: 2014-01-16 | G17: LAGUNA SANCHEZ, GERARDO ABEL | H17: D | I17: ASOCIADO | J17: D | K17: 40 | M17: X | N17: X | O17: X | U17: 2014-2017 | AG17: A | AI17: 2014-2016 | AK17: D
C18: 11231 | D18: 36702 | F18: 2012-01-16 | G18: PEREZ MARTINEZ, FRANCISCO | H18: D | I18: TITULAR | J18: B | K18: 40 | Q18: Jefe Depto | R18: 2012-01-16 | S18: 2016-01-15 | U18: 2013-2016 | AG18: JD | AI18: JD
A20: CBS (12) | B20: CAL | C20: 10090 | D20: 22628 | F20: 2012-09-01 | G20: JIMENEZ GUZMAN, JUDITH | H20: D | I20: TITULAR | J20: C | K20: 40 | M20: X | N20: X | O20: X | X20: SNI-VI | Y20: 1 | Z20: 2014-2016 | AD20: 2014 | AE20: 138253 | AI20: 2014-2019 | AK20: B
C21: 11283 | D21: 36948 | F21: 2012-06-01 | G21: MIRANDA DE LA LAMA, GENARO CVABODNI | H21: D | I21: TITULAR | J21: C | K21: 40 | Q21: Jefe Depto | R21: 2012-06-01 | S21: 2016-05-31 | U21: 2015-2018 | X21: SNI-VI | Y21: 1 | Z21: 2014-2015 | AA21: 2 | AB21: 2016-2019 | AG21: JD | AI21: JD
B22: CAM | C22: 11122 | D22: 35966 | F22: 2013-01-07 | G22: CASTILLO GUAJARDO, DERIK | H22: D | I22: TITULAR | J22: B | K22: 40 | M22: X | N22: X | O22: X | AK22: D
C23: 11305 | D23: 36059 | F23: 2013-06-16 | G23: CHAVEZ TOVAR, JOSE CUAUHTEMOC | H23: D | I23: TITULAR | J23: C | K23: 40 | M23: X | N23: X | Q23: Jefe Depto | R23: 2015-05-16 | S23: 2019-05-15 | U23: 2013-2016 | X23: SNI-II | Y23: 1 | Z23: 2013-2015 | AD23: 2015 | AE23: 75801 | AG23: C | AI23: 2014-2016 | AK23: D
C24: 1510 | D24: 11798 | F24: 2011-06-16 | G24: FLORES PEDROCHE, JOSE FRANCISCO | H24: D | I24: TITULAR | J24: C | K24: 40 | N24: X | O24: X | U24: 2015-2018 | X24: SNI-I | Y24: 1 | Z24: 2014-2017 | AD24: 2015 | AE24: 305391 | AG24: C | AI24: 2015-2020
C25: 11304 | D25: 35473 | F25: 2013-06-03 | G25: GARCIA ARELLANO, HUMBERTO | H25: D | I25: TITULAR | J25: C | K25: 40 | M25: X | N25: X | O25: X | U25: 2013-2016 | X25: SNI-VI | Y25: 1 | Z25: 2014-2015 | AA25: 1 | AB25: 2016-2019 | AD25: 2015 | AE25: 75294 | AG25: C | AI25: 2014-2016 | AK25: D
C26: 11117 | D26: 35805 | F26: 2011-05-16 | G26: LIST SANCHEZ, RURIK HERMANN | H26: D | I26: TITULAR | J26: C | K26: 40 | N26: X | O26: X | Q26: Jefe Depto | R26: 2011-05-16 | S26: 2015-05-15 | U26: 2013-2016 | X26: SNI-II | Y26: 2 | Z26: 2012-2015 | AA26: 1 | AB26: 2016-2017 | AG26: JD | AI26: JD
C27: 11121 | D27: 36002 | F27: 2014-07-07 | G27: LOPEZ PEREZ, MARCOS | H27: D | I27: TITULAR | J27: B | K27: 40 | M27: X | N27: X | O27: X | Q27: Coord | R27: 2014-11-03 | U27: 2013-2016 | X27: SNI-VI | Y27: C | Z27: 2013-2015 | AA27: C | AB27: 2016-2017 | AG27: B | AI27: 2015-2017 | AK27: D
C28: 11237 | D28: 36941 | F28: 2013-01-07 | G28: PELZ SERRANO, KARLA | H28: D | I28: TITULAR | J28: B | K28: 40 | M28: X | N28: X | O28: X | U28: 2015-2018 | X28: SNI-II | Y28: C | Z28: 2014-2016 | AK28: C
B29: CSA | C29: 11306 | D29: 37884 | F29: 2014-01-02 | G29: ALAVEZ ESPIDIO, SILVESTRE DE JESUS | H29: D | I29: TITULAR | J29: C | K29: 40 | M29: X | N29: X | R29: 2015-09-17 | S29: 2019-09-16 | U29: 2015-2018 | X29: SNI-III | Y29: 2 | Z29: 2012-2015 | AA29: 2 | AB29: 2016-2020 | AK29: B
C30: 11300 | D30: 39547 | F30: 2015-06-02 | G30: GUZMAN RAMOS, KIOKO RUBI | H30: D | I30: ASOCIADO | J30: D | K30: 40 | O30: X | X30: SNI-III | Y30: 1 | Z30: 2015-2017
C31: 11118 | D31: 36161 | F31: 2011-06-16 | G31: PACHECO LOPEZ, GUSTAVO | H31: D | I31: TITULAR | J31: C | K31: 40 | O31: X | Q31: Jefe Depto | R31: 2011-09-17 | S31: 2015-09-16 | U31: 2015-2018 | X31: SNI-II | Y31: 2 | Z31: 2014-2017 | AG31: JD | AI31: JD
A33: CSH (19) | B33: AH | C33: 11112 | D33: 36171 | F33: 2011-10-09 | G33: BENITEZ DAVILA, MONICA FRANCISCA | H33: D | I33: TITULAR | J33: A | K33: 40 | O33: X | Q33: Jefa Depto | R33: 2011-10-03 | S33: 2015-10-02 | X33: SNI-IV | AA33: 1 | AB33: 2016-2018 | AG33: JD | AI33: JD
C34: 11427 | D34: 26107 | F34: 2015-10-07 | G34: MOSQUEDA GÓMEZ, CLAUDIA | H34: D | I34: TITULAR | J34: B | K34: 40
C35: 11430 | D35: 38518 | F35: 2015-11-16 | G35: ROCHA ITURBIDE, MANUEL | H35: D | I35: TITULAR | J35: C | K35: 40
C36: 11428 | D36: 38161 | F36: 2015-10-03 | G36: SANCHEZ CARDONA, LUZ MARIA | H36: D | I36: TITULAR | J36: C | K36: 40 | Q36: Jefa Depto | R36: 2015-10-03 | S36: 2019-10-02 | X36: SNCA-DMA | Y36: 1 | Z36: 2015-2018
C37: 11233 | D37: 36929 | F37: 2015-10-07 | G37: SASTRE DOMÍNGUEZ, MARÍA PAZ | H37: D | I37: TITULAR | J37: C | K37: 40 | U37: 2015-2018 | X37: SNI-IV | Y37: C | Z37: 2014-2016
B38: EC | C38: 11235 | D38: 36933 | F38: 2012-06-01 | G38: ORTIZ HENDRESON, GLADYS | H38: D | I38: TITULAR | J38: B | K38: 40 | Q38: Jefa Depto | R38: 2012-06-01 | S38: 2016-05-31 | X38: SNI-V | AA38: C | AB38: 2016-2018 | AG38: JD | AI38: JD
B39: PS | C39: 11114 | D39: 37911 | F39: 2013-08-19 | G39: AGUILAR ASTORGA, CARLOS RICARDO | H39: D | I39: ASOCIADO | J39: D | K39: 40 | M39: X | N39: X | O39: X | U39: 2015-2018 | X39: SNI-V | Y39: C | Z39: 2015-2017 | AK39: D
C40: 11426 | D40: 40118 | F40: 2015-11-16 | G40: ARAGÓN ANDRADE, FELIPE ORLANDO | H40: M | I40: ASOCIADO | J40: D | K40: 40
C41: 11115 | D41: 35988 | F41: 2013-11-22 | G41: BLASQUEZ MARTINEZ, LIDIA IVONNE | H41: D | I41: ASOCIADO | J41: D | K41: 40 | M41: X | N41: X | O41: X | U41: 2013-2016 | X41: SNI-V | Y41: C | Z41: 2013-2015 | AA41: 1 | AB41: 2016-2018 | AI41: 2014-2015 | AK41: C
C42: 11113 | D42: 38204 | F42: 2013-12-04 | G42: CHAVEZ BECKER, CARLOS GABRIEL | H42: M | I42: ASOCIADO | J42: D | K42: 40 | M42: X | N42: X | O42: X | U42: 2015-2018 | AI42: 2015-2016 | AK42: D
C43: 11292 | D43: 32206 | F43: 2013-10-01 | G43: FIGUEROA ROMERO, RAUL | H43: D | I43: ASOCIADO | J43: A | K43: 40 | M43: X | N43: X | O43: X | Q43: Coord | R43: 2015-01-12 | U43: 2015-2018 | X43: SNI-V | AA43: C | AB43: 2016-2018 | AG43: A | AI43: 2015-2016 | AK43: D
C44: 11299 | D44: 40130 | F44: 2015-11-16 | G44: GÜERECA TORRES, EVA RAQUEL | H44: M | I44: ASOCIADO | J44: D | K44: 40
C45: 11296 | D45: 29839 | F45: 2014-04-16 | G45: HERNANDEZ MAR, RAUL | H45: M | I45: ASOCIADO | J45: D | K45: 40 | Q45: Secr Acad | R45: 2014-11-19 | U45: 2015-2018 | AG45: JD | AI45: JD
C46: 11234 | D46: 36935 | F46: 2014-09-01 | G46: LARA CABALLERO, MANUEL | H46: D | I46: ASOCIADO | J46: D | K46: 40 | M46: X | N46: X | Q46: Jefe Depto | R46: 2015-05-16 | S46: 2019-05-15 | U46: 2014-2017 | X46: SNI-V | Y46: C | Z46: 2014-2016 | AG46: C | AI46: 2015-2017 | AK46: D
C47: 11424 | D47: 40253 | F47: 2015-11-30 | G47: LOPEZ MORENO IGNACIO | H47: D | I47: TITULAR | J47: B | K47: 40
C48: 11116 | D48: 36007 | F48: 2011-05-16 | G48: MARTINEZ GONZALEZ, NATAL ALEJANDRO | H48: D | I48: TITULAR | J48: C | K48: 40 | N48: X | O48: X | Q48: Jefe Depto | R48: 2011-05-16 | S48: 2015-05-15 | U48: 2014-2017 | X48: SNI-V | Y48: 1 | Z48: 2014-2017 | AG48: JD | AI48: JD
C49: 11293 | D49: 37044 | F49: 2014-01-14 | G49: MARTINEZ TIBURCIO, MARIA GABRIELA | H49: D | I49: TITULAR | J49: A | K49: 40 | M49: X | N49: X | O49: X | U49: 2015-2018 | AG49: A | AI49: 2015-2016 | AK49: D
C50: 6720 | D50: 27455 | F50: 2015-04-21 | G50: ROZGA LUTER, RYSZARD EDWARD | H50: D | I50: TITULAR | J50: C | K50: 40 | O50: X | X50: SNI-V | Y50: 2 | Z50: 2015-2018 | AD50: 2014 | AE50: 318797 | AI50: 2013-2018
C51: 11425 | D51: 39289 | F51: 2015-01-28 | G51: SOSA JUARICO, MONICA ADRIANA | H51: M | I51: ASOCIADO | J51: D | K51: 40 | M51: X | N51: X | O51: X
A53: *Para ser considerado DEF DEDICACIÓN COMPLETA, al inicio del trimestre debe estar ya contratado o terminar en las primeras dos semanas del trimestre el cargo de Jefe de Departamento, Rector, Director o Secretarío o el Sabático
C55: Departamentos | I55: Áreas del Conocimiento del Sistema Nacional de Investigadores (SNI) y del Sistema Nacional de Creadores de Arte (SNCA)
C56: PP = PROCESOS PRODUCTIVOS | I56: SNI-I Físico-Matemáticas y Ciencias de la Tierra;
C57: RT = RECURSOS DE LA TIERRA | I57: SNI-II Biología y Química;
C58: SIC = SISTEMAS DE INFORMACION Y COMUNICACION | I58: SNI-III Medicina y Ciencias de la Salud;
C59: CAL = CIENCIAS DE LA ALIMENTACION | I59: SNI-IV Humanidades y Ciencias de la Conducta;
C60: CAM = CIENCIAS AMBIENTALES | I60: SNI-V Ciencias Sociales;
C61: CSA = CIENCIAS DE LA SALUD | I61: SNI-VI Biotecnología y Ciencias Agropecuarias;
C62: AH = ARTES Y HUMANIDADES | I62: SNI-VII Ingenierías
C63: EC = ESTUDIOS CULTURALES | I63: SNCA-DMA Dirección en Medios Audiovisuales
C64: PS = PROCESOS SOCIALES

Sheet Definitivos x categoría
A1: INDICE
A2: PERSONAL ACADÉMICO DEFINITIVO DE TIEMPO COMPLETO POR CATEGORÍA | BM2: Total
A3: DIVISIÓN | B3: 2011 | H3: 2012 | N3: 2013 | T3: 2014 | Z3: 2015
B4: Plazas | C4: Contrataciones definitivas | H4: Plazas | I4: Contrataciones definitivas | N4: Plazas | O4: Contrataciones definitivas | T4: Plazas | U4: Contrataciones definitivas | Z4: Plazas | AA4: Contrataciones definitivas
C5: ASISTENTE | D5: ASOCIADO | E5: TITULAR | F5: TOTAL | I5: ASISTENTE | J5: ASOCIADO | K5: TITULAR | L5: TOTAL | O5: ASISTENTE | P5: ASOCIADO | Q5: TITULAR | R5: TOTAL | U5: ASISTENTE | V5: ASOCIADO | W5: TITULAR | X5: TOTAL | AA5: ASISTENTE | AB5: ASOCIADO | AC5: TITULAR | AD5: TOTAL
A6: CBI | B6: 8 | E6: 1 | F6: =SUM(C6:E6) -> 1 | G6: =F6/B6 -> 0.125 | H6: 16 | J6: 1 | K6: 3 | L6: =SUM(I6:K6) -> 4 | M6: =L6/H6 -> 0.25 | N6: 19 | P6: 2 | Q6: 3 | R6: =SUM(O6:Q6) -> 5 | S6: =R6/N6 -> 0.2631578947 | T6: 19 | V6: 3 | W6: 4 | X6: =SUM(U6:W6) -> 7 | Y6: =X6/T6 -> 0.3684210526 | Z6: 19 | AB6: 7 | AC6: 7 | AD6: =SUM(AA6:AC6) -> 14 | AE6: =AD6/Z6 -> 0.7368421053
A7: CBS | B7: 10 | E7: 3 | F7: =SUM(C7:E7) -> 3 | G7: =F7/B7 -> 0.3 | H7: 18 | K7: 5 | L7: =SUM(I7:K7) -> 5 | M7: =L7/H7 -> 0.2777777778 | N7: 21 | Q7: 9 | R7: =SUM(O7:Q7) -> 9 | S7: =R7/N7 -> 0.4285714286 | T7: 21 | W7: 11 | X7: =SUM(U7:W7) -> 11 | Y7: =X7/T7 -> 0.5238095238 | Z7: 20 | AB7: 1 | AC7: 11 | AD7: =SUM(AA7:AC7) -> 12 | AE7: =AD7/Z7 -> 0.6
A8: CSH | B8: 8 | E8: 2 | F8: =SUM(C8:E8) -> 2 | G8: =F8/B8 -> 0.25 | H8: 16 | K8: 3 | L8: =SUM(I8:K8) -> 3 | M8: =L8/H8 -> 0.1875 | N8: 25 | P8: 4 | Q8: 3 | R8: =SUM(O8:Q8) -> 7 | S8: =R8/N8 -> 0.28 | T8: 25 | V8: 6 | W8: 4 | X8: =SUM(U8:W8) -> 10 | Y8: =X8/T8 -> 0.4 | Z8: 25 | AB8: 9 | AC8: 10 | AD8: =SUM(AA8:AC8) -> 19 | AE8: =AD8/Z8 -> 0.76
A9: TOTAL | B9: =SUM(B6:B8) -> 26 | C9: =SUM(C6:C8) -> 0 | D9: =SUM(D6:D8) -> 0 | E9: =SUM(E6:E8) -> 6 | F9: =SUM(F6:F8) -> 6 | G9: =F9/B9 -> 0.2307692308 | H9: =SUM(H6:H8) -> 50 | I9: =SUM(I6:I8) -> 0 | J9: =SUM(J6:J8) -> 1 | K9: =SUM(K6:K8) -> 11 | L9: =SUM(L6:L8) -> 12 | M9: =L9/H9 -> 0.24 | N9: =SUM(N6:N8) -> 65 | O9: =SUM(O6:O8) -> 0 | P9: =SUM(P6:P8) -> 6 | Q9: =SUM(Q6:Q8) -> 15 | R9: =SUM(R6:R8) -> 21 | S9: =R9/N9 -> 0.3230769231 | T9: =SUM(T6:T8) -> 65 | U9: =SUM(U6:U8) -> 0 | V9: =SUM(V6:V8) -> 9 | W9: =SUM(W6:W8) -> 19 | X9: =SUM(X6:X8) -> 28 | Y9: =X9/T9 -> 0.4307692308 | Z9: =SUM(Z6:Z8) -> 64 | AA9: =SUM(AA6:AA8) -> 0 | AB9: =SUM(AB6:AB8) -> 17 | AC9: =SUM(AC6:AC8) -> 28 | AD9: =SUM(AD6:AD8) -> 45 | AE9: =AD9/Z9 -> 0.703125
C10: =C9/F9 -> 0 | D10: =D9/F9 -> 0 | E10: =E9/F9 -> 1 | F10: =F9/F9 -> 1 | I10: =I9/L9 -> 0 | J10: =J9/L9 -> 0.08333333333 | K10: =K9/L9 -> 0.9166666667 | L10: =L9/L9 -> 1 | O10: =O9/R9 -> 0 | P10: =P9/R9 -> 0.2857142857 | Q10: =Q9/R9 -> 0.7142857143 | R10: =R9/R9 -> 1 | U10: =U9/X9 -> 0 | V10: =V9/X9 -> 0.3214285714 | W10: =W9/X9 -> 0.6785714286 | X10: =X9/X9 -> 1 | AA10: =AA9/AD9 -> 0 | AB10: =AB9/AD9 -> 0.3777777778 | AC10: =AC9/AD9 -> 0.6222222222 | AD10: =AD9/AD9 -> 1
B12: Coordinación de Recursos Humanos UAM-Lerma

Sheet Definitivos x grado
A1: INDICE
A2: PERSONAL ACADÉMICO DEFINITIVO DE TIEMPO COMPLETO POR GRADO | AX2: Total
A3: División | B3: 2011 | E3: 2012 | H3: 2013 | K3: 2014 | N3: 2015
B4: L | C4: M | D4: D | E4: L | F4: M | G4: D | H4: L | I4: M | J4: D | K4: L | L4: M | M4: D | N4: L | O4: M | P4: D
A5: CBI | D5: 1 | G5: 4 | J5: 5 | M5: 7 | O5: 1 | P5: 13
A6: CBS | D6: 3 | G6: 5 | J6: 9 | M6: 11 | P6: 12
A7: CSH | D7: 2 | G7: 3 | I7: 1 | J7: 6 | L7: 2 | M7: 8 | O7: 5 | P7: 14
A8: TOTAL | B8: =SUM(B5:B7) -> 0 | C8: 0 | D8: 6 | E8: 0 | F8: 0 | G8: 12 | H8: 0 | I8: 1 | J8: 20 | K8: 0 | L8: 2 | M8: 26 | N8: 0 | O8: 6 | P8: 39
C10: L | D10: Licenciatrua
C11: M | D11: Maestría
C12: D | D12: Doctorado

Sheet Definitivos x género
A1: INDICE
A2: PERSONAL ACADÉMICO DEFINITIVO DE TIEMPO COMPLETO por género | AI2: TC
A3: DIVISIÓN | B3: 2011 | E3: 2012 | H3: 2013 | K3: 2014 | N3: 2015
B4: Mujer | C4: Hombre | D4: TOTAL | E4: Mujer | F4: Hombre | G4: TOTAL | H4: Mujer | I4: Hombre | J4: TOTAL | K4: Mujer | L4: Hombre | M4: TOTAL | N4: Mujer | O4: Hombre | P4: TOTAL
A5: CBI | C5: 1 | D5: =SUM(B5:C5) -> 1 | E5: 1 | F5: 3 | G5: =SUM(E5:F5) -> 4 | H5: 1 | I5: 4 | J5: =SUM(H5:I5) -> 5 | K5: 1 | L5: 6 | M5: =SUM(K5:L5) -> 7 | N5: 2 | O5: 12 | P5: =SUM(N5:O5) -> 14
A6: CBS | C6: 3 | D6: =SUM(B6:C6) -> 3 | E6: 1 | F6: 4 | G6: =SUM(E6:F6) -> 5 | H6: 2 | I6: 7 | J6: =SUM(H6:I6) -> 9 | K6: 2 | L6: 9 | M6: =SUM(K6:L6) -> 11 | N6: 3 | O6: 9 | P6: =SUM(N6:O6) -> 12
A7: CSH | B7: 1 | C7: 1 | D7: =SUM(B7:C7) -> 2 | E7: 2 | F7: 1 | G7: =SUM(E7:F7) -> 3 | H7: 3 | I7: 4 | J7: =SUM(H7:I7) -> 7 | K7: 4 | L7: 6 | M7: =SUM(K7:L7) -> 10 | N7: 9 | O7: 10 | P7: =SUM(N7:O7) -> 19
A8: TOTAL | B8: =SUM(B5:B7) -> 1 | C8: =SUM(C5:C7) -> 5 | D8: =SUM(B8:C8) -> 6 | E8: =SUM(E5:E7) -> 4 | F8: =SUM(F5:F7) -> 8 | G8: =SUM(E8:F8) -> 12 | H8: =SUM(H5:H7) -> 6 | I8: =SUM(I5:I7) -> 15 | J8: =SUM(H8:I8) -> 21 | K8: =SUM(K5:K7) -> 7 | L8: =SUM(L5:L7) -> 21 | M8: =SUM(K8:L8) -> 28 | N8: =SUM(N5:N7) -> 14 | O8: =SUM(O5:O7) -> 31 | P8: =SUM(N8:O8) -> 45
B9: =B8/D8 -> 0.1666666667 | C9: =C8/D8 -> 0.8333333333 | E9: =E8/G8 -> 0.3333333333 | F9: =F8/G8 -> 0.6666666667 | H9: =H8/J8 -> 0.2857142857 | I9: =I8/J8 -> 0.7142857143 | K9: =K8/M8 -> 0.25 | L9: =L8/M8 -> 0.75 | N9: =N8/P8 -> 0.3111111111 | O9: =O8/P8 -> 0.6888888889
A11: UAM | B11: 970 | C11: 1653 | D11: 2623 | E11: 991 | F11: 1672 | G11: 2663 | H11: 1011 | I11: 1694 | J11: 2705 | K11: 1032 | L11: 1727 | M11: 2759 | N11: 1021 | O11: 1722 | P11: 2743
B12: =B11/D11 -> 0.3698055661 | C12: =C11/D11 -> 0.6301944339 | E12: =E11/G11 -> 0.3721366879 | F12: =F11/G11 -> 0.6278633121 | H12: =H11/J11 -> 0.3737523105 | I12: =I11/J11 -> 0.6262476895 | K12: =K11/M11 -> 0.3740485683 | L12: =L11/M11 -> 0.6259514317 | N12: =N11/P11 -> 0.3722201969 | O12: =O11/P11 -> 0.6277798031

Sheet Visitantes
A1: INDICE
A2: PROFESORES VISITANTES | I2: DIV | J2: VISITANTES al 31dic2015 | K2: PLAZAS | L2: Vis/Plaz
B3: DIV | C3: Departamento | D3: Nombre | E3: Inicio | F3: Fin | I3: CBI | J3: 3 | K3: 19 | L3: =J3/K3 -> 0.1578947368
B4: CBI | C4: Procesos Productivos | D4: Dr. Luisel Jonatan Torres Cortés | E4: 2015-06-22 | F4: 2016-06-21 | I4: CBS | J4: 6 | K4: 20 | L4: =J4/K4 -> 0.3
C5: Recursos de la Tierra | D5: Dr. Alejandro Mendoza Reséndiz | E5: 2015-04-27 | F5: 2016-04-26 | I5: CSH | J5: 1 | K5: 25 | L5: =J5/K5 -> 0.04
D6: Dr. José Luis Salazar Laureles | E6: 2015-05-18 | F6: 2016-05-17 | I6: UAML | J6: 10 | K6: 64 | L6: =J6/K6 -> 0.15625
B7: CBS | C7: Ccias Ambientales | D7: Dr. Gustavo Basurto Islas | E7: 2015-02-02 | F7: 2015-09-15
D8: Dr. José Geiser Villavicencio Pulido | E8: 2015-04-01 | F8: 2016-03-31
D9: M. en C. Zarza Villanueva Heliot | E9: 2015-08-19 | F9: 2016-08-18
C10: Ccias de la Alimentación. | D10: Dra. Elizabeth Del Moral Ramírez | E10: 2015-06-01 | F10: 2016-05-31
D11: Dr. Rayas Amor Adolfo Armando | E11: 2015-08-19 | F11: 2016-08-18
D12: Dra. Mayra Diaz Ramírez | E12: 2015-11-04 | F12: 2016-11-03
C13: Ccias de la Salud. | D13: Dr. Montiel Castro Augusto Jacobo | E13: 2015-08-26 | F13: 2016-04-30
B14: CSH | C14: Artes y Humanidades | D14: Dr. Manuel Rocha lturbide | E14: 2015-04-01 | F14: 2015-08-31
D15: Mtra. Celia Riboulet Beheran | E15: 2015-04-13 | F15: 2015-10-02
C16: Procesos Sociales. | D16: Dr. Daniel Rojas Navarrete | E16: 2015-01-19 | F16: 2015-07-30
D17: Mtro. Gerardo Vázquez Hernández | E17: 2015-06-09 | F17: 2016-06-08

Sheet Definitivos comp
A1: INDICE
A2: PERSONAL ACADÉMICO DEFINITIVO DE TIEMPO COMPLETO POR CATEGORÍA | BM2: Total
B3: 2011 | H3: 2012 | N3: 2013 | T3: 2014 | Z3: 2015
B4: Plazas | C4: Contrataciones definitivas | H4: Plazas | I4: Contrataciones definitivas | N4: Plazas | O4: Contrataciones definitivas | T4: Plazas | U4: Contrataciones definitivas | Z4: Plazas | AA4: Contrataciones definitivas
C5: ASISTENTE | D5: ASOCIADO | E5: TITULAR | F5: TOTAL | I5: ASISTENTE | J5: ASOCIADO | K5: TITULAR | L5: TOTAL | O5: ASISTENTE | P5: ASOCIADO | Q5: TITULAR | R5: TOTAL | U5: ASISTENTE | V5: ASOCIADO | W5: TITULAR | X5: TOTAL | AA5: ASISTENTE | AB5: ASOCIADO | AC5: TITULAR | AD5: TOTAL
A6: UAM-L | B6: 26 | C6: 0 | D6: 0 | E6: 6 | F6: =SUM(C6:E6) -> 6 | G6: 0.5 | H6: 50 | I6: 0 | J6: 1 | K6: 11 | L6: =SUM(I6:K6) -> 12 | M6: 0.44 | N6: 65 | O6: 0 | P6: 6 | Q6: 15 | R6: =SUM(O6:Q6) -> 21 | S6: 0.4307692308 | T6: 65 | U6: 0 | V6: 9 | W6: 19 | X6: =SUM(U6:W6) -> 28 | Y6: 0.5538461538 | Z6: 64 | AA6: 0 | AB6: 17 | AC6: 28 | AD6: =SUM(AA6:AC6) -> 45 | AE6: 0.65625
C7: =C6/F6 -> 0 | D7: =D6/F6 -> 0 | E7: =E6/F6 -> 1 | F7: =F6/F6 -> 1 | I7: =I6/L6 -> 0 | J7: =J6/L6 -> 0.08333333333 | K7: =K6/L6 -> 0.9166666667 | L7: =L6/L6 -> 1 | O7: =O6/R6 -> 0 | P7: =P6/R6 -> 0.2857142857 | Q7: =Q6/R6 -> 0.7142857143 | R7: =R6/R6 -> 1 | U7: =U6/X6 -> 0 | V7: =V6/X6 -> 0.3214285714 | W7: =W6/X6 -> 0.6785714286 | X7: =X6/X6 -> 1 | AA7: =AA6/AD6 -> 0 | AB7: =AB6/AD6 -> 0.3777777778 | AC7: =AC6/AD6 -> 0.6222222222 | AD7: =AD6/AD6 -> 1
A9: UAM-C | B9: 2011 | H9: 2012 | N9: 2013 | T9: 2014 | Z9: 2015
B10: Plazas | C10: Contrataciones definitivas | H10: Plazas | I10: Contrataciones definitivas | N10: Plazas | O10: Contrataciones definitivas | T10: Plazas | U10: Contrataciones definitivas | Z10: Plazas | AA10: Contrataciones definitivas
C11: ASISTENTE | D11: ASOCIADO | E11: TITULAR | F11: TOTAL | I11: ASISTENTE | J11: ASOCIADO | K11: TITULAR | L11: TOTAL | O11: ASISTENTE | P11: ASOCIADO | Q11: TITULAR | R11: TOTAL | U11: ASISTENTE | V11: ASOCIADO | W11: TITULAR | X11: TOTAL | AA11: ASISTENTE | AB11: ASOCIADO | AC11: TITULAR | AD11: TOTAL
B12: 183 | C12: 0 | D12: 13 | E12: 106 | F12: =SUM(C12:E12) -> 119 | G12: =F12/B12 -> 0.650273224 | H12: 194 | I12: 0 | J12: 21 | K12: 109 | L12: =SUM(I12:K12) -> 130 | M12: =L12/H12 -> 0.6701030928 | N12: 204 | O12: 0 | P12: 22 | Q12: 112 | R12: =SUM(O12:Q12) -> 134 | S12: =R12/N12 -> 0.6568627451 | T12: 217 | U12: 0 | V12: 23 | W12: 120 | X12: =SUM(U12:W12) -> 143 | Y12: =X12/T12 -> 0.6589861751 | Z12: 218 | AA12: 0 | AB12: 23 | AC12: 124 | AD12: =SUM(AA12:AC12) -> 147 | AE12: =AD12/Z12 -> 0.6743119266
C13: =C12/F12 -> 0 | D13: =D12/F12 -> 0.1092436975 | E13: =E12/F12 -> 0.8907563025 | F13: =F12/F12 -> 1 | I13: =I12/L12 -> 0 | J13: =J12/L12 -> 0.1615384615 | K13: =K12/L12 -> 0.8384615385 | L13: =L12/L12 -> 1 | O13: =O12/R12 -> 0 | P13: =P12/R12 -> 0.1641791045 | Q13: =Q12/R12 -> 0.8358208955 | R13: =R12/R12 -> 1 | U13: =U12/X12 -> 0 | V13: =V12/X12 -> 0.1608391608 | W13: =W12/X12 -> 0.8391608392 | X13: =X12/X12 -> 1 | AA13: =AA12/AD12 -> 0 | AB13: =AB12/AD12 -> 0.156462585 | AC13: =AC12/AD12 -> 0.843537415 | AD13: =AD12/AD12 -> 1
A15: UAM-C | B15: 2005 | H15: 2006 | N15: 2007 | T15: 2008 | Z15: 2009 | AF15: 2010
B16: Plazas | C16: Contrataciones definitivas | H16: Plazas | I16: Contrataciones definitivas | N16: Plazas | O16: Contrataciones definitivas | T16: Plazas | U16: Contrataciones definitivas | Z16: Plazas | AA16: Contrataciones definitivas | AF16: Plazas | AG16: Contrataciones definitivas
C17: ASISTENTE | D17: ASOCIADO | E17: TITULAR | F17: TOTAL | I17: ASISTENTE | J17: ASOCIADO | K17: TITULAR | L17: TOTAL | O17: ASISTENTE | P17: ASOCIADO | Q17: TITULAR | R17: TOTAL | U17: ASISTENTE | V17: ASOCIADO | W17: TITULAR | X17: TOTAL | AA17: ASISTENTE | AB17: ASOCIADO | AC17: TITULAR | AD17: TOTAL | AG17: ASISTENTE | AH17: ASOCIADO | AI17: TITULAR | AJ17: TOTAL
B18: 25 | C18: 0 | D18: 0 | E18: 13 | F18: =SUM(C18:E18) -> 13 | G18: =F18/B18 -> 0.52 | H18: 60 | I18: 0 | J18: 1 | K18: 21 | L18: =SUM(I18:K18) -> 22 | M18: =L18/H18 -> 0.3666666667 | N18: 82 | O18: 0 | P18: 4 | Q18: 48 | R18: =SUM(O18:Q18) -> 52 | S18: =R18/N18 -> 0.6341463415 | T18: 110 | U18: 0 | V18: 9 | W18: 61 | X18: =SUM(U18:W18) -> 70 | Y18: =X18/T18 -> 0.6363636364 | Z18: 142 | AA18: 0 | AB18: 11 | AC18: 71 | AD18: =SUM(AA18:AC18) -> 82 | AE18: =AD18/Z18 -> 0.5774647887 | AF18: 185 | AG18: 0 | AH18: 14 | AI18: 89 | AJ18: =SUM(AG18:AI18) -> 103 | AK18: =AJ18/AF18 -> 0.5567567568
C19: =C18/F18 -> 0 | D19: =D18/F18 -> 0 | E19: =E18/F18 -> 1 | F19: =F18/F18 -> 1 | I19: =I18/L18 -> 0 | J19: =J18/L18 -> 0.04545454545 | K19: =K18/L18 -> 0.9545454545 | L19: =L18/L18 -> 1 | O19: =O18/R18 -> 0 | P19: =P18/R18 -> 0.07692307692 | Q19: =Q18/R18 -> 0.9230769231 | R19: =R18/R18 -> 1 | U19: =U18/X18 -> 0 | V19: =V18/X18 -> 0.1285714286 | W19: =W18/X18 -> 0.8714285714 | X19: =X18/X18 -> 1 | AA19: =AA18/AD18 -> 0 | AB19: =AB18/AD18 -> 0.1341463415 | AC19: =AC18/AD18 -> 0.8658536585 | AD19: =AD18/AD18 -> 1 | AG19: =AG18/AJ18 -> 0 | AH19: =AH18/AJ18 -> 0.1359223301 | AI19: =AI18/AJ18 -> 0.8640776699 | AJ19: =AJ18/AJ18 -> 1
A20: Fuentes: | B20: Informe anual de actividades de la Rectora de la Unidad Cuajimalpa - 2005-2006
B21: Informe anual de actividades del Rector de la Unidad Cuajimalpa - 2015 (Tabla 76)
B22: Informe del Rector General 2015 - Anexo estadístico
B23: Coordinación de Recursos Humanos UAM-Lerma

Sheet Alumnos x plaza TC
A1: INDICE
A2: ALUMNOS ATENDIDOS DE LICENCIATURA POR PLAZA TIEMPO COMPLETO (Activos / PlazaTC)
C3: 2011 | D3: 2012 | E3: 2013 | F3: 2014 | G3: 2015
A4: LER | B4: CBI | C4: ='Activos Div'!B4/'Plazas Div x Depto'!C5 -> 7.5 | D4: ='Activos Div'!D4/'Plazas Div x Depto'!D5 -> 4.9375 | E4: ='Activos Div'!F4/'Plazas Div x Depto'!E5 -> 6.473684211 | F4: ='Activos Div'!H4/'Plazas Div x Depto'!F5 -> 7.315789474 | G4: ='Activos Div'!J4/'Plazas Div x Depto'!G5 -> 9.105263158
B5: CBS | C5: ='Activos Div'!B5/'Plazas Div x Depto'!C6 -> 5.5 | D5: ='Activos Div'!D5/'Plazas Div x Depto'!D6 -> 3.833333333 | E5: ='Activos Div'!F5/'Plazas Div x Depto'!E6 -> 5.523809524 | F5: ='Activos Div'!H5/'Plazas Div x Depto'!F6 -> 7 | G5: ='Activos Div'!J5/'Plazas Div x Depto'!G6 -> 10.4
B6: CSH | C6: ='Activos Div'!B6/'Plazas Div x Depto'!C7 -> 7.25 | D6: ='Activos Div'!D6/'Plazas Div x Depto'!D7 -> 5 | E6: ='Activos Div'!F6/'Plazas Div x Depto'!E7 -> 5.52 | F6: ='Activos Div'!H6/'Plazas Div x Depto'!F7 -> 6.88 | G6: ='Activos Div'!J6/'Plazas Div x Depto'!G7 -> 8.52
B7: UAML | C7: ='Activos Div'!B7/'Plazas Div x Depto'!C8 -> 6.653846154 | D7: ='Activos Div'!D7/'Plazas Div x Depto'!D8 -> 4.56 | E7: ='Activos Div'!F7/'Plazas Div x Depto'!E8 -> 5.8 | F7: ='Activos Div'!H7/'Plazas Div x Depto'!F8 -> 7.046153846 | G7: ='Activos Div'!J7/'Plazas Div x Depto'!G8 -> 9.28125

Sheet Alumnos x plaza TC Comp
A1: INDICE
A2: ALUMNOS ATENDIDOS DE LICENCIATURA POR PLAZA TIEMPO COMPLETO (Activos / PlazaTC)
C3: 2011 | D3: 2012 | E3: 2013 | F3: 2014 | G3: 2015
A4: LER | B4: Plazas | C4: ='Plazas Div x Depto'!C8 -> 26 | D4: ='Plazas Div x Depto'!D8 -> 50 | E4: ='Plazas Div x Depto'!E8 -> 65 | F4: ='Plazas Div x Depto'!F8 -> 65 | G4: ='Plazas Div x Depto'!G8 -> 64
B5: Alumnos Activos | C5: ='Activos Comp'!C4 -> 173 | D5: ='Activos Comp'!D4 -> 228 | E5: ='Activos Comp'!E4 -> 377 | F5: ='Activos Comp'!F4 -> 458 | G5: ='Activos Comp'!G4 -> 594
B6: Total | C6: =C5/C4 -> 6.653846154 | D6: =D5/D4 -> 4.56 | E6: =E5/E4 -> 5.8 | F6: =F5/F4 -> 7.046153846 | G6: =G5/G4 -> 9.28125
C9: 2005 | D9: 2006 | E9: 2007 | F9: 2008 | G9: 2009 | H9: 2010
B10: Plazas | C10: 25 | D10: 60 | E10: 82 | F10: 110 | G10: 142 | H10: 185
B11: Alumnos Activos | C11: 203 | D11: 287 | E11: 562 | F11: 871 | G11: 1054 | H11: 1205
A12: CUA | B12: Activos/Plaza | C12: =C11/C10 -> 8.12 | D12: 4.783333333 | E12: 6.853658537 | F12: 7.918181818 | G12: 7.422535211 | H12: 6.513513514
C14: 2011 | D14: 2012 | E14: 2013 | F14: 2014 | G14: 2015
B15: Plazas | C15: 183 | D15: 194 | E15: 204 | F15: 217 | G15: 218
B16: Alumnos Activos | C16: 1388 | D16: 1528 | E16: 1654 | F16: 2009 | G16: 2326
B17: Total Unidad | C17: =C16/C15 -> 7.584699454 | D17: =D16/D15 -> 7.87628866 | E17: =E16/E15 -> 8.107843137 | F17: =F16/F15 -> 9.258064516 | G17: =G16/G15 -> 10.66972477
C19: 2011 | D19: 2012 | E19: 2013 | F19: 2014 | G19: 2015
A20: UAM | B20: Activos/PTCdef | C20: 17.7713431 | D20: 18.08094675 | E20: 18.37872241 | F20: 18.15928596 | G20: 18.46957725
C23: 2011 (UAML) 2005 (UAMC) | D23: 2012 (UAML) 2006 (UAMC) | E23: 2013 (UAML) 2007 (UAMC) | F23: 2014 (UAML) 2008 (UAMC) | G23: 2015 (UAML) 2009 (UAMC)
B24: UAML | C24: 6.653846154 | D24: 4.56 | E24: 5.8 | F24: 7.046153846 | G24: 9.28125
B25: UAMC | C25: 8.12 | D25: 4.783333333 | E25: 6.853658537 | F25: 7.918181818 | G25: 7.422535211

Sheet PDDC
A1: INDICE
A2: *Para ser considerado PROF DEF DEDICACIÓN COMPLETA, al inicio del trimestre debe estar ya contratado o terminar en las primeras dos semanas del trimestre el cargo de Jefe de Departamento, Rector, Director o Secretarío o el Sabático
A4: PROF DEFS DEDICACIÓN COMPLETA* 15I | D4: PROF DEFS DEDICACIÓN COMPLETA* 15P | G4: PROF DEFS DEDICACIÓN COMPLETA* 15O
A5: CBI | B5: BERISTAIN CARDOSO, RICARDO | D5: CBI | E5: BERISTAIN CARDOSO, RICARDO | G5: CBI | H5: BUSSY , ANNE LAURE SABINE
A6: CBI | B6: BUSSY , ANNE LAURE SABINE | D6: CBI | E6: BUSSY , ANNE LAURE SABINE | G6: CBI | H6: DOMINGUEZ MARIANI, ELOISA
A7: CBI | B7: LAGUNA SANCHEZ, GERARDO ABEL | D7: CBI | E7: DOMINGUEZ MARIANI, ELOISA | G7: CBI | H7: HERNANDEZ ZAPATA, ERNESTO
A8: CBI | B8: PUERTA HUERTA, JOSE PEDRO ANTONIO | D8: CBI | E8: JARDON VALADEZ, HECTOR EDUARDO | G8: CBI | H8: JARDON VALADEZ, HECTOR EDUARDO
A9: CBS | B9: ALAVEZ ESPIDIO, SILVESTRE DE JESUS | D9: CBI | E9: LAGUNA SANCHEZ, GERARDO ABEL | G9: CBI | H9: LAGUNA SANCHEZ, GERARDO ABEL
A10: CBS | B10: CASTILLO GUAJARDO, DERIK | D10: CBI | E10: PUERTA HUERTA, JOSE PEDRO ANTONIO | G10: CBI | H10: PUERTA HUERTA, JOSE PEDRO ANTONIO
A11: CBS | B11: CHAVEZ TOVAR, JOSE CUAUHTEMOC | D11: CBI | E11: REYES GUTIERREZ, LAZARO RAYMUNDO | G11: CBI | H11: REYES GUTIERREZ, LAZARO RAYMUNDO
A12: CBS | B12: GARCIA ARELLANO, HUMBERTO | D12: CBI | E12: REYES MERCADO, YURI | G12: CBI | H12: REYES MERCADO, YURI
A13: CBS | B13: JIMENEZ GUZMAN, JUDITH | D13: CBI | E13: SANDOVAL GUTIERREZ, JACOBO | G13: CBI | H13: SANDOVAL GUTIERREZ, JACOBO
A14: CBS | B14: LOPEZ PEREZ, MARCOS | D14: CBS | E14: ALAVEZ ESPIDIO, SILVESTRE DE JESUS | G14: CBS | H14: CASTILLO GUAJARDO, DERIK
A15: CBS | B15: PELZ SERRANO, KARLA | D15: CBS | E15: CASTILLO GUAJARDO, DERIK | G15: CBS | H15: FLORES PEDROCHE, JOSE FRANCISCO
A16: CSH | B16: AGUILAR ASTORGA, CARLOS RICARDO | D16: CBS | E16: CHAVEZ TOVAR, JOSE CUAUHTEMOC | G16: CBS | H16: GARCIA ARELLANO, HUMBERTO
A17: CSH | B17: BLASQUEZ MARTINEZ, LIDIA IVONNE | D17: CBS | E17: FLORES PEDROCHE, JOSE FRANCISCO | G17: CBS | H17: GUZMAN RAMOS, KIOKO RUBI
A18: CSH | B18: CHAVEZ BECKER, CARLOS GABRIEL | D18: CBS | E18: GARCIA ARELLANO, HUMBERTO | G18: CBS | H18: JIMENEZ GUZMAN, JUDITH
A19: CSH | B19: FIGUEROA ROMERO, RAUL | D19: CBS | E19: JIMENEZ GUZMAN, JUDITH | G19: CBS | H19: LIST SANCHEZ, RURIK HERMANN
A20: CSH | B20: LARA CABALLERO, MANUEL | D20: CBS | E20: LIST SANCHEZ, RURIK HERMANN | G20: CBS | H20: LOPEZ PEREZ, MARCOS
A21: CSH | B21: MARTINEZ TIBURCIO, MARIA GABRIELA | D21: CBS | E21: LOPEZ PEREZ, MARCOS | G21: CBS | H21: PACHECO LOPEZ, GUSTAVO
A22: CSH | B22: SOSA JUARICO, MONICA ADRIANA | D22: CBS | E22: PELZ SERRANO, KARLA | G22: CBS | H22: PELZ SERRANO, KARLA
D23: CSH | E23: AGUILAR ASTORGA, CARLOS RICARDO | G23: CSH | H23: AGUILAR ASTORGA, CARLOS RICARDO
D24: CSH | E24: BLASQUEZ MARTINEZ, LIDIA IVONNE | G24: CSH | H24: BENITEZ DAVILA, MONICA FRANCISCA
D25: CSH | E25: CHAVEZ BECKER, CARLOS GABRIEL | G25: CSH | H25: BLASQUEZ MARTINEZ, LIDIA IVONNE
D26: CSH | E26: FIGUEROA ROMERO, RAUL | G26: CSH | H26: CHAVEZ BECKER, CARLOS GABRIEL
D27: CSH | E27: LARA CABALLERO, MANUEL | G27: CSH | H27: FIGUEROA ROMERO, RAUL
D28: CSH | E28: MARTINEZ GONZALEZ, NATAL ALEJANDRO | G28: CSH | H28: MARTINEZ GONZALEZ, NATAL ALEJANDRO
D29: CSH | E29: MARTINEZ TIBURCIO, MARIA GABRIELA | G29: CSH | H29: MARTINEZ TIBURCIO, MARIA GABRIELA
D30: CSH | E30: SOSA JUARICO, MONICA ADRIANA | G30: CSH | H30: ROZGA LUTER, RYSZARD EDWARD
G31: CSH | H31: SOSA JUARICO, MONICA ADRIANA

Sheet Grupos 2015
A1: INDICE
A2: GRUPOS IMPARTIDOS EN EL AÑO 2015 *Para ser considerado DEF DEDICACIÓN COMPLETA (DDC), al inicio del trimestre debe estar ya contratado o terminar en las primeras dos semanas del trimestre el cargo de Jefe de Departamento, Rector, Director o Secretarío o el Sabático **Sin "Análisis de las Problemáticas Complejas I y II y Considerando el valor promedio por grupo para las HFG
A3: key | B3: DIV | C3: TRIM | D3: CONTR | E3: DDC* | F3: NOEC | G3: PROFESOR(A) | H3: UEA | I3: TIPO | J3: UEA-GRUPO | K3: INSCRITOS(AS) | L3: HFG** promedio
A4: 119 | B4: CBI | C4: 15-O | D4: TEMP | F4: 31356 | G4: ARROYO GOMEZ MARICELA | H4: ESTRUCTURA Y PROPIEDADES DE LA MATERIA | I4: OBL | J4: 5110000-IA01RH | K4: 28 | L4: 5
A5: 238 | B5: CBI | C5: 15-P | D5: TEMP | F5: 31356 | G5: ARROYO GOMEZ MARICELA | H5: ESTRUCTURA Y PROPIEDADES DE LA MATERIA | I5: OBL | J5: 5110000-IA01RH | K5: 23 | L5: 6.7
A6: 96 | B6: CBI | C6: 15-O | D6: DEF | E6: X | F6: 25486 | G6: BUSSY ANNE LAURE SABINE | H6: ESTRUCTURA Y PROPIEDADES DE LA MATERIA | I6: OBL | J6: 5110000-IA01RH | K6: 28 | L6: 5
A7: 222 | B7: CBI | C7: 15-P | D7: DEF | E7: X | F7: 35716 | G7: DOMINGUEZ MARIANI ELOISA | H7: ESTRUCTURA Y PROPIEDADES DE LA MATERIA | I7: OBL | J7: 5110000-IA01RH | K7: 23 | L7: 6.7
A8: 100 | B8: CBI | C8: 15-O | D8: DEF | E8: X | F8: 35091 | G8: JARDON VALADEZ HECTOR EDUARDO | H8: ESTRUCTURA Y PROPIEDADES DE LA MATERIA | I8: OBL | J8: 5110000-IA01RH | K8: 28 | L8: 5
A9: 252 | B9: CBI | C9: 15-P | D9: TEMP | F9: 14842 | G9: SORDO ZABAY EMILIO | H9: ESTRUCTURA Y PROPIEDADES DE LA MATERIA | I9: OBL | J9: 5110000-IA01RH | K9: 23 | L9: 6.7
A10: 137 | B10: CBI | C10: 15-O | D10: TEMP | F10: 38563 | G10: TORRES CORTES LUISEL JONATAN | H10: ESTRUCTURA Y PROPIEDADES DE LA MATERIA | I10: OBL | J10: 5110000-IA01RH | K10: 28 | L10: 5
A11: 3 | B11: CBI | C11: 15-I | D11: JD | F11: 36019 | G11: HERNANDEZ ZAPATA ERNESTO | H11: FUERZA, ENERGÍA Y MOVIMIENTO | I11: OBL | J11: 5110001-IB01RH | K11: 15 | L11: 5
A12: 99 | B12: CBI | C12: 15-O | D12: JD | E12: X | F12: 36019 | G12: HERNANDEZ ZAPATA ERNESTO | H12: FUERZA, ENERGÍA Y MOVIMIENTO | I12: OBL | J12: 5110001-IB01RH | K12: 13 | L12: 6.7
A13: 122 | B13: CBI | C13: 15-O | D13: TEMP | F13: 23524 | G13: LOPEZ MALDONADO GUILLERMO | H13: FUERZA, ENERGÍA Y MOVIMIENTO | I13: OBL | J13: 5110001-IB01RH | K13: 13 | L13: 6.7
A14: 240 | B14: CBI | C14: 15-P | D14: TEMP | F14: 23524 | G14: LOPEZ MALDONADO GUILLERMO | H14: FUERZA, ENERGÍA Y MOVIMIENTO | I14: OBL | J14: 5110001-IB01RH | K14: 18 | L14: 6.7
A15: 244 | B15: CBI | C15: 15-P | D15: TEMP | F15: 162 | G15: PEREZ RICARDEZ ALEJANDRO RAYMUNDO | H15: FUERZA, ENERGÍA Y MOVIMIENTO | I15: OBL | J15: 5110001-IB01RH | K15: 18 | L15: 6.7
A16: 22 | B16: CBI | C16: 15-I | D16: TEMP | F16: 28181 | G16: SALAZAR LAURELES JOSE LUIS | H16: FUERZA, ENERGÍA Y MOVIMIENTO | I16: OBL | J16: 5110001-IB01RH | K16: 15 | L16: 5
A17: 131 | B17: CBI | C17: 15-O | D17: TEMP | F17: 28181 | G17: SALAZAR LAURELES JOSE LUIS | H17: FUERZA, ENERGÍA Y MOVIMIENTO | I17: OBL | J17: 5110001-IB01RH | K17: 13 | L17: 6.7
A18: 245 | B18: CBI | C18: 15-P | D18: TEMP | F18: 28181 | G18: SALAZAR LAURELES JOSE LUIS | H18: FUERZA, ENERGÍA Y MOVIMIENTO | I18: OBL | J18: 5110001-IB01RH | K18: 18 | L18: 6.7
A19: 25 | B19: CBI | C19: 15-I | D19: TEMP | F19: 37350 | G19: SILVA LUNA CARLOS DAVID | H19: FUERZA, ENERGÍA Y MOVIMIENTO | I19: OBL | J19: 5110001-IB01RH | K19: 15 | L19: 5
A20: 11 | B20: CBI | C20: 15-I | D20: JD | F20: 36946 | G20: VON BULOW PHILIPP | H20: FUERZA, ENERGÍA Y MOVIMIENTO | I20: OBL | J20: 5110001-IB01RH | K20: 15 | L20: 5
A21: 13 | B21: CBI | C21: 15-I | D21: TEMP | F21: 31356 | G21: ARROYO GOMEZ MARICELA | H21: FUERZA, ENERGÍA Y MOVIMIENTO | I21: OBL | J21: 5110001-IB02RH | K21: 16 | L21: 6.7
A22: 15 | B22: CBI | C22: 15-I | D22: TEMP | F22: 37545 | G22: GARCIA FONTES ADOLFO | H22: FUERZA, ENERGÍA Y MOVIMIENTO | I22: OBL | J22: 5110001-IB02RH | K22: 16 | L22: 6.7
A23: 6 | B23: CBI | C23: 15-I | D23: SA | F23: 31092 | G23: LOPEZ GALVAN EDGAR | H23: FUERZA, ENERGÍA Y MOVIMIENTO | I23: OBL | J23: 5110001-IB02RH | K23: 16 | L23: 6.7
A24: 105 | B24: CBI | C24: 15-O | D24: SA | F24: 31092 | G24: LOPEZ GALVAN EDGAR | H24: ANÁLISIS TERMODINÁMICO | I24: OBL | J24: 5110002-IC01RH | K24: 22 | L24: 5
A25: 19 | B25: CBI | C25: 15-I | D25: TEMP | F25: 23524 | G25: LOPEZ MALDONADO GUILLERMO | H25: ANÁLISIS TERMODINÁMICO | I25: OBL | J25: 5110002-IC01RH | K25: 8 | L25: 6.7
A26: 123 | B26: CBI | C26: 15-O | D26: TEMP | F26: 23524 | G26: LOPEZ MALDONADO GUILLERMO | H26: ANÁLISIS TERMODINÁMICO | I26: OBL | J26: 5110002-IC01RH | K26: 22 | L26: 5
A27: 21 | B27: CBI | C27: 15-I | D27: TEMP | F27: 36702 | G27: PEREZ MARTINEZ FRANCISCO | H27: ANÁLISIS TERMODINÁMICO | I27: OBL | J27: 5110002-IC01RH | K27: 8 | L27: 6.7
A28: 243 | B28: CBI | C28: 15-P | D28: TEMP | F28: 36702 | G28: PEREZ MARTINEZ FRANCISCO | H28: ANÁLISIS TERMODINÁMICO | I28: OBL | J28: 5110002-IC01RH | K28: 9 | L28: 5
A29: 9 | B29: CBI | C29: 15-I | D29: DEF | F29: 37866 | G29: REYES MERCADO YURI | H29: ANÁLISIS TERMODINÁMICO | I29: OBL | J29: 5110002-IC01RH | K29: 8 | L29: 6.7
A30: 234 | B30: CBI | C30: 15-P | D30: DEF | E30: X | F30: 37866 | G30: REYES MERCADO YURI | H30: ANÁLISIS TERMODINÁMICO | I30: OBL | J30: 5110002-IC01RH | K30: 9 | L30: 5
A31: 248 | B31: CBI | C31: 15-P | D31: TEMP | F31: 38977 | G31: SANTA FE DUEÑAS ADOLFO | H31: ANÁLISIS TERMODINÁMICO | I31: OBL | J31: 5110002-IC01RH | K31: 9 | L31: 5
A32: 135 | B32: CBI | C32: 15-O | D32: TEMP | F32: 37350 | G32: SILVA LUNA CARLOS DAVID | H32: ANÁLISIS TERMODINÁMICO | I32: OBL | J32: 5110002-IC01RH | K32: 22 | L32: 5
A33: 251 | B33: CBI | C33: 15-P | D33: TEMP | F33: 37350 | G33: SILVA LUNA CARLOS DAVID | H33: ANÁLISIS TERMODINÁMICO | I33: OBL | J33: 5110002-IC01RH | K33: 9 | L33: 5
A34: 136 | B34: CBI | C34: 15-O | D34: TEMP | F34: 38563 | G34: TORRES CORTES LUISEL JONATAN | H34: ANÁLISIS TERMODINÁMICO | I34: OBL | J34: 5110002-IC01RH | K34: 22 | L34: 5
A35: 120 | B35: CBI | C35: 15-O | D35: TEMP | F35: 31356 | G35: ARROYO GOMEZ MARICELA | H35: SISTEMAS BIOLÓGICOS | I35: OBL | J35: 5110003-ID01RH | K35: 3 | L35: 21
A36: 219 | B36: CBI | C36: 15-P | D36: CO | E36: X | F36: 25486 | G36: BUSSY ANNE LAURE SABINE | H36: SISTEMAS BIOLÓGICOS | I36: OBL | J36: 5110003-ID01RH | K36: 7 | L36: 3
A37: 224 | B37: CBI | C37: 15-P | D37: JD | F37: 36019 | G37: HERNANDEZ ZAPATA ERNESTO | H37: SISTEMAS BIOLÓGICOS | I37: OBL | J37: 5110003-ID01RH | K37: 7 | L37: 3
A38: 227 | B38: CBI | C38: 15-P | D38: DEF | E38: X | F38: 35091 | G38: JARDON VALADEZ HECTOR EDUARDO | H38: SISTEMAS BIOLÓGICOS | I38: OBL | J38: 5110003-ID01RH | K38: 7 | L38: 3
A39: 274 | B39: CBS | C39: 15-P | D39: TEMP | F39: 36060 | G39: ABARCA GARCIA CESAR ANTONIO | H39: SISTEMAS BIOLÓGICOS | I39: OBL | J39: 5110003-ID01RH | K39: 7 | L39: 3
A40: 282 | B40: CBS | C40: 15-P | D40: TEMP | F40: 16064 | G40: GARCIA GARIBAY JOSE MARIANO | H40: SISTEMAS BIOLÓGICOS | I40: OBL | J40: 5110003-ID01RH | K40: 7 | L40: 3
A41: 268 | B41: CBS | C41: 15-P | D41: DEF | E41: X | F41: 36002 | G41: LOPEZ PEREZ MARCOS | H41: SISTEMAS BIOLÓGICOS | I41: OBL | J41: 5110003-ID01RH | K41: 7 | L41: 3
A42: 293 | B42: CSH | C42: 15-P | D42: DEF | E42: X | F42: 35988 | G42: BLASQUEZ MARTINEZ LIDIA IVONNE | H42: SISTEMAS BIOLÓGICOS | I42: OBL | J42: 5110003-ID01RH | K42: 7 | L42: 3
A43: 1 | B43: CBI | C43: 15-I | D43: DEF | E43: X | F43: 32841 | G43: BERISTAIN CARDOSO RICARDO | H43: TRANSPORTE Y CALIDAD DEL AGUA | I43: OBL | J43: 5110004-IF01RH | K43: 4 | L43: 5.3
A44: 216 | B44: CBI | C44: 15-P | D44: DEF | E44: X | F44: 32841 | G44: BERISTAIN CARDOSO RICARDO | H44: TRANSPORTE Y CALIDAD DEL AGUA | I44: OBL | J44: 5110004-IF01RH | K44: 12 | L44: 4
A45: 220 | B45: CBI | C45: 15-P | D45: CO | E45: X | F45: 25486 | G45: BUSSY ANNE LAURE SABINE | H45: TRANSPORTE Y CALIDAD DEL AGUA | I45: OBL | J45: 5110004-IF01RH | K45: 12 | L45: 4
A46: 18 | B46: CBI | C46: 15-I | D46: TEMP | F46: 23524 | G46: LOPEZ MALDONADO GUILLERMO | H46: TRANSPORTE Y CALIDAD DEL AGUA | I46: OBL | J46: 5110004-IF01RH | K46: 4 | L46: 5.3
A47: 242 | B47: CBI | C47: 15-P | D47: TEMP | F47: 39425 | G47: MENDOZA RESENDIZ ALEJANDRO | H47: TRANSPORTE Y CALIDAD DEL AGUA | I47: OBL | J47: 5110004-IF01RH | K47: 12 | L47: 4
A48: 246 | B48: CBI | C48: 15-P | D48: TEMP | F48: 28181 | G48: SALAZAR LAURELES JOSE LUIS | H48: TRANSPORTE Y CALIDAD DEL AGUA | I48: OBL | J48: 5110004-IF01RH | K48: 12 | L48: 4
A49: 24 | B49: CBI | C49: 15-I | D49: TEMP | F49: 37350 | G49: SILVA LUNA CARLOS DAVID | H49: TRANSPORTE Y CALIDAD DEL AGUA | I49: OBL | J49: 5110004-IF01RH | K49: 4 | L49: 5.3
A50: 95 | B50: CBI | C50: 15-O | D50: DEF | F50: 32841 | G50: BERISTAIN CARDOSO RICARDO | H50: SISTEMAS DE TRATAMIENTO DE AGUA | I50: OBL | J50: 5110005-IG01RH | K50: 12 | L50: 5
A51: 217 | B51: CBI | C51: 15-P | D51: DEF | E51: X | F51: 32841 | G51: BERISTAIN CARDOSO RICARDO | H51: SISTEMAS DE TRATAMIENTO DE AGUA | I51: OBL | J51: 5110005-IG01RH | K51: 4 | L51: 5
A52: 111 | B52: CBI | C52: 15-O | D52: DEF | E52: X | F52: 37866 | G52: REYES MERCADO YURI | H52: SISTEMAS DE TRATAMIENTO DE AGUA | I52: OBL | J52: 5110005-IG01RH | K52: 12 | L52: 5
A53: 114 | B53: CBI | C53: 15-O | D53: CO | E53: X | F53: 35470 | G53: SANDOVAL GUTIERREZ JACOBO | H53: SISTEMAS DE TRATAMIENTO DE AGUA | I53: OBL | J53: 5110005-IG01RH | K53: 12 | L53: 5
A54: 235 | B54: CBI | C54: 15-P | D54: DEF | E54: X | F54: 35470 | G54: SANDOVAL GUTIERREZ JACOBO | H54: SISTEMAS DE TRATAMIENTO DE AGUA | I54: OBL | J54: 5110005-IG01RH | K54: 4 | L54: 5
A55: 249 | B55: CBI | C55: 15-P | D55: TEMP | F55: 38977 | G55: SANTA FE DUEÑAS ADOLFO | H55: SISTEMAS DE TRATAMIENTO DE AGUA | I55: OBL | J55: 5110005-IG01RH | K55: 4 | L55: 5
A56: 134 | B56: CBI | C56: 15-O | D56: TEMP | F56: 37350 | G56: SILVA LUNA CARLOS DAVID | H56: SISTEMAS DE TRATAMIENTO DE AGUA | I56: OBL | J56: 5110005-IG01RH | K56: 12 | L56: 5
A57: 250 | B57: CBI | C57: 15-P | D57: TEMP | F57: 37350 | G57: SILVA LUNA CARLOS DAVID | H57: SISTEMAS DE TRATAMIENTO DE AGUA | I57: OBL | J57: 5110005-IG01RH | K57: 4 | L57: 5
A58: 97 | B58: CBI | C58: 15-O | D58: DEF | E58: X | F58: 35716 | G58: DOMINGUEZ MARIANI ELOISA | H58: MOVIMIENTO DE CUERPOS DE AGUA | I58: OBL | J58: 5110006-IH01RH | K58: 5 | L58: 6.7
A59: 17 | B59: CBI | C59: 15-I | D59: TEMP | F59: 14436 | G59: GUAYCOCHEA GUGLIELMI DARIO EDUARDO | H59: MOVIMIENTO DE CUERPOS DE AGUA | I59: OBL | J59: 5110006-IH01RH | K59: 8 | L59: 6.7
A60: 125 | B60: CBI | C60: 15-O | D60: TEMP | F60: 39425 | G60: MENDOZA RESENDIZ ALEJANDRO | H60: MOVIMIENTO DE CUERPOS DE AGUA | I60: OBL | J60: 5110006-IH01RH | K60: 5 | L60: 6.7
A61: 8 | B61: CBI | C61: 15-I | D61: DEF | F61: 37016 | G61: REYES GUTIERREZ LAZARO RAYMUNDO | H61: MOVIMIENTO DE CUERPOS DE AGUA | I61: OBL | J61: 5110006-IH01RH | K61: 8 | L61: 6.7
A62: 108 | B62: CBI | C62: 15-O | D62: DEF | E62: X | F62: 37016 | G62: REYES GUTIERREZ LAZARO RAYMUNDO | H62: MOVIMIENTO DE CUERPOS DE AGUA | I62: OBL | J62: 5110006-IH01RH | K62: 5 | L62: 6.7
A63: 10 | B63: CBI | C63: 15-I | D63: DIR | F63: 21359 | G63: SOTO CORTÉS GABRIEL | H63: MOVIMIENTO DE CUERPOS DE AGUA | I63: OBL | J63: 5110006-IH01RH | K63: 8 | L63: 6.7
A64: 228 | B64: CBI | C64: 15-P | D64: DEF | E64: X | F64: 34371 | G64: LAGUNA SANCHEZ GERARDO ABEL | H64: FORMULACIÓN Y EVALUACIÓN DE PROYECTOS DE INGENIERÍA | I64: OBL | J64: 5110007-II01RH | K64: 9 | L64: 16
A65: 98 | B65: CBI | C65: 15-O | D65: DEF | E65: X | F65: 35716 | G65: DOMINGUEZ MARIANI ELOISA | H65: POLITICA Y GESTION INTEGRAL DEL AGUA | I65: OBL | J65: 5110008-IJ01RH | K65: 8 | L65: 5
A66: 109 | B66: CBI | C66: 15-O | D66: DEF | E66: X | F66: 37016 | G66: REYES GUTIERREZ LAZARO RAYMUNDO | H66: POLITICA Y GESTION INTEGRAL DEL AGUA | I66: OBL | J66: 5110008-IJ01RH | K66: 8 | L66: 5
A67: 182 | B67: CSH | C67: 15-O | D67: DEF | E67: X | F67: 35988 | G67: BLASQUEZ MARTINEZ LIDIA IVONNE | H67: POLITICA Y GESTION INTEGRAL DEL AGUA | I67: OBL | J67: 5110008-IJ01RH | K67: 8 | L67: 5
A68: 179 | B68: CSH | C68: 15-O | D68: DEF | E68: X | F68: 36171 | G68: BENITEZ DAVILA MONICA FRANCISCA | H68: HISTORIA, SUJETOS Y SABERES | I68: OBL | J68: 5210000-SA01AC | K68: 17 | L68: 6.7
A69: 208 | B69: CSH | C69: 15-O | D69: TEMP | F69: 38809 | G69: HERNANDEZ RAZO OSCAR ENRIQUE | H69: HISTORIA, SUJETOS Y SABERES | I69: OBL | J69: 5210000-SA01AC | K69: 17 | L69: 6.7
A70: 200 | B70: CSH | C70: 15-O | D70: JD | F70: 38161 | G70: SANCHEZ CARDONA LUZ MARIA | H70: HISTORIA, SUJETOS Y SABERES | I70: OBL | J70: 5210000-SA01AC | K70: 17 | L70: 6.7
A71: 178 | B71: CSH | C71: 15-O | D71: DEF | E71: X | F71: 37911 | G71: AGUILAR ASTORGA CARLOS RICARDO | H71: HISTORIA, SUJETOS Y SABERES | I71: OBL | J71: 5210000-SA01PP | K71: 38 | L71: 6.7
A72: 181 | B72: CSH | C72: 15-O | D72: DEF | E72: X | F72: 35988 | G72: BLASQUEZ MARTINEZ LIDIA IVONNE | H72: HISTORIA, SUJETOS Y SABERES | I72: OBL | J72: 5210000-SA01PP | K72: 38 | L72: 6.7
A73: 186 | B73: CSH | C73: 15-O | D73: DEF | E73: X | F73: 32206 | G73: FIGUEROA ROMERO RAUL | H73: HISTORIA, SUJETOS Y SABERES | I73: OBL | J73: 5210000-SA01PP | K73: 38 | L73: 6.7
A74: 66 | B74: CSH | C74: 15-I | D74: DEF | E74: X | F74: 37911 | G74: AGUILAR ASTORGA CARLOS RICARDO | H74: FUNDAMENTOS DEL ESTADO MODERNO | I74: OBL | J74: 5210001-SB01PP | K74: 22 | L74: 7
A75: 70 | B75: CSH | C75: 15-I | D75: DEF | E75: X | F75: 38204 | G75: CHAVEZ BECKER CARLOS GABRIEL | H75: FUNDAMENTOS DEL ESTADO MODERNO | I75: OBL | J75: 5210001-SB01PP | K75: 22 | L75: 7
A76: 72 | B76: CSH | C76: 15-I | D76: DEF | E76: X | F76: 32206 | G76: FIGUEROA ROMERO RAUL | H76: FUNDAMENTOS DEL ESTADO MODERNO | I76: OBL | J76: 5210001-SB01PP | K76: 22 | L76: 7
A77: 296 | B77: CSH | C77: 15-P | D77: DEF | E77: X | F77: 38204 | G77: CHAVEZ BECKER CARLOS GABRIEL | H77: ESTADO Y SOCIEDAD EN MEXICO | I77: OBL | J77: 5210002-SC01PP | K77: 19 | L77: 7
A78: 312 | B78: CSH | C78: 15-P | D78: TEMP | F78: 37608 | G78: DIAZ JIMENEZ ONIEL FRANCISCO | H78: ESTADO Y SOCIEDAD EN MEXICO | I78: OBL | J78: 5210002-SC01PP | K78: 19 | L78: 7
A79: 298 | B79: CSH | C79: 15-P | D79: DEF | E79: X | F79: 32206 | G79: FIGUEROA ROMERO RAUL | H79: ESTADO Y SOCIEDAD EN MEXICO | I79: OBL | J79: 5210002-SC01PP | K79: 19 | L79: 7
A80: 130 | B80: CBI | C80: 15-O | D80: TEMP | F80: 162 | G80: PEREZ RICARDEZ ALEJANDRO RAYMUNDO | H80: GESTION E INSTITUCIONES | I80: OBL | J80: 5210003-SD01PP | K80: 17 | L80: 5
A81: 187 | B81: CSH | C81: 15-O | D81: DEF | E81: X | F81: 32206 | G81: FIGUEROA ROMERO RAUL | H81: GESTION E INSTITUCIONES | I81: OBL | J81: 5210003-SD01PP | K81: 17 | L81: 5
A82: 192 | B82: CSH | C82: 15-O | D82: DEF | F82: 29839 | G82: HERNANDEZ MAR RAUL | H82: GESTION E INSTITUCIONES | I82: OBL | J82: 5210003-SD01PP | K82: 17 | L82: 5
A83: 193 | B83: CSH | C83: 15-O | D83: JD | F83: 36935 | G83: LARA CABALLERO MANUEL | H83: GESTION E INSTITUCIONES | I83: OBL | J83: 5210003-SD01PP | K83: 17 | L83: 5
A84: 291 | B84: CSH | C84: 15-P | D84: DEF | E84: X | F84: 37911 | G84: AGUILAR ASTORGA CARLOS RICARDO | H84: GOBIERNO Y POLITICAS PUBLICAS | I84: OBL | J84: 5210004-SF01PP | K84: 19 | L84: 6.7
A85: 84 | B85: CSH | C85: 15-I | D85: TEMP | F85: 37608 | G85: DIAZ JIMENEZ ONIEL FRANCISCO | H85: GOBIERNO Y POLITICAS PUBLICAS | I85: OBL | J85: 5210004-SF01PP | K85: 14 | L85: 6.7
A86: 303 | B86: CSH | C86: 15-P | D86: DEF | E86: X | F86: 37044 | G86: MARTINEZ TIBURCIO MARIA GABRIELA | H86: GOBIERNO Y POLITICAS PUBLICAS | I86: OBL | J86: 5210004-SF01PP | K86: 19 | L86: 6.7
A87: 88 | B87: CSH | C87: 15-I | D87: TEMP | F87: 38502 | G87: PERERA RAMOS RODRIGO | H87: GOBIERNO Y POLITICAS PUBLICAS | I87: OBL | J87: 5210004-SF01PP | K87: 14 | L87: 6.7
A88: 91 | B88: CSH | C88: 15-I | D88: TEMP | F88: 38165 | G88: ROJAS NAVARRETE DANIEL | H88: GOBIERNO Y POLITICAS PUBLICAS | I88: OBL | J88: 5210004-SF01PP | K88: 14 | L88: 6.7
A89: 322 | B89: CSH | C89: 15-P | D89: TEMP | F89: 38165 | G89: ROJAS NAVARRETE DANIEL | H89: GOBIERNO Y POLITICAS PUBLICAS | I89: OBL | J89: 5210004-SF01PP | K89: 19 | L89: 6.7
A90: 176 | B90: CSH | C90: 15-O | D90: DEF | E90: X | F90: 37911 | G90: AGUILAR ASTORGA CARLOS RICARDO | H90: ADMINISTRACION Y POLITICAS PUBLICAS | I90: OBL | J90: 5210005-SG01PP | K90: 20 | L90: 7
A91: 318 | B91: CSH | C91: 15-P | D91: TEMP | F91: 38502 | G91: PERERA RAMOS RODRIGO | H91: ADMINISTRACION Y POLITICAS PUBLICAS | I91: OBL | J91: 5210005-SG01PP | K91: 21 | L91: 7
A92: 319 | B92: CSH | C92: 15-P | D92: TEMP | F92: 38502 | G92: PERERA RAMOS RODRIGO | H92: ADMINISTRACION Y POLITICAS PUBLICAS | I92: OBL | J92: 5210005-SG01PP | K92: 21 | L92: 7
A93: 201 | B93: CSH | C93: 15-O | D93: DEF | E93: X | F93: 39289 | G93: SOSA JUARICO MONICA ADRIANA | H93: ADMINISTRACION Y POLITICAS PUBLICAS | I93: OBL | J93: 5210005-SG01PP | K93: 20 | L93: 7
A94: 309 | B94: CSH | C94: 15-P | D94: DEF | E94: X | F94: 39289 | G94: SOSA JUARICO MONICA ADRIANA | H94: ADMINISTRACION Y POLITICAS PUBLICAS | I94: OBL | J94: 5210005-SG01PP | K94: 21 | L94: 7
A95: 214 | B95: CSH | C95: 15-O | D95: TEMP | F95: 17734 | G95: VAZQUEZ HERNANDEZ GERARDO | H95: ADMINISTRACION Y POLITICAS PUBLICAS | I95: OBL | J95: 5210005-SG01PP | K95: 20 | L95: 7
A96: 67 | B96: CSH | C96: 15-I | D96: DEF | E96: X | F96: 37911 | G96: AGUILAR ASTORGA CARLOS RICARDO | H96: INSTRUMENTACIÓN DE LAS POLÍTICAS PÚBLICAS | I96: OBL | J96: 5210006-SH01PP | K96: 19 | L96: 5.3
A97: 177 | B97: CSH | C97: 15-O | D97: DEF | E97: X | F97: 37911 | G97: AGUILAR ASTORGA CARLOS RICARDO | H97: INSTRUMENTACIÓN DE LAS POLÍTICAS PÚBLICAS | I97: OBL | J97: 5210006-SH01PP | K97: 18 | L97: 5.3
A98: 205 | B98: CSH | C98: 15-O | D98: TEMP | F98: 20178 | G98: DAVILA JAIME MARIBEL | H98: INSTRUMENTACIÓN DE LAS POLÍTICAS PÚBLICAS | I98: OBL | J98: 5210006-SH01PP | K98: 18 | L98: 5.3
A99: 75 | B99: CSH | C99: 15-I | D99: DEF | F99: 29839 | G99: HERNANDEZ MAR RAUL | H99: INSTRUMENTACIÓN DE LAS POLÍTICAS PÚBLICAS | I99: OBL | J99: 5210006-SH01PP | K99: 19 | L99: 5.3
A100: 191 | B100: CSH | C100: 15-O | D100: DEF | F100: 29839 | G100: HERNANDEZ MAR RAUL | H100: INSTRUMENTACIÓN DE LAS POLÍTICAS PÚBLICAS | I100: OBL | J100: 5210006-SH01PP | K100: 18 | L100: 5.3
A101: 76 | B101: CSH | C101: 15-I | D101: DEF | E101: X | F101: 36935 | G101: LARA CABALLERO MANUEL | H101: INSTRUMENTACIÓN DE LAS POLÍTICAS PÚBLICAS | I101: OBL | J101: 5210006-SH01PP | K101: 19 | L101: 5.3
A102: 77 | B102: CSH | C102: 15-I | D102: DEF | E102: X | F102: 37044 | G102: MARTINEZ TIBURCIO MARIA GABRIELA | H102: INSTRUMENTACIÓN DE LAS POLÍTICAS PÚBLICAS | I102: OBL | J102: 5210006-SH01PP | K102: 19 | L102: 5.3
A103: 195 | B103: CSH | C103: 15-O | D103: DEF | E103: X | F103: 37044 | G103: MARTINEZ TIBURCIO MARIA GABRIELA | H103: INSTRUMENTACIÓN DE LAS POLÍTICAS PÚBLICAS | I103: OBL | J103: 5210006-SH01PP | K103: 18 | L103: 5.3
A104: 299 | B104: CSH | C104: 15-P | D104: DEF | E104: X | F104: 32206 | G104: FIGUEROA ROMERO RAUL | H104: POLÍTICAS PÚBLICAS Y SISTEMA INTERNACIONAL | I104: OBL | J104: 5210007-SI01PP | K104: 19 | L104: 6.7
A105: 302 | B105: CSH | C105: 15-P | D105: DEF | E105: X | F105: 36935 | G105: LARA CABALLERO MANUEL | H105: POLÍTICAS PÚBLICAS Y SISTEMA INTERNACIONAL | I105: OBL | J105: 5210007-SI01PP | K105: 19 | L105: 6.7
A106: 324 | B106: CSH | C106: 15-P | D106: TEMP | F106: 17734 | G106: VAZQUEZ HERNANDEZ GERARDO | H106: POLÍTICAS PÚBLICAS Y SISTEMA INTERNACIONAL | I106: OBL | J106: 5210007-SI01PP | K106: 19 | L106: 6.7
A107: 184 | B107: CSH | C107: 15-O | D107: DEF | E107: X | F107: 38204 | G107: CHAVEZ BECKER CARLOS GABRIEL | H107: TEMAS SELECTOS | I107: OBL | J107: 5210008-SJ01PP | K107: 17 | L107: 6.7
A108: 194 | B108: CSH | C108: 15-O | D108: DEF | E108: X | F108: 36007 | G108: MARTINEZ GONZALEZ NATAL ALEJANDRO | H108: TEMAS SELECTOS | I108: OBL | J108: 5210008-SJ01PP | K108: 17 | L108: 6.7
A109: 198 | B109: CSH | C109: 15-O | D109: DEF | E109: X | F109: 27455 | G109: ROZGA LUTER RYSZARD EDWARD | H109: TEMAS SELECTOS | I109: OBL | J109: 5210008-SJ01PP | K109: 17 | L109: 6.7
A110: 83 | B110: CSH | C110: 15-I | D110: TEMP | F110: 37867 | G110: ARGUELLO MANRESA GEMMA DEL CARMEN | H110: ORIGENES Y RUPTURAS DEL ARTE CONTEMPORÁNEO | I110: OBL | J110: 5211001-SB01AC | K110: 17 | L110: 6.7
A111: 81 | B111: CSH | C111: 15-I | D111: DEF | F111: 38161 | G111: SANCHEZ CARDONA LUZ MARIA | H111: ORIGENES Y RUPTURAS DEL ARTE CONTEMPORÁNEO | I111: OBL | J111: 5211001-SB01AC | K111: 17 | L111: 6.7
A112: 94 | B112: CSH | C112: 15-I | D112: TEMP | F112: 38199 | G112: ZALDIVAR HERRERA JULIO ERNESTO | H112: ORIGENES Y RUPTURAS DEL ARTE CONTEMPORÁNEO | I112: OBL | J112: 5211001-SB01AC | K112: 17 | L112: 6.7
A113: 305 | B113: CSH | C113: 15-P | D113: TEMP | F113: 38518 | G113: ROCHA ITURBIDE MANUEL | H113: INTRODUCCION AL ARTE DIGITAL | I113: OBL | J113: 5211002-SC01AC | K113: 16 | L113: 6.7
A114: 308 | B114: CSH | C114: 15-P | D114: DEF | F114: 36929 | G114: SASTRE DOMÍNGUEZ MARÍA PAZ | H114: INTRODUCCION AL ARTE DIGITAL | I114: OBL | J114: 5211002-SC01AC | K114: 16 | L114: 6.7
A115: 325 | B115: CSH | C115: 15-P | D115: TEMP | F115: 38199 | G115: ZALDIVAR HERRERA JULIO ERNESTO | H115: INTRODUCCION AL ARTE DIGITAL | I115: OBL | J115: 5211002-SC01AC | K115: 16 | L115: 6.7
A116: 211 | B116: CSH | C116: 15-O | D116: TEMP | F116: 38897 | G116: RIBOULET CELIA | H116: ESTETICA Y PRACTICAS DEL ARTE DIGITAL CONTEMPORANEO | I116: OBL | J116: 5211003-SD01AC | K116: 15 | L116: 10
A117: 213 | B117: CSH | C117: 15-O | D117: TEMP | F117: 39359 | G117: TISSELLI VELEZ EUGENIO | H117: ESTETICA Y PRACTICAS DEL ARTE DIGITAL CONTEMPORANEO | I117: OBL | J117: 5211003-SD01AC | K117: 15 | L117: 10
A118: 311 | B118: CSH | C118: 15-P | D118: TEMP | F118: 37867 | G118: ARGUELLO MANRESA GEMMA DEL CARMEN | H118: COMUNICACION CREATIVA EN CULTURA DIGITAL | I118: OBL | J118: 5211004-SF01AC | K118: 11 | L118: 6.7
A119: 321 | B119: CSH | C119: 15-P | D119: TEMP | F119: 38897 | G119: RIBOULET CELIA | H119: COMUNICACION CREATIVA EN CULTURA DIGITAL | I119: OBL | J119: 5211004-SF01AC | K119: 11 | L119: 6.7
A120: 323 | B120: CSH | C120: 15-P | D120: TEMP | F120: 39359 | G120: TISSELLI VELEZ EUGENIO | H120: COMUNICACION CREATIVA EN CULTURA DIGITAL | I120: OBL | J120: 5211004-SF01AC | K120: 11 | L120: 6.7
A121: 204 | B121: CSH | C121: 15-O | D121: TEMP | F121: 37867 | G121: ARGUELLO MANRESA GEMMA DEL CARMEN | H121: ARTE INTERACTIVO | I121: OBL | J121: 5211005-SG01AC | K121: 11 | L121: 7
A122: 197 | B122: CSH | C122: 15-O | D122: TEMP | F122: 38518 | G122: ROCHA ITURBIDE MANUEL | H122: ARTE INTERACTIVO | I122: OBL | J122: 5211005-SG01AC | K122: 11 | L122: 7
A123: 215 | B123: CSH | C123: 15-O | D123: TEMP | F123: 38199 | G123: ZALDIVAR HERRERA JULIO ERNESTO | H123: ARTE INTERACTIVO | I123: OBL | J123: 5211005-SG01AC | K123: 11 | L123: 7
A124: 101 | B124: CBI | C124: 15-O | D124: DEF | E124: X | F124: 35091 | G124: JARDON VALADEZ HECTOR EDUARDO | H124: BASES FUNDAMENTALES DE LA VIDA | I124: OBL | J124: 5310000-BA01BA | K124: 32 | L124: 5
A125: 225 | B125: CBI | C125: 15-P | D125: DEF | E125: X | F125: 35091 | G125: JARDON VALADEZ HECTOR EDUARDO | H125: BASES FUNDAMENTALES DE LA VIDA | I125: OBL | J125: 5310000-BA01BA | K125: 25 | L125: 5
A126: 158 | B126: CBS | C126: 15-O | D126: TEMP | F126: 30408 | G126: DEL MORAL RAMIREZ ELIZABETH | H126: BASES FUNDAMENTALES DE LA VIDA | I126: OBL | J126: 5310000-BA01BA | K126: 32 | L126: 5
A127: 276 | B127: CBS | C127: 15-P | D127: TEMP | F127: 30408 | G127: DEL MORAL RAMIREZ ELIZABETH | H127: BASES FUNDAMENTALES DE LA VIDA | I127: OBL | J127: 5310000-BA01BA | K127: 25 | L127: 5
A128: 160 | B128: CBS | C128: 15-O | D128: TEMP | F128: 39145 | G128: DIAZ RAMIREZ MAYRA | H128: BASES FUNDAMENTALES DE LA VIDA | I128: OBL | J128: 5310000-BA01BA | K128: 32 | L128: 5
A129: 278 | B129: CBS | C129: 15-P | D129: TEMP | F129: 39145 | G129: DIAZ RAMIREZ MAYRA | H129: BASES FUNDAMENTALES DE LA VIDA | I129: OBL | J129: 5310000-BA01BA | K129: 25 | L129: 5
A130: 169 | B130: CBS | C130: 15-O | D130: TEMP | F130: 37901 | G130: RAYAS AMOR ADOLFO ARMANDO | H130: BASES FUNDAMENTALES DE LA VIDA | I130: OBL | J130: 5310000-BA01BA | K130: 32 | L130: 5
A131: 287 | B131: CBS | C131: 15-P | D131: TEMP | F131: 37901 | G131: RAYAS AMOR ADOLFO ARMANDO | H131: BASES FUNDAMENTALES DE LA VIDA | I131: OBL | J131: 5310000-BA01BA | K131: 25 | L131: 5
A132: 102 | B132: CBI | C132: 15-O | D132: DEF | E132: X | F132: 35091 | G132: JARDON VALADEZ HECTOR EDUARDO | H132: BASES FUNDAMENTALES DE LA VIDA | I132: OBL | J132: 5310000-BA02BA | K132: 27 | L132: 5
A133: 226 | B133: CBI | C133: 15-P | D133: DEF | E133: X | F133: 35091 | G133: JARDON VALADEZ HECTOR EDUARDO | H133: BASES FUNDAMENTALES DE LA VIDA | I133: OBL | J133: 5310000-BA02BA | K133: 22 | L133: 5
A134: 277 | B134: CBS | C134: 15-P | D134: TEMP | F134: 30408 | G134: DEL MORAL RAMIREZ ELIZABETH | H134: BASES FUNDAMENTALES DE LA VIDA | I134: OBL | J134: 5310000-BA02BA | K134: 22 | L134: 5
A135: 159 | B135: CBS | C135: 15-O | D135: TEMP | F135: 39145 | G135: DIAZ RAMIREZ MAYRA | H135: BASES FUNDAMENTALES DE LA VIDA | I135: OBL | J135: 5310000-BA02BA | K135: 27 | L135: 5
A136: 279 | B136: CBS | C136: 15-P | D136: TEMP | F136: 39145 | G136: DIAZ RAMIREZ MAYRA | H136: BASES FUNDAMENTALES DE LA VIDA | I136: OBL | J136: 5310000-BA02BA | K136: 22 | L136: 5
A137: 143 | B137: CBS | C137: 15-O | D137: DEF | E137: X | F137: 39547 | G137: GUZMAN RAMOS KIOKO RUBI | H137: BASES FUNDAMENTALES DE LA VIDA | I137: OBL | J137: 5310000-BA02BA | K137: 27 | L137: 5
A138: 168 | B138: CBS | C138: 15-O | D138: TEMP | F138: 37901 | G138: RAYAS AMOR ADOLFO ARMANDO | H138: BASES FUNDAMENTALES DE LA VIDA | I138: OBL | J138: 5310000-BA02BA | K138: 27 | L138: 5
A139: 286 | B139: CBS | C139: 15-P | D139: TEMP | F139: 37901 | G139: RAYAS AMOR ADOLFO ARMANDO | H139: BASES FUNDAMENTALES DE LA VIDA | I139: OBL | J139: 5310000-BA02BA | K139: 22 | L139: 5
A140: 29 | B140: CBS | C140: 15-I | D140: DEF | E140: X | F140: 37884 | G140: ALAVEZ ESPIDIO SILVESTRE DE JESUS | H140: DE LAS MOLÉCULAS A LA CÉLULA | I140: OBL | J140: 5310001-BB01BA | K140: 11 | L140: 5.8
A141: 156 | B141: CBS | C141: 15-O | D141: TEMP | F141: 37023 | G141: BASURTO ISLAS GUSTAVO | H141: DE LAS MOLÉCULAS A LA CÉLULA | I141: OBL | J141: 5310001-BB01BA | K141: 19 | L141: 5.8
A142: 36 | B142: CBS | C142: 15-I | D142: DEF | E142: X | F142: 35473 | G142: GARCIA ARELLANO HUMBERTO | H142: DE LAS MOLÉCULAS A LA CÉLULA | I142: OBL | J142: 5310001-BB01BA | K142: 11 | L142: 5.8
A143: 142 | B143: CBS | C143: 15-O | D143: DEF | E143: X | F143: 35473 | G143: GARCIA ARELLANO HUMBERTO | H143: DE LAS MOLÉCULAS A LA CÉLULA | I143: OBL | J143: 5310001-BB01BA | K143: 19 | L143: 5.8
A144: 43 | B144: CBS | C144: 15-I | D144: DEF | E144: X | F144: 36002 | G144: LOPEZ PEREZ MARCOS | H144: DE LAS MOLÉCULAS A LA CÉLULA | I144: OBL | J144: 5310001-BB01BA | K144: 11 | L144: 5.8
A145: 147 | B145: CBS | C145: 15-O | D145: DEF | E145: X | F145: 36002 | G145: LOPEZ PEREZ MARCOS | H145: DE LAS MOLÉCULAS A LA CÉLULA | I145: OBL | J145: 5310001-BB01BA | K145: 19 | L145: 5.8
A146: 57 | B146: CBS | C146: 15-I | D146: TEMP | F146: 37902 | G146: MONTIEL CASTRO AUGUSTO JACOBO | H146: DE LAS MOLÉCULAS A LA CÉLULA | I146: OBL | J146: 5310001-BB01BA | K146: 11 | L146: 5.8
A147: 167 | B147: CBS | C147: 15-O | D147: TEMP | F147: 37902 | G147: MONTIEL CASTRO AUGUSTO JACOBO | H147: DE LAS MOLÉCULAS A LA CÉLULA | I147: OBL | J147: 5310001-BB01BA | K147: 19 | L147: 5.8
A148: 49 | B148: CBS | C148: 15-I | D148: TEMP | F148: 36060 | G148: ABARCA GARCIA CESAR ANTONIO | H148: GENÉTICA Y MORFOFISIOLOGÍA EVOLUTIVA | I148: OBL | J148: 5310002-BC01BA | K148: 16 | L148: 4.6
A149: 52 | B149: CBS | C149: 15-I | D149: TEMP | F149: 37352 | G149: CRUZ MONTERROSA ROSY GABRIELA | H149: GENÉTICA Y MORFOFISIOLOGÍA EVOLUTIVA | I149: OBL | J149: 5310002-BC01BA | K149: 16 | L149: 4.6
A150: 259 | B150: CBS | C150: 15-P | D150: DEF | E150: X | F150: 11798 | G150: FLORES PEDROCHE JOSE FRANCISCO | H150: GENÉTICA Y MORFOFISIOLOGÍA EVOLUTIVA | I150: OBL | J150: 5310002-BC01BA | K150: 13 | L150: 5.8
A151: 55 | B151: CBS | C151: 15-I | D151: TEMP | F151: 16064 | G151: GARCIA GARIBAY JOSE MARIANO | H151: GENÉTICA Y MORFOFISIOLOGÍA EVOLUTIVA | I151: OBL | J151: 5310002-BC01BA | K151: 16 | L151: 4.6
A152: 281 | B152: CBS | C152: 15-P | D152: TEMP | F152: 16064 | G152: GARCIA GARIBAY JOSE MARIANO | H152: GENÉTICA Y MORFOFISIOLOGÍA EVOLUTIVA | I152: OBL | J152: 5310002-BC01BA | K152: 13 | L152: 5.8
A153: 37 | B153: CBS | C153: 15-I | D153: DEF | E153: X | F153: 22628 | G153: JIMENEZ GUZMAN JUDITH | H153: GENÉTICA Y MORFOFISIOLOGÍA EVOLUTIVA | I153: OBL | J153: 5310002-BC01BA | K153: 16 | L153: 4.6
A154: 263 | B154: CBS | C154: 15-P | D154: DEF | E154: X | F154: 22628 | G154: JIMENEZ GUZMAN JUDITH | H154: GENÉTICA Y MORFOFISIOLOGÍA EVOLUTIVA | I154: OBL | J154: 5310002-BC01BA | K154: 13 | L154: 5.8
A155: 41 | B155: CBS | C155: 15-I | D155: DEF | E155: X | F155: 36002 | G155: LOPEZ PEREZ MARCOS | H155: GENÉTICA Y MORFOFISIOLOGÍA EVOLUTIVA | I155: OBL | J155: 5310002-BC01BA | K155: 16 | L155: 4.6
A156: 269 | B156: CBS | C156: 15-P | D156: DEF | E156: X | F156: 36002 | G156: LOPEZ PEREZ MARCOS | H156: GENÉTICA Y MORFOFISIOLOGÍA EVOLUTIVA | I156: OBL | J156: 5310002-BC01BA | K156: 13 | L156: 5.8
A157: 155 | B157: CBS | C157: 15-O | D157: TEMP | F157: 35722 | G157: AGUIRRE GARRIDO JOSE FELIX | H157: DIVERSIDAD BIOLOGICA | I157: OBL | J157: 5310003-BD01BA | K157: 13 | L157: 3.8
A158: 31 | B158: CBS | C158: 15-I | D158: DEF | E158: X | F158: 35966 | G158: CASTILLO GUAJARDO DERIK | H158: DIVERSIDAD BIOLOGICA | I158: OBL | J158: 5310003-BD01BA | K158: 8 | L158: 5.8
A159: 35 | B159: CBS | C159: 15-I | D159: DEF | E159: X | F159: 36059 | G159: CHAVEZ TOVAR JOSE CUAUHTEMOC | H159: DIVERSIDAD BIOLOGICA | I159: OBL | J159: 5310003-BD01BA | K159: 8 | L159: 5.8
A160: 140 | B160: CBS | C160: 15-O | D160: JD | F160: 36059 | G160: CHAVEZ TOVAR JOSE CUAUHTEMOC | H160: DIVERSIDAD BIOLOGICA | I160: OBL | J160: 5310003-BD01BA | K160: 13 | L160: 3.8
A161: 256 | B161: CBS | C161: 15-P | D161: DEF | E161: X | F161: 36059 | G161: CHAVEZ TOVAR JOSE CUAUHTEMOC | H161: DIVERSIDAD BIOLOGICA | I161: OBL | J161: 5310003-BD01BA | K161: 16 | L161: 7.7
A162: 141 | B162: CBS | C162: 15-O | D162: DEF | E162: X | F162: 11798 | G162: FLORES PEDROCHE JOSE FRANCISCO | H162: DIVERSIDAD BIOLOGICA | I162: OBL | J162: 5310003-BD01BA | K162: 13 | L162: 3.8
A163: 39 | B163: CBS | C163: 15-I | D163: JD | F163: 35805 | G163: LIST SANCHEZ RURIK HERMANN | H163: DIVERSIDAD BIOLOGICA | I163: OBL | J163: 5310003-BD01BA | K163: 8 | L163: 5.8
A164: 146 | B164: CBS | C164: 15-O | D164: DEF | E164: X | F164: 35805 | G164: LIST SANCHEZ RURIK HERMANN | H164: DIVERSIDAD BIOLOGICA | I164: OBL | J164: 5310003-BD01BA | K164: 13 | L164: 3.8
A165: 265 | B165: CBS | C165: 15-P | D165: JD | E165: X | F165: 35805 | G165: LIST SANCHEZ RURIK HERMANN | H165: DIVERSIDAD BIOLOGICA | I165: OBL | J165: 5310003-BD01BA | K165: 16 | L165: 7.7
A166: 46 | B166: CBS | C166: 15-I | D166: DEF | E166: X | F166: 36941 | G166: PELZ SERRANO KARLA | H166: DIVERSIDAD BIOLOGICA | I166: OBL | J166: 5310003-BD01BA | K166: 8 | L166: 5.8
A167: 153 | B167: CBS | C167: 15-O | D167: DEF | E167: X | F167: 36941 | G167: PELZ SERRANO KARLA | H167: DIVERSIDAD BIOLOGICA | I167: OBL | J167: 5310003-BD01BA | K167: 13 | L167: 3.8
A168: 272 | B168: CBS | C168: 15-P | D168: DEF | E168: X | F168: 36941 | G168: PELZ SERRANO KARLA | H168: DIVERSIDAD BIOLOGICA | I168: OBL | J168: 5310003-BD01BA | K168: 16 | L168: 7.7
A169: 172 | B169: CBS | C169: 15-O | D169: TEMP | F169: 39395 | G169: VILLAVICENCIO PULIDO JOSE GAISER | H169: DIVERSIDAD BIOLOGICA | I169: OBL | J169: 5310003-BD01BA | K169: 13 | L169: 3.8
A170: 32 | B170: CBS | C170: 15-I | D170: DEF | E170: X | F170: 35966 | G170: CASTILLO GUAJARDO DERIK | H170: DE LAS POBLACIONES A LOS ECOSISTEMAS | I170: OBL | J170: 5310004-BF01BA | K170: 10 | L170: 5.8
A171: 254 | B171: CBS | C171: 15-P | D171: DEF | E171: X | F171: 35966 | G171: CASTILLO GUAJARDO DERIK | H171: DE LAS POBLACIONES A LOS ECOSISTEMAS | I171: OBL | J171: 5310004-BF01BA | K171: 18 | L171: 5.8
A172: 258 | B172: CBS | C172: 15-P | D172: DEF | E172: X | F172: 36059 | G172: CHAVEZ TOVAR JOSE CUAUHTEMOC | H172: DE LAS POBLACIONES A LOS ECOSISTEMAS | I172: OBL | J172: 5310004-BF01BA | K172: 18 | L172: 5.8
A173: 42 | B173: CBS | C173: 15-I | D173: DEF | E173: X | F173: 36002 | G173: LOPEZ PEREZ MARCOS | H173: DE LAS POBLACIONES A LOS ECOSISTEMAS | I173: OBL | J173: 5310004-BF01BA | K173: 10 | L173: 5.8
A174: 270 | B174: CBS | C174: 15-P | D174: DEF | E174: X | F174: 36002 | G174: LOPEZ PEREZ MARCOS | H174: DE LAS POBLACIONES A LOS ECOSISTEMAS | I174: OBL | J174: 5310004-BF01BA | K174: 18 | L174: 5.8
A175: 58 | B175: CBS | C175: 15-I | D175: TEMP | F175: 36422 | G175: OLIVER MORALES CELIA | H175: DE LAS POBLACIONES A LOS ECOSISTEMAS | I175: OBL | J175: 5310004-BF01BA | K175: 10 | L175: 5.8
A176: 47 | B176: CBS | C176: 15-I | D176: DEF | E176: X | F176: 36941 | G176: PELZ SERRANO KARLA | H176: DE LAS POBLACIONES A LOS ECOSISTEMAS | I176: OBL | J176: 5310004-BF01BA | K176: 10 | L176: 5.8
A177: 290 | B177: CBS | C177: 15-P | D177: TEMP | F177: 37900 | G177: ZARZA VILLANUEVA HELIOT | H177: DE LAS POBLACIONES A LOS ECOSISTEMAS | I177: OBL | J177: 5310004-BF01BA | K177: 18 | L177: 5.8
A178: 154 | B178: CBS | C178: 15-O | D178: TEMP | F178: 35722 | G178: AGUIRRE GARRIDO JOSE FELIX | H178: PROBLEMATICAS EN LOS SOCIO-ECOSISTEMAS | I178: OBL | J178: 5310005-BG01BA | K178: 17 | L178: 5.8
A179: 257 | B179: CBS | C179: 15-P | D179: DEF | E179: X | F179: 36059 | G179: CHAVEZ TOVAR JOSE CUAUHTEMOC | H179: PROBLEMATICAS EN LOS SOCIO-ECOSISTEMAS | I179: OBL | J179: 5310005-BG01BA | K179: 11 | L179: 5.8
A180: 262 | B180: CBS | C180: 15-P | D180: DEF | E180: X | F180: 35473 | G180: GARCIA ARELLANO HUMBERTO | H180: PROBLEMATICAS EN LOS SOCIO-ECOSISTEMAS | I180: OBL | J180: 5310005-BG01BA | K180: 11 | L180: 5.8
A181: 145 | B181: CBS | C181: 15-O | D181: DEF | E181: X | F181: 35805 | G181: LIST SANCHEZ RURIK HERMANN | H181: PROBLEMATICAS EN LOS SOCIO-ECOSISTEMAS | I181: OBL | J181: 5310005-BG01BA | K181: 17 | L181: 5.8
A182: 267 | B182: CBS | C182: 15-P | D182: JD | E182: X | F182: 35805 | G182: LIST SANCHEZ RURIK HERMANN | H182: PROBLEMATICAS EN LOS SOCIO-ECOSISTEMAS | I182: OBL | J182: 5310005-BG01BA | K182: 11 | L182: 5.8
A183: 152 | B183: CBS | C183: 15-O | D183: DEF | E183: X | F183: 36941 | G183: PELZ SERRANO KARLA | H183: PROBLEMATICAS EN LOS SOCIO-ECOSISTEMAS | I183: OBL | J183: 5310005-BG01BA | K183: 17 | L183: 5.8
A184: 273 | B184: CBS | C184: 15-P | D184: DEF | E184: X | F184: 36941 | G184: PELZ SERRANO KARLA | H184: PROBLEMATICAS EN LOS SOCIO-ECOSISTEMAS | I184: OBL | J184: 5310005-BG01BA | K184: 11 | L184: 5.8
A185: 171 | B185: CBS | C185: 15-O | D185: TEMP | F185: 39395 | G185: VILLAVICENCIO PULIDO JOSE GAISER | H185: PROBLEMATICAS EN LOS SOCIO-ECOSISTEMAS | I185: OBL | J185: 5310005-BG01BA | K185: 17 | L185: 5.8
A186: 157 | B186: CBS | C186: 15-O | D186: TEMP | F186: 35649 | G186: CAMACHO GUADARRAMA SAMANTHA | H186: INSTRUMENTOS PREVENTIVOS DE GESTIÓN | I186: OBL | J186: 5310006-BH01BA | K186: 10 | L186: 5.8
A187: 34 | B187: CBS | C187: 15-I | D187: DEF | E187: X | F187: 36059 | G187: CHAVEZ TOVAR JOSE CUAUHTEMOC | H187: INSTRUMENTOS PREVENTIVOS DE GESTIÓN | I187: OBL | J187: 5310006-BH01BA | K187: 14 | L187: 5.8
A188: 162 | B188: CBS | C188: 15-O | D188: TEMP | F188: 35657 | G188: FLORES HERNANDEZ NOE | H188: INSTRUMENTOS PREVENTIVOS DE GESTIÓN | I188: OBL | J188: 5310006-BH01BA | K188: 10 | L188: 5.8
A189: 56 | B189: CBS | C189: 15-I | D189: TEMP | F189: 39237 | G189: MANZANO FISCHER PATRICIA | H189: INSTRUMENTOS PREVENTIVOS DE GESTIÓN | I189: OBL | J189: 5310006-BH01BA | K189: 14 | L189: 5.8
A190: 164 | B190: CBS | C190: 15-O | D190: TEMP | F190: 39237 | G190: MANZANO FISCHER PATRICIA | H190: INSTRUMENTOS PREVENTIVOS DE GESTIÓN | I190: OBL | J190: 5310006-BH01BA | K190: 10 | L190: 5.8
A191: 63 | B191: CBS | C191: 15-I | D191: TEMP | F191: 13743 | G191: VIEYRA DURAN JORGE EDUARDO | H191: INSTRUMENTOS PREVENTIVOS DE GESTIÓN | I191: OBL | J191: 5310006-BH01BA | K191: 14 | L191: 5.8
A192: 64 | B192: CBS | C192: 15-I | D192: TEMP | F192: 37900 | G192: ZARZA VILLANUEVA HELIOT | H192: INSTRUMENTOS PREVENTIVOS DE GESTIÓN | I192: OBL | J192: 5310006-BH01BA | K192: 14 | L192: 5.8
A193: 175 | B193: CBS | C193: 15-O | D193: TEMP | F193: 37900 | G193: ZARZA VILLANUEVA HELIOT | H193: INSTRUMENTOS PREVENTIVOS DE GESTIÓN | I193: OBL | J193: 5310006-BH01BA | K193: 10 | L193: 5.8
A194: 261 | B194: CBS | C194: 15-P | D194: DEF | E194: X | F194: 35473 | G194: GARCIA ARELLANO HUMBERTO | H194: INSTRUMENTOS REMEDIALES DE GESTIÓN | I194: OBL | J194: 5310007-BI01BA | K194: 17 | L194: 5.8
A195: 266 | B195: CBS | C195: 15-P | D195: JD | E195: X | F195: 35805 | G195: LIST SANCHEZ RURIK HERMANN | H195: INSTRUMENTOS REMEDIALES DE GESTIÓN | I195: OBL | J195: 5310007-BI01BA | K195: 17 | L195: 5.8
A196: 271 | B196: CBS | C196: 15-P | D196: DEF | E196: X | F196: 36941 | G196: PELZ SERRANO KARLA | H196: INSTRUMENTOS REMEDIALES DE GESTIÓN | I196: OBL | J196: 5310007-BI01BA | K196: 17 | L196: 5.8
A197: 288 | B197: CBS | C197: 15-P | D197: TEMP | F197: 39395 | G197: VILLAVICENCIO PULIDO JOSE GAISER | H197: INSTRUMENTOS REMEDIALES DE GESTIÓN | I197: OBL | J197: 5310007-BI01BA | K197: 17 | L197: 5.8
A198: 139 | B198: CBS | C198: 15-O | D198: DEF | E198: X | F198: 35966 | G198: CASTILLO GUAJARDO DERIK | H198: GESTION HACIA LA SUSTENTABILIDAD | I198: OBL | J198: 5310008-BJ01BA | K198: 8 | L198: 5.8
A199: 165 | B199: CBS | C199: 15-O | D199: TEMP | F199: 39237 | G199: MANZANO FISCHER PATRICIA | H199: GESTION HACIA LA SUSTENTABILIDAD | I199: OBL | J199: 5310008-BJ01BA | K199: 8 | L199: 5.8
A200: 174 | B200: CBS | C200: 15-O | D200: TEMP | F200: 37900 | G200: ZARZA VILLANUEVA HELIOT | H200: GESTION HACIA LA SUSTENTABILIDAD | I200: OBL | J200: 5310008-BJ01BA | K200: 8 | L200: 5.8
... 132 more rows

Sheet Carga por Plaza
A1: INDICE
C2: 15-I | F2: 15-O | I2: 15-P | L2: 2015 | M2: 2015 | N2: 2015
C3: INSCRITOS | D3: GRUPOS | E3: HFG | F3: INSCRITOS | G3: GRUPOS | H3: HFG | I3: INSCRITOS | J3: GRUPOS | K3: HFG | L3: INSCRITOS | M3: GRUPOS | N3: HFG
A4: CBI | C4: 387 | D4: 28 | E4: 134.3 | F4: 729 | G4: 43 | H4: 208.2 | I4: 520 | J4: 37 | K4: 163.4 | L4: 1636 | M4: 108 | N4: 505.9
A5: CBS | C5: 562 | D5: 37 | E5: 156.9 | F5: 771 | G5: 38 | H5: 156.3 | I5: 671 | J5: 38 | K5: 182.6 | L5: 2004 | M5: 113 | N5: 495.8
A6: CSH | C6: 501 | D6: 29 | E6: 135.5 | F6: 758 | G6: 40 | H6: 200.8 | I6: 526 | J6: 35 | K6: 163.6 | L6: 1785 | M6: 104 | N6: 499.9
A7: Total general | C7: 1450 | D7: 94 | E7: 426.7 | F7: 2258 | G7: 121 | H7: 565.3 | I7: 1717 | J7: 110 | K7: 509.6 | L7: 5425 | M7: 325 | N7: 1501.6
C8: HFG: Horas Frente a Grupo
A12: INSCRS | C12: 15I | D12: 15P | E12: 15O | F12: prom(2015)
A13: CBI | B13: 19 | C13: =C4/$B13 -> 20.36842105 | D13: =F4/$B13 -> 38.36842105 | E13: =I4/$B13 -> 27.36842105 | F13: =L4/3/$B13 -> 28.70175439
A14: CBS | B14: 20 | C14: =C5/$B14 -> 28.1 | D14: =F5/$B14 -> 38.55 | E14: =I5/$B14 -> 33.55 | F14: =L5/3/$B14 -> 33.4
A15: CSH | B15: 25 | C15: =C6/$B15 -> 20.04 | D15: =F6/$B15 -> 30.32 | E15: =I6/$B15 -> 21.04 | F15: =L6/3/$B15 -> 23.8
A16: UAM-L | B16: 64 | C16: =C7/$B16 -> 22.65625 | D16: =F7/$B16 -> 35.28125 | E16: =I7/$B16 -> 26.828125 | F16: =L7/3/$B16 -> 28.25520833
A19: GRUPOS | C19: 15I | D19: 15P | E19: 15O | F19: prom(2015)
A20: CBI | B20: 19 | C20: =D4/$B20 -> 1.473684211 | D20: =G4/$B20 -> 2.263157895 | E20: =J4/$B20 -> 1.947368421 | F20: =M4/3/$B20 -> 1.894736842
A21: CBS | B21: 20 | C21: =D5/$B21 -> 1.85 | D21: =G5/$B21 -> 1.9 | E21: =J5/$B21 -> 1.9 | F21: =M5/3/$B21 -> 1.883333333
A22: CSH | B22: 25 | C22: =D6/$B22 -> 1.16 | D22: =G6/$B22 -> 1.6 | E22: =J6/$B22 -> 1.4 | F22: =M6/3/$B22 -> 1.386666667
A23: UAM-L | B23: 64 | C23: =D7/$B23 -> 1.46875 | D23: =G7/$B23 -> 1.890625 | E23: =J7/$B23 -> 1.71875 | F23: =M7/3/$B23 -> 1.692708333
A26: HFG | C26: 15I | D26: 15P | E26: 15O | F26: prom(2015)
A27: CBI | B27: 19 | C27: =E4/$B27 -> 7.068421053 | D27: =H4/$B27 -> 10.95789474 | E27: =K4/$B27 -> 8.6 | F27: =N4/3/$B27 -> 8.875438596
A28: CBS | B28: 20 | C28: =E5/$B28 -> 7.845 | D28: =H5/$B28 -> 7.815 | E28: =K5/$B28 -> 9.13 | F28: =N5/3/$B28 -> 8.263333333
A29: CSH | B29: 25 | C29: =E6/$B29 -> 5.42 | D29: =H6/$B29 -> 8.032 | E29: =K6/$B29 -> 6.544 | F29: =N6/3/$B29 -> 6.665333333
A30: UAM-L | B30: 64 | C30: =E7/$B30 -> 6.6671875 | D30: =H7/$B30 -> 8.8328125 | E30: =K7/$B30 -> 7.9625 | F30: =N7/3/$B30 -> 7.820833333

Sheet Carga PDDC
A1: INDICE
A2: *Para ser considerado PROF DEF DEDICACIÓN COMPLETA, al inicio del trimestre debe estar ya contratado o terminar en las primeras dos semanas del trimestre el cargo de Jefe de Departamento, Rector, Director o Secretarío o el Sabático
E4: CBI | F4: CBS | G4: CSH | H4: UAML
A5: HFG trimestal promedio por Profesor DDC | E5: 9.35 | F5: 9.03 | G5: 9.14 | H5: 9.2
A6: Profesores DDC con menos de 6 HFG promedio por trimestre | E6: 0.2 | F6: 0.3636363636 | G6: 0.1 | H6: 0.2258064516
A7: Profesores DDC con 6 a 12 HFG promedio por trimestre | E7: 0.5 | F7: 0.2727272727 | G7: 0.6 | H7: 0.4516129032
A8: Profesores DDC con más de 12 HFG promedio por trimestre | E8: =1-E7-E6 -> 0.3 | F8: =1-F7-F6 -> 0.3636363636 | G8: =1-G7-G6 -> 0.3 | H8: =1-H7-H6 -> 0.3225806452
A9: *Para ser considerado PROF DEF DEDICACIÓN COMPLETA, al inicio del trimestre debe estar ya contratado o terminar en las primeras dos semanas del trimestre el cargo de Jefe de Departamento, Rector, Director o Secretarío o el Sabático

Sheet PROMEP-SNI
A1: INDICE
A2: PERSONAL ACADÉMICO CON RECONOCIMIENTO (PERFIL DESEABLE VIGENTE PRODEP; SNI)
A3: Reconocimiento a profesores con perfil deseable. El perfil deseable, de acuerdo con el Prodep, se refiere a: ser profesor de tiempo completo, haber obtenido el grado preferente (doctor) o mínimo (maestro o en su caso una especialidad médica) y demostrar fehacientemente la participación en actividades de docencia, generación o aplicación innovadora del conocimiento, tutoría y gestión académica individual o grupal
A5: UNIDAD | B5: Reconocimiento | C5: DIVISIÓN | D5: 2012 | E5: 2013 | F5: 2014 | G5: 2015
A6: Lerma | B6: PTC defs | C6: CBI | D6: 4 | E6: 5 | F6: 7 | G6: 14
C7: CBS | D7: 5 | E7: 9 | F7: 11 | G7: 12 | J7: UNIDAD LERMA | K7: Reconocimiento | L7: DIVISIÓN | M7: 2012 | N7: 2013 | O7: 2014 | P7: 2015 | Q7: PRODEP | R7: SNI/SNC
C8: CSH | D8: 3 | E8: 7 | F8: 10 | G8: 19 | K8: PRODEP | L8: CBI | M8: 0 | N8: 0.8 | O8: 0.8571428571 | P8: 0.5714285714 | Q8: =P8 -> 0.5714285714 | R8: =P12 -> 0.3571428571
C9: Total | D9: =SUM(D6:D8) -> 12 | E9: =SUM(E6:E8) -> 21 | F9: =SUM(F6:F8) -> 28 | G9: =SUM(G6:G8) -> 45 | L9: CBS | M9: 0.2 | N9: 0.5555555556 | O9: 0.4545454545 | P9: 0.75 | Q9: =P9 -> 0.75 | R9: =P13 -> 0.9166666667
B10: PRODEP | C10: CBI | E10: 4 | F10: 6 | G10: 8 | L10: CSH | M10: 0 | N10: 0.1428571429 | O10: 0.3 | P10: 0.4736842105 | Q10: =P10 -> 0.4736842105 | R10: =P14 -> 0.3684210526
C11: CBS | D11: 1 | E11: 5 | F11: 5 | G11: 9 | L11: UAM-L | M11: 0.08333333333 | N11: 0.4761904762 | O11: 0.5 | P11: 0.5777777778 | Q11: =P11 -> 0.5777777778 | R11: =P15 -> 0.5111111111
C12: CSH | E12: 1 | F12: 3 | G12: 9 | K12: SIN | L12: CBI | M12: 0 | N12: 0 | O12: 0 | P12: 0.3571428571
C13: TOTAL | D13: =SUM(D10:D12) -> 1 | E13: =SUM(E10:E12) -> 10 | F13: =SUM(F10:F12) -> 14 | G13: =SUM(G10:G12) -> 26 | L13: CBS | M13: 0.6 | N13: 0.4444444444 | O13: 0.9090909091 | P13: 0.9166666667
C14: CBI | D14: =D10/D6 -> 0 | E14: 0.8 | F14: 0.8571428571 | G14: 0.5714285714 | L14: CSH | M14: 0.3333333333 | N14: 0.2857142857 | O14: 0.3 | P14: 0.3684210526
C15: CBS | D15: 0.2 | E15: 0.5555555556 | F15: 0.4545454545 | G15: 0.75 | L15: UAM-L | M15: 0.3333333333 | N15: 0.2857142857 | O15: 0.4642857143 | P15: 0.5111111111
C16: CSH | D16: 0 | E16: 0.1428571429 | F16: 0.3 | G16: 0.4736842105
C17: UAM-L | D17: 0.08333333333 | E17: 0.4761904762 | F17: 0.5 | G17: 0.5777777778
B18: SNI | C18: CBI | G18: 5
C19: CBS | D19: 3 | E19: 4 | F19: 10 | G19: 11
C20: CSH | D20: 1 | E20: 2 | F20: 3 | G20: 7
C21: TOTAL | D21: =SUM(D18:D20) -> 4 | E21: =SUM(E18:E20) -> 6 | F21: =SUM(F18:F20) -> 13 | G21: =SUM(G18:G20) -> 23
C22: CBI | D22: =D18/D6 -> 0 | E22: 0 | F22: 0 | G22: 0.3571428571
C23: CBS | D23: 0.6 | E23: 0.4444444444 | F23: 0.9090909091 | G23: 0.9166666667
C24: CSH | D24: 0.3333333333 | E24: 0.2857142857 | F24: 0.3 | G24: 0.3684210526
C25: Tot/PTC | D25: 0.3333333333 | E25: 0.2857142857 | F25: 0.4642857143 | G25: 0.5111111111
A28: Fuentes: Catálogo de Profesores de Tiempo Completo del PROMEP; CONACyT

Sheet PROMEP-SNI Comp
A1: INDICE
A2: PERSONAL ACADÉMICO CON RECONOCIMIENTO (PERFIL DESEABLE VIGENTE PROMEP; SNI)
A3: Reconocimiento a profesores con perfil deseable. El perfil deseable, de acuerdo con el Promep, se refiere a: ser profesor de tiempo completo, haber obtenido el grado preferente (doctor) o mínimo (maestro o en su caso una especialidad médica) y demostrar fehacientemente la participación en actividades de docencia, generación o aplicación innovadora del conocimiento, tutoría y gestión académica individual o grupal
A5: UNIDAD | B5: Reconocimiento | D5: 2012 | E5: 2013 | F5: 2014 | G5: 2015
A6: Lerma | B6: PTC defs | C6: Total | D6: 12 | E6: 21 | F6: 28 | G6: 45
A7: Lerma | B7: PROMEP | C7: TOTAL | D7: 1 | E7: 10 | F7: 14 | G7: 26
A8: Lerma | B8: PROMEP | C8: Tot/PTCd | D8: 0.08333333333 | E8: 0.4761904762 | F8: 0.5 | G8: 0.5777777778
A9: Lerma | B9: SNI | C9: TOTAL | D9: 4 | E9: 6 | F9: 13 | G9: 23
A10: Lerma | B10: SNI | C10: Tot/PTC | D10: 0.3333333333 | E10: 0.2857142857 | F10: 0.4642857143 | G10: 0.5111111111
A12: Cuajimalpa | B12: PTC defs | C12: Total | D12: 130 | E12: 134 | F12: 143 | G12: 147
B13: PROMEP | C13: TOTAL | D13: 123 | E13: 124 | F13: 115 | G13: 114
C14: Tot/PTC | D14: 0.9461538462 | E14: 0.9253731343 | F14: 0.8041958042 | G14: 0.7755102041
B15: SNI | C15: TOTAL | D15: 106 | E15: 115 | F15: 115 | G15: 118
C16: Tot/PTC | D16: 0.8153846154 | E16: 0.8582089552 | F16: 0.8041958042 | G16: 0.8027210884
A18: UAM | B18: PTC defs | C18: Total | D18: 2663 | E18: 2705 | F18: 2759 | G18: 2743
B19: PROMEP | C19: TOTAL | D19: 1394 | E19: 1460 | F19: 1442 | G19: 1289
C20: Tot/PTC | D20: 0.5234697709 | E20: 0.53974122 | F20: 0.5226531352 | G20: 0.4699234415
B21: SNI | C21: TOTAL | D21: 941 | E21: 1061 | F21: 1084 | G21: 1110
C22: Tot/PTC | D22: 0.3533608712 | E22: 0.3922365989 | F22: 0.3928959768 | G22: 0.4046664236
D24: 2006 | E24: 2007 | F24: 2008 | G24: 2009 | H24: 2010
A25: Cuajimalpa | B25: PTC defs | C25: Total | D25: 22 | E25: 52 | F25: 70 | G25: 82 | H25: 103
B26: PROMEP | C26: TOTAL | D26: 24 | E26: 47 | F26: 61 | G26: 70 | H26: 70
C27: Tot/PTC | D27: 1.090909091 | E27: 0.9038461538 | F27: 0.8714285714 | G27: 0.8536585366 | H27: 0.6796116505
B28: SNI | C28: TOTAL | D28: 15 | E28: 35 | F28: 72 | G28: 74 | H28: 94
C29: Tot/PTC | D29: 0.6818181818 | E29: 0.6730769231 | F29: 1.028571429 | G29: 0.9024390244 | H29: 0.9126213592
A31: Fuentes: Catálogo de Profesores de Tiempo Completo del PROMEP; CONACyT

Sheet Proys Inv
A1: INDICE
A2: PROYECTOS DE INVESTIGACIÓN
E3: Vigencia al 31 dic
A4: Div | B4: Depto | C4: Nombre del Proyecto | D4: Responsable | E4: 2012 | F4: 2013 | G4: 2014 | H4: 2015 | I4: Acuerdo | J4: Fecha | K4: Decisión | L4: Inic | M4: Fin
A5: CIENCIAS BÁSICAS E INGENIERÍA | C5: Acoplamiento de la Nitrificación/Desnitrificación para la eliminación simultanea de compuestos fenólicos, sulfuro y amonio en un bioreactor híbrido | G5: X | H5: X | I5: 18.04 | J5: 2014-07-21 | K5: aprobación
C6: Análisis teórico-experimental de la fisura en el rotor del sistema rotor-soportes | E6: X | F6: X | G6: X | I6: 05.06 | J6: 2012-11-21 | K6: aprobación
I7: 24.08 | J7: 2015-02-27 | K7: cancelación
C8: Aplicación y evaluación de energías sustentables en sistemas mecatrónicos rotatorios | E8: X | F8: X | G8: X | I8: 05.05 | J8: 2012-11-21 | K8: aprobación
I9: 24.08 | J9: 2015-02-27 | K9: cancelación
C10: Autoequipamiento | E10: X | F10: X | G10: X | I10: 05.05 | J10: 2012-11-21 | K10: aprobación
I11: 24.08 | J11: 2015-02-27 | K11: cancelación
C12: Biodegradación anaerobía de contaminantes en efluentes antropogénicos y cuerpos acuáticos | E12: X | F12: X | G12: X | H12: X | I12: 05.05 | J12: 2012-11-21 | K12: aprobación
C13: Cómputo Académico en la UAM Lerma. | E13: X | F13: X | G13: X | H13: X | I13: 05.05 | J13: 2012-11-21 | K13: aprobación
B14: RT | D14: Dr. Héctor Eduardo Jardón Valadez | I14: 36.04 | J14: 2015-10-28 | K14: cambio de responsable
C15: Desarrollo de sistemas productivos que elaboren artículos orientados a cubrir necesidades sociales y/o industriales específicas, que utilizan insumos principales residuos de poda | E15: X | F15: X | I15: 05.05 | J15: 2012-11-21 | K15: aprobación
I16: 18.06 | J16: 2014-07-21 | K16: cancelación
C17: Diseño y construcción de prototipo de un nuevo sistema de puertas con dispositivo inhibidor de la apertura de las misas del lado contrario | E17: X | F17: X | G17: X | I17: 05.06 | J17: 2012-11-21 | K17: aprobación
I18: 24.08 | J18: 2015-02-27 | K18: cancelación
C19: Diseño y desarrollo del prototipo de un módem OFDM de banda ancha con codificación de canal FEC para la transmisión de datos por línea eléctrica doméstica | G19: X | H19: X | I19: 18.05 | J19: 2014-07-21 | K19: aprobación
C20: Energía solar | E20: X | F20: X | G20: X | H20: X | I20: 05.05 | J20: 2012-11-21 | K20: aprobación
C21: Fundamentos y enseñanza de la Física | E21: X | F21: X | G21: X | H21: X | I21: 05.05 | J21: 2012-11-21 | K21: aprobación
C22: Hidrógeno y energías sustentables | E22: X | F22: X | G22: X | I22: 05.05 | J22: 2012-11-21 | K22: aprobación
I23: 24.08 | J23: 2015-02-27 | K23: cancelación
C24: Implantación de la cultura del ecodiseño en productos, procesos y servicios, para favorecer la innovación y sustentabilidad en las organizaciones. | E24: X | F24: X | G24: X | H24: X | I24: 05.06 | J24: 2012-11-21 | K24: aprobación
C25: Laboratorio de investigación y desarrollo de cómputo móvil | E25: X | F25: X | G25: X | H25: X | I25: 05.05 | J25: 2012-11-21 | K25: aprobación
C26: Materia Condensada Blanda | E26: X | F26: X | G26: X | I26: 05.05 | J26: 2012-11-21 | K26: aprobación
I27: 36.03 | J27: 2015-10-28 | K27: cancelación
C28: Materiales semiconductores y cómputo cuántico | E28: X | F28: X | G28: X | H28: X | I28: 05.05 | J28: 2012-11-21 | K28: aprobación
E29: =COUNTA(E5:E28) -> 14 | F29: =COUNTA(F5:F28) -> 14 | G29: =COUNTA(G5:G28) -> 15 | H29: =COUNTA(H5:H28) -> 9
A30: CIENCIAS BIOLÓGICAS Y DE LA SALUD | B30: CAL | C30: Caracterizacion de la flora asociada al Queso Poro para documentar la presencia de microorganismos nocivos para la salud, así como de microorganismos que pudieran contribuir al desarrollo del sabor y otras características sensoriales del producto | D30: Dra Judith Jiménez Guzman | F30: X | I30: 13.13.08.21 | J30: 2013-11-15 | K30: aprobación | L30: 2013-03-01 | M30: 2014-03-31
C31: Diseño in sílico y síntesis de péptidos basados en secuencias de proteínas que forman las sedas de araña, para la producción y formulación de biomateriales | D31: Dra Elizabeth Del Moral Ramlrez | F31: X | I31: 13.13.08.18 | J31: 2013-11-15 | K31: aprobación | L31: 2013-08-01 | M31: 2014-07-31
I32: 01.15.09.07 | J32: 2015-01-26 | K32: corrección de fechas | L32: 2013-07-01 | M32: 2014-07-31
I33: 19.15.09.01 | J33: 2015-10-26 | K33: baja
C34: Efectos del transporte y el manejo pre-sacrificio sobre el bienestar animal y la calidad de ta carne en ovinos comerciales en México | D34: Dr. Genaro Miranda de la Lama | F34: X | I34: 13.13.08.22 | J34: 2013-11-15 | K34: aprobación | L34: 2013-10-01 | M34: 2014-09-30
I35: 01.15.09.08 | J35: 2015-01-26 | K35: corrección de fechas | M35: 2014-10-31
C36: Evaluación de las características físico-químicas y el tiempo de vida de anaquel de la carne bovina con y sin presencia de hematomas | D36: Dra. Rosy Gabriela Cruz Monterrosa | F36: X | I36: 13.13.08.20 | J36: 2013-11-15 | K36: aprobación | L36: 2013-09-01 | M36: 2014-08-31
C37: Evaluacion electroquímica de la actividad de la Enzima Convertidora de Angiotensina-1 {ACE-1) y la participación del zinc en el efecto inhibitorio de péptidos antihipertensívos obtenidos de fuentes alimenticias | D37: Dra Elizabeth Del Moral Ramlrez | F37: X | I37: 13.13.08.19 | J37: 2013-11-15 | K37: aprobación | L37: 2013-09-01 | M37: 2014-08-31
B38: CAM | C38: Análisis metagenómico del resistoma y otras proteínas de interés biotecnológico en ecosistemas de especial relevancia en el Estado de México | D38: Dr. Marcos López Pérez | G38: X | H38: X | I38: 13.13.08.07 | J38: 2013-11-15 | K38: aprobación | L38: 2014-01-01 | M38: 2018-01-31
C39: Caracterización de las enzimas involucradas en la biosíntesis dTDP-L-ramnosa, ramnolípidos y polihidroxialcanoatos (phas) en Pseudomonas aeruginosa | D39: Dr. Humberto García Arellano | G39: X | H39: X | I39: 13.13.08.05 | J39: 2013-11-15 | K39: aprobación | L39: 2014-01-01 | M39: 2016-12-31
C40: Caracterización microbiana y monitoreo de contaminantes en las ciénagas de Lerma | D40: Dr. Arturo Aburto Medina | G40: X | I40: 13.13.08.11 | J40: 2013-11-15 | K40: aprobación | L40: 2014-01-01 | M40: 2017-12-31
I41: 01.15.10.02 | J41: 2015-01-26 | K41: cancelación | M41: 2015-01-26
C42: Conectividad del paisaje, efecto de las barreras artificiales y conservación de la vida silvestre. | D42: Dr. Rurik Hermann List Sánchez List. | F42: X | G42: X | H42: X | I42: 13.13.08.10 | J42: 2013-11-15 | K42: aprobación | L42: 2013-06-01 | M42: 2014-12-31
I43: 19.15.11.03 | J43: 2015-10-26 | K43: renovación | L43: 2015-10-01 | M43: 2016-12-31
C44: Diversidad de macroalgas marinas mexicanas: filogenia y biogeografía | D44: Dr. José Francisco Flores Pedroche. | H44: X | I44: 19.15.12.01 | J44: 2015-10-26 | K44: registro | L44: 2015-10-01 | M44: 2018-12-31
C45: Ecología y conservación de carnívoros en ambientes modificados por el hombre | D45: M. en C. Heliot Zarza Villanueva | F45: X | G45: X | H45: X | I45: 13.13.08.09 | J45: 2013-11-15 | K45: aprobación | L45: 2013-04-01 | M45: 2015-04-30
I46: 19.15.11.04 | J46: 2015-10-26 | K46: renovación | L46: 2015-10-01 | M46: 2016-12-31
C47: Efecto de la estructura de comunidades de competidores en la cosecha máxima | D47: Dr. Derik Castillo Guajardo | E47: X | F47: X | G47: X | H47: X | I47: 13.13.08.06 | J47: 2013-11-15 | K47: aprobación | L47: 2012-06-01 | M47: 2014-12-31
I48: 01.15.09.03 | J48: 2015-01-26 | K48: corrección de fechas | M48: 2015-12-31
I49: 19.15.11.01 | J49: 2015-10-26 | K49: renovación | L49: 2015-01-01 | M49: 2016-01-31
C50: Evaluación experimental del efecto de los agroquímicos en la productividad, la variación morfológica de semillas y la variabilidad genética de plántulas de maiz (lea mays) en una parcela | D50: Dr. Cesar Antonio Abarca García | G50: X | I50: 13.13.08.08 | J50: 2013-11-15 | K50: aprobación | L50: 2014-03-01 | M50: 2015-03-31
I51: 18.15.04.02 | J51: 2015-07-28 | K51: baja
C52: Formación de patrones en sistemas biológicos | D52: Dra. Mayra Núñez López | F52: X | I52: 13.13.08.12 | J52: 2013-11-15 | K52: aprobación | L52: 2013-09-01 | M52: 2014-08-31
I53: 01.15.10.01 | J53: 2015-01-26 | K53: cancelación
C54: Genética de la conservación y ecologla de especies focales | D54: Dra Karla Pelz Serrano | F54: X | G54: X | H54: X | I54: 13.13.08.01 | J54: 2013-11-15 | K54: aprobación | L54: 2013-12-01 | M54: 2014-11-30
I55: 01.15.09.01 | J55: 2015-01-26 | K55: corrección de fechas | M55: 2015-12-31
C56: Interacción y coexistencia entre depredadores similares con gran variación del tamaño corporal y dimorfismo sexual: Patrones poblacionales a gran escala y la importancia de los atributos | D56: Dr. José Cuauhtémoc Chávez Tovar | E56: X | F56: X | G56: X | H56: X | I56: 13.13.08.03 | J56: 2013-11-15 | K56: aprobación | L56: 2011-01-01 | M56: 2016-01-31
C57: Microbiota: una alternativa terapéutica para la mejora de la salud y el bienestar de primates en cautiverio | D57: Dr. Augusto J . Montiel Castro | G57: X | I57: 13.13.08.14 | J57: 2013-11-15 | K57: aprobación | L57: 2014-01-01 | M57: 2015-01-31
I58: 19.15.09.01 | J58: 2015-10-26 | K58: baja
C59: Obtención de enzimas de interés industrial mediante una aproximación metagenómica de la cuenca del rio Lerma. | D59: Dr. Humberto García Arellano | G59: X | H59: X | I59: 13.13.08.04 | J59: 2013-11-15 | K59: aprobación | L59: 2014-01-01 | M59: 2015-12-31
I60: 19.15.11.02 | J60: 2015-10-26 | K60: renovación | L60: 2016-01-01 | M60: 2017-12-31
C61: Participación de la dinámica mitocondrial en la homeostasis celular durante la diferenciación de tejidos | D61: Dra. Paulina Cortés Hernán | G61: X | I61: 13.13.08.13 | J61: 2013-11-15 | K61: aprobación | L61: 2014-02-01 | M61: 2016-01-31
I62: 01.15.09.04 | J62: 2015-01-26 | K62: corrección de fechas | M62: 2016-02-29
I63: 14.15.09.01 | J63: 2015-06-30 | K63: baja | M63: 2015-06-30
C64: Variación de la conducta sexual de libélulas como indicador del deterioro del hábitat entre las Ciénegas de Lerma. Estado de México | D64: Dra. Celia Oliver Morales | G64: X | I64: 13.13.08.02 | J64: 2013-11-15 | K64: aprobación | L64: 2014-01-01 | M64: 2014-12-31
I65: 18.15.04.01 | J65: 2015-07-28 | K65: baja
B66: CSA | C66: Análisis estructural y funcional de la proteína glucocinasa para entender mecanismos de la alteración en el metabolismo de la glucosa por mutaciones humanas | D66: Dr Julio Lenin Domínguez Ramirez | F66: X | G66: X | I66: 13.13.08.15 | J66: 2013-11-15 | K66: aprobación | L66: 2013-11-01 | M66: 2015-10-31
I67: 01.15.09.05 | J67: 2015-01-26 | K67: corrección de fechas | M67: 2014-10-31
I68: 14.15.09.01 | J68: 2015-06-30 | K68: baja
C69: Desarrollo de la patologia de la Enfermedad de Alzheimer inducida por el consumo de una dieta rica en grasas· Evaluación de un tratamiento farmacológico preventivo | D69: Dr. Gustavo Pacheco López | F69: X | G69: X | H69: X | I69: 13.13.08.17 | J69: 2013-11-15 | K69: aprobación | L69: 2013-04-01 | M69: 2014-07-31
I70: 01.15.09.06 | J70: 2015-01-26 | K70: corrección de fechas | L70: 2013-08-01 | M70: 2016-08-31
C71: El nematodo CaenorhabiditIs elegans como modelo para la identificación y estudio de compuestos con actividad biológica sobre las vías metabólicas y mecanismos moleculares que controlan los procesos de envejecimiento y enfermedad | D71: Dr. Silvestre De Jesús Alavez Espidio | G71: X | H71: X | I71: 13.13.08.16 | J71: 2013-11-15 | K71: aprobación | L71: 2014-03-01 | M71: 2016-03-31
C72: Impacto neurocognitivo de la obesidad juvenil: aproximaciones experimental y clínica. | D72: Dr. Gustavo Pacheco Lopez. | H72: X | I72: 19.15.12.01 | J72: 2015-10-26 | K72: registro | L72: 2015-12-01 | M72: 2019-12-31
E73: =COUNTA(E30:E72) -> 2 | F73: =COUNTA(F30:F72) -> 13 | G73: =COUNTA(G30:G72) -> 16 | H73: =COUNTA(H30:H72) -> 12
A74: CIENCIAS SOCIALES Y HUMANIDADES | B74: AH | C74: Creatividad e imaginación en el arte. Modelos cognitivos para comprender el desarrollo creativo de proyectos artísticos | D74: Dra. Gemma Argüello Manresa | G74: X | H74: X | I74: 21.06 | J74: 2014-11-17 | K74: aprobación | L74: 2014-11-17
C75: Detritus | D75: Dra. Luz María Sánchez Cardona. | H75: X | I75: 24.06 | J75: 2015-02-04 | K75: aprobación | L75: 2015-02-04
C76: Ventanilla única. La producción web de interfaces gráficas de usuario frente a los servicios públicos del Estado nacional | D76: Dra. Paz Sastre Domínguez | G76: X | H76: X | I76: 21.05 | J76: 2014-11-17 | K76: aprobación | L76: 2014-11-17
B77: PS | C77: Análisis de políticas públicas de seguridad pública en municipios mexiquenses: el caso de SUBSEMUN | D77: Dra. Ma. Gabriela Martínez Tiburcio | H77: X | I77: 36.03 | J77: 2015-06-09 | K77: aprobación | L77: 2015-06-09 | M77: 2018-06-08
C78: Condiciones territoriales, cambio estructural y crecimiento económico regional y urbano de México 1988-2014. | D78: Mtra. Mónica Adriana Sosa | H78: X | I78: 43.10 | J78: 2015-12-04 | K78: aprobación | L78: 2015-12-04 | M78: 2018-12-03
C79: Diagnóstico para la implementación del piloto de las líneas directrices para una acción filantrópica más eficaz en México 2015-2016. | D79: Mtro. Carlos Chávez Bécker | H79: X | I79: 43.11 | J79: 2015-12-04 | K79: aprobación | L79: 2015-12-04 | M79: 2016-12-03
C80: Economía regional de conocimiento; modelos y métodos de análisis y medición existentes y propuestos para México | D80: Dr. Ryszard E. Rozga Luter | H80: X | I80: 41.05 | J80: 2015-10-26 | K80: aprobación | L80: 2015-10-26 | M80: 2018-10-25
C81: Intercambio Político entre organizaciones de la sociedad civil con el gobierno. Los casos del PDHDF y las OCS del Estado de México. | D81: Dr. Carlos Ricardo Aguilar Astorga | H81: X | I81: 43.09 | J81: 2015-12-04 | K81: aprobación | L81: 2015-12-04 | M81: 2017-12-03
C82: La eficacia del Estado y las políticas públicas. | D82: Dr. Raúl Figueroa Romero | H82: X | I82: 43.13 | J82: 2015-12-04 | K82: aprobación | L82: 2015-12-04 | M82: 2016-12-03
C83: Los Comités Ciudadanos en México. Un enfoque de política pública. | D83: Dr. Manuel Lara Caballero | H83: X | I83: 41.06 | J83: 2015-10-26 | K83: aprobación | L83: 2015-10-26 | M83: 2018-10-25
C84: Observatorio Metropolitano de Políticas Públicas e Incidencia (OMPPI). | D84: Mtro. Raúl Hernández Mar | H84: X | I84: 41.07 | J84: 2015-10-26 | K84: aprobación | L84: 2015-10-26 | M84: 2018-10-25
B85: EC | C85: Educación intercultural y contenidos mediáticos: acciones de intervención en el aula para formar audiencias activas favorables a la educación intercultural en el municipio de Lerma de Villada, Estado de México | D85: Dra. Gladys Ortiz Henderson | G85: X | H85: X | I85: 21.04 | J85: 2014-11-17 | K85: aprobación | L85: 2014-11-17
C86: Jóvenes, internet y redes sociales digitales. El caso de los jóvenes estudiantes de la UAM-lerma. | D86: Dra. Gladys Ortiz Henderson | H86: X | I86: 43.12 | J86: 2015-12-04 | K86: aprobación | L86: 2015-12-04 | M86: 2017-01-26
E87: =COUNTA(E74:E86) -> 0 | F87: =COUNTA(F74:F86) -> 0 | G87: =COUNTA(G74:G86) -> 3 | H87: =COUNTA(H74:H86) -> 13

Sheet Áreas y CA
A1: INDICE
A2: ÁREAS DE INVESTIGACIÓN Y CUERPOS ACADÉMICOS
A3: ÁREAS DE INVESTIGACIÓN
A4: FECHA | B4: ACUERDO CA-UAML
A5: 2015-09-28 | B5: 44.4 | C5: Área de Investigación en Biología de la Conservación, del Departamento de Ciencias Ambientales, División de Ciencias Biológicas y de la Salud
A7: CUERPOS ACADÉMICOS
A8: Clave | B8: Grado | C8: Nombre del Cuerpo Académico | D8: División | E8: Responsable | F8: MIEMBROS | G8: Vigencia
A9: UAM-L-CA-1 | B9: En formación | C9: Políticas Públicas Economía, Sociedad y Territorio | D9: CSH | E9: Manuel Lara Caballero | F9: Lara Caballero Manuel, Aguilar Astorga Carlos Ricardo, Figueroa Romero Raúl, Hernandez Mar Raúl | G9: 07/12/2015 al 06/12/2018
A10: UAM-L-CA-2 | B10: En formación | C10: Materiales Nanoestructurados | D10: CBI | E10: Yuri Reyes Mercado | F10: Reyes Mercado Yuri, Arroyo Gómez Maricela, Garcia Fontes Adolfo, Hernandez Zapata Ernesto, López Maldonado Guillermo, Perez Martinez Francisco, Salazar Laureles José Luis | G10: 07/12/2015 al 06/12/2018
A11: UAM-L-CA-3 | B11: En formación | C11: Transporte, Destino y Tratamiento de Contaminantes | D11: CBI | E11: Ricardo Beristain Cardoso | F11: Beristain Cardoso Ricardo, Lopez Galván Edgar, Mendoza Reséndiz Alejandro, Reyes Gutiérrez Lázaro Raymundo, Lopez Galván Edgar, Domínguez Mariani Eloísa, Soto Cortes Gabriel | G11: 07/12/2015 al 06/12/2018
A12: UAM-L-CA-4 | B12: En formación | C12: Gobernanza , Participación Ciudadana, Cohesión y Capital Social en los Ámbitos Urbano y Rural | D12: CSH | E12: Carlos Chávez Becker | F12: Chávez Becker Carlos Gabriel, Martínez González Alejandro Natal, Martínez Tiburcio María Gabriela, Blásquez Martinez Lidia Ivonne | G12: 07/12/2015 al 06/12/2018

Sheet Cuerpos Académicos Comp
A1: INDICE
A2: CUERPOS ACADÉMICOS (grado que PROMEP reconoce)
A4: UNIDAD | B4: Reconocimiento | C4: DIVISIÓN | D4: 2011 | E4: 2012 | F4: 2013 | G4: 2014 | H4: 2015
A5: Lerma | B5: PTC defs | C5: Total | D5: 6 | E5: 12 | F5: 21 | G5: 28 | H5: 45
A6: Lerma | B6: PROMEP | C6: TOTAL | D6: 0 | E6: 0 | F6: 0 | G6: 0 | H6: 4
A7: Lerma | C7: Tot/PTC | D7: =D6/D$5 -> 0 | E7: =E6/E$5 -> 0 | F7: =F6/F$5 -> 0 | G7: =G6/G$5 -> 0 | H7: =H6/H$5 -> 0.08888888889
A9: Cuajimalpa | B9: PTC defs | C9: Total | D9: 119 | E9: 130 | F9: 134 | G9: 143 | H9: 147
B10: PROMEP | C10: TOTAL | D10: 27 | E10: 30 | F10: 29 | G10: 28 | H10: 31
C11: Tot/PTC | D11: =D10/D$9 -> 0.2268907563 | E11: =E10/E$9 -> 0.2307692308 | F11: =F10/F$9 -> 0.2164179104 | G11: =G10/G$9 -> 0.1958041958 | H11: =H10/H$9 -> 0.2108843537
A13: UAM | B13: PTC defs | C13: Total | D13: 2623 | E13: 2663 | F13: 2705 | G13: 2759 | H13: 2743
B14: PROMEP | C14: TOTAL | D14: 286 | E14: 286 | F14: 282 | G14: 277 | H14: 279
C15: Tot/PTC | D15: =D14/D$13 -> 0.1090354556 | E15: =E14/E$13 -> 0.1073976718 | F15: =F14/F$13 -> 0.1042513863 | G15: =G14/G$13 -> 0.1003986952 | H15: =H14/H$13 -> 0.1017134524
D17: 2005 | E17: 2006 | F17: 2007 | G17: 2008 | H17: 2009 | I17: 2010
A18: Cuajimalpa | B18: PTC defs | C18: Total | D18: 13 | E18: 22 | F18: 52 | G18: 70 | H18: 82 | I18: 103
B19: PROMEP | C19: TOTAL | D19: 0 | E19: 7 | F19: 9 | G19: 15 | H19: 18 | I19: 20
C20: Tot/PTC | D20: =D19/D$18 -> 0 | E20: 0.3181818182 | F20: 0.1730769231 | G20: 0.2142857143 | H20: 0.2195121951 | I20: 0.1941747573
A22: Fuentes: Catálogo de Profesores de Tiempo Completo del PROMEP; CONACyT

Sheet TIPPA Prod Cientif
A1: INDICE
A2: ACTIVIDADES ACADÉMICAS RELACIONADAS CON LA INVESTIGACIÓN POR AÑO DE EVALUACIÓN
A3: Unidad | B3: Año de evaluación | C3: PTC defs | D3: TOTAL DE ACTIVIDADES EVALUADAS | F3: Reporte de investigación o técnico | H3: Artículo especializado de investigación | J3: Edición de libro colectivo | L3: Libro científico | N3: Patentes registro y aceptación de forma para solicitar examen de novedad | P3: Expedición de título de patente | R3: Trabajos presentados en eventos especializados | T3: Conferencias magistrales presentadas en eventos especializados | V3: Prototipos o modelos innovadores | X3: Paquetes computacionales | Z3: Asesoría de proyectos de investigación
A4: LERMA | B4: 2013 | C4: 28 | D4: 24 | E4: =D4/$C4 -> 0.8571428571 | F4: 1 | G4: =F4/$C4 -> 0.03571428571 | H4: 18 | I4: =H4/$C4 -> 0.6428571429 | J4: 0 | K4: =J4/$C4 -> 0 | M4: =L4/$C4 -> 0 | O4: =N4/$C4 -> 0 | Q4: =P4/$C4 -> 0 | R4: 5 | S4: =R4/$C4 -> 0.1785714286 | U4: =T4/$C4 -> 0 | W4: =V4/$C4 -> 0 | Y4: =X4/$C4 -> 0 | AA4: =Z4/$C4 -> 0
B5: 2014 | C5: 36 | D5: 80 | E5: =D5/$C5 -> 2.222222222 | F5: 8 | G5: =F5/$C5 -> 0.2222222222 | H5: 24 | I5: =H5/$C5 -> 0.6666666667 | J5: 0 | K5: =J5/$C5 -> 0 | L5: 0 | M5: =L5/$C5 -> 0 | N5: 0 | O5: =N5/$C5 -> 0 | P5: 0 | Q5: =P5/$C5 -> 0 | R5: 42 | S5: =R5/$C5 -> 1.166666667 | T5: 4 | U5: =T5/$C5 -> 0.1111111111 | V5: 0 | W5: =V5/$C5 -> 0 | X5: 1 | Y5: =X5/$C5 -> 0.02777777778 | Z5: 1 | AA5: =Z5/$C5 -> 0.02777777778
B6: 2015 | C6: 42 | D6: 138 | E6: =D6/$C6 -> 3.285714286 | F6: 7 | G6: =F6/$C6 -> 0.1666666667 | H6: 57 | I6: =H6/$C6 -> 1.357142857 | J6: 0 | K6: =J6/$C6 -> 0 | L6: 2 | M6: =L6/$C6 -> 0.04761904762 | N6: 0 | O6: =N6/$C6 -> 0 | P6: 0 | Q6: =P6/$C6 -> 0 | R6: 63 | S6: =R6/$C6 -> 1.5 | T6: 9 | U6: =T6/$C6 -> 0.2142857143 | V6: 0 | W6: =V6/$C6 -> 0 | X6: 0 | Y6: =X6/$C6 -> 0 | Z6: 0 | AA6: =Z6/$C6 -> 0
A8: UAM-C | B8: 2007 | C8: 52 | D8: 139 | E8: =D8/$C8 -> 2.673076923 | F8: 4 | G8: =F8/$C8 -> 0.07692307692 | H8: 55 | I8: =H8/$C8 -> 1.057692308 | J8: 0 | K8: =J8/$C8 -> 0 | L8: 1 | M8: =L8/$C8 -> 0.01923076923 | N8: 1 | O8: =N8/$C8 -> 0.01923076923 | P8: 0 | Q8: =P8/$C8 -> 0 | R8: 57 | S8: =R8/$C8 -> 1.096153846 | T8: 18 | U8: =T8/$C8 -> 0.3461538462 | V8: 0 | W8: =V8/$C8 -> 0 | X8: 1 | Y8: =X8/$C8 -> 0.01923076923 | Z8: 2 | AA8: =Z8/$C8 -> 0.03846153846
B9: 2008 | C9: 70 | D9: 396 | E9: =D9/$C9 -> 5.657142857 | F9: 9 | G9: =F9/$C9 -> 0.1285714286 | H9: 151 | I9: 2.157142857 | J9: 0 | K9: 0 | L9: 9 | M9: 0.1285714286 | N9: 0 | O9: 0 | P9: 2 | Q9: 0.02857142857 | R9: 182 | S9: 2.6 | T9: 36 | U9: 0.5142857143 | V9: 0 | W9: 0 | X9: 1 | Y9: 0.01428571429 | Z9: 6 | AA9: 0.08571428571
B10: 2009 | C10: 82 | D10: 349 | E10: =D10/$C10 -> 4.256097561 | F10: 19 | G10: 0.2317073171 | H10: 119 | I10: 1.451219512 | J10: 0 | K10: 0 | L10: 9 | M10: 0.1097560976 | N10: 0 | O10: 0 | P10: 2 | Q10: 0.0243902439 | R10: 140 | S10: 1.707317073 | T10: 50 | U10: 0.6097560976 | V10: 0 | W10: 0 | X10: 1 | Y10: 0.01219512195 | Z10: 9 | AA10: 0.1097560976
B11: 2010 | C11: 103 | D11: 632 | E11: =D11/$C11 -> 6.13592233 | F11: 38 | G11: 0.3689320388 | H11: 208 | I11: 2.019417476 | J11: 0 | K11: 0 | L11: 13 | M11: 0.1262135922 | N11: 1 | O11: 0.009708737864 | P11: 2 | Q11: 0.01941747573 | R11: 303 | S11: 2.941747573 | T11: 47 | U11: 0.4563106796 | V11: 5 | W11: 0.04854368932 | Y11: 0 | Z11: 15 | AA11: 0.145631068
B13: 2013 | C13: 134 | D13: 929 | E13: =D13/$C13 -> 6.932835821 | F13: 50 | G13: 0.3731343284 | H13: 309 | I13: 2.305970149 | J13: 0 | K13: 0 | L13: 10 | M13: 0.07462686567 | N13: 1 | O13: 0.007462686567 | P13: 0 | Q13: 0 | R13: 480 | S13: 3.582089552 | T13: 55 | U13: 0.4104477612 | V13: 13 | W13: 0.09701492537 | X13: 1 | Y13: 0.007462686567 | Z13: 10 | AA13: 0.07462686567
B14: 2014 | C14: 143 | D14: 687 | E14: =D14/$C14 -> 4.804195804 | F14: 34 | G14: 0.2377622378 | H14: 237 | I14: 1.657342657 | J14: 0 | K14: 0 | L14: 10 | M14: 0.06993006993 | N14: 1 | O14: 0.006993006993 | P14: 2 | Q14: 0.01398601399 | R14: 358 | S14: 2.503496503 | T14: 34 | U14: 0.2377622378 | V14: 5 | W14: 0.03496503497 | X14: 0 | Y14: 0 | Z14: 6 | AA14: 0.04195804196
B15: 2015 | C15: 147 | D15: 1028 | E15: =D15/$C15 -> 6.993197279 | F15: 38 | G15: 0.2585034014 | H15: 366 | I15: 2.489795918 | J15: 0 | K15: 0 | L15: 11 | M15: 0.07482993197 | N15: 0 | O15: 0 | P15: 1 | Q15: 0.006802721088 | R15: 535 | S15: 3.639455782 | T15: 72 | U15: 0.4897959184 | V15: 1 | W15: 0.006802721088 | X15: 0 | Y15: 0 | Z15: 4 | AA15: 0.02721088435
A17: UAM | B17: 2013 | C17: 2705 | D17: 16010 | E17: =D17/$C17 -> 5.918669131 | F17: 1610 | G17: 0.595194085 | H17: 4346 | I17: 1.606654344 | J17: 0 | K17: 0 | L17: 161 | M17: 0.0595194085 | N17: 35 | O17: 0.01293900185 | P17: 21 | Q17: 0.007763401109 | R17: 8737 | S17: 3.229944547 | T17: 832 | U17: 0.3075785582 | V17: 119 | W17: 0.04399260628 | X17: 28 | Y17: 0.01035120148 | Z17: 121 | AA17: 0.04473197782
B18: 2014 | C18: 2759 | D18: 16334 | E18: =D18/$C18 -> 5.920260964 | F18: 1540 | G18: 0.5581732512 | H18: 4334 | I18: 1.570859007 | J18: 0 | K18: 0 | L18: 130 | M18: 0.0471185212 | N18: 22 | O18: 0.007973903588 | P18: 17 | Q18: 0.006161652773 | R18: 9276 | S18: 3.362087713 | T18: 827 | U18: 0.2997462849 | V18: 43 | W18: 0.01558535701 | X18: 11 | Y18: 0.003986951794 | Z18: 134 | AA18: 0.04856832186
B19: 2015 | C19: 2743 | D19: 16438 | E19: =D19/$C19 -> 5.992708713 | F19: 1410 | G19: 0.5140357273 | H19: 4634 | I19: 1.689391178 | J19: 0 | K19: 0 | L19: 113 | M19: 0.04119577105 | N19: 21 | O19: 0.007655851258 | P19: 22 | Q19: 0.008020415603 | R19: 9179 | S19: 3.346336128 | T19: 817 | U19: 0.2978490704 | V19: 68 | W19: 0.0247903755 | X19: 14 | Y19: 0.005103900838 | Z19: 160 | AA19: =Z19/$C19 -> 0.0583302953
A20: Fuente: | B20: Informe del Rector General 2015 - Anexo estadístico

Sheet TIPPA Prod Total
A1: INDICE
A2: ACTIVIDADES EVALUADAS POR LAS COMISIONES DICTAMINADORAS
A3: Unidad | B3: Año de evaluación | C3: PTC defs | D3: TOTAL DE ACTIVIDADES EVALUADAS | F3: Docencia | H3: Investigación | J3: Preservación y difusión de la cultura | L3: Dirección Académica | N3: Participación Universitaria | P3: Creacion artística
A4: LERMA | B4: 2013 | C4: 28 | D4: 71 | E4: 2.535714286 | F4: 31 | G4: 1.107142857 | H4: 24 | I4: 0.8571428571 | J4: 14 | K4: 0.5 | L4: 0 | M4: 0 | N4: 2 | O4: 0.07142857143 | P4: 0 | Q4: 0
B5: 2014 | C5: 36 | D5: 253 | E5: 7.027777778 | F5: 98 | G5: 2.722222222 | H5: 80 | I5: 2.222222222 | J5: 68 | K5: 1.888888889 | L5: 0 | M5: 0 | N5: 7 | O5: 0.1944444444 | P5: 0 | Q5: 0
B6: 2015 | C6: 42 | D6: 421 | E6: 10.02380952 | F6: 162 | G6: 3.857142857 | H6: 138 | I6: 3.285714286 | J6: 110 | K6: 2.619047619 | L6: 3 | M6: 0.07142857143 | N6: 8 | O6: 0.1904761905 | P6: 0 | Q6: 0
A8: UAM-C | B8: 2007 | C8: 52 | D8: 845 | E8: 16.25 | F8: 432 | G8: 8.307692308 | H8: 139 | I8: 2.673076923 | J8: 204 | K8: 3.923076923 | L8: 27 | M8: 0.5192307692 | N8: 35 | O8: 0.6730769231 | P8: 8 | Q8: 0.1538461538
B9: 2008 | C9: 70 | D9: 1841 | E9: 26.3 | F9: 769 | G9: 10.98571429 | H9: 396 | I9: 5.657142857 | J9: 524 | K9: 7.485714286 | L9: 34 | M9: 0.4857142857 | N9: 112 | O9: 1.6 | P9: 6 | Q9: 0.08571428571
B10: 2009 | C10: 82 | D10: 1656 | E10: 20.19512195 | F10: 596 | G10: 7.268292683 | H10: 420 | I10: 5.12195122 | J10: 479 | K10: 5.841463415 | L10: 41 | M10: 0.5 | N10: 112 | O10: 1.365853659 | P10: 8 | Q10: 0.09756097561
B11: 2010 | C11: 103 | D11: 2465 | E11: 23.93203883 | F11: 930 | G11: 9.029126214 | H11: 632 | I11: 6.13592233 | J11: 615 | K11: 5.970873786 | L11: 62 | M11: 0.6019417476 | N11: 205 | O11: 1.990291262 | P11: 21 | Q11: 0.2038834951
F12: 0 | H12: 0 | J12: 0 | L12: 0 | N12: 0 | P12: 0
B13: 2013 | C13: 134 | D13: 3834 | E13: 28.6119403 | F13: 1574 | G13: 11.74626866 | H13: 929 | I13: 6.932835821 | J13: 1028 | K13: 7.671641791 | L13: 23 | M13: 0.171641791 | N13: 239 | O13: 1.78358209 | P13: 41 | Q13: 0.3059701493
B14: 2014 | C14: 143 | D14: 2876 | E14: 20.11188811 | F14: 1297 | G14: 9.06993007 | H14: 687 | I14: 4.804195804 | J14: 637 | K14: 4.454545455 | L14: 9 | M14: 0.06293706294 | N14: 213 | O14: 1.48951049 | P14: 33 | Q14: 0.2307692308
B15: 2015 | C15: 147 | D15: 3917 | E15: 26.6462585 | F15: 1619 | G15: 11.01360544 | H15: 1028 | I15: 6.993197279 | J15: 974 | K15: 6.62585034 | L15: 21 | M15: 0.1428571429 | N15: 241 | O15: 1.639455782 | P15: 34 | Q15: 0.231292517
F16: 0 | H16: 0 | J16: 0 | L16: 0 | N16: 0 | P16: 0
A17: UAM | B17: 2013 | C17: 2705 | D17: 57321 | E17: 21.19075786 | F17: 25434 | G17: 9.4025878 | H17: 16010 | I17: 5.918669131 | J17: 12668 | K17: 4.683179298 | L17: 376 | M17: 0.1390018484 | N17: 2229 | O17: 0.8240295749 | P17: 604 | Q17: 0.2232902033
B18: 2014 | C18: 2759 | D18: 56082 | E18: 20.32693005 | F18: 24059 | G18: 8.720188474 | H18: 16334 | I18: 5.920260964 | J18: 12500 | K18: 4.530627039 | L18: 341 | M18: 0.1235955056 | N18: 2230 | O18: 0.8082638637 | P18: 618 | Q18: 0.2239942008
B19: 2015 | C19: 2743 | D19: 57178 | E19: 20.84506015 | F19: 24163 | G19: 8.808968283 | H19: 16438 | I19: 5.992708713 | J19: 13257 | K19: 4.83302953 | L19: 411 | M19: 0.149835946 | N19: 2206 | O19: 0.8042289464 | P19: 703 | Q19: 0.256288735
A20: Fuente: | B20: Informe del Rector General 2015 - Anexo estadístico

Sheet Patentes
A1: INDICE
A2: PATENTES SOLICITADAS POR PROFESORES DE LA UAM-L (La solicitud debe haberse realizado mietras el profesor está adscrito a la Unidad Lerma)
A3: DIVISIÓN | B3: DEPARTAMENTO | C3: SOLICITUD | D3: INSTANCIA | E3: EXPEDIENTE | F3: TÍTULO | G3: INVENTORES
A4: CBI | B4: RT | C4: 2015 | D4: Instituto Mexicano de la Propiedad Industrial | E4: MX/a/2015/016654 | F4: Matriz termoplástica de polímeros biodegradables para la remoción de metales pesados en proceso continuo | G4: Concepción Keiko Shirai Matsumoto, Oscar Velasco Garduño, Miquel Gimeno seco y Beristain-Cardoso Ricardo.

Sheet Contratos y Convenios
A1: INDICE
A2: CONVENIOS Y CONTRATOS
B3: Unidad | C3: 2012 | D3: 2013 | E3: 2014 | F3: 2015 | G3: Promedio Anual
A4: CONVENIOS Y CONTRATOS | B4: Azcapotzalco | C4: 50 | D4: 23 | E4: 94 | F4: 122 | G4: =AVERAGE(C4:F4) -> 72.25
B5: Cuajimalpa | C5: 29 | D5: 38 | E5: 26 | F5: 55 | G5: =AVERAGE(C5:F5) -> 37
B6: Iztapalapa | C6: 366 | D6: 115 | E6: 234 | F6: 286 | G6: 250.25
B7: Lerma | C7: 0 | D7: 10 | E7: 19 | F7: 20 | G7: 12.25
B8: Xochimilco | C8: 166 | D8: 135 | E8: 194 | F8: 151 | G8: 161.5
A10: PROFESORES DEFINITIVOS TC | B10: Azcapotzalco | C10: 1009 | D10: 1019 | E10: 1039 | F10: 1016 | G10: 1020.75
B11: Cuajimalpa | C11: 135 | D11: 140 | E11: 150 | F11: 155 | G11: 145
B12: Iztapalapa | C12: 899 | D12: 906 | E12: 917 | F12: 904 | G12: 906.5
B13: Lerma | C13: 12 | D13: 21 | E13: 28 | F13: 45 | G13: 26.5
B14: Xochimilco | C14: 961 | D14: 964 | E14: 982 | F14: 973 | G14: 970
A16: CONVENIOS POR PROFESOR | B16: Azcapotzalco | C16: =C4/C10 -> 0.04955401388 | D16: 0.02257114818 | E16: 0.09047160731 | F16: 0.1200787402 | G16: 0.07066887738
B17: Cuajimalpa | C17: 0.2148148148 | D17: 0.2714285714 | E17: 0.1733333333 | F17: 0.3548387097 | G17: =AVERAGE(C17:F17) -> 0.2536038573
B18: Iztapalapa | C18: 0.4071190211 | D18: 0.1269315673 | E18: 0.2551799346 | F18: 0.3163716814 | G18: 0.2764005511
B19: Lerma | C19: 0 | D19: 0.4761904762 | E19: 0.6785714286 | F19: 0.4444444444 | G19: 0.3998015873
B20: Xochimilco | C20: 0.1727367326 | D20: 0.1400414938 | E20: 0.1975560081 | F20: 0.1551901336 | G20: 0.166381092
A22: Informe del Rector General 2015 - Anexo estadístico
A24: CONVENIOS Y CONTRATOS PATROCINADOS
B25: Unidad | C25: 2012 | D25: 2013 | E25: 2014 | F25: 2015 | G25: Promedio Anual
A26: CONVENIOS Y CONTRATOS PATROCINADOS | B26: Azcapotzalco | C26: 42 | D26: 19 | E26: 86 | F26: 110 | G26: =AVERAGE(C26:F26) -> 64.25
B27: Cuajimalpa | C27: 3 | D27: 31 | E27: 23 | F27: 54 | G27: =AVERAGE(C27:F27) -> 27.75
B28: Iztapalapa | C28: 312 | D28: 76 | E28: 209 | F28: 254 | G28: =AVERAGE(C28:F28) -> 212.75
B29: Lerma | C29: 0 | D29: 7 | E29: 18 | F29: 13 | G29: =AVERAGE(C29:F29) -> 9.5
B30: Xochimilco | C30: 78 | D30: 47 | E30: 133 | F30: 122 | G30: =AVERAGE(C30:F30) -> 95
A32: PROFESORES DEFINITIVOS TC | B32: Azcapotzalco | C32: 1009 | D32: 1019 | E32: 1039 | F32: 1016 | G32: =AVERAGE(C32:F32) -> 1020.75
B33: Cuajimalpa | C33: 135 | D33: 140 | E33: 150 | F33: 155 | G33: =AVERAGE(C33:F33) -> 145
B34: Iztapalapa | C34: 899 | D34: 906 | E34: 917 | F34: 904 | G34: =AVERAGE(C34:F34) -> 906.5
B35: Lerma | C35: 12 | D35: 21 | E35: 28 | F35: 45 | G35: =AVERAGE(C35:F35) -> 26.5
B36: Xochimilco | C36: 961 | D36: 964 | E36: 982 | F36: 973 | G36: =AVERAGE(C36:F36) -> 970
A38: CONVENIOS PATROCINADOS POR PROFESOR | B38: Azcapotzalco | C38: =C26/C32 -> 0.04162537166 | D38: 0.01864573111 | E38: 0.08277189605 | F38: 0.1082677165 | G38: =AVERAGE(C38:F38) -> 0.06282767884
B39: Cuajimalpa | C39: 0.02222222222 | D39: 0.2214285714 | E39: 0.1533333333 | F39: 0.3483870968 | G39: =AVERAGE(C39:F39) -> 0.1863428059
B40: Iztapalapa | C40: 0.3470522803 | D40: 0.08388520971 | E40: 0.227917121 | F40: 0.2809734513 | G40: =AVERAGE(C40:F40) -> 0.2349570156
B41: Lerma | C41: 0 | D41: 0.3333333333 | E41: 0.6428571429 | F41: 0.2888888889 | G41: =AVERAGE(C41:F41) -> 0.3162698413
B42: Xochimilco | C42: 0.08116545265 | D42: 0.04875518672 | E42: 0.1354378819 | F42: 0.125385406 | G42: =AVERAGE(C42:F42) -> 0.0976859818
A44: Informe del Rector General 2015 - Anexo estadístico

Sheet Patrocinios
A1: INDICE
A2: PATROCINIOS
A3: Patrocinador | B3: Titulo | C3: Responsable(s) | D3: Div | E3: Depto | F3: Monto UAML | G3: Monto Patrocinador | H3: Observaciones
A4: CONANAP | B4: CONSERVACIÓN DEL JAGUAR Y OTROS FELINOS EN LA RESERVA DE LA BIOSFERA LA ENCRUCIJADA Y EN EL SISTEMA ESTUARINO DE PUERTO ARISTA | C4: JOSÉ CUAHUTÉMOC CHÁVEZ | D4: CBS | E4: CAM | G4: 283500 | H4: Convenio Patrocinado | I4: =SUM(G7:G8) -> 881034
A5: CONACyT | B5: (260608) Laboratorio Nacional de Investigación en Imagenología e Instrumentación Médica: Consolidación de nuevas Unidades | C5: GUSTAVO PACHECO LOPEZ | D5: CBS | E5: CSA | F5: 1000000 | G5: 2711607 | H5: Apoyos complementarios para el Establecimiento y Consolidación de Laboratorios Nacionales CONACYT 2015-2, en concurrencia con CI3M(UAMI) y TecMont
A6: CONACyT | B6: POSTULACIÓN PARA INVESTIGADOR REPATRIADO, EFECTOS DE LA ESTIMULACIÓN MAGNÉTICA TRANSCRANEAL TIPO THETA BRUTS INTERMITENTE (Itbs) SOBRE LA CORTEZA MOTORA PRIMARIA (M1) PARA EL TRATAMIENTO DEL INFARTO CEREBRAL AGUDO UNILATERAL | C6: GUSTAVO PACHECO LOPEZ | D6: CBS | E6: CSA | G6: 99170 | H6: CONACYT-REPATRIACIÓN
A7: INDESOL | B7: EVALUACIÓN EN MATERIA DE DISEÑO DEL PROGRAMA DE COINVERSION SOCIAL 2014 | C7: DR. HUMBERTO MUÑOZ GRANDE/ DR. CARLOS CHÁVEZ BECKER | D7: CSH | E7: PS | G7: 450000 | H7: Convenio Patrocinado
A8: ISSSTE | B8: IDENTIFICACIÓN Y ANÁLISIS DE LOS PROCESOS SUSTANTIVOS DEL PROGRAMA PRESUPUESTARIO E-045, PRESTACIONES ECONÓMICAS, CULTURALES Y SOCIALES. | C8: RAÚL HERNÁNDEZ MAR | D8: CSH | E8: PS | G8: 431034 | H8: CONTRATO DE PRESTACIÓN DE SERVICIOS
G9: =SUM(G4:G8) -> 3975311

Sheet Recursos Ext
A1: INDICE
A2: INGRESOS POR APOYOS EXTERNOS
A3: AÑO | B3: División | C3: CONACyT | D3: SEP | E3: Convenios | F3: TOTAL | H3: AÑO | I3: División | J3: CONACyT | K3: SEP | L3: Convenios | M3: TOTAL | O3: AÑO | P3: CONACyT | Q3: SEP | R3: Convenios | S3: TOTAL
A4: 2015 | B4: CBI | C4: 0 | D4: 40000 | E4: 0 | F4: 40000 | H4: 2015 | I4: CBI | J4: 0 | K4: 40000 | L4: 0 | M4: 40000 | O4: 2015 | P4: =C8 -> 9264572.02 | Q4: =D8 -> 490087 | R4: 1353729.26 | S4: =F8 -> 11108388.28
B5: CBS | C5: 384169.98 | D5: 450087 | E5: 283500 | F5: 1117756.98 | I5: CBS | J5: 384169.98 | K5: 450087 | L5: 283500 | M5: 1117756.98 | O5: 2014 | P5: =C13 -> 1924698 | Q5: =D13 -> 864561 | R5: 0 | S5: =F13 -> 2789259
B6: CSH | C6: 0 | D6: 0 | E6: 1053056.85 | F6: 1053056.85 | I6: CSH | J6: 0 | K6: 0 | L6: 1053056.85 | M6: 1053056.85 | O6: 2013 | P6: =C18 -> 1134919.05 | Q6: =D18 -> 0 | R6: 0 | S6: =F18 -> 1134919.05
B7: Rectoría | C7: 8880402.04 | D7: 0 | E7: 17172.41 | F7: 8897574.45 | I7: Rectoría | J7: 8880402.04 | K7: 0 | L7: 17172.41 | M7: 8897574.45 | O7: 2012 | P7: =C23 -> 308290 | Q7: =D23 -> 8692250 | R7: 300142.86 | S7: =F23 -> 9300682.86
B8: Total | C8: 9264572.02 | D8: 490087 | E8: 1353729.26 | F8: 11108388.28
A9: 2014 | B9: CBI | D9: 80000 | F9: 80000 | H9: 2014 | I9: CBI | K9: 80000 | M9: 80000
B10: CBS | C10: 1714698 | F10: 1714698 | I10: CBS | J10: 1714698 | M10: 1714698
B11: CSH | C11: 210000 | D11: 784561 | F11: 994561 | I11: CSH | J11: 210000 | K11: 784561 | M11: 994561
B12: Rectoría | I12: Rectoría
B13: Total | C13: 1924698 | D13: 864561 | E13: 0 | F13: 2789259
A14: 2013 | B14: CBI | H14: 2013 | I14: CBI
B15: CBS | C15: 923719.05 | F15: 923719.05 | I15: CBS | J15: 923719.05 | M15: 923719.05
B16: CSH | I16: CSH
B17: Rectoría | C17: 211200 | F17: 211200 | I17: Rectoría | J17: 211200 | M17: 211200
B18: Total | C18: 1134919.05 | F18: 1134919.05
A19: 2012 | B19: CBI | C19: 0 | D19: 3828750 | E19: 0 | F19: 3828750 | H19: 2012 | I19: CBI | J19: 0 | K19: 3828750 | L19: 0 | M19: 3828750
B20: CBS | C20: 308290 | D20: 2928750 | E20: 300142.86 | F20: 3537182.86 | I20: CBS | J20: 308290 | K20: 2928750 | L20: 300142.86 | M20: 3537182.86
B21: CSH | C21: 0 | D21: 1934750 | E21: 0 | F21: 1934750 | I21: CSH | J21: 0 | K21: 1934750 | L21: 0 | M21: 1934750
B22: Rectoría | I22: Rectoría
B23: TOTAL | C23: 308290 | D23: 8692250 | E23: 300142.86 | F23: 9300682.86
A25: Informe del Rector General 2015 - Anexo estadístico

Sheet Recursos Ext Comp
A1: INDICE
A2: COMPARATIVO DE INGRESOS POR APOYOS EXTERNOS
B3: Unidad | C3: 2012 | D3: 2013 | E3: 2014 | F3: 2015 | G3: Promedio Anual
A4: INGRESOS | B4: Azcapotzalco | C4: 53854441.34 | D4: 25051034.06 | E4: 27000180.89 | F4: 32822519.15 | G4: =AVERAGE(C4:F4) -> 34682043.86
B5: Cuajimalpa | C5: 26537323.04 | D5: 9025410.88 | E5: 7577018.85 | F5: 18889129.92 | G5: =AVERAGE(C5:F5) -> 15507220.67
B6: Iztapalapa | C6: 290857708 | D6: 111651980.4 | E6: 158392573.7 | F6: 186470481.2 | G6: 186843185.8
B7: Lerma | C7: 9300682.86 | D7: 1134919.05 | E7: 2789259 | F7: 11108388.28 | G7: 6083312.297
B8: Xochimilco | C8: 100008008.8 | D8: 64530719 | E8: 50970941.41 | F8: 61110145.52 | G8: 69154953.67
A10: PROFESORES DEFINITIVOS TC | B10: Azcapotzalco | C10: 1009 | D10: 1019 | E10: 1039 | F10: 1016 | G10: 1020.75
B11: Cuajimalpa | C11: 135 | D11: 140 | E11: 150 | F11: 155 | G11: 145
B12: Iztapalapa | C12: 899 | D12: 906 | E12: 917 | F12: 904 | G12: 906.5
B13: Lerma | C13: 12 | D13: 21 | E13: 28 | F13: 45 | G13: 26.5
B14: Xochimilco | C14: 961 | D14: 964 | E14: 982 | F14: 973 | G14: 970
A16: INGRESO POR PROFESOR | B16: Azcapotzalco | C16: =C4/C10 -> 53374.07467 | D16: 24583.93921 | E16: 25986.69961 | F16: 32305.62908 | G16: 34062.58564
B17: Cuajimalpa | C17: 196572.7633 | D17: 64467.22057 | E17: 50513.459 | F17: 121865.3543 | G17: =AVERAGE(C17:F17) -> 108354.6993
B18: Iztapalapa | C18: 323534.7141 | D18: 123236.1814 | E18: 172729.088 | F18: 206272.6562 | G18: 206443.1599
B19: Lerma | C19: 775056.905 | D19: 54043.76429 | E19: 99616.39286 | F19: 246853.0729 | G19: 293892.5338
B20: Xochimilco | C20: 104066.6064 | D20: 66940.57988 | E20: 51905.23565 | F20: 62805.90495 | G20: 71429.58173
A23: Informe del Rector General 2015 - Anexo estadístico

Sheet Actividades deportivas
A1: INDICE
A2: ACTIVIDADES DEPORTIVAS
A3: Nivel 1: Al interior de las Unidades Académicas 2015 | E3: Nivel 1: Al interior de las Unidades Académicas 2015 | I3: Nivel 2: Entre las Unidades académicas 2015
A4: a) Torneos Internos y externos* | E4: b) Servicios proporcionados a la Comunidad Universitaria * | I4: ACTIVIDAD | J4: PERIODICIDAD | K4: NO. DE BENEFICIARIOS
A5: DISCIPLINA | B5: NO. DE TORNEOS | C5: NO. PARTICIPANTES | E5: ACTIVIDAD | F5: NO. DE SERVICIOS | G5: NO. DE BENEFICIARIOS | K5: PARTICIPANTES | L5: ESPECTADORES
I6: Serial Atlético "Corriendo por la UAM" | J6: Cua. 23 Sept.
A7: Torneo de Fútbol 7 "Varonil" | B7: 3 | C7: 258 | E7: Ajedrez (Programa de entrenamientos) | F7: 1 | G7: 28 | J7: Ler. 1 Oct.
A8: Torneo Fútbol 7 "Femenil" | B8: 3 | C8: 182 | E8: Baloncesto (Programa de entrenamientos) | F8: 4 | G8: 50 | I8: Caminando por la UAM | J8: Azc. 16 Oct. | K8: 5987 | L8: 7150
A9: Torneo Baloncesto 2 Vs. 2 "Varonil" | B9: 2 | C9: 40 | E9: Box (Progama fitness) | F9: 1 | G9: 8 | I9: Corriendo por la UAM | J9: Xoc. 30 Oct. | K9: 3846 | L9: 7150
A10: Torneo Baloncesto 2 Vs. 2 "Femenil" | B10: 1 | C10: 18 | E10: Desfiles cívicos | F10: 2 | G10: 60 | J10: Izt. 13 Nov.
A11: Torneo Voleibol 3 Vs. 3 "Mixto" | B11: 2 | C11: 41 | E11: Evaluaciones Físicas | F11: 7 | G11: 272 | I11: Convivencia Deportiva
A12: Torneo de la sustentabilidad (Carrera en bici, futenis y ajedrez) | B12: 1 | C12: 80 | E12: Fútbol Soccer (Programa de entrenamientos) | F12: 3 | G12: 70 | I12: Ajedrez,Baloncesto, Fútbol Asociación, Fútbol Bardas, Halterofilia, karate Do, Tae kwon do, Tenis, Tenis de mesa, Voleibol de playa y Voleibol de sala | J12: Octubre | K12: 1133 | L12: 4450
A13: * Torneo Tec Mienio (baloncesto var y fem, voleibol fem,futbol 7 var y fem) | B13: 1 | C13: 40 | E13: Fútbol Rápido (Programa de entrenamientos) | F13: 4 | G13: 52
A14: * Torneo Universidad del Bicentenario (baloncesto var, futbol 7 var y fem) | B14: 1 | C14: 25 | E14: Rally "Bienvenida nuevo ingreso" | F14: 1 | G14: 180
A15: TOTAL | B15: =SUM(B7:B14) -> 14 | C15: =SUM(C7:C14) -> 684 | E15: Spinning (Progama fitness) | F15: 2 | G15: 22
A16: Estos servicios se cuentan por usuario atendido, que en algunos casos se repite. | E16: Voleibol (Programa de entrenamientos) | F16: 2 | G16: 38
E17: Zumba (Programa fitness) | F17: 2 | G17: 25 | J17: TOTAL | K17: =SUM(K6:K14) -> 10966 | L17: 18750
E18: TOTAL | F18: =SUM(F7:F17) -> 29 | G18: =SUM(G7:G17) -> 805
I38: Nivel 2: Entre las Unidades académicas 2014
I39: ACTIVIDAD | J39: PERIODICIDAD | K39: No. de benefiviarios
K40: Participantes | L40: Espectadores
I42: FestiUAM | J42: Septiembre - Diciembre | K42: 1876 | L42: 2755
I43: Simultáneas de Ajedrez, Dominó, Fútbol Coladeritas, Voleibol de Pasto, Juegos de Destreza, Tenis de Mesa y Karaoke
I46: Olimpiada UAM 2011 | J46: Septiembre y Octubre | K46: 1009 | L46: 2480
I47: Competencia de Fuerza, Voleibol de Playa, Tenis, Ajedrez, Fútbol de Bardas, Baloncesto, Fútbol Asociación y Tenis de Mesa
I51: Serial Atlético "Corriendo por la UAM" | J51: Ler. 12 Sept.
J52: Cua. 18 Sept
I53: Caminando por la UAM | J53: Azc. 10 Oct. | K53: 4332 | L53: 7350
I54: Corriendo por la UAM | J54: Xoc. 24 Oct. | K54: 4975 | L54: 7350
J55: Izt. 14 Nov.
I56: Convivencia Deportiva
I57: Fútbol Asociación, Baloncesto, Voleibol, Fútbol Bardas, Karate do, Tae kwon do | J57: Octubre | K57: 777 | L57: 2300
I60: TOTAL | K60: =SUM(K42:K59) -> 12969 | L60: =SUM(L42:L59) -> 22235
I73: Nivel 2: Entre las Unidades académicas 2013
I74: ACTIVIDAD | J74: PERIODICIDAD | K74: BENEFICIARIOS
K75: Participantes | L75: Espectadores
I77: Convivencia Deportiva 2013 | J77: Junio, Septiembre y Octubre 2013 | K77: 1044 | L77: =4840-1044 -> 3796
I78: Paticipan los equipos representativos de las 5 Unidades Académicas de la UAM en los siguientes deportes:
I82: 1.- Ajedrez | J82: Sede de los eventos: Las instalaciones de las Unidades Académicas
I83: 2.- Atletismo
I84: 3.- Baloncesto
I85: 4.- Fútbol Asociación
I86: 5.- Fútbol Rápid
I87: 6.- Karate Do
I88: 7.- Lev. Olímpico de Pesas
I89: 8.- Tae Kwon Do
I90: 9.- Tenis
I91: 10.- Tenis de Mesa
I92: 11.- Voleibol de Playa
I93: 12.- Voleibol de Sala
I94: Serial Atlético "Corriendo por la UAM" 2013 | J94: Lerma 4 de Septiembre | K94: 4580 | L94: 6460
J95: Cuajimalpa 13 de Septiembre
I96: Serial Atlético "Caminando por la UAM" 2013 | J96: Azcapotzalco 27 de Septiembre | K96: 3231 | L96: 6460
J97: Xochimilco 11 de Octubre
J98: Iztapalapa 25 de Octubre
J99: TOTAL | K99: =SUM(K77:K98) -> 8855 | L99: =SUM(L77:L98) -> 16716
I116: Nivel 2: Entre las Unidades académicas 2012
I117: ACTIVIDAD | J117: PERIODICIDAD | K117: NO. DE BENEFICIARIOS
K118: PARTICIPANTES | L118: ESPECTADORES
I120: Convivencia Deportiva 2012 | J120: Julio 2012 | K120: 940 | L120: 3100
I121: Paticipan los equipos representativos de las 5 Unidades Académicas de la UAM en los siguientes deportes:
J122: Sede de los eventos: Las instalaciones de las Unidades Académicas
I125: 1.- Ajedrez 2.- Atletismo 3.- Baloncesto 4.- Fútbol Asociación 5.- Fútbol Rápido 6.- Karate Do 7.- Lev. Olímpico de Pesas 8.- Tae Kwon Do 9.- Tenis 10.- Tenis de Mesa 11.- Voleibol de Playa 12.- Voleibol de Sala
I131: Olimpiada UAM 2012 | J131: Septiembre - Octubre 2012 | K131: 1332 | L131: 13642
I132: Participan equipos de alumnos de las 5 Unidades Académicas en los siguientes deportes: 1.- Ajedrez 2.- Baloncesto 3.- Fisicoconstructivismo 4.- Fútbol Asociación 5.- Fútbol Rápido 6.- Levantamiento de Potencia 7.- Tenis de Mesa 8.- Voliebol de Playa
J133: Sede de los eventos: Las instalaciones de las Unidades Académicas
I141: Serial Atlético "Corriendo por la UAM" 2012 | J141: Cuajimalpa 11 de Octubre | K141: =1469+239+133+1696+1309 -> 4846 | L141: =1700+60+30+2000+1600 -> 5390
J142: Azcapotzalco 26 de Octubre
I143: Serial Atlético "Caminando por la UAM" 2012 | J143: Xochimilco 9 de Noviembre | K143: =526+101+141+757+675 -> 2200 | L143: 5390
J144: Lerma 16 de Noviembre
J145: Iztapalapa 23 de Noviembre
I147: TOTAL | K147: =SUM(K120:K145) -> 9318 | L147: =SUM(L120:L143) -> 27522
I155: Nivel 2: Entre las Unidades académicas 2011
I156: ACTIVIDAD | J156: PERIODICIDAD | K156: NO. DE BENEFICIARIOS
K157: PARTICIPANTES | L157: ESPECTADORES
I159: Olimpiada UAM 2010 | J159: Anual | K159: 1149 | L159: =15426-1149 -> 14277
I160: Serial Atlético "Corriendo por la UAM" | J160: 4 carreras por año | K160: 3563 | L160: 4945
I162: Caminando por la UAM | J162: 4 eventos por año | K162: 2698 | L162: 4945
I163: Convivencia Deportiva | J163: Anual | K163: 558 | L163: 2360
I165: TOTAL | K165: =SUM(K159:K163) -> 7968 | L165: =SUM(L159:L163) -> 26527
I188: Nivel 2: Entre las Unidades académicas 2010
I189: ACTIVIDAD | J189: PERIODICIDAD | K189: NO. DE BENEFICIARIOS
K190: PARTICIPANTES | L190: ESPECTADORES
I192: Olimpiada UAM 2010 | J192: Anual | K192: 1256 | L192: 11361
I193: Serial Atlético "Corriendo por la UAM" | J193: 4 carreras por año | K193: 2658 | L193: 3040
I194: Caminando por la UAM | J194: 4 eventos por año | K194: 2052 | L194: 3040
I195: Convivencia Deportiva | J195: Anual | K195: 866 | L195: 2764
I197: TOTAL | K197: =SUM(K192:K196) -> 6832 | L197: =SUM(L192:L196) -> 20205
I218: Nivel 2: Entre las Unidades académicas 2009 | N218: UNIDAD | O218: DISCIPLINA 2009 | P218: NO. DE TORNEOS | Q218: NÚMERO DE PARTICIPANTES
I219: ACTIVIDAD | J219: PERIODICIDAD | K219: NO. DE BENEFICIARIOS
K220: PARTICIPANTES | L220: ESPECTADORES | N220: AZCAPOTZALCO | O220: Fútbol rápido | P220: 3 | Q220: 1214
O221: Fútbol soccer | P221: 3 | Q221: 5031
I222: Olimpiada UAM 2009 | J222: Anual | K222: 1690 | L222: 8360 | O222: Fútbol soccer 7 | P222: 3 | Q222: 741
I223: Serial Atlético "Corriendo por la UAM" | J223: 4 carreras por año | K223: 2631 | O223: Tochito bandera | P223: 3 | Q223: 580
I224: Convivencia Deportiva | J224: Anual | K224: 4321 | O224: Basquetbol | P224: 3 | Q224: 865
I225: FESTI UAM | J225: Anual | K225: 975 | L225: 7010 | O225: Ajedrez | P225: 2 | Q225: 57
I226: TOTAL | K226: =SUM(K222:K225) -> 9617 | L226: =SUM(L222:L225) -> 15370 | O226: Halterofilia | P226: 3 | Q226: 244
